Workbook

Sheet INDICE
B2: ÍNDICE
B3: 1. ESTABLECIMIENTOS EDUCATIVOS
B4: 2. SEDES EDUCATIVAS
B5: 3. PROYECCIÓN DE POBLACIÓN - CENSOE 2018
B6: 4. MATRÍCULA SECTOR GRADOS NIVEL
B7: 5. MATRÍCULA SECTOR ZONA GRADOS NIVEL
B8: 6. TASA DE COBERTURA BRUTA
B9: 7. TASA DE COBERTURA NETA
B10: 8. TASA DESERCIÓN OFICIAL
B11: 9. MATRÍCULA GRUPOS ÉTNICOS
B12: 10.EXTRAEDAD OFICIAL
B13: 10A.EXTRAEDAD TOTAL
B14: 11.TASA MATRICULACION 5A16
B15: 12.ESTUDIANTES VENEZOLANOS
B16: 13.TRAYECTORIA GRADO
B17: 14. EFICIENCIA
B18: 15. MATRÍCULA RESIDENCIAS ESCOLARES
B19: 16. POB DISCAPACIDAD HOMOLOGADA
B20: 17. MATRICULA IE-SEDES

Sheet 1 ESTAB
B1: ESTABLECIMIENTOS EDUCATIVOS | O1: Indice
B2: Corte SEPTIEMBRE 2025 información preliminar
B3: ENTIDAD
B4: YUMBO | C4: SECTOR | D4: 2014 | E4: 2015 | F4: 2016 | G4: 2017 | H4: 2018 | I4: 2019 | J4: 2020 | K4: 2021 | L4: 2022 | M4: 2023 | N4: 2024 | O4: Sep. 2025
C5: Oficial | D5: =+SUMIFS($D$200:$D$395,$B$200:$B$395,$B$4,$C$200:$C$395,C5) -> 13 | E5: =+SUMIFS($E$200:$E$395,$B$200:$B$395,$B$4,$C$200:$C$395,C5) -> 13 | F5: =+SUMIFS($F$200:$F$395,$B$200:$B$395,$B$4,$C$200:$C$395,C5) -> 13 | G5: =+SUMIFS($G$200:$G$395,$B$200:$B$395,$B$4,$C$200:$C$395,C5) -> 13 | H5: =+SUMIFS($H$200:$H$395,$B$200:$B$395,$B$4,$C$200:$C$395,C5) -> 13 | I5: =+SUMIFS($I$200:$I$395,$B$200:$B$395,$B$4,$C$200:$C$395,C5) -> 13 | J5: =+SUMIFS($J$200:$J$395,$B$200:$B$395,$B$4,$C$200:$C$395,C5) -> 13 | K5: =+SUMIFS($K$200:$K$395,$B$200:$B$395,$B$4,$C$200:$C$395,C5) -> 13 | L5: =+SUMIFS($L$200:$L$395,$B$200:$B$395,$B$4,$C$200:$C$395,C5) -> 13 | M5: =+SUMIFS($M$200:$M$395,$B$200:$B$395,$B$4,$C$200:$C$395,C5) -> 13 | N5: =+SUMIFS($N$200:$N$395,$B$200:$B$395,$B$4,$C$200:$C$395,C5) -> 13 | O5: =+SUMIFS($O$200:$O$395,$B$200:$B$395,$B$4,$C$200:$C$395,C5) -> 13
C6: No Oficial | D6: =+SUMIFS($D$200:$D$395,$B$200:$B$395,$B$4,$C$200:$C$395,C6) -> 25 | E6: =+SUMIFS($E$200:$E$395,$B$200:$B$395,$B$4,$C$200:$C$395,C6) -> 28 | F6: =+SUMIFS($F$200:$F$395,$B$200:$B$395,$B$4,$C$200:$C$395,C6) -> 28 | G6: =+SUMIFS($G$200:$G$395,$B$200:$B$395,$B$4,$C$200:$C$395,C6) -> 29 | H6: =+SUMIFS($H$200:$H$395,$B$200:$B$395,$B$4,$C$200:$C$395,C6) -> 29 | I6: =+SUMIFS($I$200:$I$395,$B$200:$B$395,$B$4,$C$200:$C$395,C6) -> 29 | J6: =+SUMIFS($J$200:$J$395,$B$200:$B$395,$B$4,$C$200:$C$395,C6) -> 29 | K6: =+SUMIFS($K$200:$K$395,$B$200:$B$395,$B$4,$C$200:$C$395,C6) -> 30 | L6: =+SUMIFS($L$200:$L$395,$B$200:$B$395,$B$4,$C$200:$C$395,C6) -> 28 | M6: =+SUMIFS($M$200:$M$395,$B$200:$B$395,$B$4,$C$200:$C$395,C6) -> 29 | N6: =+SUMIFS($N$200:$N$395,$B$200:$B$395,$B$4,$C$200:$C$395,C6) -> 31 | O6: =+SUMIFS($O$200:$O$395,$B$200:$B$395,$B$4,$C$200:$C$395,C6) -> 32
C7: Total | D7: =SUM(D5:D6) -> 38 | E7: 41 | F7: 41 | G7: 42 | H7: 42 | I7: 42 | J7: 42 | K7: =SUM(K5:K6) -> 43 | L7: =SUM(L5:L6) -> 41 | M7: =SUM(M5:M6) -> 42 | N7: =SUM(N5:N6) -> 44 | O7: =SUM(O5:O6) -> 45
C8: FUENTE: SIMAT OAPF
C10: =+B4 -> YUMBO
A199: lista | B199: ENTIDAD | C199: Sector | D199: 2014 | E199: 2015 | F199: 2016 | G199: 2017 | H199: 2018 | I199: 2019 | J199: 2020 | K199: =+K4 -> 2021 | L199: =+L4 -> 2022 | M199: 2023 | N199: =+N4 -> 2024 | O199: =+O4 -> Sep. 2025
A200: AMAZONAS | B200: AMAZONAS | C200: OFICIAL | D200: 29 | E200: 29 | F200: 29 | G200: 50 | H200: 49 | I200: 56 | J200: 54 | K200: 56 | L200: 55 | M200: 50 | N200: 51 | O200: 51
A201: ANTIOQUIA | B201: AMAZONAS | C201: NO OFICIAL | D201: 26 | E201: 26 | F201: 26 | G201: 5 | H201: 6 | I201: 6 | J201: 5 | K201: 7 | L201: 5 | M201: 5 | N201: 4 | O201: 4
A202: APARTADO | B202: ANTIOQUIA | C202: OFICIAL | D202: 2,692 | E202: 618 | F202: 625 | G202: 617 | H202: 607 | I202: 584 | J202: 585 | K202: 577 | L202: 569 | M202: 555 | N202: 553 | O202: 549
A203: ARAUCA | B203: ANTIOQUIA | C203: NO OFICIAL | D203: 218 | E203: 213 | F203: 140 | G203: 139 | H203: 136 | I203: 154 | J203: 155 | K203: 147 | L203: 148 | M203: 128 | N203: 128 | O203: 126
A204: ARMENIA | B204: APARTADO | C204: OFICIAL | D204: 22 | E204: 21 | F204: 21 | G204: 22 | H204: 22 | I204: 21 | J204: 21 | K204: 21 | L204: 21 | M204: 21 | N204: 21 | O204: 21
A205: ATLANTICO | B205: APARTADO | C205: NO OFICIAL | D205: 16 | E205: 12 | F205: 9 | G205: 9 | H205: 10 | I205: 10 | J205: 11 | K205: 12 | L205: 11 | M205: 12 | N205: 12 | O205: 12
A206: BARRANCABERMEJA | B206: ARAUCA | C206: OFICIAL | D206: 68 | E206: 68 | F206: 66 | G206: 66 | H206: 67 | I206: 67 | J206: 67 | K206: 67 | L206: 67 | M206: 67 | N206: 67 | O206: 67
A207: BARRANQUILLA | B207: ARAUCA | C207: NO OFICIAL | D207: 22 | E207: 22 | F207: 23 | G207: 28 | H207: 29 | I207: 34 | J207: 42 | K207: 44 | L207: 48 | M207: 44 | N207: 40 | O207: 41
A208: BELLO | B208: ARMENIA | C208: OFICIAL | D208: 29 | E208: 29 | F208: 29 | G208: 30 | H208: 30 | I208: 30 | J208: 30 | K208: 29 | L208: 29 | M208: 29 | N208: 29 | O208: 29
A209: BOGOTA | B209: ARMENIA | C209: NO OFICIAL | D209: 41 | E209: 42 | F209: 40 | G209: 38 | H209: 37 | I209: 38 | J209: 38 | K209: 37 | L209: 37 | M209: 36 | N209: 36 | O209: 35
A210: BOLIVAR | B210: ATLANTICO | C210: OFICIAL | D210: 76 | E210: 76 | F210: 84 | G210: 85 | H210: 85 | I210: 85 | J210: 85 | K210: 85 | L210: 85 | M210: 85 | N210: 86 | O210: 86
A211: BOYACA | B211: ATLANTICO | C211: NO OFICIAL | D211: 91 | E211: 90 | F211: 93 | G211: 94 | H211: 97 | I211: 102 | J211: 105 | K211: 103 | L211: 106 | M211: 116 | N211: 123 | O211: 122
A212: BUCARAMANGA | B212: BARRANCABERMEJA | C212: OFICIAL | D212: 22 | E212: 21 | F212: 21 | G212: 22 | H212: 22 | I212: 22 | J212: 22 | K212: 22 | L212: 22 | M212: 21 | N212: 21 | O212: 21
A213: BUENAVENTURA | B213: BARRANCABERMEJA | C213: NO OFICIAL | D213: 70 | E213: 72 | F213: 77 | G213: 79 | H213: 82 | I213: 81 | J213: 81 | K213: 81 | L213: 77 | M213: 75 | N213: 80 | O213: 77
A214: BUGA | B214: BARRANQUILLA | C214: OFICIAL | D214: 161 | E214: 160 | F214: 160 | G214: 163 | H214: 162 | I214: 160 | J214: 160 | K214: 160 | L214: 160 | M214: 160 | N214: 159 | O214: 160
A215: CALDAS | B215: BARRANQUILLA | C215: NO OFICIAL | D215: 300 | E215: 314 | F215: 339 | G215: 353 | H215: 346 | I215: 341 | J215: 343 | K215: 344 | L215: 330 | M215: 344 | N215: 343 | O215: 354
A216: CALI | B216: BELLO | C216: OFICIAL | D216: 40 | E216: 39 | F216: 40 | G216: 40 | H216: 40 | I216: 40 | J216: 39 | K216: 39 | L216: 39 | M216: 39 | N216: 39 | O216: 39
A217: CAQUETA | B217: BELLO | C217: NO OFICIAL | D217: 59 | E217: 61 | F217: 60 | G217: 64 | H217: 64 | I217: 66 | J217: 76 | K217: 80 | L217: 83 | M217: 80 | N217: 74 | O217: 74
A218: CARTAGENA | B218: BOGOTA | C218: OFICIAL | D218: 386 | E218: 385 | F218: 386 | G218: 387 | H218: 388 | I218: 394 | J218: 402 | K218: 403 | L218: 405 | M218: 411 | N218: 417 | O218: 417
A219: CARTAGO | B219: BOGOTA | C219: NO OFICIAL | D219: 1,852 | E219: 1840 | F219: 1786 | G219: 1775 | H219: 1748 | I219: 1713 | J219: 1,700 | K219: 1624 | L219: 1566 | M219: 1515 | N219: 1457 | O219: 1392
A220: CASANARE | B220: BOLIVAR | C220: OFICIAL | D220: 224 | E220: 224 | F220: 224 | G220: 224 | H220: 224 | I220: 225 | J220: 226 | K220: 226 | L220: 226 | M220: 226 | N220: 227 | O220: 227
A221: CAUCA | B221: BOLIVAR | C221: NO OFICIAL | D221: 43 | E221: 57 | F221: 61 | G221: 74 | H221: 79 | I221: 91 | J221: 101 | K221: 97 | L221: 104 | M221: 108 | N221: 118 | O221: 130
A222: CESAR | B222: BOYACA | C222: OFICIAL | D222: 255 | E222: 254 | F222: 254 | G222: 254 | H222: 254 | I222: 255 | J222: 255 | K222: 255 | L222: 256 | M222: 256 | N222: 256 | O222: 256
A223: CHÍA | B223: BOYACA | C223: NO OFICIAL | D223: 96 | E223: 97 | F223: 97 | G223: 107 | H223: 109 | I223: 110 | J223: 111 | K223: 104 | L223: 101 | M223: 100 | N223: 101 | O223: 105
A224: CHOCO | B224: BUCARAMANGA | C224: OFICIAL | D224: 51 | E224: 49 | F224: 48 | G224: 47 | H224: 48 | I224: 47 | J224: 47 | K224: 47 | L224: 47 | M224: 48 | N224: 48 | O224: 48
A225: CIENAGA | B225: BUCARAMANGA | C225: NO OFICIAL | D225: 164 | E225: 168 | F225: 168 | G225: 175 | H225: 177 | I225: 169 | J225: 160 | K225: 154 | L225: 145 | M225: 142 | N225: 144 | O225: 141
A226: CORDOBA | B226: BUENAVENTURA | C226: OFICIAL | D226: 43 | E226: 43 | F226: 43 | G226: 44 | H226: 44 | I226: 44 | J226: 44 | K226: 45 | L226: 45 | M226: 45 | N226: 44 | O226: 45
A227: CUCUTA | B227: BUENAVENTURA | C227: NO OFICIAL | D227: 378 | E227: 388 | F227: 218 | G227: 218 | H227: 215 | I227: 123 | J227: 122 | K227: 124 | L227: 109 | M227: 109 | N227: 108 | O227: 98
A228: CUNDINAMARCA | B228: BUGA | C228: OFICIAL | D228: 14 | E228: 14 | F228: 14 | G228: 14 | H228: 14 | I228: 14 | J228: 14 | K228: 14 | L228: 14 | M228: 14 | N228: 14 | O228: 14
A229: DOSQUEBRADAS | B229: BUGA | C229: NO OFICIAL | D229: 51 | E229: 55 | F229: 52 | G229: 53 | H229: 53 | I229: 53 | J229: 53 | K229: 52 | L229: 52 | M229: 53 | N229: 50 | O229: 47
A230: DUITAMA | B230: CALDAS | C230: OFICIAL | D230: 169 | E230: 168 | F230: 166 | G230: 165 | H230: 165 | I230: 165 | J230: 164 | K230: 163 | L230: 162 | M230: 162 | N230: 161 | O230: 161
A231: ENVIGADO | B231: CALDAS | C231: NO OFICIAL | D231: 45 | E231: 46 | F231: 49 | G231: 46 | H231: 48 | I231: 46 | J231: 50 | K231: 49 | L231: 44 | M231: 46 | N231: 46 | O231: 48
A232: FACATATIVA | B232: CALI | C232: OFICIAL | D232: 93 | E232: 93 | F232: 93 | G232: 95 | H232: 95 | I232: 95 | J232: 96 | K232: 96 | L232: 96 | M232: 96 | N232: 96 | O232: 96
A233: FLORENCIA | B233: CALI | C233: NO OFICIAL | D233: 743 | E233: 715 | F233: 699 | G233: 692 | H233: 682 | I233: 665 | J233: 635 | K233: 630 | L233: 605 | M233: 596 | N233: 583 | O233: 569
A234: FLORIDABLANCA | B234: CAQUETA | C234: OFICIAL | D234: 150 | E234: 150 | F234: 146 | G234: 145 | H234: 144 | I234: 143 | J234: 144 | K234: 144 | L234: 144 | M234: 144 | N234: 144 | O234: 144
A235: FUNZA | B235: CAQUETA | C235: NO OFICIAL | D235: 6 | E235: 5 | F235: 5 | G235: 5 | H235: 4 | I235: 4 | J235: 4 | K235: 4 | L235: 5 | M235: 4 | N235: 6 | O235: 8
A236: FUSAGASUGA | B236: CARTAGENA | C236: OFICIAL | D236: 97 | E236: 97 | F236: 98 | G236: 100 | H236: 101 | I236: 101 | J236: 102 | K236: 102 | L236: 103 | M236: 103 | N236: 104 | O236: 104
A237: GIRARDOT | B237: CARTAGENA | C237: NO OFICIAL | D237: 282 | E237: 281 | F237: 274 | G237: 269 | H237: 259 | I237: 262 | J237: 268 | K237: 271 | L237: 263 | M237: 273 | N237: 276 | O237: 273
A238: GIRON | B238: CARTAGO | C238: OFICIAL | D238: 12 | E238: 12 | F238: 12 | G238: 12 | H238: 12 | I238: 12 | J238: 12 | K238: 12 | L238: 12 | M238: 12 | N238: 12 | O238: 12
A239: GUAINIA | B239: CARTAGO | C239: NO OFICIAL | D239: 30 | E239: 30 | F239: 29 | G239: 27 | H239: 28 | I239: 28 | J239: 27 | K239: 23 | L239: 25 | M239: 25 | N239: 23 | O239: 23
A240: GUAVIARE | B240: CASANARE | C240: OFICIAL | D240: 68 | E240: 69 | F240: 69 | G240: 69 | H240: 69 | I240: 69 | J240: 69 | K240: 69 | L240: 69 | M240: 68 | N240: 69 | O240: 69
A241: HUILA | B241: CASANARE | C241: NO OFICIAL | D241: 19 | E241: 20 | F241: 20 | G241: 21 | H241: 21 | I241: 19 | J241: 19 | K241: 14 | L241: 14 | M241: 17 | N241: 18 | O241: 19
A242: IBAGUE | B242: CAUCA | C242: OFICIAL | D242: 564 | E242: 559 | F242: 556 | G242: 553 | H242: 553 | I242: 553 | J242: 552 | K242: 552 | L242: 553 | M242: 554 | N242: 558 | O242: 557
A243: IPIALES | B243: CAUCA | C243: NO OFICIAL | D243: 59 | E243: 63 | F243: 64 | G243: 66 | H243: 65 | I243: 63 | J243: 63 | K243: 65 | L243: 63 | M243: 63 | N243: 67 | O243: 66
A244: ITAGUI | B244: CESAR | C244: OFICIAL | D244: 186 | E244: 184 | F244: 182 | G244: 181 | H244: 181 | I244: 180 | J244: 180 | K244: 180 | L244: 181 | M244: 180 | N244: 179 | O244: 179
A245: JAMUNDÍ | B245: CESAR | C245: NO OFICIAL | D245: 74 | E245: 75 | F245: 74 | G245: 78 | H245: 86 | I245: 95 | J245: 99 | K245: 96 | L245: 97 | M245: 102 | N245: 106 | O245: 107
A246: LA ESTRELLA | B246: CHÍA | C246: OFICIAL | D246: 12 | E246: 12 | F246: 12 | G246: 12 | H246: 12 | I246: 12 | J246: 12 | K246: 12 | L246: 12 | M246: 12 | N246: 12 | O246: 12
A247: LA GUAJIRA | B247: CHÍA | C247: NO OFICIAL | D247: 70 | E247: 77 | F247: 76 | G247: 79 | H247: 76 | I247: 80 | J247: 81 | K247: 84 | L247: 81 | M247: 84 | N247: 81 | O247: 84
A248: LORICA | B248: CHOCO | C248: OFICIAL | D248: 169 | E248: 165 | F248: 176 | G248: 183 | H248: 183 | I248: 184 | J248: 186 | K248: 189 | L248: 192 | M248: 195 | N248: 199 | O248: 201
A249: MAGANGUE | B249: CHOCO | C249: NO OFICIAL | D249: 2 | E249: 4 | F249: 5 | G249: 5 | H249: 4 | I249: 3 | J249: 3 | K249: 3 | L249: 4 | M249: 4 | N249: 3 | O249: 4
A250: MAGDALENA | B250: CIENAGA | C250: OFICIAL | D250: 25 | E250: 24 | F250: 25 | G250: 25 | H250: 25 | I250: 25 | J250: 25 | K250: 25 | L250: 25 | M250: 25 | N250: 25 | O250: 25
A251: MAICAO | B251: CIENAGA | C251: NO OFICIAL | D251: 34 | E251: 35 | F251: 37 | G251: 37 | H251: 50 | I251: 49 | J251: 49 | K251: 50 | L251: 50 | M251: 49 | N251: 49 | O251: 48
A252: MALAMBO | B252: CORDOBA | C252: OFICIAL | D252: 370 | E252: 368 | F252: 359 | G252: 351 | H252: 335 | I252: 334 | J252: 328 | K252: 327 | L252: 325 | M252: 315 | N252: 315 | O252: 314
A253: MANIZALES | B253: CORDOBA | C253: NO OFICIAL | D253: 84 | E253: 87 | F253: 95 | G253: 96 | H253: 99 | I253: 101 | J253: 101 | K253: 100 | L253: 98 | M253: 97 | N253: 97 | O253: 97
A254: MEDELLIN | B254: CUCUTA | C254: OFICIAL | D254: 59 | E254: 59 | F254: 59 | G254: 59 | H254: 60 | I254: 61 | J254: 61 | K254: 62 | L254: 64 | M254: 64 | N254: 64 | O254: 64
A255: META | B255: CUCUTA | C255: NO OFICIAL | D255: 202 | E255: 194 | F255: 203 | G255: 209 | H255: 210 | I255: 210 | J255: 213 | K255: 209 | L255: 196 | M255: 196 | N255: 196 | O255: 189
A256: MONTERIA | B256: CUNDINAMARCA | C256: OFICIAL | D256: 283 | E256: 283 | F256: 283 | G256: 283 | H256: 281 | I256: 277 | J256: 276 | K256: 277 | L256: 277 | M256: 276 | N256: 276 | O256: 276
A257: MOSQUERA | B257: CUNDINAMARCA | C257: NO OFICIAL | D257: 326 | E257: 340 | F257: 348 | G257: 353 | H257: 359 | I257: 330 | J257: 332 | K257: 325 | L257: 330 | M257: 336 | N257: 342 | O257: 346
A258: NARIÑO | B258: DOSQUEBRADAS | C258: OFICIAL | D258: 20 | E258: 20 | F258: 20 | G258: 20 | H258: 21 | I258: 21 | J258: 21 | K258: 21 | L258: 21 | M258: 21 | N258: 21 | O258: 21
A259: NEIVA | B259: DOSQUEBRADAS | C259: NO OFICIAL | D259: 56 | E259: 59 | F259: 59 | G259: 64 | H259: 73 | I259: 72 | J259: 72 | K259: 66 | L259: 67 | M259: 65 | N259: 65 | O259: 67
A260: NORTE SANTANDER | B260: DUITAMA | C260: OFICIAL | D260: 16 | E260: 14 | F260: 14 | G260: 14 | H260: 14 | I260: 14 | J260: 14 | K260: 14 | L260: 14 | M260: 14 | N260: 14 | O260: 14
A261: PALMIRA | B261: DUITAMA | C261: NO OFICIAL | D261: 49 | E261: 49 | F261: 50 | G261: 52 | H261: 52 | I261: 52 | J261: 50 | K261: 47 | L261: 47 | M261: 47 | N261: 47 | O261: 47
A262: PASTO | B262: ENVIGADO | C262: OFICIAL | D262: 12 | E262: 12 | F262: 13 | G262: 14 | H262: 14 | I262: 14 | J262: 14 | K262: 14 | L262: 14 | M262: 14 | N262: 14 | O262: 14
A263: PEREIRA | B263: ENVIGADO | C263: NO OFICIAL | D263: 54 | E263: 57 | F263: 58 | G263: 59 | H263: 63 | I263: 62 | J263: 62 | K263: 57 | L263: 57 | M263: 57 | N263: 55 | O263: 53
A264: PIEDECUESTA | B264: FACATATIVA | C264: OFICIAL | D264: 11 | E264: 11 | F264: 11 | G264: 11 | H264: 11 | I264: 11 | J264: 11 | K264: 11 | L264: 11 | M264: 11 | N264: 11 | O264: 11
A265: PITALITO | B265: FACATATIVA | C265: NO OFICIAL | D265: 53 | E265: 56 | F265: 61 | G265: 63 | H265: 66 | I265: 69 | J265: 68 | K265: 64 | L265: 63 | M265: 56 | N265: 53 | O265: 52
A266: POPAYAN | B266: FLORENCIA | C266: OFICIAL | D266: 29 | E266: 29 | F266: 31 | G266: 31 | H266: 30 | I266: 30 | J266: 30 | K266: 30 | L266: 30 | M266: 30 | N266: 30 | O266: 30
A267: PUTUMAYO | B267: FLORENCIA | C267: NO OFICIAL | D267: 30 | E267: 32 | F267: 35 | G267: 41 | H267: 41 | I267: 42 | J267: 42 | K267: 44 | L267: 42 | M267: 42 | N267: 42 | O267: 42
A268: QUIBDÓ | B268: FLORIDABLANCA | C268: OFICIAL | D268: 16 | E268: 16 | F268: 16 | G268: 16 | H268: 16 | I268: 16 | J268: 16 | K268: 16 | L268: 16 | M268: 16 | N268: 16 | O268: 16
A269: QUINDIO | B269: FLORIDABLANCA | C269: NO OFICIAL | D269: 103 | E269: 105 | F269: 111 | G269: 101 | H269: 100 | I269: 104 | J269: 96 | K269: 97 | L269: 97 | M269: 94 | N269: 94 | O269: 88
A270: RIOHACHA | B270: FUNZA | C270: OFICIAL | I270: 4 | J270: 4 | K270: 4 | L270: 4 | M270: 4 | N270: 4 | O270: 4
A271: RIONEGRO | B271: FUNZA | C271: NO OFICIAL | I271: 40 | J271: 41 | K271: 42 | L271: 45 | M271: 44 | N271: 45 | O271: 44
A272: RISARALDA | B272: FUSAGASUGA | C272: OFICIAL | D272: 14 | E272: 14 | F272: 14 | G272: 14 | H272: 14 | I272: 13 | J272: 13 | K272: 13 | L272: 13 | M272: 13 | N272: 13 | O272: 13
A273: SABANETA | B273: FUSAGASUGA | C273: NO OFICIAL | D273: 43 | E273: 44 | F273: 46 | G273: 45 | H273: 45 | I273: 47 | J273: 48 | K273: 48 | L273: 46 | M273: 48 | N273: 47 | O273: 49
A274: SAHAGUN | B274: GIRARDOT | C274: OFICIAL | D274: 8 | E274: 8 | F274: 8 | G274: 8 | H274: 8 | I274: 8 | J274: 8 | K274: 8 | L274: 8 | M274: 8 | N274: 8 | O274: 8
A275: SAN_ANDRES | B275: GIRARDOT | C275: NO OFICIAL | D275: 43 | E275: 47 | F275: 49 | G275: 51 | H275: 53 | I275: 51 | J275: 64 | K275: 62 | L275: 61 | M275: 58 | N275: 56 | O275: 53
A276: SANTA MARTA | B276: GIRON | C276: OFICIAL | D276: 13 | E276: 13 | F276: 15 | G276: 15 | H276: 15 | I276: 19 | J276: 20 | K276: 20 | L276: 20 | M276: 20 | N276: 20 | O276: 20
A277: SANTANDER | B277: GIRON | C277: NO OFICIAL | D277: 39 | E277: 38 | F277: 37 | G277: 38 | H277: 37 | I277: 35 | J277: 35 | K277: 29 | L277: 25 | M277: 24 | N277: 25 | O277: 25
A278: SINCELEJO | B278: GUAINIA | C278: OFICIAL | D278: 21 | E278: 21 | F278: 21 | G278: 21 | H278: 21 | I278: 21 | J278: 21 | K278: 21 | L278: 21 | M278: 25 | N278: 25 | O278: 25
A279: SOACHA | B279: GUAINIA | C279: NO OFICIAL | D279: 1 | E279: 1 | F279: 1 | G279: 1 | H279: 1 | I279: 2 | J279: 2 | K279: 2 | L279: 2 | M279: 2 | N279: 2 | O279: 2
A280: SOGAMOSO | B280: GUAVIARE | C280: OFICIAL | D280: 41 | E280: 41 | F280: 43 | G280: 43 | H280: 43 | I280: 43 | J280: 43 | K280: 43 | L280: 43 | M280: 43 | N280: 43 | O280: 43
A281: SOLEDAD | B281: GUAVIARE | C281: NO OFICIAL | D281: 10 | E281: 10 | F281: 13 | G281: 11 | H281: 11 | I281: 13 | J281: 13 | K281: 13 | L281: 12 | M281: 13 | N281: 13 | O281: 13
A282: SUCRE | B282: HUILA | C282: OFICIAL | D282: 188 | E282: 182 | F282: 179 | G282: 178 | H282: 178 | I282: 177 | J282: 177 | K282: 177 | L282: 177 | M282: 176 | N282: 176 | O282: 176
A283: TOLIMA | B283: HUILA | C283: NO OFICIAL | D283: 53 | E283: 50 | F283: 49 | G283: 50 | H283: 50 | I283: 50 | J283: 50 | K283: 47 | L283: 44 | M283: 46 | N283: 46 | O283: 45
A284: TULUA | B284: IBAGUE | C284: OFICIAL | D284: 59 | E284: 58 | F284: 58 | G284: 60 | H284: 60 | I284: 60 | J284: 60 | K284: 60 | L284: 60 | M284: 60 | N284: 60 | O284: 60
A285: TUMACO | B285: IBAGUE | C285: NO OFICIAL | D285: 177 | E285: 174 | F285: 173 | G285: 164 | H285: 165 | I285: 160 | J285: 161 | K285: 149 | L285: 144 | M285: 145 | N285: 143 | O285: 145
A286: TUNJA | B286: IPIALES | C286: OFICIAL | D286: 61 | E286: 62 | F286: 62 | G286: 62 | H286: 62 | I286: 62 | J286: 61 | K286: 61 | L286: 61 | M286: 22 | N286: 22 | O286: 22
A287: TURBO | B287: IPIALES | C287: NO OFICIAL | D287: 27 | E287: 31 | F287: 27 | G287: 33 | H287: 36 | I287: 34 | J287: 35 | K287: 37 | L287: 36 | M287: 39 | N287: 39 | O287: 38
A288: URIBIA | B288: ITAGUI | C288: OFICIAL | D288: 24 | E288: 24 | F288: 24 | G288: 24 | H288: 24 | I288: 24 | J288: 24 | K288: 24 | L288: 24 | M288: 24 | N288: 24 | O288: 24
A289: VALLE | B289: ITAGUI | C289: NO OFICIAL | D289: 49 | E289: 52 | F289: 47 | G289: 50 | H289: 50 | I289: 50 | J289: 51 | K289: 52 | L289: 51 | M289: 50 | N289: 50 | O289: 50
A290: VALLEDUPAR | B290: JAMUNDÍ | C290: OFICIAL | D290: 15 | E290: 15 | F290: 15 | G290: 15 | H290: 15 | I290: 16 | J290: 16 | K290: 16 | L290: 16 | M290: 16 | N290: 17 | O290: 17
A291: VAUPES | B291: JAMUNDÍ | C291: NO OFICIAL | D291: 20 | E291: 28 | F291: 32 | G291: 34 | H291: 33 | I291: 36 | J291: 39 | K291: 43 | L291: 42 | M291: 41 | N291: 40 | O291: 39
A292: VICHADA | B292: LA ESTRELLA | C292: OFICIAL | M292: 4 | N292: 4 | O292: 4
A293: VILLAVICENCIO | B293: LA ESTRELLA | C293: NO OFICIAL | M293: 21 | N293: 21 | O293: 22
A294: YOPAL | B294: LA GUAJIRA | C294: OFICIAL | D294: 85 | E294: 88 | F294: 88 | G294: 90 | H294: 90 | I294: 91 | J294: 91 | K294: 91 | L294: 91 | M294: 97 | N294: 98 | O294: 99
A295: YUMBO | B295: LA GUAJIRA | C295: NO OFICIAL | D295: 25 | E295: 24 | F295: 31 | G295: 40 | H295: 40 | I295: 41 | J295: 42 | K295: 42 | L295: 43 | M295: 49 | N295: 53 | O295: 54
A296: ZIPAQUIRA | B296: LORICA | C296: OFICIAL | D296: 31 | E296: 31 | F296: 31 | G296: 31 | H296: 31 | I296: 31 | J296: 31 | K296: 31 | L296: 31 | M296: 31 | N296: 31 | O296: 31
A297: COLOMBIA | B297: LORICA | C297: NO OFICIAL | D297: 21 | E297: 21 | F297: 18 | G297: 18 | H297: 16 | I297: 18 | J297: 17 | K297: 17 | L297: 18 | M297: 20 | N297: 21 | O297: 21
B298: MAGANGUE | C298: OFICIAL | D298: 20 | E298: 20 | F298: 20 | G298: 20 | H298: 20 | I298: 20 | J298: 20 | K298: 20 | L298: 20 | M298: 20 | N298: 20 | O298: 20
B299: MAGANGUE | C299: NO OFICIAL | D299: 26 | E299: 29 | F299: 27 | G299: 26 | H299: 27 | I299: 25 | J299: 27 | K299: 24 | L299: 27 | M299: 28 | N299: 28 | O299: 26
B300: MAGDALENA | C300: OFICIAL | D300: 156 | E300: 159 | F300: 154 | G300: 154 | H300: 154 | I300: 154 | J300: 153 | K300: 153 | L300: 153 | M300: 153 | N300: 153 | O300: 153
B301: MAGDALENA | C301: NO OFICIAL | D301: 82 | E301: 95 | F301: 113 | G301: 121 | H301: 121 | I301: 117 | J301: 67 | K301: 74 | L301: 74 | M301: 82 | N301: 82 | O301: 80
B302: MAICAO | C302: OFICIAL | D302: 27 | E302: 27 | F302: 27 | G302: 27 | H302: 27 | I302: 27 | J302: 27 | K302: 27 | L302: 27 | M302: 27 | N302: 27 | O302: 28
B303: MAICAO | C303: NO OFICIAL | D303: 17 | E303: 17 | F303: 19 | G303: 18 | H303: 20 | I303: 21 | J303: 21 | K303: 20 | L303: 21 | M303: 25 | N303: 25 | O303: 25
B304: MALAMBO | C304: OFICIAL | D304: 14 | E304: 13 | F304: 13 | G304: 13 | H304: 13 | I304: 13 | J304: 13 | K304: 13 | L304: 13 | M304: 13 | N304: 13 | O304: 13
B305: MALAMBO | C305: NO OFICIAL | D305: 44 | E305: 47 | F305: 48 | G305: 49 | H305: 49 | I305: 53 | J305: 61 | K305: 61 | L305: 60 | M305: 63 | N305: 64 | O305: 64
B306: MANIZALES | C306: OFICIAL | D306: 59 | E306: 56 | F306: 55 | G306: 54 | H306: 56 | I306: 54 | J306: 53 | K306: 53 | L306: 53 | M306: 52 | N306: 51 | O306: 51
B307: MANIZALES | C307: NO OFICIAL | D307: 77 | E307: 76 | F307: 76 | G307: 74 | H307: 71 | I307: 73 | J307: 75 | K307: 70 | L307: 69 | M307: 65 | N307: 62 | O307: 60
B308: MEDELLIN | C308: OFICIAL | D308: 218 | E308: 219 | F308: 230 | G308: 231 | H308: 230 | I308: 231 | J308: 231 | K308: 231 | L308: 231 | M308: 230 | N308: 230 | O308: 230
B309: MEDELLIN | C309: NO OFICIAL | D309: 351 | E309: 360 | F309: 363 | G309: 354 | H309: 345 | I309: 351 | J309: 346 | K309: 330 | L309: 323 | M309: 318 | N309: 306 | O309: 300
B310: META | C310: OFICIAL | D310: 142 | E310: 140 | F310: 141 | G310: 136 | H310: 134 | I310: 134 | J310: 134 | K310: 134 | L310: 135 | M310: 136 | N310: 136 | O310: 133
B311: META | C311: NO OFICIAL | D311: 54 | E311: 56 | F311: 54 | G311: 56 | H311: 59 | I311: 63 | J311: 67 | K311: 69 | L311: 73 | M311: 78 | N311: 82 | O311: 75
B312: MONTERIA | C312: OFICIAL | D312: 60 | E312: 60 | F312: 60 | G312: 60 | H312: 61 | I312: 61 | J312: 61 | K312: 61 | L312: 61 | M312: 64 | N312: 64 | O312: 64
B313: MONTERIA | C313: NO OFICIAL | D313: 83 | E313: 82 | F313: 85 | G313: 85 | H313: 86 | I313: 86 | J313: 86 | K313: 86 | L313: 84 | M313: 81 | N313: 81 | O313: 82
B314: MOSQUERA | C314: OFICIAL | D314: 6 | E314: 8 | F314: 8 | G314: 8 | H314: 8 | I314: 8 | J314: 8 | K314: 8 | L314: 8 | M314: 8 | N314: 8 | O314: 8
B315: MOSQUERA | C315: NO OFICIAL | D315: 38 | E315: 40 | F315: 42 | G315: 41 | H315: 39 | I315: 34 | J315: 33 | K315: 32 | L315: 31 | M315: 33 | N315: 33 | O315: 33
B316: NARIÑO | C316: OFICIAL | D316: 1,955 | E316: 1944 | F316: 1909 | G316: 1887 | H316: 1835 | I316: 1820 | J316: 1,375 | K316: 606 | L316: 519 | M316: 463 | N316: 442 | O316: 441
B317: NARIÑO | C317: NO OFICIAL | D317: 13 | E317: 13 | F317: 16 | G317: 18 | H317: 18 | I317: 17 | J317: 18 | K317: 16 | L317: 19 | M317: 20 | N317: 21 | O317: 20
B318: NEIVA | C318: OFICIAL | D318: 37 | E318: 37 | F318: 37 | G318: 37 | H318: 37 | I318: 37 | J318: 37 | K318: 37 | L318: 37 | M318: 37 | N318: 37 | O318: 37
B319: NEIVA | C319: NO OFICIAL | D319: 108 | E319: 120 | F319: 127 | G319: 131 | H319: 133 | I319: 137 | J319: 134 | K319: 128 | L319: 129 | M319: 129 | N319: 130 | O319: 130
B320: NORTE SANTANDER | C320: OFICIAL | D320: 218 | E320: 219 | F320: 216 | G320: 211 | H320: 211 | I320: 209 | J320: 211 | K320: 211 | L320: 214 | M320: 216 | N320: 216 | O320: 216
B321: NORTE SANTANDER | C321: NO OFICIAL | D321: 77 | E321: 82 | F321: 77 | G321: 80 | H321: 85 | I321: 80 | J321: 79 | K321: 77 | L321: 84 | M321: 85 | N321: 87 | O321: 88
B322: PALMIRA | C322: OFICIAL | D322: 27 | E322: 27 | F322: 27 | G322: 27 | H322: 27 | I322: 27 | J322: 27 | K322: 27 | L322: 27 | M322: 27 | N322: 27 | O322: 27
B323: PALMIRA | C323: NO OFICIAL | D323: 97 | E323: 104 | F323: 116 | G323: 116 | H323: 114 | I323: 111 | J323: 107 | K323: 102 | L323: 105 | M323: 105 | N323: 103 | O323: 102
B324: PASTO | C324: OFICIAL | D324: 51 | E324: 51 | F324: 50 | G324: 50 | H324: 49 | I324: 50 | J324: 50 | K324: 49 | L324: 49 | M324: 49 | N324: 48 | O324: 48
B325: PASTO | C325: NO OFICIAL | D325: 93 | E325: 92 | F325: 94 | G325: 99 | H325: 104 | I325: 107 | J325: 115 | K325: 111 | L325: 113 | M325: 115 | N325: 116 | O325: 116
B326: PEREIRA | C326: OFICIAL | D326: 72 | E326: 72 | F326: 72 | G326: 73 | H326: 73 | I326: 72 | J326: 71 | K326: 71 | L326: 71 | M326: 71 | N326: 69 | O326: 69
B327: PEREIRA | C327: NO OFICIAL | D327: 122 | E327: 127 | F327: 129 | G327: 137 | H327: 144 | I327: 152 | J327: 154 | K327: 139 | L327: 142 | M327: 147 | N327: 150 | O327: 147
B328: PIEDECUESTA | C328: OFICIAL | D328: 17 | E328: 17 | F328: 17 | G328: 17 | H328: 17 | I328: 17 | J328: 17 | K328: 17 | L328: 17 | M328: 18 | N328: 18 | O328: 18
B329: PIEDECUESTA | C329: NO OFICIAL | D329: 40 | E329: 41 | F329: 46 | G329: 44 | H329: 44 | I329: 43 | J329: 45 | K329: 42 | L329: 43 | M329: 43 | N329: 43 | O329: 43
B330: PITALITO | C330: OFICIAL | D330: 16 | E330: 16 | F330: 16 | G330: 16 | H330: 16 | I330: 16 | J330: 16 | K330: 16 | L330: 16 | M330: 16 | N330: 16 | O330: 16
B331: PITALITO | C331: NO OFICIAL | D331: 25 | E331: 26 | F331: 29 | G331: 31 | H331: 31 | I331: 32 | J331: 33 | K331: 32 | L331: 32 | M331: 32 | N331: 30 | O331: 29
B332: POPAYAN | C332: OFICIAL | D332: 40 | E332: 40 | F332: 40 | G332: 40 | H332: 40 | I332: 40 | J332: 40 | K332: 40 | L332: 43 | M332: 44 | N332: 44 | O332: 44
B333: POPAYAN | C333: NO OFICIAL | D333: 63 | E333: 73 | F333: 83 | G333: 105 | H333: 104 | I333: 112 | J333: 114 | K333: 114 | L333: 109 | M333: 120 | N333: 119 | O333: 120
B334: PUTUMAYO | C334: OFICIAL | D334: 158 | E334: 148 | F334: 148 | G334: 149 | H334: 148 | I334: 148 | J334: 149 | K334: 149 | L334: 147 | M334: 147 | N334: 147 | O334: 147
B335: PUTUMAYO | C335: NO OFICIAL | D335: 23 | E335: 23 | F335: 22 | G335: 25 | H335: 26 | I335: 26 | J335: 27 | K335: 28 | L335: 28 | M335: 29 | N335: 29 | O335: 29
B336: QUIBDÓ | C336: OFICIAL | D336: 25 | E336: 25 | F336: 24 | G336: 24 | H336: 24 | I336: 24 | J336: 24 | K336: 24 | L336: 24 | M336: 24 | N336: 25 | O336: 25
B337: QUIBDÓ | C337: NO OFICIAL | D337: 14 | E337: 12 | F337: 16 | G337: 11 | H337: 15 | I337: 15 | J337: 13 | K337: 15 | L337: 15 | M337: 18 | N337: 21 | O337: 20
B338: QUINDIO | C338: OFICIAL | D338: 55 | E338: 54 | F338: 54 | G338: 54 | H338: 54 | I338: 54 | J338: 54 | K338: 54 | L338: 54 | M338: 54 | N338: 54 | O338: 54
B339: QUINDIO | C339: NO OFICIAL | D339: 16 | E339: 15 | F339: 14 | G339: 15 | H339: 14 | I339: 16 | J339: 16 | K339: 17 | L339: 17 | M339: 17 | N339: 19 | O339: 16
B340: RIOHACHA | C340: OFICIAL | D340: 37 | E340: 38 | F340: 38 | G340: 38 | H340: 38 | I340: 40 | J340: 40 | K340: 41 | L340: 41 | M340: 43 | N340: 50 | O340: 50
B341: RIOHACHA | C341: NO OFICIAL | D341: 42 | E341: 42 | F341: 43 | G341: 52 | H341: 59 | I341: 62 | J341: 64 | K341: 63 | L341: 64 | M341: 71 | N341: 71 | O341: 72
B342: RIONEGRO | C342: OFICIAL | D342: 16 | E342: 16 | F342: 16 | G342: 16 | H342: 16 | I342: 16 | J342: 16 | K342: 16 | L342: 16 | M342: 16 | N342: 16 | O342: 17
B343: RIONEGRO | C343: NO OFICIAL | D343: 21 | E343: 20 | F343: 19 | G343: 20 | H343: 20 | I343: 20 | J343: 22 | K343: 21 | L343: 22 | M343: 23 | N343: 23 | O343: 23
B344: RISARALDA | C344: OFICIAL | D344: 96 | E344: 89 | F344: 79 | G344: 71 | H344: 70 | I344: 69 | J344: 70 | K344: 70 | L344: 69 | M344: 68 | N344: 69 | O344: 68
B345: RISARALDA | C345: NO OFICIAL | D345: 11 | E345: 12 | F345: 14 | G345: 14 | H345: 16 | I345: 16 | J345: 16 | K345: 15 | L345: 15 | M345: 15 | N345: 16 | O345: 16
B346: SABANETA | C346: OFICIAL | D346: 8 | E346: 8 | F346: 8 | G346: 8 | H346: 8 | I346: 8 | J346: 8 | K346: 8 | L346: 8 | M346: 8 | N346: 8 | O346: 8
B347: SABANETA | C347: NO OFICIAL | D347: 20 | E347: 22 | F347: 22 | G347: 21 | H347: 21 | I347: 24 | J347: 26 | K347: 32 | L347: 33 | M347: 36 | N347: 34 | O347: 34
B348: SAHAGUN | C348: OFICIAL | D348: 28 | E348: 27 | F348: 27 | G348: 27 | H348: 27 | I348: 27 | J348: 26 | K348: 26 | L348: 26 | M348: 24 | N348: 23 | O348: 22
B349: SAHAGUN | C349: NO OFICIAL | D349: 7 | E349: 7 | F349: 6 | G349: 6 | H349: 6 | I349: 6 | J349: 7 | K349: 7 | L349: 7 | M349: 7 | N349: 6 | O349: 6
B350: SAN_ANDRES | C350: OFICIAL | D350: 12 | E350: 11 | F350: 11 | G350: 11 | H350: 11 | I350: 11 | J350: 11 | K350: 11 | L350: 11 | M350: 11 | N350: 11 | O350: 11
B351: SAN_ANDRES | C351: NO OFICIAL | D351: 9 | E351: 11 | F351: 10 | G351: 10 | H351: 10 | I351: 10 | J351: 10 | K351: 9 | L351: 9 | M351: 9 | N351: 9 | O351: 9
B352: SANTA MARTA | C352: OFICIAL | D352: 73 | E352: 72 | F352: 72 | G352: 72 | H352: 74 | I352: 75 | J352: 75 | K352: 75 | L352: 76 | M352: 75 | N352: 75 | O352: 75
B353: SANTA MARTA | C353: NO OFICIAL | D353: 184 | E353: 182 | F353: 198 | G353: 206 | H353: 208 | I353: 212 | J353: 218 | K353: 218 | L353: 216 | M353: 220 | N353: 226 | O353: 230
B354: SANTANDER | C354: OFICIAL | D354: 278 | E354: 276 | F354: 276 | G354: 275 | H354: 274 | I354: 274 | J354: 272 | K354: 274 | L354: 274 | M354: 275 | N354: 275 | O354: 275
B355: SANTANDER | C355: NO OFICIAL | D355: 155 | E355: 154 | F355: 162 | G355: 165 | H355: 161 | I355: 167 | J355: 166 | K355: 171 | L355: 169 | M355: 167 | N355: 162 | O355: 99
B356: SINCELEJO | C356: OFICIAL | D356: 35 | E356: 35 | F356: 35 | G356: 36 | H356: 36 | I356: 36 | J356: 36 | K356: 36 | L356: 36 | M356: 36 | N356: 36 | O356: 36
B357: SINCELEJO | C357: NO OFICIAL | D357: 68 | E357: 69 | F357: 70 | G357: 71 | H357: 72 | I357: 70 | J357: 70 | K357: 70 | L357: 67 | M357: 65 | N357: 66 | O357: 67
B358: SOACHA | C358: OFICIAL | D358: 22 | E358: 22 | F358: 22 | G358: 22 | H358: 22 | I358: 24 | J358: 26 | K358: 28 | L358: 28 | M358: 30 | N358: 30 | O358: 30
B359: SOACHA | C359: NO OFICIAL | D359: 138 | E359: 146 | F359: 155 | G359: 172 | H359: 182 | I359: 194 | J359: 199 | K359: 199 | L359: 201 | M359: 193 | N359: 190 | O359: 189
B360: SOGAMOSO | C360: OFICIAL | D360: 16 | E360: 16 | F360: 16 | G360: 16 | H360: 16 | I360: 16 | J360: 16 | K360: 16 | L360: 16 | M360: 16 | N360: 16 | O360: 16
B361: SOGAMOSO | C361: NO OFICIAL | D361: 42 | E361: 47 | F361: 47 | G361: 45 | H361: 49 | I361: 50 | J361: 50 | K361: 49 | L361: 46 | M361: 47 | N361: 44 | O361: 44
B362: SOLEDAD | C362: OFICIAL | D362: 30 | E362: 30 | F362: 30 | G362: 31 | H362: 31 | I362: 32 | J362: 32 | K362: 32 | L362: 32 | M362: 34 | N362: 34 | O362: 34
B363: SOLEDAD | C363: NO OFICIAL | D363: 196 | E363: 208 | F363: 216 | G363: 233 | H363: 248 | I363: 256 | J363: 273 | K363: 273 | L363: 291 | M363: 310 | N363: 333 | O363: 343
B364: SUCRE | C364: OFICIAL | D364: 268 | E364: 268 | F364: 268 | G364: 269 | H364: 268 | I364: 267 | J364: 267 | K364: 268 | L364: 267 | M364: 267 | N364: 261 | O364: 260
B365: SUCRE | C365: NO OFICIAL | D365: 61 | E365: 63 | F365: 62 | G365: 68 | H365: 69 | I365: 71 | J365: 71 | K365: 69 | L365: 76 | M365: 81 | N365: 78 | O365: 79
B366: TOLIMA | C366: OFICIAL | D366: 213 | E366: 213 | F366: 213 | G366: 213 | H366: 213 | I366: 212 | J366: 212 | K366: 212 | L366: 212 | M366: 212 | N366: 212 | O366: 213
B367: TOLIMA | C367: NO OFICIAL | D367: 125 | E367: 125 | F367: 125 | G367: 133 | H367: 136 | I367: 138 | J367: 144 | K367: 144 | L367: 147 | M367: 153 | N367: 153 | O367: 157
B368: TULUA | C368: OFICIAL | D368: 18 | E368: 18 | F368: 18 | G368: 18 | H368: 18 | I368: 18 | J368: 18 | K368: 18 | L368: 18 | M368: 18 | N368: 18 | O368: 18
B369: TULUA | C369: NO OFICIAL | D369: 53 | E369: 52 | F369: 48 | G369: 48 | H369: 47 | I369: 46 | J369: 46 | K369: 45 | L369: 43 | M369: 42 | N369: 40 | O369: 39
B370: TUMACO | C370: OFICIAL | D370: 66 | E370: 66 | F370: 66 | G370: 66 | H370: 66 | I370: 66 | J370: 66 | K370: 66 | L370: 66 | M370: 66 | N370: 66 | O370: 66
B371: TUMACO | C371: NO OFICIAL | D371: 11 | E371: 14 | F371: 19 | G371: 22 | H371: 20 | I371: 25 | J371: 26 | K371: 28 | L371: 29 | M371: 31 | N371: 31 | O371: 33
B372: TUNJA | C372: OFICIAL | D372: 14 | E372: 14 | F372: 14 | G372: 14 | H372: 14 | I372: 14 | J372: 14 | K372: 14 | L372: 14 | M372: 14 | N372: 14 | O372: 14
B373: TUNJA | C373: NO OFICIAL | D373: 92 | E373: 99 | F373: 99 | G373: 109 | H373: 112 | I373: 113 | J373: 113 | K373: 108 | L373: 109 | M373: 107 | N373: 113 | O373: 107
B374: TURBO | C374: OFICIAL | D374: 39 | E374: 39 | F374: 39 | G374: 38 | H374: 39 | I374: 38 | J374: 38 | K374: 36 | L374: 36 | M374: 37 | N374: 37 | O374: 37
B375: TURBO | C375: NO OFICIAL | D375: 13 | E375: 12 | F375: 12 | G375: 14 | H375: 15 | I375: 16 | J375: 16 | K375: 17 | L375: 19 | M375: 20 | N375: 20 | O375: 18
B376: URIBIA | C376: OFICIAL | D376: 22 | E376: 22 | F376: 22 | G376: 22 | H376: 25 | I376: 25 | J376: 30 | K376: 37 | L376: 37 | M376: 38 | N376: 39 | O376: 43
B377: URIBIA | C377: NO OFICIAL | D377: 1 | E377: 1 | F377: 1 | G377: 1 | H377: 1 | I377: 1 | J377: 1 | K377: 1 | L377: 1 | M377: 1 | N377: 1 | O377: 3
B378: VALLE | C378: OFICIAL | D378: 152 | E378: 152 | F378: 149 | G378: 149 | H378: 149 | I378: 149 | J378: 149 | K378: 149 | L378: 150 | M378: 149 | N378: 149 | O378: 149
B379: VALLE | C379: NO OFICIAL | D379: 104 | E379: 120 | F379: 118 | G379: 114 | H379: 123 | I379: 125 | J379: 130 | K379: 127 | L379: 120 | M379: 119 | N379: 122 | O379: 126
B380: VALLEDUPAR | C380: OFICIAL | D380: 42 | E380: 42 | F380: 43 | G380: 44 | H380: 48 | I380: 47 | J380: 47 | K380: 48 | L380: 48 | M380: 47 | N380: 48 | O380: 47
B381: VALLEDUPAR | C381: NO OFICIAL | D381: 140 | E381: 148 | F381: 151 | G381: 158 | H381: 169 | I381: 182 | J381: 186 | K381: 186 | L381: 199 | M381: 200 | N381: 205 | O381: 201
B382: VAUPES | C382: OFICIAL | D382: 16 | E382: 16 | F382: 16 | G382: 16 | H382: 15 | I382: 16 | J382: 16 | K382: 16 | L382: 16 | M382: 17 | N382: 17 | O382: 17
B383: VAUPES | C383: NO OFICIAL | D383: 1 | E383: 1 | F383: 1 | G383: 1 | H383: 1 | I383: 1 | J383: 4 | K383: 3 | L383: 3 | M383: 3 | N383: 3 | O383: 3
B384: VICHADA | C384: OFICIAL | D384: 47 | E384: 46 | F384: 48 | G384: 50 | H384: 52 | I384: 52 | J384: 54 | K384: 56 | L384: 59 | M384: 59 | N384: 60 | O384: 60
B385: VICHADA | C385: NO OFICIAL | D385: 2 | E385: 2 | F385: 2 | G385: 2 | H385: 3 | I385: 3 | J385: 3 | K385: 4 | L385: 4 | M385: 5 | N385: 6 | O385: 6
B386: VILLAVICENCIO | C386: OFICIAL | D386: 50 | E386: 50 | F386: 57 | G386: 59 | H386: 62 | I386: 62 | J386: 59 | K386: 60 | L386: 61 | M386: 55 | N386: 55 | O386: 55
B387: VILLAVICENCIO | C387: NO OFICIAL | D387: 165 | E387: 171 | F387: 181 | G387: 195 | H387: 190 | I387: 193 | J387: 188 | K387: 185 | L387: 186 | M387: 190 | N387: 192 | O387: 195
B388: YOPAL | C388: OFICIAL | D388: 24 | E388: 24 | F388: 25 | G388: 25 | H388: 25 | I388: 25 | J388: 25 | K388: 25 | L388: 25 | M388: 25 | N388: 25 | O388: 25
B389: YOPAL | C389: NO OFICIAL | D389: 41 | E389: 46 | F389: 50 | G389: 53 | H389: 51 | I389: 50 | J389: 51 | K389: 48 | L389: 48 | M389: 45 | N389: 46 | O389: 48
... 8 more rows

Sheet 2 SEDES
B1: SEDES EDUCATIVAS | S1: Indice
B2: =+'1 ESTAB'!B2 -> Corte SEPTIEMBRE 2025 información preliminar
B3: ENTIDAD
B4: URIBIA | C4: SECTOR | D4: 2014 | E4: 2015 | F4: 2016 | G4: 2017 | H4: 2018 | I4: 2019 | J4: 2020 | K4: =+'1 ESTAB'!K4 -> 2021 | L4: =+'1 ESTAB'!L4 -> 2022 | M4: =+'1 ESTAB'!M4 -> 2023 | N4: 2024 | O4: =+'1 ESTAB'!O4 -> Sep. 2025 | Q4: TOTAL SEDES 2024
C5: Oficial Urbana | D5: =+SUMIFS($D$200:$D$591,$B$200:$B$591,$B$4,$C$200:$C$591,C5) -> 8 | E5: =+SUMIFS($E$200:$E$591,$B$200:$B$591,$B$4,$C$200:$C$591,C5) -> 8 | F5: =+SUMIFS($F$200:$F$591,$B$200:$B$591,$B$4,$C$200:$C$591,C5) -> 8 | G5: =+SUMIFS($G$200:$G$591,$B$200:$B$591,$B$4,$C$200:$C$591,C5) -> 8 | H5: =+SUMIFS($H$200:$H$591,$B$200:$B$591,$B$4,$C$200:$C$591,C5) -> 8 | I5: =+SUMIFS($I$200:$I$591,$B$200:$B$591,$B$4,$C$200:$C$591,C5) -> 8 | J5: =+SUMIFS($J$200:$J$591,$B$200:$B$591,$B$4,$C$200:$C$591,C5) -> 8 | K5: =+SUMIFS($K$200:$K$591,$B$200:$B$591,$B$4,$C$200:$C$591,C5) -> 8 | L5: =+SUMIFS($L$200:$L$591,$B$200:$B$591,$B$4,$C$200:$C$591,C5) -> 8 | M5: =+SUMIFS($M$200:$M$591,$B$200:$B$591,$B$4,$C$200:$C$591,C5) -> 8 | N5: =+SUMIFS($N$200:$N$591,$B$200:$B$591,$B$4,$C$200:$C$591,C5) -> 8 | O5: =+SUMIFS($O$200:$O$591,$B$200:$B$591,$B$4,$C$200:$C$591,C5) -> 9 | Q5: OFICIALES | R5: NO OFICIALES | S5: TOTAL
C6: Oficial Rural | D6: =+SUMIFS($D$200:$D$591,$B$200:$B$591,$B$4,$C$200:$C$591,C6) -> 22 | E6: =+SUMIFS($E$200:$E$591,$B$200:$B$591,$B$4,$C$200:$C$591,C6) -> 22 | F6: =+SUMIFS($F$200:$F$591,$B$200:$B$591,$B$4,$C$200:$C$591,C6) -> 269 | G6: =+SUMIFS($G$200:$G$591,$B$200:$B$591,$B$4,$C$200:$C$591,C6) -> 509 | H6: =+SUMIFS($H$200:$H$591,$B$200:$B$591,$B$4,$C$200:$C$591,C6) -> 509 | I6: =+SUMIFS($I$200:$I$591,$B$200:$B$591,$B$4,$C$200:$C$591,C6) -> 508 | J6: =+SUMIFS($J$200:$J$591,$B$200:$B$591,$B$4,$C$200:$C$591,C6) -> 511 | K6: =+SUMIFS($K$200:$K$591,$B$200:$B$591,$B$4,$C$200:$C$591,C6) -> 507 | L6: =+SUMIFS($L$200:$L$591,$B$200:$B$591,$B$4,$C$200:$C$591,C6) -> 503 | M6: =+SUMIFS($M$200:$M$591,$B$200:$B$591,$B$4,$C$200:$C$591,C6) -> 505 | N6: =+SUMIFS($N$200:$N$591,$B$200:$B$591,$B$4,$C$200:$C$591,C6) -> 501 | O6: =+SUMIFS($O$200:$O$591,$B$200:$B$591,$B$4,$C$200:$C$591,C6) -> 541 | Q6: =SUM(O5:O6) -> 550 | R6: =SUM(O7:O8) -> 3 | S6: =SUM(Q6:R6) -> 553
C7: No oficial Urbana | D7: =+SUMIFS($D$200:$D$591,$B$200:$B$591,$B$4,$C$200:$C$591,C7) -> 1 | E7: =+SUMIFS($E$200:$E$591,$B$200:$B$591,$B$4,$C$200:$C$591,C7) -> 1 | F7: =+SUMIFS($F$200:$F$591,$B$200:$B$591,$B$4,$C$200:$C$591,C7) -> 1 | G7: =+SUMIFS($G$200:$G$591,$B$200:$B$591,$B$4,$C$200:$C$591,C7) -> 1 | H7: =+SUMIFS($H$200:$H$591,$B$200:$B$591,$B$4,$C$200:$C$591,C7) -> 1 | I7: =+SUMIFS($I$200:$I$591,$B$200:$B$591,$B$4,$C$200:$C$591,C7) -> 1 | J7: =+SUMIFS($J$200:$J$591,$B$200:$B$591,$B$4,$C$200:$C$591,C7) -> 1 | K7: =+SUMIFS($K$200:$K$591,$B$200:$B$591,$B$4,$C$200:$C$591,C7) -> 1 | L7: =+SUMIFS($L$200:$L$591,$B$200:$B$591,$B$4,$C$200:$C$591,C7) -> 1 | M7: =+SUMIFS($M$200:$M$591,$B$200:$B$591,$B$4,$C$200:$C$591,C7) -> 1 | N7: =+SUMIFS($N$200:$N$591,$B$200:$B$591,$B$4,$C$200:$C$591,C7) -> 1 | O7: 2
C8: No oficial Rural | D8: =+SUMIFS($D$200:$D$591,$B$200:$B$591,$B$4,$C$200:$C$591,C8) -> 0 | E8: =+SUMIFS($E$200:$E$591,$B$200:$B$591,$B$4,$C$200:$C$591,C8) -> 0 | F8: =+SUMIFS($F$200:$F$591,$B$200:$B$591,$B$4,$C$200:$C$591,C8) -> 0 | G8: =+SUMIFS($G$200:$G$591,$B$200:$B$591,$B$4,$C$200:$C$591,C8) -> 0 | H8: =+SUMIFS($H$200:$H$591,$B$200:$B$591,$B$4,$C$200:$C$591,C8) -> 0 | I8: =+SUMIFS($I$200:$I$591,$B$200:$B$591,$B$4,$C$200:$C$591,C8) -> 0 | J8: =+SUMIFS($J$200:$J$591,$B$200:$B$591,$B$4,$C$200:$C$591,C8) -> 0 | K8: =+SUMIFS($K$200:$K$591,$B$200:$B$591,$B$4,$C$200:$C$591,C8) -> 0 | L8: =+SUMIFS($L$200:$L$591,$B$200:$B$591,$B$4,$C$200:$C$591,C8) -> 0 | M8: =+SUMIFS($M$200:$M$591,$B$200:$B$591,$B$4,$C$200:$C$591,C8) -> 0 | N8: =+SUMIFS($N$200:$N$591,$B$200:$B$591,$B$4,$C$200:$C$591,C8) -> 0 | O8: 1
C9: Total | D9: =SUM(D5:D8) -> 31 | E9: 31 | F9: 278 | G9: 518 | H9: 518 | I9: 517 | J9: 520 | K9: =SUM(K5:K8) -> 516 | L9: =SUM(L5:L8) -> 512 | M9: =SUM(M5:M8) -> 514 | N9: =SUM(N5:N8) -> 510 | O9: =SUM(O5:O8) -> 553
C10: FUENTE: SIMAT OAPF
C12: =+B4 -> URIBIA
A199: lista | B199: Entidad | C199: Sector Zona | D199: 2014 | E199: 2015 | F199: 2016 | G199: 2017 | H199: 2018 | I199: 2019 | J199: 2020 | K199: 2021 | L199: =+L4 -> 2022 | M199: 2023 | N199: 2024 | O199: 2025
A200: AMAZONAS | B200: AMAZONAS | C200: Oficial Urbana | D200: 13 | E200: 13 | F200: 13 | G200: 14 | H200: 14 | I200: 13 | J200: 12 | K200: 13 | L200: 13 | M200: 13 | N200: 13 | O200: 13 | P200: AMAZONAS
A201: ANTIOQUIA | B201: AMAZONAS | C201: Oficial Rural | D201: 97 | E201: 97 | F201: 96 | G201: 116 | H201: 114 | I201: 118 | J201: 116 | K201: 118 | L201: 117 | M201: 116 | N201: 117 | O201: 117
A202: APARTADO | B202: AMAZONAS | C202: No oficial Urbana | D202: 5 | E202: 5 | F202: 6 | G202: 5 | H202: 6 | I202: 6 | J202: 5 | K202: 7 | L202: 5 | M202: 5 | N202: 4 | O202: 4
A203: ARAUCA | B203: AMAZONAS | C203: No oficial Rural | D203: 21 | E203: 21 | F203: 20 | G203: 0 | H203: 0 | I203: 0 | J203: 0 | K203: 0 | L203: 0 | M203: 0 | N203: 0 | O203: 0
A204: ARMENIA | B204: ANTIOQUIA | C204: Oficial Urbana | D204: 425 | E204: 428 | F204: 415 | G204: 417 | H204: 410 | I204: 406 | J204: 405 | K204: 401 | L204: 411 | M204: 407 | N204: 411 | O204: 410
A205: ATLANTICO | B205: ANTIOQUIA | C205: Oficial Rural | D205: 3,577 | E205: 3571 | F205: 3745 | G205: 3798 | H205: 3829 | I205: 3852 | J205: 3855 | K205: 3,848 | L205: 3,839 | M205: 3848 | N205: 3834 | O205: 3818
A206: BARRANCABERMEJA | B206: ANTIOQUIA | C206: No oficial Urbana | D206: 148 | E206: 161 | F206: 122 | G206: 121 | H206: 119 | I206: 134 | J206: 134 | K206: 127 | L206: 128 | M206: 107 | N206: 105 | O206: 103
A207: BARRANQUILLA | B207: ANTIOQUIA | C207: No oficial Rural | D207: 48 | E207: 52 | F207: 18 | G207: 18 | H207: 17 | I207: 20 | J207: 21 | K207: 20 | L207: 20 | M207: 21 | N207: 23 | O207: 23
A208: BELLO | B208: APARTADO | C208: Oficial Urbana | D208: 15 | E208: 17 | F208: 17 | G208: 17 | H208: 18 | I208: 18 | J208: 18 | K208: 18 | L208: 17 | M208: 17 | N208: 17 | O208: 17
A209: BOGOTA | B209: APARTADO | C209: Oficial Rural | D209: 43 | E209: 47 | F209: 47 | G209: 47 | H209: 46 | I209: 47 | J209: 47 | K209: 47 | L209: 48 | M209: 49 | N209: 49 | O209: 49
A210: BOLIVAR | B210: APARTADO | C210: No oficial Urbana | D210: 15 | E210: 11 | F210: 8 | G210: 8 | H210: 9 | I210: 9 | J210: 10 | K210: 11 | L210: 10 | M210: 11 | N210: 11 | O210: 11
A211: BOYACA | B211: APARTADO | C211: No oficial Rural | D211: 1 | E211: 1 | F211: 1 | G211: 1 | H211: 1 | I211: 1 | J211: 1 | K211: 1 | L211: 1 | M211: 1 | N211: 1 | O211: 1
A212: BUCARAMANGA | B212: ARAUCA | C212: Oficial Urbana | D212: 78 | E212: 77 | F212: 77 | G212: 76 | H212: 76 | I212: 76 | J212: 76 | K212: 75 | L212: 75 | M212: 75 | N212: 75 | O212: 75
A213: BUENAVENTURA | B213: ARAUCA | C213: Oficial Rural | D213: 391 | E213: 397 | F213: 398 | G213: 393 | H213: 393 | I213: 395 | J213: 395 | K213: 397 | L213: 397 | M213: 399 | N213: 404 | O213: 405
A214: BUGA | B214: ARAUCA | C214: No oficial Urbana | D214: 21 | E214: 21 | F214: 22 | G214: 27 | H214: 28 | I214: 30 | J214: 38 | K214: 40 | L214: 44 | M214: 40 | N214: 36 | O214: 37
A215: CALDAS | B215: ARAUCA | C215: No oficial Rural | D215: 1 | E215: 1 | F215: 1 | G215: 1 | H215: 1 | I215: 4 | J215: 4 | K215: 4 | L215: 4 | M215: 4 | N215: 4 | O215: 4
A216: CALI | B216: ARMENIA | C216: Oficial Urbana | D216: 56 | E216: 55 | F216: 55 | G216: 56 | H216: 56 | I216: 56 | J216: 56 | K216: 56 | L216: 55 | M216: 55 | N216: 55 | O216: 55
A217: CAQUETA | B217: ARMENIA | C217: Oficial Rural | D217: 16 | E217: 16 | F217: 15 | G217: 16 | H217: 16 | I217: 16 | J217: 16 | K217: 16 | L217: 16 | M217: 16 | N217: 16 | O217: 16
A218: CARTAGENA | B218: ARMENIA | C218: No oficial Urbana | D218: 35 | E218: 37 | F218: 35 | G218: 33 | H218: 32 | I218: 32 | J218: 32 | K218: 31 | L218: 31 | M218: 30 | N218: 30 | O218: 29
A219: CARTAGO | B219: ARMENIA | C219: No oficial Rural | D219: 4 | E219: 5 | F219: 5 | G219: 5 | H219: 5 | I219: 6 | J219: 6 | K219: 6 | L219: 6 | M219: 6 | N219: 6 | O219: 6
A220: CASANARE | B220: ATLANTICO | C220: Oficial Urbana | D220: 130 | E220: 129 | F220: 130 | G220: 129 | H220: 128 | I220: 126 | J220: 121 | K220: 119 | L220: 119 | M220: 118 | N220: 118 | O220: 116
A221: CAUCA | B221: ATLANTICO | C221: Oficial Rural | D221: 75 | E221: 75 | F221: 75 | G221: 77 | H221: 76 | I221: 76 | J221: 76 | K221: 81 | L221: 89 | M221: 86 | N221: 87 | O221: 88
A222: CESAR | B222: ATLANTICO | C222: No oficial Urbana | D222: 90 | E222: 89 | F222: 92 | G222: 93 | H222: 95 | I222: 100 | J222: 103 | K222: 101 | L222: 104 | M222: 114 | N222: 121 | O222: 120
A223: CHÍA | B223: ATLANTICO | C223: No oficial Rural | D223: 1 | E223: 1 | F223: 1 | G223: 1 | H223: 2 | I223: 2 | J223: 2 | K223: 2 | L223: 2 | M223: 2 | N223: 2 | O223: 2
A224: CHOCO | B224: BARRANCABERMEJA | C224: Oficial Urbana | D224: 54 | E224: 55 | F224: 53 | G224: 54 | H224: 54 | I224: 54 | J224: 54 | K224: 54 | L224: 54 | M224: 54 | N224: 54 | O224: 54
A225: CIENAGA | B225: BARRANCABERMEJA | C225: Oficial Rural | D225: 53 | E225: 54 | F225: 54 | G225: 54 | H225: 53 | I225: 54 | J225: 53 | K225: 53 | L225: 53 | M225: 53 | N225: 52 | O225: 52
A226: CORDOBA | B226: BARRANCABERMEJA | C226: No oficial Urbana | D226: 71 | E226: 73 | F226: 78 | G226: 79 | H226: 82 | I226: 81 | J226: 81 | K226: 81 | L226: 77 | M226: 75 | N226: 79 | O226: 76
A227: CUCUTA | B227: BARRANCABERMEJA | C227: No oficial Rural | D227: 1 | E227: 1 | F227: 1 | G227: 2 | H227: 2 | I227: 2 | J227: 2 | K227: 2 | L227: 2 | M227: 2 | N227: 3 | O227: 3
A228: CUNDINAMARCA | B228: BARRANQUILLA | C228: Oficial Urbana | D228: 212 | E228: 211 | F228: 210 | G228: 216 | H228: 217 | I228: 218 | J228: 216 | K228: 217 | L228: 219 | M228: 220 | N228: 220 | O228: 222
A229: DOSQUEBRADAS | B229: BARRANQUILLA | C229: Oficial Rural | D229: 0 | E229: 0 | F229: 0 | G229: 0 | H229: 0 | I229: 0 | J229: 0 | K229: 0 | L229: 0 | M229: 0 | N229: 0 | O229: 0
A230: DUITAMA | B230: BARRANQUILLA | C230: No oficial Urbana | D230: 300 | E230: 313 | F230: 338 | G230: 352 | H230: 345 | I230: 340 | J230: 342 | K230: 343 | L230: 329 | M230: 343 | N230: 342 | O230: 353
A231: ENVIGADO | B231: BARRANQUILLA | C231: No oficial Rural | D231: 0 | E231: 1 | F231: 1 | G231: 1 | H231: 1 | I231: 1 | J231: 1 | K231: 1 | L231: 1 | M231: 1 | N231: 1 | O231: 1
A232: FACATATIVA | B232: BELLO | C232: Oficial Urbana | D232: 61 | E232: 57 | F232: 57 | G232: 57 | H232: 54 | I232: 55 | J232: 55 | K232: 55 | L232: 55 | M232: 55 | N232: 56 | O232: 56
A233: FLORENCIA | B233: BELLO | C233: Oficial Rural | D233: 6 | E233: 6 | F233: 6 | G233: 6 | H233: 6 | I233: 6 | J233: 6 | K233: 6 | L233: 7 | M233: 7 | N233: 7 | O233: 7
A234: FLORIDABLANCA | B234: BELLO | C234: No oficial Urbana | D234: 58 | E234: 60 | F234: 59 | G234: 63 | H234: 63 | I234: 65 | J234: 75 | K234: 79 | L234: 82 | M234: 79 | N234: 73 | O234: 73
A235: FUNZA | B235: BELLO | C235: No oficial Rural | D235: 1 | E235: 1 | F235: 1 | G235: 1 | H235: 1 | I235: 1 | J235: 1 | K235: 1 | L235: 1 | M235: 1 | N235: 1 | O235: 1
A236: FUSAGASUGA | B236: BOGOTA | C236: Oficial Urbana | D236: 659 | E236: 660 | F236: 681 | G236: 681 | H236: 670 | I236: 679 | J236: 684 | K236: 684 | L236: 687 | M236: 693 | N236: 705 | O236: 702
A237: GIRARDOT | B237: BOGOTA | C237: Oficial Rural | D237: 50 | E237: 47 | F237: 44 | G237: 44 | H237: 52 | I237: 52 | J237: 52 | K237: 52 | L237: 52 | M237: 52 | N237: 51 | O237: 51
A238: GIRON | B238: BOGOTA | C238: No oficial Urbana | D238: 1,844 | E238: 1830 | F238: 1776 | G238: 1764 | H238: 1737 | I238: 1702 | J238: 1689 | K238: 1,613 | L238: 1,556 | M238: 1505 | N238: 1447 | O238: 1383
A239: GUAINIA | B239: BOGOTA | C239: No oficial Rural | D239: 8 | E239: 10 | F239: 10 | G239: 11 | H239: 11 | I239: 11 | J239: 11 | K239: 11 | L239: 10 | M239: 10 | N239: 10 | O239: 9
A240: GUAVIARE | B240: BOLIVAR | C240: Oficial Urbana | D240: 249 | E240: 246 | F240: 243 | G240: 244 | H240: 243 | I240: 244 | J240: 243 | K240: 240 | L240: 238 | M240: 238 | N240: 237 | O240: 234
A241: HUILA | B241: BOLIVAR | C241: Oficial Rural | D241: 986 | E241: 987 | F241: 976 | G241: 980 | H241: 974 | I241: 979 | J241: 974 | K241: 977 | L241: 971 | M241: 968 | N241: 963 | O241: 962
A242: IBAGUE | B242: BOLIVAR | C242: No oficial Urbana | D242: 42 | E242: 55 | F242: 60 | G242: 72 | H242: 76 | I242: 88 | J242: 98 | K242: 94 | L242: 100 | M242: 102 | N242: 112 | O242: 123
A243: IPIALES | B243: BOLIVAR | C243: No oficial Rural | D243: 1 | E243: 2 | F243: 1 | G243: 2 | H243: 3 | I243: 3 | J243: 3 | K243: 3 | L243: 4 | M243: 6 | N243: 6 | O243: 7
A244: ITAGUI | B244: BOYACA | C244: Oficial Urbana | D244: 267 | E244: 267 | F244: 267 | G244: 270 | H244: 267 | I244: 269 | J244: 269 | K244: 268 | L244: 270 | M244: 270 | N244: 270 | O244: 270
A245: JAMUNDÍ | B245: BOYACA | C245: Oficial Rural | D245: 1,859 | E245: 1841 | F245: 1822 | G245: 1791 | H245: 1784 | I245: 1758 | J245: 1744 | K245: 1,736 | L245: 1,722 | M245: 1713 | N245: 1695 | O245: 1675
A246: LA ESTRELLA | B246: BOYACA | C246: No oficial Urbana | D246: 86 | E246: 86 | F246: 86 | G246: 92 | H246: 91 | I246: 91 | J246: 92 | K246: 85 | L246: 82 | M246: 81 | N246: 81 | O246: 80
A247: LA GUAJIRA | B247: BOYACA | C247: No oficial Rural | D247: 10 | E247: 11 | F247: 11 | G247: 15 | H247: 18 | I247: 19 | J247: 19 | K247: 19 | L247: 19 | M247: 19 | N247: 20 | O247: 25
A248: LORICA | B248: BUCARAMANGA | C248: Oficial Urbana | D248: 106 | E248: 105 | F248: 104 | G248: 104 | H248: 105 | I248: 104 | J248: 104 | K248: 102 | L248: 100 | M248: 101 | N248: 102 | O248: 101
A249: MAGANGUE | B249: BUCARAMANGA | C249: Oficial Rural | D249: 19 | E249: 19 | F249: 18 | G249: 19 | H249: 19 | I249: 19 | J249: 19 | K249: 20 | L249: 20 | M249: 20 | N249: 20 | O249: 20
A250: MAGDALENA | B250: BUCARAMANGA | C250: No oficial Urbana | D250: 163 | E250: 168 | F250: 168 | G250: 175 | H250: 177 | I250: 169 | J250: 160 | K250: 154 | L250: 145 | M250: 142 | N250: 144 | O250: 141
A251: MAICAO | B251: BUCARAMANGA | C251: No oficial Rural | D251: 2 | E251: 0 | F251: 0 | G251: 0 | H251: 0 | I251: 0 | J251: 0 | K251: 0 | L251: 0 | M251: 0 | N251: 0 | O251: 0
A252: MALAMBO | B252: BUENAVENTURA | C252: Oficial Urbana | D252: 68 | E252: 66 | F252: 67 | G252: 67 | H252: 63 | I252: 62 | J252: 62 | K252: 63 | L252: 63 | M252: 61 | N252: 63 | O252: 63
A253: MANIZALES | B253: BUENAVENTURA | C253: Oficial Rural | D253: 152 | E253: 154 | F253: 149 | G253: 146 | H253: 148 | I253: 146 | J253: 144 | K253: 145 | L253: 151 | M253: 139 | N253: 148 | O253: 147
A254: MEDELLIN | B254: BUENAVENTURA | C254: No oficial Urbana | D254: 406 | E254: 404 | F254: 220 | G254: 221 | H254: 217 | I254: 125 | J254: 123 | K254: 124 | L254: 109 | M254: 109 | N254: 108 | O254: 98
A255: META | B255: BUENAVENTURA | C255: No oficial Rural | D255: 0 | E255: 0 | F255: 0 | G255: 0 | H255: 0 | I255: 0 | J255: 0 | K255: 0 | L255: 0 | M255: 0 | N255: 0 | O255: 0
A256: MONTERIA | B256: BUGA | C256: Oficial Urbana | D256: 31 | E256: 28 | F256: 28 | G256: 28 | H256: 29 | I256: 29 | J256: 28 | K256: 28 | L256: 28 | M256: 29 | N256: 28 | O256: 26
A257: MOSQUERA | B257: BUGA | C257: Oficial Rural | D257: 35 | E257: 35 | F257: 35 | G257: 33 | H257: 33 | I257: 34 | J257: 34 | K257: 34 | L257: 33 | M257: 31 | N257: 31 | O257: 34
A258: NARIÑO | B258: BUGA | C258: No oficial Urbana | D258: 51 | E258: 55 | F258: 52 | G258: 53 | H258: 53 | I258: 53 | J258: 53 | K258: 52 | L258: 52 | M258: 53 | N258: 50 | O258: 47
A259: NEIVA | B259: BUGA | C259: No oficial Rural | D259: 0 | E259: 0 | F259: 0 | G259: 0 | H259: 0 | I259: 0 | J259: 0 | K259: 0 | L259: 0 | M259: 0 | N259: 0 | O259: 0
A260: NORTE SANTANDER | B260: CALDAS | C260: Oficial Urbana | D260: 146 | E260: 145 | F260: 145 | G260: 141 | H260: 140 | I260: 138 | J260: 138 | K260: 139 | L260: 140 | M260: 139 | N260: 139 | O260: 138
A261: PALMIRA | B261: CALDAS | C261: Oficial Rural | D261: 916 | E261: 918 | F261: 907 | G261: 895 | H261: 895 | I261: 884 | J261: 875 | K261: 872 | L261: 871 | M261: 857 | N261: 852 | O261: 844
A262: PASTO | B262: CALDAS | C262: No oficial Urbana | D262: 41 | E262: 42 | F262: 45 | G262: 42 | H262: 44 | I262: 42 | J262: 46 | K262: 45 | L262: 40 | M262: 41 | N262: 41 | O262: 42
A263: PEREIRA | B263: CALDAS | C263: No oficial Rural | D263: 4 | E263: 4 | F263: 4 | G263: 4 | H263: 4 | I263: 4 | J263: 4 | K263: 4 | L263: 4 | M263: 5 | N263: 5 | O263: 6
A264: PIEDECUESTA | B264: CALI | C264: Oficial Urbana | D264: 290 | E264: 294 | F264: 290 | G264: 299 | H264: 304 | I264: 304 | J264: 306 | K264: 307 | L264: 307 | M264: 301 | N264: 301 | O264: 301
A265: PITALITO | B265: CALI | C265: Oficial Rural | D265: 46 | E265: 46 | F265: 46 | G265: 46 | H265: 46 | I265: 46 | J265: 46 | K265: 46 | L265: 47 | M265: 51 | N265: 51 | O265: 51
A266: POPAYAN | B266: CALI | C266: No oficial Urbana | D266: 729 | E266: 705 | F266: 687 | G266: 680 | H266: 669 | I266: 651 | J266: 623 | K266: 617 | L266: 592 | M266: 579 | N266: 566 | O266: 553
A267: PUTUMAYO | B267: CALI | C267: No oficial Rural | D267: 15 | E267: 15 | F267: 12 | G267: 12 | H267: 13 | I267: 14 | J267: 12 | K267: 13 | L267: 13 | M267: 17 | N267: 17 | O267: 16
A268: QUIBDÓ | B268: CAQUETA | C268: Oficial Urbana | D268: 69 | E268: 64 | F268: 63 | G268: 63 | H268: 63 | I268: 63 | J268: 63 | K268: 63 | L268: 63 | M268: 59 | N268: 59 | O268: 59
A269: QUINDIO | B269: CAQUETA | C269: Oficial Rural | D269: 1,170 | E269: 1156 | F269: 1148 | G269: 1147 | H269: 1137 | I269: 1130 | J269: 1124 | K269: 1,126 | L269: 1,113 | M269: 1120 | N269: 1115 | O269: 1114
A270: RIOHACHA | B270: CAQUETA | C270: No oficial Urbana | D270: 7 | E270: 5 | F270: 6 | G270: 5 | H270: 4 | I270: 4 | J270: 4 | K270: 4 | L270: 5 | M270: 4 | N270: 6 | O270: 8
A271: RIONEGRO | B271: CAQUETA | C271: No oficial Rural | D271: 1 | E271: 0 | F271: 0 | G271: 0 | H271: 0 | I271: 0 | J271: 0 | K271: 0 | L271: 0 | M271: 0 | N271: 0 | O271: 0
A272: RISARALDA | B272: CARTAGENA | C272: Oficial Urbana | D272: 152 | E272: 152 | F272: 153 | G272: 155 | H272: 164 | I272: 165 | J272: 166 | K272: 166 | L272: 167 | M272: 167 | N272: 168 | O272: 168
A273: SABANETA | B273: CARTAGENA | C273: Oficial Rural | D273: 32 | E273: 32 | F273: 35 | G273: 35 | H273: 36 | I273: 36 | J273: 36 | K273: 37 | L273: 37 | M273: 37 | N273: 37 | O273: 38
A274: SAHAGUN | B274: CARTAGENA | C274: No oficial Urbana | D274: 276 | E274: 275 | F274: 268 | G274: 263 | H274: 252 | I274: 255 | J274: 261 | K274: 263 | L274: 255 | M274: 264 | N274: 267 | O274: 264
A275: SAN ANDRES | B275: CARTAGENA | C275: No oficial Rural | D275: 6 | E275: 6 | F275: 6 | G275: 6 | H275: 7 | I275: 7 | J275: 7 | K275: 8 | L275: 8 | M275: 9 | N275: 9 | O275: 9
A276: SANTA MARTA | B276: CARTAGO | C276: Oficial Urbana | D276: 31 | E276: 31 | F276: 31 | G276: 31 | H276: 30 | I276: 30 | J276: 30 | K276: 30 | L276: 30 | M276: 30 | N276: 30 | O276: 30
A277: SANTANDER | B277: CARTAGO | C277: Oficial Rural | D277: 12 | E277: 12 | F277: 12 | G277: 12 | H277: 12 | I277: 12 | J277: 12 | K277: 12 | L277: 12 | M277: 12 | N277: 12 | O277: 12
A278: SINCELEJO | B278: CARTAGO | C278: No oficial Urbana | D278: 30 | E278: 30 | F278: 29 | G278: 27 | H278: 27 | I278: 27 | J278: 26 | K278: 22 | L278: 24 | M278: 24 | N278: 22 | O278: 22
A279: SOACHA | B279: CARTAGO | C279: No oficial Rural | D279: 0 | E279: 0 | F279: 0 | G279: 0 | H279: 1 | I279: 1 | J279: 1 | K279: 1 | L279: 1 | M279: 1 | N279: 1 | O279: 1
A280: SOGAMOSO | B280: CASANARE | C280: Oficial Urbana | D280: 62 | E280: 60 | F280: 60 | G280: 61 | H280: 61 | I280: 61 | J280: 61 | K280: 61 | L280: 62 | M280: 62 | N280: 63 | O280: 63
A281: SOLEDAD | B281: CASANARE | C281: Oficial Rural | D281: 461 | E281: 462 | F281: 458 | G281: 457 | H281: 450 | I281: 440 | J281: 438 | K281: 437 | L281: 436 | M281: 434 | N281: 428 | O281: 429
A282: SUCRE | B282: CASANARE | C282: No oficial Urbana | D282: 18 | E282: 19 | F282: 19 | G282: 19 | H282: 19 | I282: 17 | J282: 17 | K282: 13 | L282: 13 | M282: 16 | N282: 17 | O282: 18
A283: TOLIMA | B283: CASANARE | C283: No oficial Rural | D283: 1 | E283: 1 | F283: 1 | G283: 2 | H283: 2 | I283: 2 | J283: 2 | K283: 1 | L283: 1 | M283: 1 | N283: 1 | O283: 1
A284: TULUA | B284: CAUCA | C284: Oficial Urbana | D284: 211 | E284: 195 | F284: 192 | G284: 185 | H284: 184 | I284: 184 | J284: 184 | K284: 184 | L284: 184 | M284: 184 | N284: 184 | O284: 181
A285: TUMACO | B285: CAUCA | C285: Oficial Rural | D285: 2,218 | E285: 2223 | F285: 2207 | G285: 2205 | H285: 2200 | I285: 2208 | J285: 2205 | K285: 2,203 | L285: 2,201 | M285: 2192 | N285: 2195 | O285: 2188
A286: TUNJA | B286: CAUCA | C286: No oficial Urbana | D286: 51 | E286: 58 | F286: 59 | G286: 60 | H286: 58 | I286: 56 | J286: 57 | K286: 59 | L286: 57 | M286: 57 | N286: 61 | O286: 60
A287: TURBO | B287: CAUCA | C287: No oficial Rural | D287: 8 | E287: 5 | F287: 5 | G287: 6 | H287: 7 | I287: 7 | J287: 6 | K287: 6 | L287: 6 | M287: 6 | N287: 6 | O287: 6
A288: URIBIA | B288: CESAR | C288: Oficial Urbana | D288: 181 | E288: 180 | F288: 180 | G288: 179 | H288: 178 | I288: 179 | J288: 180 | K288: 182 | L288: 182 | M288: 181 | N288: 180 | O288: 179
A289: VALLE | B289: CESAR | C289: Oficial Rural | D289: 885 | E289: 856 | F289: 854 | G289: 862 | H289: 856 | I289: 853 | J289: 845 | K289: 851 | L289: 851 | M289: 850 | N289: 848 | O289: 860
A290: VALLEDUPAR | B290: CESAR | C290: No oficial Urbana | D290: 72 | E290: 73 | F290: 72 | G290: 76 | H290: 83 | I290: 92 | J290: 95 | K290: 92 | L290: 93 | M290: 98 | N290: 101 | O290: 102
A291: VAUPES | B291: CESAR | C291: No oficial Rural | D291: 2 | E291: 2 | F291: 2 | G291: 2 | H291: 3 | I291: 3 | J291: 4 | K291: 4 | L291: 4 | M291: 4 | N291: 5 | O291: 5
A292: VICHADA | B292: CHÍA | C292: Oficial Urbana | D292: 8 | E292: 8 | F292: 8 | G292: 8 | H292: 8 | I292: 7 | J292: 7 | K292: 7 | L292: 7 | M292: 6 | N292: 7 | O292: 7
A293: VILLAVICENCIO | B293: CHÍA | C293: Oficial Rural | D293: 13 | E293: 13 | F293: 13 | G293: 13 | H293: 13 | I293: 13 | J293: 13 | K293: 13 | L293: 13 | M293: 13 | N293: 14 | O293: 14
A294: YOPAL | B294: CHÍA | C294: No oficial Urbana | D294: 39 | E294: 40 | F294: 41 | G294: 43 | H294: 42 | I294: 44 | J294: 44 | K294: 45 | L294: 43 | M294: 44 | N294: 43 | O294: 46
A295: YUMBO | B295: CHÍA | C295: No oficial Rural | D295: 31 | E295: 37 | F295: 35 | G295: 36 | H295: 34 | I295: 36 | J295: 37 | K295: 39 | L295: 38 | M295: 40 | N295: 38 | O295: 38
A296: ZIPAQUIRA | B296: CHOCO | C296: Oficial Urbana | D296: 117 | E296: 105 | F296: 105 | G296: 103 | H296: 100 | I296: 89 | J296: 88 | K296: 88 | L296: 88 | M296: 88 | N296: 88 | O296: 88
A297: COLOMBIA | B297: CHOCO | C297: Oficial Rural | D297: 946 | E297: 965 | F297: 973 | G297: 986 | H297: 987 | I297: 1002 | J297: 1002 | K297: 1,014 | L297: 1,016 | M297: 1018 | N297: 1025 | O297: 1033
B298: CHOCO | C298: No oficial Urbana | D298: 2 | E298: 4 | F298: 5 | G298: 5 | H298: 4 | I298: 3 | J298: 3 | K298: 3 | L298: 4 | M298: 4 | N298: 3 | O298: 4
B299: CHOCO | C299: No oficial Rural | D299: 0 | E299: 0 | F299: 0 | G299: 0 | H299: 0 | I299: 0 | J299: 0 | K299: 0 | L299: 0 | M299: 0 | N299: 0 | O299: 0
B300: CIENAGA | C300: Oficial Urbana | D300: 32 | E300: 29 | F300: 27 | G300: 27 | H300: 27 | I300: 27 | J300: 27 | K300: 27 | L300: 27 | M300: 27 | N300: 27 | O300: 27
B301: CIENAGA | C301: Oficial Rural | D301: 67 | E301: 79 | F301: 91 | G301: 92 | H301: 92 | I301: 91 | J301: 91 | K301: 91 | L301: 89 | M301: 85 | N301: 86 | O301: 86
B302: CIENAGA | C302: No oficial Urbana | D302: 34 | E302: 35 | F302: 37 | G302: 37 | H302: 49 | I302: 48 | J302: 49 | K302: 50 | L302: 49 | M302: 48 | N302: 48 | O302: 47
B303: CIENAGA | C303: No oficial Rural | D303: 0 | E303: 0 | F303: 0 | G303: 0 | H303: 1 | I303: 1 | J303: 0 | K303: 0 | L303: 1 | M303: 1 | N303: 1 | O303: 1
B304: CORDOBA | C304: Oficial Urbana | D304: 156 | E304: 155 | F304: 153 | G304: 153 | H304: 156 | I304: 157 | J304: 155 | K304: 155 | L304: 153 | M304: 156 | N304: 156 | O304: 155
B305: CORDOBA | C305: Oficial Rural | D305: 1,134 | E305: 1196 | F305: 1147 | G305: 1174 | H305: 1219 | I305: 1229 | J305: 1240 | K305: 1,237 | L305: 1,228 | M305: 1224 | N305: 1216 | O305: 1213
B306: CORDOBA | C306: No oficial Urbana | D306: 69 | E306: 73 | F306: 78 | G306: 81 | H306: 83 | I306: 85 | J306: 85 | K306: 85 | L306: 83 | M306: 82 | N306: 82 | O306: 83
B307: CORDOBA | C307: No oficial Rural | D307: 15 | E307: 14 | F307: 17 | G307: 15 | H307: 16 | I307: 16 | J307: 16 | K307: 15 | L307: 15 | M307: 15 | N307: 15 | O307: 14
B308: CUCUTA | C308: Oficial Urbana | D308: 159 | E308: 158 | F308: 158 | G308: 155 | H308: 156 | I308: 156 | J308: 156 | K308: 156 | L308: 157 | M308: 158 | N308: 157 | O308: 157
B309: CUCUTA | C309: Oficial Rural | D309: 60 | E309: 63 | F309: 62 | G309: 63 | H309: 63 | I309: 63 | J309: 63 | K309: 62 | L309: 62 | M309: 62 | N309: 62 | O309: 63
B310: CUCUTA | C310: No oficial Urbana | D310: 199 | E310: 191 | F310: 200 | G310: 206 | H310: 207 | I310: 207 | J310: 211 | K310: 207 | L310: 194 | M310: 194 | N310: 194 | O310: 187
B311: CUCUTA | C311: No oficial Rural | D311: 3 | E311: 3 | F311: 3 | G311: 3 | H311: 3 | I311: 3 | J311: 2 | K311: 2 | L311: 2 | M311: 2 | N311: 2 | O311: 2
B312: CUNDINAMARCA | C312: Oficial Urbana | D312: 409 | E312: 423 | F312: 426 | G312: 426 | H312: 396 | I312: 373 | J312: 372 | K312: 371 | L312: 361 | M312: 355 | N312: 352 | O312: 352
B313: CUNDINAMARCA | C313: Oficial Rural | D313: 2,133 | E313: 2127 | F313: 2123 | G313: 2111 | H313: 2136 | I313: 2123 | J313: 2103 | K313: 2,100 | L313: 2,074 | M313: 2049 | N313: 2024 | O313: 1999
B314: CUNDINAMARCA | C314: No oficial Urbana | D314: 212 | E314: 255 | F314: 265 | G314: 266 | H314: 269 | I314: 235 | J314: 239 | K314: 230 | L314: 232 | M314: 238 | N314: 245 | O314: 245
B315: CUNDINAMARCA | C315: No oficial Rural | D315: 82 | E315: 87 | F315: 83 | G315: 87 | H315: 90 | I315: 95 | J315: 93 | K315: 95 | L315: 98 | M315: 98 | N315: 97 | O315: 101
B316: DOSQUEBRADAS | C316: Oficial Urbana | D316: 47 | E316: 47 | F316: 47 | G316: 46 | H316: 46 | I316: 46 | J316: 46 | K316: 46 | L316: 46 | M316: 45 | N316: 45 | O316: 45
B317: DOSQUEBRADAS | C317: Oficial Rural | D317: 26 | E317: 26 | F317: 26 | G317: 27 | H317: 27 | I317: 27 | J317: 27 | K317: 27 | L317: 27 | M317: 27 | N317: 26 | O317: 26
B318: DOSQUEBRADAS | C318: No oficial Urbana | D318: 55 | E318: 58 | F318: 58 | G318: 63 | H318: 72 | I318: 71 | J318: 71 | K318: 65 | L318: 66 | M318: 64 | N318: 64 | O318: 66
B319: DOSQUEBRADAS | C319: No oficial Rural | D319: 1 | E319: 1 | F319: 1 | G319: 1 | H319: 1 | I319: 1 | J319: 1 | K319: 1 | L319: 1 | M319: 1 | N319: 1 | O319: 1
B320: DUITAMA | C320: Oficial Urbana | D320: 18 | E320: 18 | F320: 18 | G320: 17 | H320: 17 | I320: 17 | J320: 17 | K320: 17 | L320: 17 | M320: 17 | N320: 17 | O320: 17
B321: DUITAMA | C321: Oficial Rural | D321: 16 | E321: 15 | F321: 14 | G321: 13 | H321: 12 | I321: 12 | J321: 12 | K321: 12 | L321: 12 | M321: 12 | N321: 12 | O321: 12
B322: DUITAMA | C322: No oficial Urbana | D322: 49 | E322: 48 | F322: 49 | G322: 51 | H322: 51 | I322: 51 | J322: 49 | K322: 46 | L322: 46 | M322: 46 | N322: 46 | O322: 46
B323: DUITAMA | C323: No oficial Rural | D323: 0 | E323: 1 | F323: 1 | G323: 1 | H323: 1 | I323: 1 | J323: 1 | K323: 1 | L323: 1 | M323: 1 | N323: 1 | O323: 1
B324: ENVIGADO | C324: Oficial Urbana | D324: 19 | E324: 19 | F324: 19 | G324: 18 | H324: 18 | I324: 18 | J324: 18 | K324: 18 | L324: 18 | M324: 18 | N324: 18 | O324: 18
B325: ENVIGADO | C325: Oficial Rural | D325: 5 | E325: 5 | F325: 5 | G325: 5 | H325: 5 | I325: 5 | J325: 5 | K325: 5 | L325: 5 | M325: 5 | N325: 5 | O325: 4
B326: ENVIGADO | C326: No oficial Urbana | D326: 53 | E326: 55 | F326: 56 | G326: 57 | H326: 60 | I326: 59 | J326: 59 | K326: 55 | L326: 55 | M326: 55 | N326: 53 | O326: 51
B327: ENVIGADO | C327: No oficial Rural | D327: 1 | E327: 2 | F327: 2 | G327: 2 | H327: 3 | I327: 3 | J327: 3 | K327: 2 | L327: 2 | M327: 2 | N327: 2 | O327: 2
B328: FACATATIVA | C328: Oficial Urbana | D328: 21 | E328: 21 | F328: 21 | G328: 21 | H328: 21 | I328: 19 | J328: 19 | K328: 17 | L328: 17 | M328: 16 | N328: 16 | O328: 16
B329: FACATATIVA | C329: Oficial Rural | D329: 7 | E329: 7 | F329: 7 | G329: 7 | H329: 7 | I329: 7 | J329: 7 | K329: 9 | L329: 9 | M329: 9 | N329: 9 | O329: 8
B330: FACATATIVA | C330: No oficial Urbana | D330: 50 | E330: 53 | F330: 57 | G330: 59 | H330: 62 | I330: 65 | J330: 64 | K330: 60 | L330: 59 | M330: 52 | N330: 50 | O330: 49
B331: FACATATIVA | C331: No oficial Rural | D331: 3 | E331: 3 | F331: 4 | G331: 4 | H331: 4 | I331: 4 | J331: 4 | K331: 4 | L331: 4 | M331: 4 | N331: 3 | O331: 3
B332: FLORENCIA | C332: Oficial Urbana | D332: 43 | E332: 43 | F332: 44 | G332: 45 | H332: 46 | I332: 46 | J332: 46 | K332: 44 | L332: 44 | M332: 43 | N332: 43 | O332: 43
B333: FLORENCIA | C333: Oficial Rural | D333: 113 | E333: 113 | F333: 114 | G333: 109 | H333: 107 | I333: 103 | J333: 90 | K333: 99 | L333: 99 | M333: 82 | N333: 79 | O333: 79
B334: FLORENCIA | C334: No oficial Urbana | D334: 29 | E334: 32 | F334: 35 | G334: 41 | H334: 40 | I334: 41 | J334: 41 | K334: 43 | L334: 41 | M334: 41 | N334: 41 | O334: 41
B335: FLORENCIA | C335: No oficial Rural | D335: 1 | E335: 0 | F335: 0 | G335: 0 | H335: 1 | I335: 1 | J335: 1 | K335: 1 | L335: 1 | M335: 1 | N335: 1 | O335: 1
B336: FLORIDABLANCA | C336: Oficial Urbana | D336: 42 | E336: 42 | F336: 42 | G336: 42 | H336: 42 | I336: 41 | J336: 40 | K336: 40 | L336: 40 | M336: 40 | N336: 41 | O336: 41
B337: FLORIDABLANCA | C337: Oficial Rural | D337: 19 | E337: 19 | F337: 19 | G337: 19 | H337: 19 | I337: 16 | J337: 16 | K337: 16 | L337: 16 | M337: 16 | N337: 16 | O337: 16
B338: FLORIDABLANCA | C338: No oficial Urbana | D338: 98 | E338: 102 | F338: 108 | G338: 98 | H338: 96 | I338: 98 | J338: 90 | K338: 90 | L338: 90 | M338: 87 | N338: 87 | O338: 81
B339: FLORIDABLANCA | C339: No oficial Rural | D339: 4 | E339: 3 | F339: 3 | G339: 3 | H339: 4 | I339: 6 | J339: 6 | K339: 7 | L339: 7 | M339: 7 | N339: 7 | O339: 7
B340: FUNZA | C340: Oficial Urbana | D340: 15 | I340: 15 | J340: 15 | K340: 15 | L340: 15 | M340: 15 | N340: 15 | O340: 13
B341: FUNZA | C341: Oficial Rural | D341: 3 | I341: 3 | J341: 3 | K341: 3 | L341: 3 | M341: 3 | N341: 3 | O341: 2
B342: FUNZA | C342: No oficial Urbana | D342: 31 | I342: 39 | J342: 40 | K342: 41 | L342: 44 | M342: 43 | N342: 44 | O342: 43
B343: FUNZA | C343: No oficial Rural | D343: 0 | I343: 1 | J343: 1 | K343: 1 | L343: 1 | M343: 1 | N343: 1 | O343: 1
B344: FUSAGASUGA | C344: Oficial Urbana | D344: 25 | E344: 25 | F344: 25 | G344: 25 | H344: 25 | I344: 24 | J344: 24 | K344: 24 | L344: 24 | M344: 24 | N344: 25 | O344: 25
B345: FUSAGASUGA | C345: Oficial Rural | D345: 34 | E345: 34 | F345: 34 | G345: 34 | H345: 34 | I345: 34 | J345: 34 | K345: 34 | L345: 34 | M345: 34 | N345: 34 | O345: 34
B346: FUSAGASUGA | C346: No oficial Urbana | D346: 42 | E346: 42 | F346: 44 | G346: 43 | H346: 43 | I346: 45 | J346: 46 | K346: 45 | L346: 43 | M346: 45 | N346: 44 | O346: 46
B347: FUSAGASUGA | C347: No oficial Rural | D347: 1 | E347: 2 | F347: 2 | G347: 2 | H347: 2 | I347: 2 | J347: 2 | K347: 3 | L347: 3 | M347: 3 | N347: 3 | O347: 3
B348: GIRARDOT | C348: Oficial Urbana | D348: 29 | E348: 29 | F348: 29 | G348: 29 | H348: 29 | I348: 29 | J348: 29 | K348: 28 | L348: 28 | M348: 27 | N348: 27 | O348: 27
B349: GIRARDOT | C349: Oficial Rural | D349: 5 | E349: 5 | F349: 5 | G349: 5 | H349: 5 | I349: 5 | J349: 5 | K349: 5 | L349: 5 | M349: 5 | N349: 5 | O349: 5
B350: GIRARDOT | C350: No oficial Urbana | D350: 43 | E350: 47 | F350: 49 | G350: 51 | H350: 53 | I350: 51 | J350: 64 | K350: 62 | L350: 61 | M350: 58 | N350: 56 | O350: 53
B351: GIRARDOT | C351: No oficial Rural | D351: 0 | E351: 0 | F351: 0 | G351: 0 | H351: 0 | I351: 0 | J351: 0 | K351: 0 | L351: 0 | M351: 0 | N351: 0 | O351: 0
B352: GIRON | C352: Oficial Urbana | D352: 26 | E352: 28 | F352: 27 | G352: 27 | H352: 27 | I352: 23 | J352: 24 | K352: 24 | L352: 24 | M352: 24 | N352: 24 | O352: 24
B353: GIRON | C353: Oficial Rural | D353: 36 | E353: 35 | F353: 35 | G353: 35 | H353: 35 | I353: 34 | J353: 34 | K353: 34 | L353: 34 | M353: 33 | N353: 33 | O353: 33
B354: GIRON | C354: No oficial Urbana | D354: 39 | E354: 38 | F354: 37 | G354: 38 | H354: 37 | I354: 35 | J354: 35 | K354: 29 | L354: 25 | M354: 24 | N354: 25 | O354: 25
B355: GIRON | C355: No oficial Rural | D355: 0 | E355: 0 | F355: 0 | G355: 0 | H355: 0 | I355: 0 | J355: 0 | K355: 0 | L355: 0 | M355: 0 | N355: 0 | O355: 0
B356: GUAINIA | C356: Oficial Urbana | D356: 7 | E356: 6 | F356: 6 | G356: 6 | H356: 6 | I356: 6 | J356: 6 | K356: 6 | L356: 6 | M356: 6 | N356: 6 | O356: 6
B357: GUAINIA | C357: Oficial Rural | D357: 84 | E357: 84 | F357: 84 | G357: 84 | H357: 82 | I357: 82 | J357: 84 | K357: 87 | L357: 88 | M357: 88 | N357: 91 | O357: 93
B358: GUAINIA | C358: No oficial Urbana | D358: 1 | E358: 1 | F358: 1 | G358: 1 | H358: 1 | I358: 2 | J358: 2 | K358: 2 | L358: 2 | M358: 2 | N358: 2 | O358: 2
B359: GUAINIA | C359: No oficial Rural | D359: 0 | E359: 0 | F359: 0 | G359: 0 | H359: 0 | I359: 0 | J359: 0 | K359: 0 | L359: 0 | M359: 0 | N359: 0 | O359: 0
B360: GUAVIARE | C360: Oficial Urbana | D360: 17 | E360: 17 | F360: 16 | G360: 16 | H360: 16 | I360: 16 | J360: 16 | K360: 16 | L360: 16 | M360: 16 | N360: 16 | O360: 16
B361: GUAVIARE | C361: Oficial Rural | D361: 232 | E361: 229 | F361: 227 | G361: 226 | H361: 223 | I361: 220 | J361: 218 | K361: 223 | L361: 219 | M361: 218 | N361: 213 | O361: 209
B362: GUAVIARE | C362: No oficial Urbana | D362: 10 | E362: 10 | F362: 13 | G362: 11 | H362: 11 | I362: 13 | J362: 13 | K362: 13 | L362: 12 | M362: 13 | N362: 13 | O362: 13
B363: GUAVIARE | C363: No oficial Rural | D363: 0 | E363: 0 | F363: 0 | G363: 0 | H363: 0 | I363: 0 | J363: 0 | K363: 0 | L363: 0 | M363: 0 | N363: 0 | O363: 0
B364: HUILA | C364: Oficial Urbana | D364: 168 | E364: 169 | F364: 167 | G364: 163 | H364: 154 | I364: 149 | J364: 149 | K364: 149 | L364: 149 | M364: 149 | N364: 149 | O364: 149
B365: HUILA | C365: Oficial Rural | D365: 1,283 | E365: 1292 | F365: 1285 | G365: 1287 | H365: 1295 | I365: 1298 | J365: 1300 | K365: 1,299 | L365: 1,299 | M365: 1299 | N365: 1297 | O365: 1295
B366: HUILA | C366: No oficial Urbana | D366: 52 | E366: 48 | F366: 47 | G366: 48 | H366: 48 | I366: 47 | J366: 46 | K366: 43 | L366: 40 | M366: 42 | N366: 42 | O366: 41
B367: HUILA | C367: No oficial Rural | D367: 1 | E367: 2 | F367: 2 | G367: 2 | H367: 2 | I367: 3 | J367: 4 | K367: 4 | L367: 4 | M367: 4 | N367: 4 | O367: 4
B368: IBAGUE | C368: Oficial Urbana | D368: 113 | E368: 113 | F368: 110 | G368: 115 | H368: 115 | I368: 115 | J368: 114 | K368: 112 | L368: 113 | M368: 112 | N368: 113 | O368: 112
B369: IBAGUE | C369: Oficial Rural | D369: 106 | E369: 106 | F369: 106 | G369: 107 | H369: 106 | I369: 106 | J369: 106 | K369: 105 | L369: 103 | M369: 103 | N369: 104 | O369: 101
B370: IBAGUE | C370: No oficial Urbana | D370: 178 | E370: 175 | F370: 173 | G370: 164 | H370: 165 | I370: 160 | J370: 161 | K370: 149 | L370: 145 | M370: 146 | N370: 144 | O370: 145
B371: IBAGUE | C371: No oficial Rural | D371: 0 | E371: 0 | F371: 0 | G371: 0 | H371: 0 | I371: 0 | J371: 0 | K371: 0 | L371: 0 | M371: 0 | N371: 0 | O371: 0
B372: IPIALES | C372: Oficial Urbana | D372: 16 | E372: 16 | F372: 16 | G372: 16 | H372: 15 | I372: 15 | J372: 15 | K372: 14 | L372: 14 | M372: 14 | N372: 14 | O372: 14
B373: IPIALES | C373: Oficial Rural | D373: 66 | E373: 67 | F373: 65 | G373: 66 | H373: 65 | I373: 67 | J373: 67 | K373: 68 | L373: 68 | M373: 68 | N373: 67 | O373: 65
B374: IPIALES | C374: No oficial Urbana | D374: 27 | E374: 31 | F374: 27 | G374: 33 | H374: 36 | I374: 34 | J374: 35 | K374: 37 | L374: 36 | M374: 39 | N374: 39 | O374: 38
B375: IPIALES | C375: No oficial Rural | D375: 0 | E375: 0 | F375: 0 | G375: 0 | H375: 0 | I375: 0 | J375: 0 | K375: 0 | L375: 0 | M375: 0 | N375: 0 | O375: 0
B376: ITAGUI | C376: Oficial Urbana | D376: 34 | E376: 34 | F376: 33 | G376: 33 | H376: 33 | I376: 33 | J376: 33 | K376: 33 | L376: 33 | M376: 33 | N376: 33 | O376: 33
B377: ITAGUI | C377: Oficial Rural | D377: 4 | E377: 4 | F377: 4 | G377: 4 | H377: 4 | I377: 4 | J377: 4 | K377: 4 | L377: 4 | M377: 4 | N377: 4 | O377: 4
B378: ITAGUI | C378: No oficial Urbana | D378: 49 | E378: 52 | F378: 47 | G378: 50 | H378: 50 | I378: 50 | J378: 51 | K378: 52 | L378: 51 | M378: 50 | N378: 50 | O378: 50
B379: ITAGUI | C379: No oficial Rural | D379: 0 | E379: 0 | F379: 0 | G379: 0 | H379: 0 | I379: 0 | J379: 0 | K379: 0 | L379: 0 | M379: 0 | N379: 0 | O379: 0
B380: JAMUNDÍ | C380: Oficial Urbana | D380: 13 | E380: 13 | F380: 13 | G380: 13 | H380: 13 | I380: 14 | J380: 14 | K380: 14 | L380: 14 | M380: 14 | N380: 15 | O380: 16
B381: JAMUNDÍ | C381: Oficial Rural | D381: 55 | E381: 55 | F381: 56 | G381: 56 | H381: 55 | I381: 54 | J381: 61 | K381: 62 | L381: 60 | M381: 60 | N381: 60 | O381: 60
B382: JAMUNDÍ | C382: No oficial Urbana | D382: 20 | E382: 28 | F382: 31 | G382: 33 | H382: 32 | I382: 34 | J382: 37 | K382: 40 | L382: 39 | M382: 38 | N382: 36 | O382: 35
B383: JAMUNDÍ | C383: No oficial Rural | D383: 0 | E383: 0 | F383: 1 | G383: 1 | H383: 1 | I383: 2 | J383: 2 | K383: 3 | L383: 3 | M383: 3 | N383: 4 | O383: 4
B384: LA ESTRELLA | C384: Oficial Urbana | M384: 9 | N384: 9 | O384: 9
B385: LA ESTRELLA | C385: Oficial Rural | M385: 0 | N385: 0 | O385: 0
B386: LA ESTRELLA | C386: No oficial Urbana | M386: 17 | N386: 17 | O386: 18
B387: LA ESTRELLA | C387: No oficial Rural | M387: 4 | N387: 4 | O387: 4
... 206 more rows

Sheet 3 POB DANE 2018
B1: PROYECCIÓN DE POBLACIÓN DANE 5 A 16 AÑOS | K1: Indice
B2: Censo 2018
B3: ENTIDAD
B4: CALDAS | C4: Año | D4: 3_años | E4: 4_años | F4: 5_años | G4: 6 a 10_años | H4: 11 A 14_años | I4: 15 A 16_ años | J4: 5 A16 años
C5: 2018 | D5: =+SUMIFS($D$200:$D$1753,$B$200:$B$1753,$B$4,$C$200:$C$1753,C5) -> 8,059 | E5: =+SUMIFS($E$200:$E$1753,$B$200:$B$1753,$B$4,$C$200:$C$1753,C5) -> 8,051 | F5: =+SUMIFS($F$200:$F$1753,$B$200:$B$1753,$B$4,$C$200:$C$1753,C5) -> 8,043 | G5: =+SUMIFS($G$200:$G$1753,$B$200:$B$1753,$B$4,$C$200:$C$1753,C5) -> 40,572 | H5: =+SUMIFS($H$200:$H$1753,$B$200:$B$1753,$B$4,$C$200:$C$1753,C5) -> 33,652 | I5: =+SUMIFS($I$200:$I$1753,$B$200:$B$1753,$B$4,$C$200:$C$1753,C5) -> 17,283 | J5: =+SUMIFS($J$200:$J$1753,$B$200:$B$1753,$B$4,$C$200:$C$1753,C5) -> 99,550
C6: 2019 | D6: =+SUMIFS($D$200:$D$1753,$B$200:$B$1753,$B$4,$C$200:$C$1753,C6) -> 8,175 | E6: =+SUMIFS($E$200:$E$1753,$B$200:$B$1753,$B$4,$C$200:$C$1753,C6) -> 8,151 | F6: 8,136 | G6: 40,783 | H6: 33,447 | I6: =+SUMIFS($I$200:$I$1753,$B$200:$B$1753,$B$4,$C$200:$C$1753,C6) -> 17,103 | J6: =+SUMIFS($J$200:$J$1753,$B$200:$B$1753,$B$4,$C$200:$C$1753,C6) -> 99,469
C7: 2020 | D7: 8,196 | E7: 8,194 | F7: 8,175 | G7: 40,820 | H7: 32,911 | I7: 16,708 | J7: 98,614
C8: 2021 | D8: 8,204 | E8: 8,214 | F8: 8,213 | G8: 40,877 | H8: 32,606 | I8: 16,420 | J8: 98,116
C9: 2022 | D9: 8,136 | E9: 8,229 | F9: 8,240 | G9: 41,038 | H9: 32,453 | I9: 16,201 | J9: 97,932
C10: 2023 | D10: 8,017 | E10: 8,159 | F10: 8,256 | G10: 41,231 | H10: 32,411 | I10: 16,029 | J10: 97,927
C11: 2024 | D11: 7,679 | E11: 8,038 | F11: =+SUMIFS($F$200:$F$1753,$B$200:$B$1753,$B$4,$C$200:$C$1753,C11) -> 8,180 | G11: =+SUMIFS($G$200:$G$1753,$B$200:$B$1753,$B$4,$C$200:$C$1753,C11) -> 41,368 | H11: =+SUMIFS($H$200:$H$1753,$B$200:$B$1753,$B$4,$C$200:$C$1753,C11) -> 32,429 | I11: =+SUMIFS($I$200:$I$1753,$B$200:$B$1753,$B$4,$C$200:$C$1753,C11) -> 15,904 | J11: 97,881 | Q11: 0
C12: 2025 | D12: 7,396 | E12: 7,694 | F12: 8,056 | G12: 41,372 | H12: 32,490 | I12: 15,831 | J12: 97,749
C13: 2026 | D13: 7,343 | E13: 7,408 | F13: 7,707 | G13: 41,201 | H13: 32,566 | I13: 15,801 | J13: 97,275
C14: 2027 | D14: 7,281 | E14: 7,352 | F14: 7,419 | G14: 40,635 | H14: 32,663 | I14: 15,796 | J14: 96,513
C15: 2028 | D15: 7,210 | E15: 7,289 | F15: 7,362 | G15: 39,768 | H15: 32,738 | I15: 15,819 | J15: 95,687
C16: 2029 | D16: 7,142 | E16: 7,219 | F16: 7,297 | G16: 38,844 | H16: 32,794 | I16: 15,859 | J16: 94,794
C17: 2030 | D17: 7,079 | E17: 7,150 | F17: 7,227 | G17: 37,949 | H17: 32,731 | I17: 15,904 | J17: 93,811
C18: FUENTE: PROYECCIONES DE POBLACIÓN DANE CENSO 2018
C21: =+B4 -> CALDAS
A199: lista | B199: Entidad | C199: Año | D199: 3_años | E199: 4_años | F199: 5_años | G199: 6 a 10_años | H199: 11 A 14_años | I199: 15 A 16_ años | J199: 5 A16 años
A200: AMAZONAS | B200: AMAZONAS | C200: 2018 | D200: 1958 | E200: 1962 | F200: 1,968 | G200: 9,712 | H200: 7,248 | I200: 3,329 | J200: 22,257
A201: ANTIOQUIA | B201: ANTIOQUIA | C201: 2018 | D201: 40672 | E201: 40766 | F201: 40,847 | G201: 207,149 | H201: 169,410 | I201: 85,359 | J201: 502,765
A202: APARTADO | B202: APARTADO | C202: 2018 | D202: 2224 | E202: 2240 | F202: 2,256 | G202: 11,535 | H202: 9,492 | I202: 4,781 | J202: 28,064
A203: ARAUCA | B203: ARAUCA | C203: 2018 | D203: 5238 | E203: 5199 | F203: 5,170 | G203: 25,445 | H203: 20,211 | I203: 10,136 | J203: 60,962
A204: ARMENIA | B204: ARMENIA | C204: 2018 | D204: 3298 | E204: 3289 | F204: 3,287 | G204: 16,828 | H204: 15,065 | I204: 8,443 | J204: 43,623
A205: ATLANTICO | B205: ATLANTICO | C205: 2018 | D205: 10784 | E205: 10798 | F205: 10,800 | G205: 54,332 | H205: 43,795 | I205: 21,832 | J205: 130,759
A206: BARRANCABERMEJA | B206: BARRANCABERMEJA | C206: 2018 | D206: 3529 | E206: 3524 | F206: 3,514 | G206: 17,321 | H206: 13,596 | I206: 6,754 | J206: 41,185
A207: BARRANQUILLA | B207: BARRANQUILLA | C207: 2018 | D207: 18700 | E207: 18740 | F207: 18,791 | G207: 95,121 | H207: 78,599 | I207: 40,504 | J207: 233,015
A208: BELLO | B208: BELLO | C208: 2018 | D208: 6901 | E208: 6919 | F208: 6,934 | G208: 35,161 | H208: 29,900 | I208: 16,176 | J208: 88,171
A209: BOGOTA | B209: BOGOTA | C209: 2018 | D209: 94636 | E209: 94296 | F209: 94,070 | G209: 473,288 | H209: 398,405 | I209: 213,519 | J209: 1,179,282
A210: BOLIVAR | B210: BOLIVAR | C210: 2018 | D210: 18958 | E210: 18929 | F210: 18,896 | G210: 94,517 | H210: 75,985 | I210: 37,909 | J210: 227,307
A211: BOYACA | B211: BOYACA | C211: 2018 | D211: 12745 | E211: 12800 | F211: 12,896 | G211: 65,244 | H211: 52,628 | I211: 26,045 | J211: 156,813
A212: BUCARAMANGA | B212: BUCARAMANGA | C212: 2018 | D212: 7429 | E212: 7445 | F212: 7,461 | G212: 37,835 | H212: 32,089 | I212: 17,270 | J212: 94,655
A213: BUENAVENTURA | B213: BUENAVENTURA | C213: 2018 | D213: 7443 | E213: 7428 | F213: 7,399 | G213: 36,129 | H213: 27,364 | I213: 12,965 | J213: 83,857
A214: BUGA | B214: BUGA | C214: 2018 | D214: 1886 | E214: 1898 | F214: 1,911 | G214: 9,751 | H214: 8,034 | I214: 4,068 | J214: 23,764
A215: CALDAS | B215: CALDAS | C215: 2018 | D215: 8059 | E215: 8051 | F215: 8,043 | G215: 40,572 | H215: 33,652 | I215: 17,283 | J215: 99,550
A216: CALI | B216: CALI | C216: 2018 | D216: 31870 | E216: 31947 | F216: 32,012 | G216: 161,567 | H216: 133,741 | I216: 69,630 | J216: 396,950
A217: CAQUETA | B217: CAQUETA | C217: 2018 | D217: 5254 | E217: 5278 | F217: 5,297 | G217: 26,557 | H217: 20,589 | I217: 9,778 | J217: 62,221
A218: CARTAGENA | B218: CARTAGENA | C218: 2018 | D218: 16590 | E218: 16509 | F218: 16,423 | G218: 81,231 | H218: 65,677 | I218: 33,996 | J218: 197,327
A219: CARTAGO | B219: CARTAGO | C219: 2018 | D219: 1818 | E219: 1845 | F219: 1,877 | G219: 9,947 | H219: 8,616 | I219: 4,456 | J219: 24,896
A220: CASANARE | B220: CASANARE | C220: 2018 | D220: 4940 | E220: 4910 | F220: 4,898 | G220: 24,250 | H220: 19,301 | I220: 9,606 | J220: 58,055
A221: CAUCA | B221: CAUCA | C221: 2018 | D221: 19713 | E221: 19746 | F221: 19,818 | G221: 100,728 | H221: 84,527 | I221: 43,877 | J221: 248,950
A222: CESAR | B222: CESAR | C222: 2018 | D222: 14995 | E222: 14996 | F222: 14,995 | G222: 74,804 | H222: 58,576 | I222: 28,309 | J222: 176,684
A223: CHIA | B223: CHIA | C223: 2018 | D223: 1608 | E223: 1620 | F223: 1,642 | G223: 8,721 | H223: 7,986 | I223: 4,418 | J223: 22,767
A224: CHOCO | B224: CHOCO | C224: 2018 | D224: 9415 | E224: 9451 | F224: 9,496 | G224: 47,621 | H224: 37,095 | I224: 17,419 | J224: 111,631
A225: CIENAGA | B225: CIENAGA | C225: 2018 | D225: 2307 | E225: 2330 | F225: 2,348 | G225: 11,970 | H225: 9,669 | I225: 4,806 | J225: 28,793
A226: CORDOBA | B226: CORDOBA | C226: 2018 | D226: 20548 | E226: 20474 | F226: 20,413 | G226: 101,442 | H226: 80,625 | I226: 39,875 | J226: 242,355
A227: CUCUTA | B227: CUCUTA | C227: 2018 | D227: 11245 | E227: 11255 | F227: 11,266 | G227: 56,713 | H227: 46,566 | I227: 24,000 | J227: 138,545
A228: CUNDINAMARCA | B228: CUNDINAMARCA | C228: 2018 | D228: 21029 | E228: 20970 | F228: 20,953 | G228: 105,742 | H228: 88,445 | I228: 45,941 | J228: 261,081
A229: DOSQUEBRADAS | B229: DOSQUEBRADAS | C229: 2018 | D229: 2697 | E229: 2698 | F229: 2,698 | G229: 13,740 | H229: 11,852 | I229: 6,416 | J229: 34,706
A230: DUITAMA | B230: DUITAMA | C230: 2018 | D230: 1620 | E230: 1650 | F230: 1,678 | G230: 8,879 | H230: 7,750 | I230: 4,087 | J230: 22,394
A231: ENVIGADO | B231: ENVIGADO | C231: 2018 | D231: 2097 | E231: 2109 | F231: 2,124 | G231: 10,990 | H231: 9,664 | I231: 5,338 | J231: 28,116
A232: FACATATIVA | B232: FACATATIVA | C232: 2018 | D232: 2047 | E232: 2050 | F232: 2,058 | G232: 10,554 | H232: 9,143 | I232: 4,943 | J232: 26,698
A233: FLORENCIA | B233: FLORENCIA | C233: 2018 | D233: 2976 | E233: 2982 | F233: 2,983 | G233: 14,976 | H233: 12,210 | I233: 6,249 | J233: 36,418
A234: FLORIDABLANCA | B234: FLORIDABLANCA | C234: 2018 | D234: 3860 | E234: 3870 | F234: 3,883 | G234: 19,714 | H234: 16,601 | I234: 8,809 | J234: 49,007
A235: FUNZA | B235: FUNZA | C235: 2018 | D235: 1338 | E235: 1343 | F235: 1,346 | G235: 6,865 | H235: 5,850 | I235: 3,115 | J235: 17,176
A236: FUSAGASUGA | B236: FUSAGASUGA | C236: 2018 | D236: 1681 | E236: 1699 | F236: 1,720 | G236: 9,134 | H236: 8,205 | I236: 4,431 | J236: 23,490
A237: GIRARDOT | B237: GIRARDOT | C237: 2018 | D237: 1335 | E237: 1334 | F237: 1,336 | G237: 6,750 | H237: 5,693 | I237: 3,018 | J237: 16,797
A238: GIRON | B238: GIRON | C238: 2018 | D238: 2427 | E238: 2428 | F238: 2,432 | G238: 12,193 | H238: 9,978 | I238: 5,166 | J238: 29,769
A239: GUAINIA | B239: GUAINIA | C239: 2018 | D239: 1365 | E239: 1372 | F239: 1,362 | G239: 6,763 | H239: 5,198 | I239: 2,443 | J239: 15,766
A240: GUAVIARE | B240: GUAVIARE | C240: 2018 | D240: 1828 | E240: 1815 | F240: 1,805 | G240: 8,885 | H240: 6,985 | I240: 3,443 | J240: 21,118
A241: HUILA | B241: HUILA | C241: 2018 | D241: 12102 | E241: 12049 | F241: 12,008 | G241: 59,636 | H241: 47,329 | I241: 23,353 | J241: 142,326
A242: IBAGUE | B242: IBAGUE | C242: 2018 | D242: 6456 | E242: 6574 | F242: 6,695 | G242: 35,681 | H242: 32,383 | I242: 18,034 | J242: 92,793
A243: IPIALES | B243: IPIALES | C243: 2018 | D243: 1797 | E243: 1786 | F243: 1,775 | G243: 8,809 | H243: 7,301 | I243: 3,851 | J243: 21,736
A244: ITAGUI | B244: ITAGUI | C244: 2018 | D244: 3194 | E244: 3193 | F244: 3,190 | G244: 16,124 | H244: 13,813 | I244: 7,577 | J244: 40,704
A245: JAMUNDI | B245: JAMUNDI | C245: 2018 | D245: 2443 | E245: 2464 | F245: 2,483 | G245: 12,790 | H245: 10,626 | I245: 5,420 | J245: 31,319
A246: LA ESTRELLA | B246: LA ESTRELLA | C246: 2018 | D246: 827 | E246: 830 | F246: 832 | G246: 4,266 | H246: 3,688 | I246: 2,010 | J246: 10,796
A247: LA GUAJIRA | B247: LA GUAJIRA | C247: 2018 | D247: 8594 | E247: 8580 | F247: 8,548 | G247: 41,446 | H247: 30,723 | I247: 15,356 | J247: 96,073
A248: LORICA | B248: LORICA | C248: 2018 | D248: 1952 | E248: 1944 | F248: 1,945 | G248: 9,699 | H248: 7,779 | I248: 3,898 | J248: 23,321
A249: MAGANGUE | B249: MAGANGUE | C249: 2018 | D249: 2504 | E249: 2509 | F249: 2,520 | G249: 12,819 | H249: 10,527 | I249: 5,284 | J249: 31,150
A250: MAGDALENA | B250: MAGDALENA | C250: 2018 | D250: 15203 | E250: 15285 | F250: 15,353 | G250: 77,190 | H250: 60,449 | I250: 28,973 | J250: 181,965
A251: MAICAO | B251: MAICAO | C251: 2018 | D251: 4322 | E251: 4296 | F251: 4,265 | G251: 20,328 | H251: 14,681 | I251: 7,259 | J251: 46,533
A252: MALAMBO | B252: MALAMBO | C252: 2018 | D252: 2367 | E252: 2374 | F252: 2,384 | G252: 12,102 | H252: 9,876 | I252: 4,953 | J252: 29,315
A253: MANIZALES | B253: MANIZALES | C253: 2018 | D253: 4558 | E253: 4588 | F253: 4,622 | G253: 24,091 | H253: 21,812 | I253: 12,316 | J253: 62,841
A254: MEDELLIN | B254: MEDELLIN | C254: 2018 | D254: 28986 | E254: 29170 | F254: 29,357 | G254: 151,190 | H254: 131,645 | I254: 72,166 | J254: 384,358
A255: META | B255: META | C255: 2018 | D255: 9568 | E255: 9582 | F255: 9,608 | G255: 48,322 | H255: 38,801 | I255: 19,206 | J255: 115,937
A256: MONTERIA | B256: MONTERIA | C256: 2018 | D256: 8318 | E256: 8303 | F256: 8,281 | G256: 41,032 | H256: 32,898 | I256: 16,795 | J256: 99,006
A257: MOSQUERA | B257: MOSQUERA | C257: 2018 | D257: 1988 | E257: 1990 | F257: 1,990 | G257: 10,042 | H257: 8,440 | I257: 4,475 | J257: 24,947
A258: NARIÑO | B258: NARIÑO | C258: 2018 | D258: 13574 | E258: 13520 | F258: 13,507 | G258: 68,214 | H258: 57,557 | I258: 30,212 | J258: 169,490
A259: NEIVA | B259: NEIVA | C259: 2018 | D259: 6288 | E259: 6243 | F259: 6,190 | G259: 30,169 | H259: 23,603 | I259: 11,879 | J259: 71,841
A260: NORTE_DE_SANTANDER | B260: NORTE_DE_SANTANDER | C260: 2018 | D260: 14207 | E260: 14137 | F260: 14,098 | G260: 70,176 | H260: 56,352 | I260: 28,355 | J260: 168,981
A261: PALMIRA | B261: PALMIRA | C261: 2018 | D261: 5187 | E261: 5197 | F261: 5,209 | G261: 26,223 | H261: 21,435 | I261: 10,966 | J261: 63,833
A262: PASTO | B262: PASTO | C262: 2018 | D262: 4833 | E262: 4818 | F262: 4,807 | G262: 24,392 | H262: 21,252 | I262: 11,755 | J262: 62,206
A263: PEREIRA | B263: PEREIRA | C263: 2018 | D263: 5637 | E263: 5632 | F263: 5,636 | G263: 28,711 | H263: 24,962 | I263: 13,641 | J263: 72,950
A264: PIEDECUESTA | B264: PIEDECUESTA | C264: 2018 | D264: 2550 | E264: 2555 | F264: 2,562 | G264: 12,923 | H264: 10,643 | I264: 5,497 | J264: 31,625
A265: PITALITO | B265: PITALITO | C265: 2018 | D265: 2337 | E265: 2330 | F265: 2,322 | G265: 11,611 | H265: 9,387 | I265: 4,751 | J265: 28,071
A266: POPAYAN | B266: POPAYAN | C266: 2018 | D266: 4044 | E266: 4057 | F266: 4,074 | G266: 20,882 | H266: 18,050 | I266: 9,758 | J266: 52,764
A267: PUTUMAYO | B267: PUTUMAYO | C267: 2018 | D267: 6534 | E267: 6555 | F267: 6,566 | G267: 33,224 | H267: 27,293 | I267: 13,889 | J267: 80,972
A268: QUIBDO | B268: QUIBDO | C268: 2018 | D268: 2874 | E268: 2863 | F268: 2,847 | G268: 13,864 | H268: 10,551 | I268: 5,082 | J268: 32,344
A269: QUINDIO | B269: QUINDIO | C269: 2018 | D269: 3026 | E269: 3020 | F269: 3,024 | G269: 15,491 | H269: 13,736 | I269: 7,509 | J269: 39,760
A270: RIOHACHA | B270: RIOHACHA | C270: 2018 | D270: 4696 | E270: 4661 | F270: 4,618 | G270: 21,860 | H270: 15,600 | I270: 7,668 | J270: 49,746
A271: RIONEGRO | B271: RIONEGRO | C271: 2018 | D271: 1627 | E271: 1628 | F271: 1,632 | G271: 8,344 | H271: 7,245 | I271: 3,974 | J271: 21,195
A272: RISARALDA | B272: RISARALDA | C272: 2018 | D272: 4034 | E272: 4025 | F272: 4,025 | G272: 20,319 | H272: 16,867 | I272: 8,610 | J272: 49,821
A273: SABANETA | B273: SABANETA | C273: 2018 | D273: 964 | E273: 947 | F273: 925 | G273: 4,327 | H273: 3,347 | I273: 1,807 | J273: 10,406
A274: SAHAGUN | B274: SAHAGUN | C274: 2018 | D274: 1738 | E274: 1740 | F274: 1,747 | G274: 8,857 | H274: 7,269 | I274: 3,684 | J274: 21,557
A275: SAN_ANDRES | B275: SAN_ANDRES | C275: 2018 | D275: 942 | E275: 933 | F275: 923 | G275: 4,516 | H275: 3,589 | I275: 1,825 | J275: 10,853
A276: SANTA_MARTA | B276: SANTA_MARTA | C276: 2018 | D276: 8480 | E276: 8564 | F276: 8,640 | G276: 44,114 | H276: 35,983 | I276: 18,157 | J276: 106,894
A277: SANTANDER | B277: SANTANDER | C277: 2018 | D277: 11940 | E277: 12092 | F277: 12,237 | G277: 63,549 | H277: 52,935 | I277: 26,501 | J277: 155,222
A278: SINCELEJO | B278: SINCELEJO | C278: 2018 | D278: 4682 | E278: 4707 | F278: 4,731 | G278: 23,994 | H278: 19,823 | I278: 10,236 | J278: 58,784
A279: SOACHA | B279: SOACHA | C279: 2018 | D279: 10368 | E279: 10387 | F279: 10,407 | G279: 52,720 | H279: 44,353 | I279: 23,395 | J279: 130,875
A280: SOGAMOSO | B280: SOGAMOSO | C280: 2018 | D280: 1734 | E280: 1755 | F280: 1,772 | G280: 9,167 | H280: 7,803 | I280: 4,096 | J280: 22,838
A281: SOLEDAD | B281: SOLEDAD | C281: 2018 | D281: 10665 | E281: 10665 | F281: 10,657 | G281: 53,226 | H281: 42,906 | I281: 21,752 | J281: 128,541
A282: SUCRE | B282: SUCRE | C282: 2018 | D282: 11398 | E282: 11464 | F282: 11,544 | G282: 58,741 | H282: 48,153 | I282: 24,221 | J282: 142,659
A283: TOLIMA | B283: TOLIMA | C283: 2018 | D283: 12366 | E283: 12549 | F283: 12,728 | G283: 66,188 | H283: 55,530 | I283: 28,257 | J283: 162,703
A284: TULUA | B284: TULUA | C284: 2018 | D284: 3137 | E284: 3174 | F284: 3,222 | G284: 16,880 | H284: 14,359 | I284: 7,335 | J284: 41,796
A285: TUMACO | B285: TUMACO | C285: 2018 | D285: 5133 | E285: 5102 | F285: 5,077 | G285: 25,215 | H285: 20,481 | I285: 10,374 | J285: 61,147
A286: TUNJA | B286: TUNJA | C286: 2018 | D286: 2375 | E286: 2402 | F286: 2,431 | G286: 12,631 | H286: 11,023 | I286: 5,986 | J286: 32,071
A287: TURBO | B287: TURBO | C287: 2018 | D287: 2908 | E287: 2891 | F287: 2,869 | G287: 14,038 | H287: 10,848 | I287: 5,268 | J287: 33,023
A288: URIBIA | B288: URIBIA | C288: 2018 | D288: 3862 | E288: 3865 | F288: 3,866 | G288: 19,120 | H288: 14,904 | I288: 7,749 | J288: 45,639
A289: VALLE | B289: VALLE | C289: 2018 | D289: 13345 | E289: 13481 | F289: 13,651 | G289: 70,920 | H289: 59,190 | I289: 29,672 | J289: 173,433
A290: VALLEDUPAR | B290: VALLEDUPAR | C290: 2018 | D290: 9544 | E290: 9533 | F290: 9,507 | G290: 47,013 | H290: 36,881 | I290: 18,326 | J290: 111,727
A291: VAUPES | B291: VAUPES | C291: 2018 | D291: 1279 | E291: 1295 | F291: 1,310 | G291: 6,639 | H291: 5,105 | I291: 2,309 | J291: 15,363
A292: VICHADA | B292: VICHADA | C292: 2018 | D292: 2816 | E292: 2827 | F292: 2,837 | G292: 14,152 | H292: 10,855 | I292: 5,107 | J292: 32,951
A293: VILLAVICENCIO | B293: VILLAVICENCIO | C293: 2018 | D293: 8081 | E293: 8115 | F293: 8,157 | G293: 41,619 | H293: 34,809 | I293: 18,185 | J293: 102,770
A294: YOPAL | B294: YOPAL | C294: 2018 | D294: 2887 | E294: 2875 | F294: 2,865 | G294: 14,268 | H294: 11,640 | I294: 6,031 | J294: 34,804
A295: YUMBO | B295: YUMBO | C295: 2018 | D295: 1669 | E295: 1681 | F295: 1,694 | G295: 8,733 | H295: 7,303 | I295: 3,738 | J295: 21,468
A296: ZIPAQUIRA | B296: ZIPAQUIRA | C296: 2018 | D296: 2035 | E296: 2017 | F296: 1,996 | G296: 9,784 | H296: 8,007 | I296: 4,257 | J296: 24,044
A297: COLOMBIA | B297: COLOMBIA | C297: 2018 | D297: 762038 | E297: 762784 | F297: 763,872 | G297: 3,853,057 | H297: 3,170,415 | I297: 1,632,682 | J297: 9,420,026
B298: AMAZONAS | C298: 2019 | D298: 1934 | E298: 1941 | F298: 1,946 | G298: 9,703 | H298: 7,362 | I298: 3,424 | J298: 22,435
B299: ANTIOQUIA | C299: 2019 | D299: 41131 | E299: 41175 | F299: 41,282 | G299: 208,669 | H299: 169,483 | I299: 85,011 | J299: 504,445
B300: APARTADO | C300: 2019 | D300: 2281 | E300: 2295 | F300: 2,305 | G300: 11,728 | H300: 9,569 | I300: 4,802 | J300: 28,404
B301: ARAUCA | C301: 2019 | D301: 5650 | E301: 5590 | F301: 5,527 | G301: 26,917 | H301: 21,085 | I301: 10,566 | J301: 64,095
B302: ARMENIA | C302: 2019 | D302: 3409 | E302: 3386 | F302: 3,372 | G302: 16,962 | H302: 14,780 | I302: 8,231 | J302: 43,345
B303: ATLANTICO | C303: 2019 | D303: 11300 | E303: 11283 | F303: 11,257 | G303: 56,181 | H303: 44,835 | I303: 22,353 | J303: 134,626
B304: BARRANCABERMEJA | C304: 2019 | D304: 3612 | E304: 3598 | F304: 3,579 | G304: 17,507 | H304: 13,594 | I304: 6,732 | J304: 41,412
B305: BARRANQUILLA | C305: 2019 | D305: 19226 | E305: 19219 | F305: 19,218 | G305: 96,510 | H305: 78,998 | I305: 40,780 | J305: 235,506
B306: BELLO | C306: 2019 | D306: 7029 | E306: 7034 | F306: 7,035 | G306: 35,443 | H306: 29,887 | I306: 16,130 | J306: 88,495
B307: BOGOTA | C307: 2019 | D307: 96701 | E307: 96217 | F307: 95,822 | G307: 478,298 | H307: 396,340 | I307: 211,071 | J307: 1,181,531
B308: BOLIVAR | C308: 2019 | D308: 19485 | E308: 19424 | F308: 19,360 | G308: 96,235 | H308: 76,675 | I308: 38,160 | J308: 230,430
B309: BOYACA | C309: 2019 | D309: 12775 | E309: 12858 | F309: 12,916 | G309: 65,444 | H309: 52,660 | I309: 25,961 | J309: 156,981
B310: BUCARAMANGA | C310: 2019 | D310: 7637 | E310: 7632 | F310: 7,629 | G310: 38,343 | H310: 32,125 | I310: 17,235 | J310: 95,332
B311: BUENAVENTURA | C311: 2019 | D311: 7453 | E311: 7431 | F311: 7,397 | G311: 36,032 | H311: 27,198 | I311: 12,867 | J311: 83,494
B312: BUGA | C312: 2019 | D312: 1886 | E312: 1894 | F312: 1,907 | G312: 9,692 | H312: 7,950 | I312: 4,018 | J312: 23,567
B313: CALDAS | C313: 2019 | D313: 8175 | E313: 8151 | F313: 8,136 | G313: 40,783 | H313: 33,447 | I313: 17,103 | J313: 99,469
B314: CALI | C314: 2019 | D314: 31856 | E314: 31882 | F314: 31,900 | G314: 160,307 | H314: 131,956 | I314: 68,590 | J314: 392,753
B315: CAQUETA | C315: 2019 | D315: 5203 | E315: 5222 | F315: 5,253 | G315: 26,455 | H315: 20,717 | I315: 9,906 | J315: 62,331
B316: CARTAGENA | C316: 2019 | D316: 17071 | E316: 16959 | F316: 16,840 | G316: 82,749 | H316: 66,235 | I316: 34,160 | J316: 199,984
B317: CARTAGO | C317: 2019 | D317: 1817 | E317: 1842 | F317: 1,871 | G317: 9,868 | H317: 8,497 | I317: 4,385 | J317: 24,621
B318: CASANARE | C318: 2019 | D318: 4985 | E318: 4961 | F318: 4,931 | G318: 24,344 | H318: 19,265 | I318: 9,564 | J318: 58,104
B319: CAUCA | C319: 2019 | D319: 19777 | E319: 19805 | F319: 19,843 | G319: 100,320 | H319: 83,361 | I319: 43,183 | J319: 246,707
B320: CESAR | C320: 2019 | D320: 15480 | E320: 15454 | F320: 15,430 | G320: 76,761 | H320: 60,004 | I320: 29,036 | J320: 181,231
B321: CHIA | C321: 2019 | D321: 1728 | E321: 1737 | F321: 1,754 | G321: 9,239 | H321: 8,310 | I321: 4,568 | J321: 23,871
B322: CHOCO | C322: 2019 | D322: 9301 | E322: 9359 | F322: 9,409 | G322: 47,411 | H322: 37,255 | I322: 17,698 | J322: 111,773
B323: CIENAGA | C323: 2019 | D323: 2303 | E323: 2325 | F323: 2,343 | G323: 11,914 | H323: 9,645 | I323: 4,815 | J323: 28,717
B324: CORDOBA | C324: 2019 | D324: 20765 | E324: 20683 | F324: 20,607 | G324: 102,187 | H324: 80,868 | I324: 39,898 | J324: 243,560
B325: CUCUTA | C325: 2019 | D325: 11959 | E325: 11918 | F325: 11,881 | G325: 59,120 | H325: 47,797 | I325: 24,550 | J325: 143,348
B326: CUNDINAMARCA | C326: 2019 | D326: 22258 | E326: 22124 | F326: 22,081 | G326: 110,426 | H326: 90,742 | I326: 46,789 | J326: 270,038
B327: DOSQUEBRADAS | C327: 2019 | D327: 2754 | E327: 2747 | F327: 2,742 | G327: 13,790 | H327: 11,684 | I327: 6,294 | J327: 34,510
B328: DUITAMA | C328: 2019 | D328: 1643 | E328: 1669 | F328: 1,698 | G328: 8,932 | H328: 7,741 | I328: 4,051 | J328: 22,422
B329: ENVIGADO | C329: 2019 | D329: 2136 | E329: 2144 | F329: 2,157 | G329: 11,073 | H329: 9,646 | I329: 5,314 | J329: 28,190
B330: FACATATIVA | C330: 2019 | D330: 2192 | E330: 2187 | F330: 2,187 | G330: 11,092 | H330: 9,422 | I330: 5,059 | J330: 27,760
B331: FLORENCIA | C331: 2019 | D331: 2974 | E331: 2978 | F331: 2,976 | G331: 14,925 | H331: 12,198 | I331: 6,245 | J331: 36,344
B332: FLORIDABLANCA | C332: 2019 | D332: 3990 | E332: 3991 | F332: 3,993 | G332: 20,096 | H332: 16,723 | I332: 8,845 | J332: 49,657
B333: FUNZA | C333: 2019 | D333: 1443 | E333: 1439 | F333: 1,439 | G333: 7,246 | H333: 6,048 | I333: 3,200 | J333: 17,933
B334: FUSAGASUGA | C334: 2019 | D334: 1791 | E334: 1804 | F334: 1,824 | G334: 9,575 | H334: 8,442 | I334: 4,527 | J334: 24,368
B335: GIRARDOT | C335: 2019 | D335: 1403 | E335: 1397 | F335: 1,392 | G335: 6,962 | H335: 5,752 | I335: 3,029 | J335: 17,135
B336: GIRON | C336: 2019 | D336: 2534 | E336: 2531 | F336: 2,527 | G336: 12,568 | H336: 10,173 | I336: 5,253 | J336: 30,521
B337: GUAINIA | C337: 2019 | D337: 1360 | E337: 1355 | F337: 1,359 | G337: 6,744 | H337: 5,220 | I337: 2,485 | J337: 15,808
B338: GUAVIARE | C338: 2019 | D338: 1851 | E338: 1833 | F338: 1,826 | G338: 8,965 | H338: 7,034 | I338: 3,476 | J338: 21,301
B339: HUILA | C339: 2019 | D339: 12160 | E339: 12097 | F339: 12,062 | G339: 59,792 | H339: 47,297 | I339: 23,316 | J339: 142,467
B340: IBAGUE | C340: 2019 | D340: 6468 | E340: 6575 | F340: 6,684 | G340: 35,379 | H340: 31,732 | I340: 17,523 | J340: 91,318
B341: IPIALES | C341: 2019 | D341: 1786 | E341: 1776 | F341: 1,764 | G341: 8,711 | H341: 7,115 | I341: 3,721 | J341: 21,311
B342: ITAGUI | C342: 2019 | D342: 3230 | E342: 3223 | F342: 3,217 | G342: 16,166 | H342: 13,741 | I342: 7,517 | J342: 40,641
B343: JAMUNDI | C343: 2019 | D343: 2493 | E343: 2509 | F343: 2,528 | G343: 12,978 | H343: 10,744 | I343: 5,472 | J343: 31,722
B344: LA ESTRELLA | C344: 2019 | D344: 846 | E344: 846 | F344: 850 | G344: 4,321 | H344: 3,697 | I344: 2,010 | J344: 10,878
B345: LA GUAJIRA | C345: 2019 | D345: 8835 | E345: 8831 | F345: 8,794 | G345: 42,931 | H345: 31,565 | I345: 15,503 | J345: 98,793
B346: LORICA | C346: 2019 | D346: 1954 | E346: 1951 | F346: 1,945 | G346: 9,686 | H346: 7,741 | I346: 3,871 | J346: 23,243
B347: MAGANGUE | C347: 2019 | D347: 2572 | E347: 2575 | F347: 2,581 | G347: 13,054 | H347: 10,623 | I347: 5,316 | J347: 31,574
B348: MAGDALENA | C348: 2019 | D348: 15511 | E348: 15586 | F348: 15,639 | G348: 78,474 | H348: 61,580 | I348: 29,666 | J348: 185,359
B349: MAICAO | C349: 2019 | D349: 4421 | E349: 4398 | F349: 4,369 | G349: 20,964 | H349: 15,041 | I349: 7,321 | J349: 47,695
B350: MALAMBO | C350: 2019 | D350: 2485 | E350: 2487 | F350: 2,490 | G350: 12,533 | H350: 10,132 | I350: 5,087 | J350: 30,242
B351: MANIZALES | C351: 2019 | D351: 4655 | E351: 4671 | F351: 4,691 | G351: 24,151 | H351: 21,496 | I351: 12,085 | J351: 62,423
B352: MEDELLIN | C352: 2019 | D352: 29468 | E352: 29575 | F352: 29,681 | G352: 151,627 | H352: 130,667 | I352: 71,411 | J352: 383,386
B353: META | C353: 2019 | D353: 9578 | E353: 9620 | F353: 9,631 | G353: 48,343 | H353: 38,730 | I353: 19,128 | J353: 115,832
B354: MONTERIA | C354: 2019 | D354: 8387 | E354: 8365 | F354: 8,331 | G354: 41,146 | H354: 32,844 | I354: 16,716 | J354: 99,037
B355: MOSQUERA | C355: 2019 | D355: 2178 | E355: 2171 | F355: 2,163 | G355: 10,780 | H355: 8,871 | I355: 4,671 | J355: 26,485
B356: NARIÑO | C356: 2019 | D356: 13494 | E356: 13466 | F356: 13,443 | G356: 67,518 | H356: 56,276 | I356: 29,433 | J356: 166,670
B357: NEIVA | C357: 2019 | D357: 6286 | E357: 6239 | F357: 6,182 | G357: 30,064 | H357: 23,407 | I357: 11,757 | J357: 71,410
B358: NORTE_DE_SANTANDER | C358: 2019 | D358: 15004 | E358: 14891 | F358: 14,815 | G358: 73,064 | H358: 57,953 | I358: 29,072 | J358: 174,904
B359: PALMIRA | C359: 2019 | D359: 5183 | E359: 5189 | F359: 5,195 | G359: 26,079 | H359: 21,240 | I359: 10,849 | J359: 63,363
B360: PASTO | C360: 2019 | D360: 4804 | E360: 4788 | F360: 4,779 | G360: 24,099 | H360: 20,679 | I360: 11,333 | J360: 60,890
B361: PEREIRA | C361: 2019 | D361: 5715 | E361: 5699 | F361: 5,686 | G361: 28,707 | H361: 24,555 | I361: 13,361 | J361: 72,309
B362: PIEDECUESTA | C362: 2019 | D362: 2659 | E362: 2661 | F362: 2,661 | G362: 13,330 | H362: 10,874 | I362: 5,601 | J362: 32,466
B363: PITALITO | C363: 2019 | D363: 2367 | E363: 2360 | F363: 2,353 | G363: 11,734 | H363: 9,452 | I363: 4,778 | J363: 28,317
B364: POPAYAN | C364: 2019 | D364: 4075 | E364: 4082 | F364: 4,093 | G364: 20,836 | H364: 17,799 | I364: 9,581 | J364: 52,309
B365: PUTUMAYO | C365: 2019 | D365: 6560 | E365: 6577 | F365: 6,589 | G365: 33,237 | H365: 27,205 | I365: 13,859 | J365: 80,890
B366: QUIBDO | C366: 2019 | D366: 2846 | E366: 2840 | F366: 2,828 | G366: 13,793 | H366: 10,514 | I366: 5,091 | J366: 32,226
B367: QUINDIO | C367: 2019 | D367: 3136 | E367: 3113 | F367: 3,106 | G367: 15,718 | H367: 13,577 | I367: 7,384 | J367: 39,785
B368: RIOHACHA | C368: 2019 | D368: 4749 | E368: 4717 | F368: 4,678 | G368: 22,280 | H368: 15,804 | I368: 7,656 | J368: 50,418
B369: RIONEGRO | C369: 2019 | D369: 1665 | E369: 1664 | F369: 1,666 | G369: 8,488 | H369: 7,310 | I369: 3,994 | J369: 21,458
B370: RISARALDA | C370: 2019 | D370: 4041 | E370: 4036 | F370: 4,032 | G370: 20,265 | H370: 16,600 | I370: 8,458 | J370: 49,355
B371: SABANETA | C371: 2019 | D371: 987 | E371: 971 | F371: 946 | G371: 4,392 | H371: 3,368 | I371: 1,810 | J371: 10,516
B372: SAHAGUN | C372: 2019 | D372: 1753 | E372: 1754 | F372: 1,759 | G372: 8,900 | H372: 7,277 | I372: 3,678 | J372: 21,614
B373: SAN_ANDRES | C373: 2019 | D373: 966 | E373: 957 | F373: 945 | G373: 4,597 | H373: 3,627 | I373: 1,833 | J373: 11,002
B374: SANTA_MARTA | C374: 2019 | D374: 8728 | E374: 8798 | F374: 8,863 | G374: 45,125 | H374: 36,834 | I374: 18,648 | J374: 109,470
B375: SANTANDER | C375: 2019 | D375: 12163 | E375: 12277 | F375: 12,409 | G375: 64,203 | H375: 53,188 | I375: 26,610 | J375: 156,410
B376: SINCELEJO | C376: 2019 | D376: 4793 | E376: 4810 | F376: 4,825 | G376: 24,341 | H376: 19,964 | I376: 10,279 | J376: 59,409
B377: SOACHA | C377: 2019 | D377: 11269 | E377: 11238 | F377: 11,213 | G377: 56,104 | H377: 46,201 | I377: 24,193 | J377: 137,711
B378: SOGAMOSO | C378: 2019 | D378: 1755 | E378: 1769 | F378: 1,787 | G378: 9,198 | H378: 7,770 | I378: 4,048 | J378: 22,803
B379: SOLEDAD | C379: 2019 | D379: 11249 | E379: 11217 | F379: 11,182 | G379: 55,398 | H379: 44,243 | I379: 22,469 | J379: 133,292
... 1189 more rows

Sheet 4 MAT SECTOR
B1: MATRICULA POR GRADOS SEGÚN SECTOR | I1: Indice | AG1: Indice
B2: =+'1 ESTAB'!B2 -> Corte SEPTIEMBRE 2025 información preliminar
D3: MATRICULA TOTAL X GRADO
B4: ENTIDAD | D4: 2014 | G4: 2015 | J4: 2016 | M4: 2017 | P4: 2018 | S4: 2019 | V4: 2020 | Y4: =+'1 ESTAB'!K4 -> 2021 | AB4: =+'1 ESTAB'!L4 -> 2022 | AE4: =+'1 ESTAB'!M4 -> 2023 | AH4: =+'1 ESTAB'!N4 -> 2024 | AK4: =+'1 ESTAB'!O4 -> Sep. 2025
B5: BOGOTA | C5: Grado | D5: Oficial | E5: Contratada | F5: Privada | G5: Oficial | H5: Contratada | I5: Privada | J5: Oficial | K5: Contratada | L5: Privada | M5: Oficial | N5: Contratada | O5: Privada | P5: Oficial | Q5: Contratada | R5: Privada | S5: Oficial | T5: Contratada | U5: Privada | V5: Oficial | W5: Contratada | X5: Privada | Y5: Oficial | Z5: Contratada | AA5: Privada | AB5: Oficial | AC5: Contratada | AD5: Privada | AE5: Oficial | AF5: Contratada | AG5: Privada | AH5: Oficial | AI5: Contratada | AJ5: Privada | AK5: Oficial | AL5: Contratada | AM5: Privada
C6: Prejardín | D6: =+SUMIFS($D$200:$D$3135,$B$200:$B$3135,$B$5,$C$200:$C$3135,C6) -> 11,017 | E6: =+SUMIFS($E$200:$E$3135,$B$200:$B$3135,$B$5,$C$200:$C$3135,C6) -> 3 | F6: =+SUMIFS($F$200:$F$3135,$B$200:$B$3135,$B$5,$C$200:$C$3135,C6) -> 14,629 | G6: =+SUMIFS($G$200:$G$3135,$B$200:$B$3135,$B$5,$C$200:$C$3135,C6) -> 15,574 | H6: =+SUMIFS($H$200:$H$3135,$B$200:$B$3135,$B$5,$C$200:$C$3135,C6) -> 0 | I6: =+SUMIFS($I$200:$I$3135,$B$200:$B$3135,$B$5,$C$200:$C$3135,C6) -> 14,861 | J6: =+SUMIFS($J$200:$J$3135,$B$200:$B$3135,$B$5,$C$200:$C$3135,C6) -> 15,961 | K6: =+SUMIFS($K$200:$K$3135,$B$200:$B$3135,$B$5,$C$200:$C$3135,C6) -> 138 | L6: =+SUMIFS($L$200:$L$3135,$B$200:$B$3135,$B$5,$C$200:$C$3135,C6) -> 14,580 | M6: =+SUMIFS($M$200:$M$3135,$B$200:$B$3135,$B$5,$C$200:$C$3135,C6) -> 11,290 | N6: =+SUMIFS($N$200:$N$3135,$B$200:$B$3135,$B$5,$C$200:$C$3135,C6) -> 0 | O6: =+SUMIFS($O$200:$O$3135,$B$200:$B$3135,$B$5,$C$200:$C$3135,C6) -> 14,727 | P6: =+SUMIFS($P$200:$P$3135,$B$200:$B$3135,$B$5,$C$200:$C$3135,C6) -> 11,193 | Q6: =+SUMIFS($Q$200:$Q$3135,$B$200:$B$3135,$B$5,$C$200:$C$3135,C6) -> 2 | R6: =+SUMIFS($R$200:$R$3135,$B$200:$B$3135,$B$5,$C$200:$C$3135,C6) -> 13,782 | S6: =+SUMIFS($S$200:$S$3135,$B$200:$B$3135,$B$5,$C$200:$C$3135,C6) -> 10,722 | T6: =+SUMIFS($T$200:$T$3135,$B$200:$B$3135,$B$5,$C$200:$C$3135,C6) -> 0 | U6: =+SUMIFS($U$200:$U$3135,$B$200:$B$3135,$B$5,$C$200:$C$3135,C6) -> 13,000 | V6: =+SUMIFS($V$200:$V$3135,$B$200:$B$3135,$B$5,$C$200:$C$3135,C6) -> 10,567 | W6: =+SUMIFS($W$200:$W$3135,$B$200:$B$3135,$B$5,$C$200:$C$3135,C6) -> 7 | X6: =+SUMIFS($X$200:$X$3135,$B$200:$B$3135,$B$5,$C$200:$C$3135,C6) -> 10,772 | Y6: =+SUMIFS($Y$200:$Y$3135,$B$200:$B$3135,$B$5,$C$200:$C$3135,C6) -> 13,132 | Z6: =+SUMIFS($Z$200:$Z$3135,$B$200:$B$3135,$B$5,$C$200:$C$3135,C6) -> 0 | AA6: =+SUMIFS($AA$200:$AA$3135,$B$200:$B$3135,$B$5,$C$200:$C$3135,C6) -> 6,389 | AB6: =+SUMIFS($AB$200:$AB$3135,$B$200:$B$3135,$B$5,$C$200:$C$3135,C6) -> 13,419 | AC6: =+SUMIFS($AC$200:$AC$3135,$B$200:$B$3135,$B$5,$C$200:$C$3135,C6) -> 0 | AD6: =+SUMIFS($AD$200:$AD$3135,$B$200:$B$3135,$B$5,$C$200:$C$3135,C6) -> 9,492 | AE6: =+SUMIFS($AE$200:$AE$3135,$B$200:$B$3135,$B$5,$C$200:$C$3135,C6) -> 12,737 | AF6: =+SUMIFS($AF$200:$AF$3135,$B$200:$B$3135,$B$5,$C$200:$C$3135,C6) -> 0 | AG6: =+SUMIFS($AG$200:$AG$3135,$B$200:$B$3135,$B$5,$C$200:$C$3135,C6) -> 8,391 | AH6: =+SUMIFS($AH$200:$AH$3135,$B$200:$B$3135,$B$5,$C$200:$C$3135,C6) -> 12,302 | AI6: =+SUMIFS($AI$200:$AI$3135,$B$200:$B$3135,$B$5,$C$200:$C$3135,C6) -> 0 | AJ6: =+SUMIFS($AJ$200:$AJ$3135,$B$200:$B$3135,$B$5,$C$200:$C$3135,C6) -> 7,174 | AK6: =+SUMIFS($AK$200:$AK$3135,$B$200:$B$3135,$B$5,$C$200:$C$3135,C6) -> 17,412 | AL6: =+SUMIFS($AL$200:$AL$3135,$B$200:$B$3135,$B$5,$C$200:$C$3135,C6) -> 0 | AM6: =+SUMIFS($AM$200:$AM$3135,$B$200:$B$3135,$B$5,$C$200:$C$3135,C6) -> 6,785
C7: Jardín | D7: 15,899 | E7: 33 | F7: 25,889 | G7: 21,914 | H7: 1 | I7: 24,704 | J7: 22,087 | K7: 1 | L7: 23,092 | M7: 24,898 | N7: 3 | O7: 24,710 | P7: 23,855 | Q7: 0 | R7: 23,282 | S7: 26,023 | T7: 1 | U7: 22,689 | V7: 25,863 | W7: 963 | X7: 20,925 | Y7: 24,646 | Z7: 922 | AA7: 14,240 | AB7: 24,666 | AC7: 857 | AD7: 16,905 | AE7: =+SUMIFS($AE$200:$AE$3135,$B$200:$B$3135,$B$5,$C$200:$C$3135,C7) -> 24,405 | AF7: =+SUMIFS($AF$200:$AF$3135,$B$200:$B$3135,$B$5,$C$200:$C$3135,C7) -> 906 | AG7: =+SUMIFS($AG$200:$AG$3135,$B$200:$B$3135,$B$5,$C$200:$C$3135,C7) -> 16,687 | AH7: =+SUMIFS($AH$200:$AH$3135,$B$200:$B$3135,$B$5,$C$200:$C$3135,C7) -> 22,914 | AI7: =+SUMIFS($AI$200:$AI$3135,$B$200:$B$3135,$B$5,$C$200:$C$3135,C7) -> 874 | AJ7: =+SUMIFS($AJ$200:$AJ$3135,$B$200:$B$3135,$B$5,$C$200:$C$3135,C7) -> 14,370 | AK7: =+SUMIFS($AK$200:$AK$3135,$B$200:$B$3135,$B$5,$C$200:$C$3135,C7) -> 23,056 | AL7: =+SUMIFS($AL$200:$AL$3135,$B$200:$B$3135,$B$5,$C$200:$C$3135,C7) -> 888 | AM7: =+SUMIFS($AM$200:$AM$3135,$B$200:$B$3135,$B$5,$C$200:$C$3135,C7) -> 12,999
C8: Transición | D8: 48,967 | E8: 3,012 | F8: 36,455 | G8: 48,490 | H8: 2,480 | I8: 37,499 | J8: 46,794 | K8: 2,941 | L8: 36,155 | M8: 46,934 | N8: 2,038 | O8: 36,309 | P8: 48,036 | Q8: 1,837 | R8: 35,498 | S8: 48,402 | T8: 1,808 | U8: 34,207 | V8: 48,287 | W8: 2,385 | X8: 32,768 | Y8: 48,749 | Z8: 2,439 | AA8: 25,971 | AB8: 46,706 | AC8: 2,466 | AD8: 28,902 | AE8: 44,859 | AF8: 2,635 | AG8: 26,447 | AH8: 42,173 | AI8: 2,758 | AJ8: 24,093 | AK8: 38,761 | AL8: 2,681 | AM8: 21,924
C9: Primero | D9: 58,457 | E9: 3,770 | F9: 39,997 | G9: 59,242 | H9: 3,041 | I9: 41,534 | J9: 57,146 | K9: 3,078 | L9: 40,461 | M9: 56,187 | N9: 3,405 | O9: 40,960 | P9: 56,465 | Q9: 2,693 | R9: 39,590 | S9: 59,531 | T9: 2,449 | U9: 38,611 | V9: 58,784 | W9: 3,119 | X9: 36,658 | Y9: 58,501 | Z9: 2,956 | AA9: 31,969 | AB9: 58,428 | AC9: 2,913 | AD9: 33,090 | AE9: 57,388 | AF9: 2,983 | AG9: 33,447 | AH9: 54,514 | AI9: 3,217 | AJ9: 30,185 | AK9: 49,802 | AL9: 3,293 | AM9: 27,899
C10: Segundo | D10: 58,484 | E10: 5,899 | F10: 38,864 | G10: 61,133 | H10: 3,262 | I10: 41,567 | J10: 58,311 | K10: 3,206 | L10: 42,552 | M10: 56,614 | N10: 3,148 | O10: 42,064 | P10: 55,696 | Q10: 3,177 | R10: 40,607 | S10: 57,436 | T10: 2,528 | U10: 38,955 | V10: 58,033 | W10: 3,507 | X10: 37,347 | Y10: 58,302 | Z10: 3,009 | AA10: 32,833 | AB10: 54,851 | AC10: 2,908 | AD10: 33,042 | AE10: 56,033 | AF10: 2,877 | AG10: 33,461 | AH10: 54,907 | AI10: 3,012 | AJ10: 32,621 | AK10: 51,971 | AL10: 3,254 | AM10: 29,861
C11: Tercero | D11: 56,482 | E11: 7,832 | F11: 37,113 | G11: 60,412 | H11: 4,921 | I11: 40,793 | J11: 60,637 | K11: 3,172 | L11: 43,062 | M11: 58,391 | N11: 2,974 | O11: 43,713 | P11: 57,455 | Q11: 3,060 | R11: 41,715 | S11: 57,852 | T11: 2,943 | U11: 39,971 | V11: 57,620 | W11: 3,657 | X11: 37,487 | Y11: 58,857 | Z11: 3,327 | AA11: 34,031 | AB11: 54,467 | AC11: 3,027 | AD11: 32,947 | AE11: 53,717 | AF11: 2,891 | AG11: 33,119 | AH11: 55,071 | AI11: 2,957 | AJ11: 32,896 | AK11: 54,386 | AL11: 3,092 | AM11: 32,112
C12: Cuarto | D12: 56,880 | E12: 8,410 | F12: 35,763 | G12: 59,254 | H12: 7,089 | I12: 37,767 | J12: 61,141 | K12: 4,511 | L12: 40,534 | M12: 61,374 | N12: 3,230 | O12: 42,023 | P12: 60,079 | Q12: 2,917 | R12: 42,488 | S12: 59,974 | T12: 2,896 | U12: 40,455 | V12: 58,533 | W12: 3,894 | X12: 38,394 | Y12: 58,538 | Z12: 3,659 | AA12: 33,971 | AB12: 56,425 | AC12: 3,321 | AD12: 33,355 | AE12: 53,624 | AF12: 2,999 | AG12: 32,538 | AH12: 53,559 | AI12: 2,992 | AJ12: 32,539 | AK12: 54,866 | AL12: 3,046 | AM12: 32,365
C13: Quinto | D13: 58,671 | E13: 8,909 | F13: 34,303 | G13: 58,824 | H13: 7,014 | I13: 37,546 | J13: 59,593 | K13: 5,417 | L13: 38,581 | M13: 61,103 | N13: 4,081 | O13: 40,620 | P13: 61,451 | Q13: 3,054 | R13: 41,140 | S13: 61,725 | T13: 2,516 | U13: 41,330 | V13: 59,872 | W13: 3,674 | X13: 39,122 | Y13: 59,047 | Z13: 3,866 | AA13: 35,482 | AB13: 56,396 | AC13: 3,653 | AD13: 33,519 | AE13: 55,192 | AF13: 3,309 | AG13: 32,961 | AH13: 52,969 | AI13: 3,022 | AJ13: 31,901 | AK13: 53,253 | AL13: 3,054 | AM13: 32,178
C14: Sexto | D14: 70,865 | E14: 10,046 | F14: 35,218 | G14: 71,488 | H14: 7,266 | I14: 37,540 | J14: 70,235 | K14: 5,854 | L14: 37,890 | M14: 70,313 | N14: 5,148 | O14: 39,375 | P14: 70,490 | Q14: 3,865 | R14: 40,129 | S14: 72,799 | T14: 2,800 | U14: 40,272 | V14: 72,706 | W14: 3,702 | X14: 39,278 | Y14: 68,602 | Z14: 3,881 | AA14: 34,978 | AB14: 65,335 | AC14: 3,896 | AD14: 34,408 | AE14: 62,847 | AF14: 3,707 | AG14: 33,192 | AH14: 63,064 | AI14: 3,400 | AJ14: 32,279 | AK14: 60,258 | AL14: 3,058 | AM14: 31,344
C15: Septimo | D15: 67,203 | E15: 10,432 | F15: 36,160 | G15: 66,195 | H15: 7,858 | I15: 37,091 | J15: 63,403 | K15: 5,955 | L15: 37,696 | M15: 62,293 | N15: 4,943 | O15: 38,100 | P15: 62,296 | Q15: 4,531 | R15: 38,191 | S15: 65,003 | T15: 3,402 | U15: 38,696 | V15: 66,423 | W15: 3,644 | X15: 38,314 | Y15: 68,837 | Z15: 3,640 | AA15: 36,870 | AB15: 61,278 | AC15: 3,812 | AD15: 34,874 | AE15: 60,289 | AF15: 3,735 | AG15: 33,879 | AH15: 57,793 | AI15: 3,647 | AJ15: 31,997 | AK15: 56,947 | AL15: 3,403 | AM15: 31,534
C16: Octavo | D16: 61,768 | E16: 10,212 | F16: 35,927 | G16: 63,500 | H16: 8,251 | I16: 36,980 | J16: 60,364 | K16: 6,083 | L16: 36,023 | M16: 58,264 | N16: 5,170 | O16: 36,973 | P16: 57,527 | Q16: 4,213 | R16: 36,776 | S16: 59,279 | T16: 3,762 | U16: 36,499 | V16: 60,237 | W16: 4,167 | X16: 36,544 | Y16: 63,887 | Z16: 3,635 | AA16: 35,941 | AB16: 61,283 | AC16: 3,497 | AD16: 35,314 | AE16: 56,336 | AF16: 3,632 | AG16: 34,150 | AH16: 54,787 | AI16: 3,622 | AJ16: 32,204 | AK16: 52,774 | AL16: 3,624 | AM16: 30,786
C17: Noveno | D17: 55,329 | E17: 10,712 | F17: 34,576 | G17: 56,968 | H17: 7,823 | I17: 36,397 | J17: 56,015 | K17: 6,330 | L17: 36,283 | M17: 52,945 | N17: 4,998 | O17: 35,300 | P17: 51,648 | Q17: 4,382 | R17: 35,154 | S17: 52,588 | T17: 3,465 | U17: 34,817 | V17: 53,476 | W17: 4,158 | X17: 34,159 | Y17: 56,192 | Z17: 4,026 | AA17: 34,295 | AB17: 55,318 | AC17: 3,491 | AD17: 33,859 | AE17: 53,446 | AF17: 3,285 | AG17: 33,439 | AH17: 50,068 | AI17: 3,400 | AJ17: 31,752 | AK17: 49,260 | AL17: 3,502 | AM17: 30,661
C18: Decimo | D18: 51,917 | E18: 9,343 | F18: 30,477 | G18: 53,089 | H18: 8,265 | I18: 32,373 | J18: 52,787 | K18: 5,916 | L18: 32,072 | M18: 51,903 | N18: 5,314 | O18: 32,278 | P18: 49,057 | Q18: 4,352 | R18: 31,674 | S18: 49,058 | T18: 3,713 | U18: 31,774 | V18: 50,438 | W18: 3,750 | X18: 32,317 | Y18: 51,479 | Z18: 4,030 | AA18: 31,970 | AB18: 50,349 | AC18: 3,572 | AD18: 32,088 | AE18: 50,521 | AF18: 3,049 | AG18: 31,924 | AH18: 49,635 | AI18: 2,972 | AJ18: 31,113 | AK18: 47,253 | AL18: 3,200 | AM18: 30,071
C19: Once | D19: 44,639 | E19: 8,428 | F19: 31,946 | G19: 44,438 | H19: 7,237 | I19: 31,946 | J19: 44,425 | K19: 6,163 | L19: 33,080 | M19: 44,022 | N19: 4,722 | O19: 32,479 | P19: 43,964 | Q19: 4,402 | R19: 32,413 | S19: 41,702 | T19: 3,421 | U19: 31,426 | V19: 41,687 | W19: 3,475 | X19: 31,694 | Y19: 43,547 | Z19: 3,503 | AA19: 31,603 | AB19: 41,381 | AC19: 3,428 | AD19: 30,397 | AE19: 42,713 | AF19: 3,186 | AG19: 30,227 | AH19: 42,829 | AI19: 2,753 | AJ19: 30,201 | AK19: 42,900 | AL19: 2,749 | AM19: 30,222
C20: 12º Normal | D20: 89 | E20: 0 | F20: 11 | G20: 75 | H20: 0 | I20: 1 | J20: 42 | K20: 0 | L20: 0 | M20: 74 | N20: 0 | O20: 0 | P20: 60 | Q20: 0 | R20: 9 | S20: 61 | T20: 0 | U20: 5 | V20: 65 | W20: 0 | X20: 0 | Y20: 48 | Z20: 0 | AA20: 0 | AB20: 46 | AC20: 0 | AD20: 0 | AE20: 0 | AF20: 0 | AG20: 1 | AH20: 0 | AI20: 0 | AJ20: 0 | AK20: 0 | AL20: 0 | AM20: 0
C21: 13º Normal | D21: 48 | E21: 0 | F21: 6 | G21: 20 | H21: 0 | I21: 0 | J21: 60 | K21: 0 | L21: 0 | M21: 44 | N21: 0 | O21: 0 | P21: 59 | Q21: 0 | R21: 0 | S21: 65 | T21: 0 | U21: 9 | V21: 63 | W21: 0 | X21: 5 | Y21: 55 | Z21: 0 | AA21: 0 | AB21: 76 | AC21: 0 | AD21: 0 | AE21: 5 | AF21: 0 | AG21: 0 | AH21: 0 | AI21: 0 | AJ21: 1 | AK21: 0 | AL21: 0 | AM21: 0
C22: Ciclo 1 Adultos | D22: 656 | E22: 59 | F22: 65 | G22: 593 | H22: 0 | I22: 47 | J22: 1,444 | K22: 0 | L22: 166 | M22: 573 | N22: 0 | O22: 83 | P22: 1,640 | Q22: 0 | R22: 80 | S22: 900 | T22: 0 | U22: 162 | V22: 783 | W22: 0 | X22: 57 | Y22: 682 | Z22: 0 | AA22: 34 | AB22: 775 | AC22: 0 | AD22: 30 | AE22: 1,081 | AF22: 0 | AG22: 25 | AH22: 1,086 | AI22: 0 | AJ22: 17 | AK22: 1,106 | AL22: 2 | AM22: 28
C23: Ciclo 2 Adultos | D23: 1,237 | E23: 2 | F23: 265 | G23: 1,402 | H23: 0 | I23: 216 | J23: 1,314 | K23: 0 | L23: 524 | M23: 1,335 | N23: 0 | O23: 331 | P23: 1,518 | Q23: 0 | R23: 198 | S23: 2,007 | T23: 0 | U23: 383 | V23: 1,414 | W23: 0 | X23: 330 | Y23: 1,591 | Z23: 0 | AA23: 148 | AB23: 1,483 | AC23: 0 | AD23: 161 | AE23: 1,778 | AF23: 0 | AG23: 155 | AH23: 1,855 | AI23: 0 | AJ23: 173 | AK23: 1,806 | AL23: 11 | AM23: 189
C24: Ciclo 3 Adultos | D24: 4,924 | E24: 12 | F24: 2,982 | G24: 5,344 | H24: 64 | I24: 3,237 | J24: 5,085 | K24: 0 | L24: 3,812 | M24: 6,015 | N24: 0 | O24: 3,887 | P24: 6,125 | Q24: 0 | R24: 3,848 | S24: 7,069 | T24: 0 | U24: 3,741 | V24: 6,102 | W24: 0 | X24: 3,079 | Y24: 5,015 | Z24: 0 | AA24: 2,504 | AB24: 5,569 | AC24: 0 | AD24: 2,974 | AE24: 5,725 | AF24: 0 | AG24: 2,555 | AH24: 5,910 | AI24: 0 | AJ24: 2,794 | AK24: 5,610 | AL24: 57 | AM24: 2,889
C25: Ciclo 4 Adultos | D25: 5,714 | E25: 5 | F25: 6,802 | G25: 6,238 | H25: 67 | I25: 6,894 | J25: 6,643 | K25: 0 | L25: 7,764 | M25: 6,769 | N25: 0 | O25: 7,804 | P25: 7,190 | Q25: 0 | R25: 7,501 | S25: 7,855 | T25: 0 | U25: 7,693 | V25: 7,897 | W25: 0 | X25: 6,855 | Y25: 6,671 | Z25: 0 | AA25: 5,799 | AB25: 7,061 | AC25: 0 | AD25: 6,550 | AE25: 7,767 | AF25: 0 | AG25: 6,521 | AH25: 7,421 | AI25: 0 | AJ25: 6,801 | AK25: 6,681 | AL25: 100 | AM25: 6,038
C26: Ciclo 5 Adultos | D26: 4,472 | E26: 18 | F26: 6,212 | G26: 3,365 | H26: 61 | I26: 7,677 | J26: 3,478 | K26: 0 | L26: 8,585 | M26: 2,985 | N26: 0 | O26: 7,481 | P26: 3,198 | Q26: 0 | R26: 7,196 | S26: 2,959 | T26: 0 | U26: 6,776 | V26: 4,181 | W26: 0 | X26: 6,661 | Y26: 3,804 | Z26: 0 | AA26: 5,997 | AB26: 4,072 | AC26: 0 | AD26: 6,062 | AE26: 4,394 | AF26: 0 | AG26: 5,908 | AH26: 4,224 | AI26: 0 | AJ26: 5,631 | AK26: 4,143 | AL26: 82 | AM26: 6,460
C27: Ciclo 6 Adultos | D27: 2,568 | E27: 13 | F27: 10,123 | G27: 5,482 | H27: 0 | I27: 12,515 | J27: 5,903 | K27: 0 | L27: 12,548 | M27: 6,820 | N27: 328 | O27: 16,528 | P27: 6,675 | Q27: 0 | R27: 15,894 | S27: 7,988 | T27: 0 | U27: 15,417 | V27: 6,977 | W27: 0 | X27: 20,645 | Y27: 7,117 | Z27: 0 | AA27: 20,039 | AB27: 7,957 | AC27: 0 | AD27: 21,656 | AE27: 8,266 | AF27: 0 | AG27: 23,565 | AH27: 7,904 | AI27: 0 | AJ27: 20,396 | AK27: 7,407 | AL27: 76 | AM27: 16,644
C28: Semestre introductorio NS | D28: 0 | E28: 0 | F28: 0 | G28: 0 | H28: 0 | I28: 0 | J28: 0 | K28: 0 | L28: 0 | M28: 0 | N28: 0 | O28: 0 | P28: 0 | Q28: 0 | R28: 0 | S28: 0 | T28: 0 | U28: 0 | V28: 0 | W28: 0 | X28: 0 | Y28: 0 | Z28: 0 | AA28: 0 | AB28: 0 | AC28: 0 | AD28: 0 | AE28: 2 | AF28: 0 | AG28: 0 | AH28: 26 | AI28: 0 | AJ28: 0 | AK28: 13 | AL28: 0 | AM28: 0
C29: Programa formación compl 1 NS | D29: 0 | E29: 0 | F29: 0 | G29: 0 | H29: 0 | I29: 0 | J29: 0 | K29: 0 | L29: 0 | M29: 0 | N29: 0 | O29: 0 | P29: 0 | Q29: 0 | R29: 0 | S29: 0 | T29: 0 | U29: 0 | V29: 0 | W29: 0 | X29: 0 | Y29: 0 | Z29: 0 | AA29: 0 | AB29: 0 | AC29: 0 | AD29: 0 | AE29: 16 | AF29: 0 | AG29: 0 | AH29: 25 | AI29: 0 | AJ29: 0 | AK29: 19 | AL29: 0 | AM29: 0
C30: Programa formación compl 2 NS | D30: 0 | E30: 0 | F30: 0 | G30: 0 | H30: 0 | I30: 0 | J30: 0 | K30: 0 | L30: 0 | M30: 0 | N30: 0 | O30: 0 | P30: 0 | Q30: 0 | R30: 0 | S30: 0 | T30: 0 | U30: 0 | V30: 0 | W30: 0 | X30: 0 | Y30: 0 | Z30: 0 | AA30: 0 | AB30: 0 | AC30: 0 | AD30: 0 | AE30: 28 | AF30: 0 | AG30: 0 | AH30: 8 | AI30: 0 | AJ30: 0 | AK30: 34 | AL30: 0 | AM30: 0
C31: Programa formación compl 3 NS | D31: 0 | E31: 0 | F31: 0 | G31: 0 | H31: 0 | I31: 0 | J31: 0 | K31: 0 | L31: 0 | M31: 0 | N31: 0 | O31: 0 | P31: 0 | Q31: 0 | R31: 0 | S31: 0 | T31: 0 | U31: 0 | V31: 0 | W31: 0 | X31: 0 | Y31: 0 | Z31: 0 | AA31: 0 | AB31: 0 | AC31: 0 | AD31: 0 | AE31: 13 | AF31: 0 | AG31: 0 | AH31: 27 | AI31: 0 | AJ31: 0 | AK31: 23 | AL31: 0 | AM31: 0
C32: Programa formación compl 4 NS | D32: 0 | E32: 0 | F32: 0 | G32: 0 | H32: 0 | I32: 0 | J32: 0 | K32: 0 | L32: 0 | M32: 0 | N32: 0 | O32: 0 | P32: 0 | Q32: 0 | R32: 0 | S32: 0 | T32: 0 | U32: 0 | V32: 0 | W32: 0 | X32: 0 | Y32: 0 | Z32: 0 | AA32: 0 | AB32: 0 | AC32: 0 | AD32: 0 | AE32: 54 | AF32: 0 | AG32: 0 | AH32: 20 | AI32: 0 | AJ32: 0 | AK32: 33 | AL32: 0 | AM32: 0
C33: Aceleración del Aprendizaje | D33: 5,657 | E33: 29 | F33: 98 | G33: 7,190 | H33: 30 | I33: 127 | J33: 7,298 | K33: 1 | L33: 3 | M33: 7,320 | N33: 0 | O33: 364 | P33: 7,305 | Q33: 0 | R33: 111 | S33: 8,516 | T33: 0 | U33: 110 | V33: 9,102 | W33: 0 | X33: 101 | Y33: 8,500 | Z33: 0 | AA33: 84 | AB33: 9,419 | AC33: 0 | AD33: 73 | AE33: 9,706 | AF33: 0 | AG33: 0 | AH33: 10,213 | AI33: 0 | AJ33: 0 | AK33: 11,404 | AL33: 0 | AM33: 0
C34: Total | D34: =SUM(D6:D33) -> 741,943 | E34: 97,179 | F34: 493,881 | G34: 770,230 | H34: 74,730 | I34: 519,312 | J34: 760,166 | K34: 58,766 | L34: 525,463 | M34: 748,466 | N34: 49,502 | O34: 536,109 | P34: 742,982 | Q34: 42,485 | R34: 527,276 | S34: 759,514 | T34: 35,704 | U34: 516,998 | V34: 759,110 | W34: 44,102 | X34: 503,512 | Y34: 765,799 | Z34: 42,893 | AA34: 455,148 | AB34: 736,760 | AC34: 40,841 | AD34: 459,698 | AE34: 722,942 | AF34: 39,194 | AG34: 452,592 | AH34: 705,304 | AI34: 38,626 | AJ34: 431,138 | AK34: 691,178 | AL34: 39,172 | AM34: 412,989
D35: =SUM(D34:F34) -> 1,333,003 | G35: =SUM(G34:I34) -> 1,364,272 | J35: =SUM(J34:L34) -> 1,344,395 | M35: =SUM(M34:O34) -> 1,334,077 | P35: =SUM(P34:R34) -> 1,312,743 | S35: =SUM(S34:U34) -> 1,312,216 | V35: =SUM(V34:X34) -> 1,306,724 | Y35: =SUM(Y34:AA34) -> 1,263,840 | AB35: =SUM(AB34:AD34) -> 1,237,299 | AE35: =SUM(AE34:AG34) -> 1,214,728 | AH35: =SUM(AH34:AJ34) -> 1,175,068 | AK35: =SUM(AK34:AM34) -> 1,143,339
C36: FUENTE: SIMAT Para lo años 2013 y 2014 La matrícula de ciclo 0 se suma a ciclo 1
C38: =+B5 -> BOGOTA
D39: 2014 | G39: 2015 | J39: 2016 | M39: 2017 | P39: 2018 | S39: 2019 | V39: =+V4 -> 2020 | Y39: =+Y4 -> 2021 | AB39: =+AB4 -> 2022 | AE39: =+AE4 -> 2023 | AH39: =+AH4 -> 2024 | AK39: =+AK4 -> Sep. 2025
C40: NIVEL | D40: Oficial | E40: Contratada | F40: Privada | G40: Oficial | H40: Contratada | I40: Privada | J40: Oficial | K40: Contratada | L40: Privada | M40: Oficial | N40: Contratada | O40: Privada | P40: Oficial | Q40: Contratada | R40: Privada | S40: Oficial | T40: Contratada | U40: Privada | V40: Oficial | W40: Contratada | X40: Privada | Y40: Oficial | Z40: Contratada | AA40: Privada | AB40: Oficial | AC40: Contratada | AD40: Privada | AE40: Oficial | AF40: Contratada | AG40: Privada | AH40: Oficial | AI40: Contratada | AJ40: Privada | AK40: Oficial | AL40: Contratada | AM40: Privada
C41: Prejardín y jardín | D41: =SUM(D6:D7) -> 26,916 | E41: 36 | F41: 40,518 | G41: 37,488 | H41: 1 | I41: 39,565 | J41: 38,048 | K41: 139 | L41: 37,672 | M41: 36,188 | N41: 3 | O41: 39,437 | P41: 35,048 | Q41: 2 | R41: 37,064 | S41: 36,745 | T41: 1 | U41: 35,689 | V41: =SUM(V6:V7) -> 36,430 | W41: 970 | X41: 31,697 | Y41: 37,778 | Z41: 922 | AA41: 20,629 | AB41: 38,085 | AC41: 857 | AD41: 26,397 | AE41: 37,142 | AF41: 906 | AG41: 25,078 | AH41: 35,216 | AI41: 874 | AJ41: 21,544 | AK41: =SUM(AK6:AK7) -> 40,468 | AL41: 888 | AM41: 19,784
C42: Transición | D42: =+D8 -> 48,967 | E42: 3,012 | F42: 36,455 | G42: 48,490 | H42: 2,480 | I42: 37,499 | J42: 46,794 | K42: 2,941 | L42: 36,155 | M42: 46,934 | N42: 2,038 | O42: 36,309 | P42: 48,036 | Q42: 1,837 | R42: 35,498 | S42: =+S8 -> 48,402 | T42: 1,808 | U42: 34,207 | V42: 48,287 | W42: 2,385 | X42: 32,768 | Y42: 48,749 | Z42: 2,439 | AA42: 25,971 | AB42: 46,706 | AC42: 2,466 | AD42: 28,902 | AE42: 44,859 | AF42: 2,635 | AG42: 26,447 | AH42: 42,173 | AI42: 2,758 | AJ42: 24,093 | AK42: =+AK8 -> 38,761 | AL42: 2,681 | AM42: 21,924
C43: Primaria | D43: =SUM(D9:D13)+D22+D23+D33 -> 296,524 | E43: 34,910 | F43: 186,468 | G43: 308,050 | H43: 25,357 | I43: 199,597 | J43: 306,884 | K43: 19,385 | L43: 205,883 | M43: 302,897 | N43: 16,838 | O43: 210,158 | P43: 301,609 | Q43: 14,901 | R43: 205,929 | S43: 307,941 | T43: 13,332 | U43: 199,977 | V43: 304,141 | W43: 17,851 | X43: 189,496 | Y43: 304,018 | Z43: 16,817 | AA43: 168,552 | AB43: 292,244 | AC43: 15,822 | AD43: 166,217 | AE43: 288,519 | AF43: 15,059 | AG43: 165,706 | AH43: =SUM(AH9:AH13)+AH22+AH23+AH33 -> 284,174 | AI43: =SUM(AI9:AI13)+AI22+AI23+AI33 -> 15,200 | AJ43: =SUM(AJ9:AJ13)+AJ22+AJ23+AJ33 -> 160,332 | AK43: =SUM(AK9:AK13)+AK22+AK23+AK33 -> 278,594 | AL43: 15,752 | AM43: 154,632
C44: Secundaria | D44: =SUM(D14:D17)+D24+D25 -> 265,803 | E44: 41,419 | F44: 151,665 | G44: 269,733 | H44: 31,329 | I44: 158,139 | J44: 261,745 | K44: 24,222 | L44: 159,468 | M44: 256,599 | N44: 20,259 | O44: 161,439 | P44: 255,276 | Q44: 16,991 | R44: 161,599 | S44: =SUM(S14:S17)+S24+S25 -> 264,593 | T44: 13,429 | U44: 161,718 | V44: 266,841 | W44: 15,671 | X44: 158,229 | Y44: 269,204 | Z44: 15,182 | AA44: 150,387 | AB44: 255,844 | AC44: 14,696 | AD44: 147,979 | AE44: =SUM(AE14:AE17)+AE24+AE25+SUM(AE28:AE32) -> 246,523 | AF44: 14,359 | AG44: 143,736 | AH44: 239,149 | AI44: 14,069 | AJ44: 137,827 | AK44: =SUM(AK14:AK17)+AK24+AK25+SUM(AK28:AK32) -> 231,652 | AL44: 13,744 | AM44: 133,252
C45: Media | D45: =SUM(D18:D21)+D26+D27 -> 103,733 | E45: 17,802 | F45: 78,775 | G45: 106,469 | H45: 15,563 | I45: 84,512 | J45: 106,695 | K45: 12,079 | L45: 86,285 | M45: 105,848 | N45: 10,364 | O45: 88,766 | P45: 103,013 | Q45: 8,754 | R45: 87,186 | S45: =SUM(S18:S21)+S26+S27 -> 101,833 | T45: 7,134 | U45: 85,407 | V45: 103,411 | W45: 7,225 | X45: 91,322 | Y45: 106,050 | Z45: 7,533 | AA45: 89,609 | AB45: 103,881 | AC45: 7,000 | AD45: 90,203 | AE45: 105,899 | AF45: 6,235 | AG45: 91,625 | AH45: 104,592 | AI45: 5,725 | AJ45: 87,342 | AK45: =SUM(AK18:AK21)+AK26+AK27 -> 101,703 | AL45: 6,107 | AM45: 83,397
C46: Total | D46: =SUM(D41:D45) -> 741,943 | E46: 97,179 | F46: 493,881 | G46: 770,230 | H46: 74,730 | I46: 519,312 | J46: 760,166 | K46: 58,766 | L46: 525,463 | M46: 748,466 | N46: 49,502 | O46: 536,109 | P46: 742,982 | Q46: 42,485 | R46: 527,276 | S46: =SUM(S41:S45) -> 759,514 | T46: 35,704 | U46: 516,998 | V46: 759,110 | W46: 44,102 | X46: 503,512 | Y46: =SUM(Y41:Y45) -> 765,799 | Z46: 42,893 | AA46: 455,148 | AB46: 736,760 | AC46: 40,841 | AD46: 459,698 | AE46: =SUM(AE41:AE45) -> 722,942 | AF46: 39,194 | AG46: 452,592 | AH46: 705,304 | AI46: 38,626 | AJ46: 431,138 | AK46: =SUM(AK41:AK45) -> 691,178 | AL46: 39,172 | AM46: 412,989
C47: FUENTE: SIMAT OAPF
C49: =+B5 -> BOGOTA
D50: 2014 | G50: 2015 | J50: 2016 | M50: 2017 | P50: 2018 | S50: 2019 | V50: =+V4 -> 2020 | Y50: =+Y4 -> 2021 | AB50: =+AB4 -> 2022 | AE50: =+AE4 -> 2023 | AH50: =+AH4 -> 2024 | AK50: =+AK4 -> Sep. 2025
C51: NIVEL ADULTOS | D51: Oficial | E51: Contratada | F51: Privada | G51: Oficial | H51: Contratada | I51: Privada | J51: Oficial | K51: Contratada | L51: Privada | M51: Oficial | N51: Contratada | O51: Privada | P51: Oficial | Q51: Contratada | R51: Privada | S51: Oficial | T51: Contratada | U51: Privada | V51: Oficial | W51: Contratada | X51: Privada | Y51: Oficial | Z51: Contratada | AA51: Privada | AB51: Oficial | AC51: Contratada | AD51: Privada | AE51: Oficial | AF51: Contratada | AG51: Privada | AH51: Oficial | AI51: Contratada | AJ51: Privada | AK51: Oficial | AL51: Contratada | AM51: Privada
C52: Prejardín y jardín | D52: =SUM(D6:D7) -> 26,916 | E52: 36 | F52: 40,518 | G52: 37,488 | H52: 1 | I52: 39,565 | J52: 38,048 | K52: 139 | L52: 37,672 | M52: 36,188 | N52: 3 | O52: 39,437 | P52: 35,048 | Q52: 2 | R52: 37,064 | S52: 36,745 | T52: 1 | U52: 35,689 | V52: =SUM(V6:V7) -> 36,430 | W52: 970 | X52: 31,697 | Y52: 37,778 | Z52: 922 | AA52: 20,629 | AB52: 38,085 | AC52: 857 | AD52: 26,397 | AE52: 37,142 | AF52: 906 | AG52: 25,078 | AH52: 35,216 | AI52: 874 | AJ52: 21,544 | AK52: =SUM(AK6:AK7) -> 40,468 | AL52: 888 | AM52: 19,784
C53: Transición | D53: =+D8 -> 48,967 | E53: 3,012 | F53: 36,455 | G53: 48,490 | H53: 2,480 | I53: 37,499 | J53: 46,794 | K53: 2,941 | L53: 36,155 | M53: 46,934 | N53: 2,038 | O53: 36,309 | P53: 48,036 | Q53: 1,837 | R53: 35,498 | S53: =+S8 -> 48,402 | T53: 1,808 | U53: 34,207 | V53: 48,287 | W53: 2,385 | X53: 32,768 | Y53: 48,749 | Z53: 2,439 | AA53: 25,971 | AB53: 46,706 | AC53: 2,466 | AD53: 28,902 | AE53: 44,859 | AF53: 2,635 | AG53: 26,447 | AH53: 42,173 | AI53: 2,758 | AJ53: 24,093 | AK53: =+AK8 -> 38,761 | AL53: 2,681 | AM53: 21,924
C54: Primaria | D54: =SUM(D9:D13)+D33 -> 294,631 | E54: 34,849 | F54: 186,138 | G54: 306,055 | H54: 25,357 | I54: 199,334 | J54: 304,126 | K54: 19,385 | L54: 205,193 | M54: 300,989 | N54: 16,838 | O54: 209,744 | P54: 298,451 | Q54: 14,901 | R54: 205,651 | S54: 305,034 | T54: 13,332 | U54: 199,432 | V54: 301,944 | W54: 17,851 | X54: 189,109 | Y54: 301,745 | Z54: 16,817 | AA54: 168,370 | AB54: 289,986 | AC54: 15,822 | AD54: 166,026 | AE54: 285,660 | AF54: 15,059 | AG54: 165,526 | AH54: =SUM(AH9:AH13)+AH33 -> 281,233 | AI54: =SUM(AI9:AI13)+AI33 -> 15,200 | AJ54: =SUM(AJ9:AJ13)+AJ33 -> 160,142 | AK54: =SUM(AK9:AK13)+AK33 -> 275,682 | AL54: 15,739 | AM54: 154,415
C55: Secundaria | D55: =SUM(D14:D17) -> 255,165 | E55: 41,402 | F55: 141,881 | G55: 258,151 | H55: 31,198 | I55: 148,008 | J55: 250,017 | K55: 24,222 | L55: 147,892 | M55: 243,815 | N55: 20,259 | O55: 149,748 | P55: 241,961 | Q55: 16,991 | R55: 150,250 | S55: =SUM(S14:S17) -> 249,669 | T55: 13,429 | U55: 150,284 | V55: 252,842 | W55: 15,671 | X55: 148,295 | Y55: 257,518 | Z55: 15,182 | AA55: 142,084 | AB55: 243,214 | AC55: 14,696 | AD55: 138,455 | AE55: 232,918 | AF55: 14,359 | AG55: 134,660 | AH55: 225,712 | AI55: 14,069 | AJ55: 128,232 | AK55: =SUM(AK14:AK17) -> 219,239 | AL55: 13,587 | AM55: 124,325
C56: Media | D56: =SUM(D18:D21) -> 96,693 | E56: 17,771 | F56: 62,440 | G56: 97,622 | H56: 15,502 | I56: 64,320 | J56: 97,314 | K56: 12,079 | L56: 65,152 | M56: 96,043 | N56: 10,036 | O56: 64,757 | P56: 93,140 | Q56: 8,754 | R56: 64,096 | S56: =SUM(S18:S21) -> 90,886 | T56: 7,134 | U56: 63,214 | V56: 92,253 | W56: 7,225 | X56: 64,016 | Y56: 95,129 | Z56: 7,533 | AA56: 63,573 | AB56: 91,852 | AC56: 7,000 | AD56: 62,485 | AE56: =SUM(AE18:AE21)+SUM(AE28:AE32) -> 93,352 | AF56: 6,235 | AG56: 62,152 | AH56: 92,570 | AI56: 5,725 | AJ56: 61,315 | AK56: =SUM(AK18:AK21)+SUM(AK28:AK32) -> 90,275 | AL56: 5,949 | AM56: 60,293
C57: Adultos | D57: =SUM(D22:D27) -> 19,571 | E57: 109 | F57: 26,449 | G57: 22,424 | H57: 192 | I57: 30,586 | J57: 23,867 | K57: 0 | L57: 33,399 | M57: 24,497 | N57: 328 | O57: 36,114 | P57: 26,346 | Q57: 0 | R57: 34,717 | S57: =SUM(S22:S27) -> 28,778 | T57: 0 | U57: 34,172 | V57: 27,354 | W57: 0 | X57: 37,627 | Y57: 24,880 | Z57: 0 | AA57: 34,521 | AB57: 26,917 | AC57: 0 | AD57: 37,433 | AE57: 29,011 | AF57: 0 | AG57: 38,729 | AH57: 28,400 | AI57: 0 | AJ57: 35,812 | AK57: =SUM(AK22:AK27) -> 26,753 | AL57: 328 | AM57: 32,248
C58: Total | D58: =SUM(D52:D57) -> 741,943 | E58: 97,179 | F58: 493,881 | G58: 770,230 | H58: 74,730 | I58: 519,312 | J58: 760,166 | K58: 58,766 | L58: 525,463 | M58: 748,466 | N58: 49,502 | O58: 536,109 | P58: 742,982 | Q58: 42,485 | R58: 527,276 | S58: 759,514 | T58: 35,704 | U58: 516,998 | V58: =SUM(V52:V57) -> 759,110 | W58: =SUM(W52:W57) -> 44,102 | X58: =SUM(X52:X57) -> 503,512 | Y58: =SUM(Y52:Y57) -> 765,799 | Z58: 42,893 | AA58: 455,148 | AB58: 736,760 | AC58: 40,841 | AD58: 459,698 | AE58: =SUM(AE52:AE57) -> 722,942 | AF58: 39,194 | AG58: 452,592 | AH58: 705,304 | AI58: 38,626 | AJ58: 431,138 | AK58: =SUM(AK52:AK57) -> 691,178 | AL58: 39,172 | AM58: 412,989
C59: FUENTE: SIMAT OAPF
C61: =+B5 -> BOGOTA
C62: Sector | D62: 2014 | E62: 2015 | F62: 2016 | G62: 2017 | H62: 2018 | I62: 2019 | J62: 2020 | K62: 2021 | L62: 2022 | M62: 2023 | N62: =+AH50 -> 2024 | O62: =+AK50 -> Sep. 2025
C63: Oficial | D63: =+D58 -> 741,943 | E63: =+G58 -> 770,230 | F63: =+J58 -> 760,166 | G63: =+M58 -> 748,466 | H63: =+P58 -> 742,982 | I63: =+S58 -> 759,514 | J63: =+V58 -> 759,110 | K63: =+Y58 -> 765,799 | L63: =+AB58 -> 736,760 | M63: =+AE58 -> 722,942 | N63: =+AH58 -> 705,304 | O63: =+AK58 -> 691,178
C64: Contratada | D64: =+E58 -> 97,179 | E64: =+H58 -> 74,730 | F64: =+K58 -> 58,766 | G64: =+N58 -> 49,502 | H64: =+Q58 -> 42,485 | I64: =+T58 -> 35,704 | J64: =+W58 -> 44,102 | K64: =+Z58 -> 42,893 | L64: =+AC58 -> 40,841 | M64: =+AF58 -> 39,194 | N64: =+AI58 -> 38,626 | O64: =+AL58 -> 39,172
C65: Privada | D65: =+F58 -> 493,881 | E65: =+I58 -> 519,312 | F65: =+L58 -> 525,463 | G65: =+O58 -> 536,109 | H65: =+R58 -> 527,276 | I65: =+U58 -> 516,998 | J65: =+X58 -> 503,512 | K65: =+AA58 -> 455,148 | L65: =+AD58 -> 459,698 | M65: =+AG58 -> 452,592 | N65: =+AJ58 -> 431,138 | O65: =+AM58 -> 412,989
C66: Total | D66: =SUM(D63:D65) -> 1,333,003 | E66: 1,364,272 | F66: 1,344,395 | G66: 1,334,077 | H66: 1,312,743 | I66: 1,312,216 | J66: 1,306,724 | K66: 1,263,840 | L66: 1,237,299 | M66: 1,214,728 | N66: 1,175,068 | O66: 1,143,339
C67: FUENTE: SIMAT OAPF 2024 información preliminar
P68: =+B5 -> BOGOTA
D69: =+B5 -> BOGOTA
D198: 2,014 | G198: 2,015 | J198: 2,016 | M198: 2,017 | P198: 2,018 | S198: 2,019 | V198: =+V4 -> 2020 | Y198: =+Y4 -> 2021 | AB198: =+AB4 -> 2022 | AE198: =+AE4 -> 2023 | AH198: =+AH4 -> 2024 | AK198: =+AK4 -> Sep. 2025
A199: lista | B199: ENTIDAD | C199: GRADO | D199: Oficial | E199: Contratada | F199: Privada | G199: Oficial | H199: Contratada | I199: Privada | J199: Oficial | K199: Contratada | L199: Privada | M199: Oficial | N199: Contratada | O199: Privada | P199: Oficial | Q199: Contratada | R199: Privada | S199: Oficial | T199: Contratada | U199: Privada | V199: Oficial | W199: Contratada | X199: Privada | Y199: Oficial | Z199: Contratada | AA199: Privada | AB199: Oficial | AC199: Contratada | AD199: Privada | AE199: Oficial | AF199: Contratada | AG199: Privada | AH199: Oficial | AI199: Contratada | AJ199: Privada | AK199: Oficial | AL199: Contratada | AM199: Privada
A200: AMAZONAS | B200: AMAZONAS | C200: Prejardín | D200: 0 | E200: 0 | F200: 87 | G200: 0 | H200: 0 | I200: 42 | J200: 0 | K200: 0 | L200: 86 | M200: 0 | N200: 0 | O200: 101 | P200: 0 | Q200: 0 | R200: 66 | S200: 0 | T200: 0 | U200: 35 | V200: 0 | W200: 0 | X200: 1 | Y200: 0 | Z200: 0 | AA200: 24 | AB200: 0 | AC200: 0 | AD200: 42 | AE200: 0 | AF200: 0 | AG200: 37 | AH200: 0 | AI200: 0 | AJ200: 37 | AK200: 0 | AL200: 0 | AM200: 13
A201: ANTIOQUIA | B201: AMAZONAS | C201: Jardín | D201: 0 | E201: 0 | F201: 91 | G201: 0 | H201: 0 | I201: 122 | J201: 0 | K201: 0 | L201: 111 | M201: 0 | N201: 0 | O201: 122 | P201: 1 | Q201: 0 | R201: 128 | S201: 6 | T201: 0 | U201: 66 | V201: 6 | W201: 0 | X201: 65 | Y201: 2 | Z201: 0 | AA201: 65 | AB201: 4 | AC201: 0 | AD201: 68 | AE201: 8 | AF201: 0 | AG201: 68 | AH201: 4 | AI201: 0 | AJ201: 65 | AK201: 735 | AL201: 0 | AM201: 50
A202: APARTADO | B202: AMAZONAS | C202: Transición | D202: 1,481 | E202: 171 | F202: 103 | G202: 1,305 | H202: 171 | I202: 99 | J202: 1,403 | K202: 164 | L202: 118 | M202: 1,568 | N202: 188 | O202: 102 | P202: 1,368 | Q202: 139 | R202: 131 | S202: 1,611 | T202: 201 | U202: 116 | V202: 1,541 | W202: 161 | X202: 43 | Y202: 1,410 | Z202: 192 | AA202: 84 | AB202: 1,502 | AC202: 143 | AD202: 81 | AE202: 1,367 | AF202: 178 | AG202: 74 | AH202: 1,283 | AI202: 170 | AJ202: 76 | AK202: 981 | AL202: 166 | AM202: 69
A203: ARAUCA | B203: AMAZONAS | C203: Primero | D203: 2,059 | E203: 282 | F203: 73 | G203: 1,934 | H203: 251 | I203: 91 | J203: 1,861 | K203: 217 | L203: 77 | M203: 1,946 | N203: 247 | O203: 77 | P203: 2,025 | Q203: 239 | R203: 72 | S203: 1,909 | T203: 201 | U203: 71 | V203: 1,975 | W203: 242 | X203: 78 | Y203: 1,780 | Z203: 236 | AA203: 66 | AB203: 1,773 | AC203: 241 | AD203: 67 | AE203: 1,811 | AF203: 223 | AG203: 80 | AH203: 1,645 | AI203: 227 | AJ203: 90 | AK203: 1,545 | AL203: 241 | AM203: 76
A204: ARMENIA | B204: AMAZONAS | C204: Segundo | D204: 2,034 | E204: 272 | F204: 67 | G204: 1,816 | H204: 274 | I204: 52 | J204: 1,821 | K204: 228 | L204: 86 | M204: 1,688 | N204: 233 | O204: 61 | P204: 1,735 | Q204: 223 | R204: 80 | S204: 1,827 | T204: 230 | U204: 68 | V204: 1,781 | W204: 203 | X204: 65 | Y204: 1,824 | Z204: 244 | AA204: 73 | AB204: 1,677 | AC204: 233 | AD204: 60 | AE204: 1,687 | AF204: 242 | AG204: 61 | AH204: 1,675 | AI204: 222 | AJ204: 81 | AK204: 1,564 | AL204: 238 | AM204: 80
A205: ATLANTICO | B205: AMAZONAS | C205: Tercero | D205: 1,704 | E205: 204 | F205: 46 | G205: 1,872 | H205: 234 | I205: 65 | J205: 1,691 | K205: 225 | L205: 59 | M205: 1,761 | N205: 221 | O205: 67 | P205: 1,609 | Q205: 189 | R205: 60 | S205: 1,672 | T205: 193 | U205: 70 | V205: 1,749 | W205: 210 | X205: 65 | Y205: 1,795 | Z205: 204 | AA205: 50 | AB205: 1,753 | AC205: 212 | AD205: 64 | AE205: 1,655 | AF205: 231 | AG205: 61 | AH205: 1,652 | AI205: 221 | AJ205: 66 | AK205: 1,630 | AL205: 221 | AM205: 68
A206: BARRANCABERMEJA | B206: AMAZONAS | C206: Cuarto | D206: 1,691 | E206: 215 | F206: 34 | G206: 1,650 | H206: 189 | I206: 49 | J206: 1,777 | K206: 198 | L206: 73 | M206: 1,639 | N206: 200 | O206: 39 | P206: 1,621 | Q206: 200 | R206: 78 | S206: 1,525 | T206: 171 | U206: 55 | V206: 1,545 | W206: 172 | X206: 65 | Y206: 1,662 | Z206: 211 | AA206: 44 | AB206: 1,612 | AC206: 163 | AD206: 62 | AE206: 1,581 | AF206: 173 | AG206: 62 | AH206: 1,570 | AI206: 192 | AJ206: 58 | AK206: 1,524 | AL206: 196 | AM206: 54
A207: BARRANQUILLA | B207: AMAZONAS | C207: Quinto | D207: 1,676 | E207: 192 | F207: 48 | G207: 1,591 | H207: 202 | I207: 28 | J207: 1,588 | K207: 175 | L207: 51 | M207: 1,668 | N207: 187 | O207: 54 | P207: 1,543 | Q207: 162 | R207: 42 | S207: 1,565 | T207: 170 | U207: 68 | V207: 1,442 | W207: 159 | X207: 50 | Y207: 1,522 | Z207: 161 | AA207: 53 | AB207: 1,571 | AC207: 180 | AD207: 49 | AE207: 1,469 | AF207: 141 | AG207: 56 | AH207: 1,503 | AI207: 155 | AJ207: 61 | AK207: 1,511 | AL207: 183 | AM207: 52
A208: BELLO | B208: AMAZONAS | C208: Sexto | D208: 1,789 | E208: 0 | F208: 37 | G208: 1,933 | H208: 0 | I208: 47 | J208: 1,878 | K208: 0 | L208: 48 | M208: 1,859 | N208: 40 | O208: 44 | P208: 2,003 | Q208: 16 | R208: 69 | S208: 1,832 | T208: 20 | U208: 67 | V208: 1,945 | W208: 26 | X208: 69 | Y208: 2,062 | Z208: 15 | AA208: 43 | AB208: 1,705 | AC208: 24 | AD208: 68 | AE208: 1,772 | AF208: 21 | AG208: 57 | AH208: 1,687 | AI208: 18 | AJ208: 72 | AK208: 1,747 | AL208: 32 | AM208: 59
A209: BOGOTA | B209: AMAZONAS | C209: Septimo | D209: 1,646 | E209: 0 | F209: 47 | G209: 1,524 | H209: 0 | I209: 40 | J209: 1,597 | K209: 0 | L209: 47 | M209: 1,615 | N209: 0 | O209: 37 | P209: 1,566 | Q209: 33 | R209: 58 | S209: 1,724 | T209: 18 | U209: 64 | V209: 1,552 | W209: 17 | X209: 65 | Y209: 1,648 | Z209: 24 | AA209: 57 | AB209: 1,640 | AC209: 8 | AD209: 57 | AE209: 1,472 | AF209: 22 | AG209: 69 | AH209: 1,505 | AI209: 18 | AJ209: 44 | AK209: 1,444 | AL209: 20 | AM209: 57
A210: BOLIVAR | B210: AMAZONAS | C210: Octavo | D210: 1,222 | E210: 0 | F210: 49 | G210: 1,411 | H210: 0 | I210: 39 | J210: 1,334 | K210: 0 | L210: 41 | M210: 1,400 | N210: 0 | O210: 33 | P210: 1,365 | Q210: 0 | R210: 27 | S210: 1,286 | T210: 27 | U210: 59 | V210: 1,460 | W210: 17 | X210: 62 | Y210: 1,395 | Z210: 18 | AA210: 52 | AB210: 1,375 | AC210: 19 | AD210: 65 | AE210: 1,441 | AF210: 7 | AG210: 57 | AH210: 1,276 | AI210: 19 | AJ210: 64 | AK210: 1,258 | AL210: 12 | AM210: 45
A211: BOYACA | B211: AMAZONAS | C211: Noveno | D211: 1,043 | E211: 0 | F211: 45 | G211: 1,081 | H211: 0 | I211: 39 | J211: 1,232 | K211: 0 | L211: 35 | M211: 1,171 | N211: 0 | O211: 30 | P211: 1,173 | Q211: 0 | R211: 29 | S211: 1,163 | T211: 0 | U211: 28 | V211: 1,149 | W211: 22 | X211: 50 | Y211: 1,254 | Z211: 16 | AA211: 53 | AB211: 1,172 | AC211: 16 | AD211: 48 | AE211: 1,129 | AF211: 17 | AG211: 67 | AH211: 1,197 | AI211: 6 | AJ211: 50 | AK211: 1,152 | AL211: 14 | AM211: 58
A212: BUCARAMANGA | B212: AMAZONAS | C212: Decimo | D212: 952 | E212: 0 | F212: 29 | G212: 1,002 | H212: 0 | I212: 38 | J212: 978 | K212: 0 | L212: 29 | M212: 1,077 | N212: 0 | O212: 25 | P212: 1,022 | Q212: 0 | R212: 28 | S212: 1,014 | T212: 0 | U212: 27 | V212: 1,042 | W212: 0 | X212: 29 | Y212: 1,088 | Z212: 0 | AA212: 32 | AB212: 1,049 | AC212: 0 | AD212: 49 | AE212: 1,016 | AF212: 11 | AG212: 46 | AH212: 945 | AI212: 13 | AJ212: 59 | AK212: 1,004 | AL212: 7 | AM212: 48
A213: BUENAVENTURA | B213: AMAZONAS | C213: Once | D213: 659 | E213: 0 | F213: 30 | G213: 732 | H213: 0 | I213: 27 | J213: 784 | K213: 0 | L213: 40 | M213: 786 | N213: 0 | O213: 23 | P213: 854 | Q213: 0 | R213: 21 | S213: 745 | T213: 0 | U213: 27 | V213: 796 | W213: 0 | X213: 25 | Y213: 730 | Z213: 0 | AA213: 24 | AB213: 777 | AC213: 0 | AD213: 42 | AE213: 861 | AF213: 12 | AG213: 43 | AH213: 777 | AI213: 10 | AJ213: 42 | AK213: 690 | AL213: 9 | AM213: 58
A214: BUGA | B214: AMAZONAS | C214: 12º Normal | D214: 60 | E214: 0 | F214: 0 | G214: 26 | H214: 0 | I214: 0 | J214: 71 | K214: 0 | L214: 0 | M214: 43 | N214: 0 | O214: 0 | P214: 20 | Q214: 0 | R214: 0 | S214: 48 | T214: 0 | U214: 0 | V214: 26 | W214: 0 | X214: 0 | Y214: 53 | Z214: 0 | AA214: 0 | AB214: 42 | AC214: 0 | AD214: 0 | AE214: 19 | AF214: 0 | AG214: 0 | AH214: 21 | AI214: 0 | AJ214: 0 | AK214: 0 | AL214: 0 | AM214: 0
A215: CALDAS | B215: AMAZONAS | C215: 13º Normal | D215: 34 | E215: 0 | F215: 0 | G215: 52 | H215: 0 | I215: 0 | J215: 11 | K215: 0 | L215: 0 | M215: 27 | N215: 0 | O215: 0 | P215: 16 | Q215: 0 | R215: 0 | S215: 38 | T215: 0 | U215: 0 | V215: 22 | W215: 0 | X215: 0 | Y215: 23 | Z215: 0 | AA215: 0 | AB215: 31 | AC215: 0 | AD215: 0 | AE215: 18 | AF215: 0 | AG215: 0 | AH215: 32 | AI215: 0 | AJ215: 0 | AK215: 1 | AL215: 0 | AM215: 0
A216: CALI | B216: AMAZONAS | C216: Ciclo 1 Adultos | D216: 40 | E216: 0 | F216: 0 | G216: 97 | H216: 0 | I216: 0 | J216: 66 | K216: 0 | L216: 0 | M216: 81 | N216: 0 | O216: 0 | P216: 62 | Q216: 0 | R216: 0 | S216: 67 | T216: 0 | U216: 0 | V216: 30 | W216: 0 | X216: 0 | Y216: 25 | Z216: 0 | AA216: 0 | AB216: 39 | AC216: 0 | AD216: 0 | AE216: 21 | AF216: 0 | AG216: 0 | AH216: 535 | AI216: 0 | AJ216: 0 | AK216: 32 | AL216: 0 | AM216: 0
A217: CAQUETA | B217: AMAZONAS | C217: Ciclo 2 Adultos | D217: 106 | E217: 0 | F217: 0 | G217: 124 | H217: 0 | I217: 0 | J217: 161 | K217: 0 | L217: 0 | M217: 115 | N217: 0 | O217: 0 | P217: 105 | Q217: 0 | R217: 0 | S217: 128 | T217: 0 | U217: 0 | V217: 77 | W217: 0 | X217: 0 | Y217: 58 | Z217: 0 | AA217: 0 | AB217: 62 | AC217: 0 | AD217: 0 | AE217: 32 | AF217: 0 | AG217: 0 | AH217: 36 | AI217: 0 | AJ217: 0 | AK217: 52 | AL217: 0 | AM217: 0
A218: CARTAGENA | B218: AMAZONAS | C218: Ciclo 3 Adultos | D218: 297 | E218: 0 | F218: 0 | G218: 387 | H218: 0 | I218: 0 | J218: 321 | K218: 0 | L218: 0 | M218: 265 | N218: 0 | O218: 0 | P218: 355 | Q218: 0 | R218: 0 | S218: 378 | T218: 0 | U218: 0 | V218: 414 | W218: 0 | X218: 0 | Y218: 415 | Z218: 0 | AA218: 0 | AB218: 337 | AC218: 0 | AD218: 0 | AE218: 222 | AF218: 0 | AG218: 0 | AH218: 191 | AI218: 0 | AJ218: 0 | AK218: 195 | AL218: 0 | AM218: 0
A219: CARTAGO | B219: AMAZONAS | C219: Ciclo 4 Adultos | D219: 278 | E219: 0 | F219: 0 | G219: 293 | H219: 0 | I219: 0 | J219: 383 | K219: 0 | L219: 0 | M219: 278 | N219: 0 | O219: 0 | P219: 302 | Q219: 0 | R219: 0 | S219: 398 | T219: 0 | U219: 0 | V219: 367 | W219: 0 | X219: 0 | Y219: 407 | Z219: 0 | AA219: 0 | AB219: 407 | AC219: 0 | AD219: 0 | AE219: 261 | AF219: 0 | AG219: 0 | AH219: 238 | AI219: 0 | AJ219: 0 | AK219: 168 | AL219: 0 | AM219: 0
A220: CASANARE | B220: AMAZONAS | C220: Ciclo 5 Adultos | D220: 273 | E220: 0 | F220: 0 | G220: 268 | H220: 0 | I220: 0 | J220: 289 | K220: 0 | L220: 0 | M220: 322 | N220: 0 | O220: 0 | P220: 272 | Q220: 0 | R220: 0 | S220: 276 | T220: 0 | U220: 0 | V220: 327 | W220: 0 | X220: 0 | Y220: 369 | Z220: 0 | AA220: 0 | AB220: 328 | AC220: 0 | AD220: 0 | AE220: 186 | AF220: 0 | AG220: 0 | AH220: 218 | AI220: 0 | AJ220: 0 | AK220: 139 | AL220: 0 | AM220: 2
A221: CAUCA | B221: AMAZONAS | C221: Ciclo 6 Adultos | D221: 196 | E221: 0 | F221: 0 | G221: 217 | H221: 0 | I221: 0 | J221: 203 | K221: 0 | L221: 0 | M221: 230 | N221: 0 | O221: 0 | P221: 215 | Q221: 0 | R221: 0 | S221: 236 | T221: 0 | U221: 0 | V221: 265 | W221: 0 | X221: 0 | Y221: 258 | Z221: 0 | AA221: 0 | AB221: 248 | AC221: 0 | AD221: 0 | AE221: 192 | AF221: 0 | AG221: 12 | AH221: 141 | AI221: 0 | AJ221: 1 | AK221: 136 | AL221: 0 | AM221: 15
A222: CESAR | B222: AMAZONAS | C222: Semestre introductorio NS | D222: 0 | E222: 0 | F222: 0 | G222: 0 | H222: 0 | I222: 0 | J222: 0 | K222: 0 | L222: 0 | M222: 0 | N222: 0 | O222: 0 | P222: 0 | Q222: 0 | R222: 0 | S222: 0 | T222: 0 | U222: 0 | V222: 0 | W222: 0 | X222: 0 | Y222: 0 | Z222: 0 | AA222: 0 | AB222: 0 | AC222: 0 | AD222: 0 | AE222: 0 | AF222: 0 | AG222: 0 | AH222: 0 | AI222: 0 | AJ222: 0 | AK222: 9 | AL222: 0 | AM222: 0
A223: CHIA | B223: AMAZONAS | C223: Programa formación compl 1 NS | D223: 0 | E223: 0 | F223: 0 | G223: 0 | H223: 0 | I223: 0 | J223: 0 | K223: 0 | L223: 0 | M223: 0 | N223: 0 | O223: 0 | P223: 0 | Q223: 0 | R223: 0 | S223: 0 | T223: 0 | U223: 0 | V223: 0 | W223: 0 | X223: 0 | Y223: 0 | Z223: 0 | AA223: 0 | AB223: 0 | AC223: 0 | AD223: 0 | AE223: 0 | AF223: 0 | AG223: 0 | AH223: 0 | AI223: 0 | AJ223: 0 | AK223: 8 | AL223: 0 | AM223: 0
A224: CHOCO | B224: AMAZONAS | C224: Programa formación compl 2 NS | D224: 0 | E224: 0 | F224: 0 | G224: 0 | H224: 0 | I224: 0 | J224: 0 | K224: 0 | L224: 0 | M224: 0 | N224: 0 | O224: 0 | P224: 0 | Q224: 0 | R224: 0 | S224: 0 | T224: 0 | U224: 0 | V224: 0 | W224: 0 | X224: 0 | Y224: 0 | Z224: 0 | AA224: 0 | AB224: 0 | AC224: 0 | AD224: 0 | AE224: 0 | AF224: 0 | AG224: 0 | AH224: 0 | AI224: 0 | AJ224: 0 | AK224: 5 | AL224: 0 | AM224: 0
A225: CIENAGA | B225: AMAZONAS | C225: Programa formación compl 3 NS | D225: 0 | E225: 0 | F225: 0 | G225: 0 | H225: 0 | I225: 0 | J225: 0 | K225: 0 | L225: 0 | M225: 0 | N225: 0 | O225: 0 | P225: 0 | Q225: 0 | R225: 0 | S225: 0 | T225: 0 | U225: 0 | V225: 0 | W225: 0 | X225: 0 | Y225: 0 | Z225: 0 | AA225: 0 | AB225: 0 | AC225: 0 | AD225: 0 | AE225: 0 | AF225: 0 | AG225: 0 | AH225: 0 | AI225: 0 | AJ225: 0 | AK225: 9 | AL225: 0 | AM225: 0
A226: CORDOBA | B226: AMAZONAS | C226: Programa formación compl 4 NS | D226: 0 | E226: 0 | F226: 0 | G226: 0 | H226: 0 | I226: 0 | J226: 0 | K226: 0 | L226: 0 | M226: 0 | N226: 0 | O226: 0 | P226: 0 | Q226: 0 | R226: 0 | S226: 0 | T226: 0 | U226: 0 | V226: 0 | W226: 0 | X226: 0 | Y226: 0 | Z226: 0 | AA226: 0 | AB226: 0 | AC226: 0 | AD226: 0 | AE226: 0 | AF226: 0 | AG226: 0 | AH226: 0 | AI226: 0 | AJ226: 0 | AK226: 6 | AL226: 0 | AM226: 0
A227: CUCUTA | B227: AMAZONAS | C227: Aceleración del Aprendizaje | D227: 18 | E227: 0 | F227: 0 | G227: 21 | H227: 0 | I227: 0 | J227: 21 | K227: 0 | L227: 0 | M227: 56 | N227: 0 | O227: 0 | P227: 26 | Q227: 0 | R227: 0 | S227: 46 | T227: 0 | U227: 0 | V227: 33 | W227: 0 | X227: 0 | Y227: 17 | Z227: 0 | AA227: 0 | AB227: 0 | AC227: 0 | AD227: 0 | AE227: 0 | AF227: 0 | AG227: 0 | AH227: 0 | AI227: 0 | AJ227: 0 | AK227: 0 | AL227: 0 | AM227: 0
A228: CUNDINAMARCA | B228: ANTIOQUIA | C228: Prejardín | D228: 0 | E228: 0 | F228: 1,092 | G228: 0 | H228: 0 | I228: 981 | J228: 0 | K228: 0 | L228: 1,397 | M228: 0 | N228: 0 | O228: 1,335 | P228: 0 | Q228: 0 | R228: 1,391 | S228: 0 | T228: 0 | U228: 1,504 | V228: 0 | W228: 0 | X228: 1,357 | Y228: 0 | Z228: 0 | AA228: 1,202 | AB228: 0 | AC228: 0 | AD228: 1,263 | AE228: 0 | AF228: 0 | AG228: 1,288 | AH228: 74 | AI228: 0 | AJ228: 1,362 | AK228: 205 | AL228: 0 | AM228: 1,244
A229: DOSQUEBRADAS | B229: ANTIOQUIA | C229: Jardín | D229: 0 | E229: 0 | F229: 1,392 | G229: 0 | H229: 0 | I229: 1,476 | J229: 0 | K229: 0 | L229: 1,642 | M229: 0 | N229: 0 | O229: 1,717 | P229: 26 | Q229: 0 | R229: 1,699 | S229: 0 | T229: 0 | U229: 1,742 | V229: 0 | W229: 0 | X229: 1,854 | Y229: 0 | Z229: 0 | AA229: 1,660 | AB229: 0 | AC229: 0 | AD229: 1,901 | AE229: 0 | AF229: 0 | AG229: 1,823 | AH229: 124 | AI229: 0 | AJ229: 1,739 | AK229: 530 | AL229: 0 | AM229: 1,665
A230: DUITAMA | B230: ANTIOQUIA | C230: Transición | D230: 35,385 | E230: 2,124 | F230: 1,764 | G230: 33,088 | H230: 1,979 | I230: 1,680 | J230: 31,964 | K230: 1,967 | L230: 1,860 | M230: 32,022 | N230: 1,443 | O230: 1,953 | P230: 31,156 | Q230: 1,170 | R230: 1,954 | S230: 30,742 | T230: 1,301 | U230: 1,962 | V230: 30,057 | W230: 1,088 | X230: 2,104 | Y230: 29,921 | Z230: 971 | AA230: 2,067 | AB230: 32,233 | AC230: 1,019 | AD230: 2,305 | AE230: 31,501 | AF230: 1,297 | AG230: 2,416 | AH230: 30,253 | AI230: 1,132 | AJ230: 2,230 | AK230: 28,412 | AL230: 1,077 | AM230: 2,045
A231: ENVIGADO | B231: ANTIOQUIA | C231: Primero | D231: 53,570 | E231: 4,248 | F231: 1,424 | G231: 50,124 | H231: 3,888 | I231: 1,555 | J231: 47,261 | K231: 3,532 | L231: 1,556 | M231: 44,490 | N231: 2,799 | O231: 1,616 | P231: 43,913 | Q231: 2,316 | R231: 1,600 | S231: 42,631 | T231: 2,097 | U231: 1,724 | V231: 41,131 | W231: 1,847 | X231: 1,706 | Y231: 39,076 | Z231: 1,539 | AA231: 1,716 | AB231: 40,849 | AC231: 1,627 | AD231: 1,968 | AE231: 41,221 | AF231: 1,628 | AG231: 2,013 | AH231: 39,253 | AI231: 1,808 | AJ231: 2,039 | AK231: 37,025 | AL231: 1,635 | AM231: 1,914
A232: FACATATIVA | B232: ANTIOQUIA | C232: Segundo | D232: 51,883 | E232: 3,579 | F232: 1,509 | G232: 47,616 | H232: 3,268 | I232: 1,506 | J232: 45,579 | K232: 2,947 | L232: 1,538 | M232: 43,230 | N232: 2,598 | O232: 1,592 | P232: 40,498 | Q232: 2,289 | R232: 1,555 | S232: 39,930 | T232: 2,005 | U232: 1,570 | V232: 38,734 | W232: 1,827 | X232: 1,694 | Y232: 39,079 | Z232: 1,748 | AA232: 1,604 | AB232: 37,148 | AC232: 1,590 | AD232: 1,819 | AE232: 37,405 | AF232: 1,563 | AG232: 1,924 | AH232: 37,727 | AI232: 1,671 | AJ232: 1,972 | AK232: 36,487 | AL232: 1,731 | AM232: 1,967
A233: FLORENCIA | B233: ANTIOQUIA | C233: Tercero | D233: 48,559 | E233: 3,179 | F233: 1,432 | G233: 49,182 | H233: 2,961 | I233: 1,512 | J233: 46,667 | K233: 2,710 | L233: 1,577 | M233: 44,169 | N233: 2,352 | O233: 1,576 | P233: 41,591 | Q233: 2,363 | R233: 1,542 | S233: 39,755 | T233: 2,121 | U233: 1,565 | V233: 39,249 | W233: 1,892 | X233: 1,577 | Y233: 38,845 | Z233: 1,785 | AA233: 1,597 | AB233: 36,531 | AC233: 1,703 | AD233: 1,673 | AE233: 36,318 | AF233: 1,524 | AG233: 1,863 | AH233: 36,399 | AI233: 1,503 | AJ233: 1,886 | AK233: 36,613 | AL233: 1,543 | AM233: 1,984
A234: FLORIDABLANCA | B234: ANTIOQUIA | C234: Cuarto | D234: 46,715 | E234: 2,662 | F234: 1,419 | G234: 45,760 | H234: 2,642 | I234: 1,435 | J234: 46,880 | K234: 2,393 | L234: 1,504 | M234: 44,349 | N234: 2,205 | O234: 1,593 | P234: 41,857 | Q234: 2,014 | R234: 1,546 | S234: 40,158 | T234: 1,914 | U234: 1,490 | V234: 38,539 | W234: 1,724 | X234: 1,553 | Y234: 39,102 | Z234: 1,695 | AA234: 1,526 | AB234: 37,236 | AC234: 1,615 | AD234: 1,668 | AE234: 34,776 | AF234: 1,464 | AG234: 1,677 | AH234: 35,077 | AI234: 1,365 | AJ234: 1,813 | AK234: 35,379 | AL234: 1,401 | AM234: 1,869
A235: FUNZA | B235: ANTIOQUIA | C235: Quinto | D235: 44,961 | E235: 2,371 | F235: 1,308 | G235: 43,998 | H235: 2,289 | I235: 1,455 | J235: 43,817 | K235: 1,958 | L235: 1,496 | M235: 44,345 | N235: 2,014 | O235: 1,547 | P235: 42,114 | Q235: 1,836 | R235: 1,609 | S235: 40,615 | T235: 1,778 | U235: 1,529 | V235: 38,870 | W235: 1,636 | X235: 1,504 | Y235: 38,486 | Z235: 1,704 | AA235: 1,483 | AB235: 37,797 | AC235: 1,638 | AD235: 1,603 | AE235: 35,905 | AF235: 1,544 | AG235: 1,697 | AH235: 33,544 | AI235: 1,315 | AJ235: 1,681 | AK235: 34,106 | AL235: 1,265 | AM235: 1,826
A236: FUSAGASUGA | B236: ANTIOQUIA | C236: Sexto | D236: 46,069 | E236: 5,473 | F236: 1,243 | G236: 46,314 | H236: 5,443 | I236: 1,507 | J236: 46,432 | K236: 5,045 | L236: 1,502 | M236: 47,241 | N236: 3,850 | O236: 1,513 | P236: 48,053 | Q236: 3,694 | R236: 1,583 | S236: 45,853 | T236: 3,503 | U236: 1,631 | V236: 45,528 | W236: 3,391 | X236: 1,580 | Y236: 42,046 | Z236: 2,909 | AA236: 1,650 | AB236: 40,453 | AC236: 3,060 | AD236: 1,624 | AE236: 39,429 | AF236: 2,884 | AG236: 1,704 | AH236: 38,207 | AI236: 2,721 | AJ236: 1,740 | AK236: 35,974 | AL236: 2,607 | AM236: 1,675
A237: GIRARDOT | B237: ANTIOQUIA | C237: Septimo | D237: 39,083 | E237: 5,485 | F237: 1,282 | G237: 37,628 | H237: 4,725 | I237: 1,351 | J237: 39,240 | K237: 4,031 | L237: 1,310 | M237: 39,072 | N237: 3,677 | O237: 1,517 | P237: 39,436 | Q237: 3,318 | R237: 1,506 | S237: 40,305 | T237: 3,151 | U237: 1,507 | V237: 39,620 | W237: 3,065 | X237: 1,623 | Y237: 40,820 | Z237: 3,210 | AA237: 1,700 | AB237: 37,394 | AC237: 2,784 | AD237: 1,651 | AE237: 36,144 | AF237: 2,777 | AG237: 1,617 | AH237: 35,322 | AI237: 2,621 | AJ237: 1,634 | AK237: 34,120 | AL237: 2,446 | AM237: 1,734
A238: GIRON | B238: ANTIOQUIA | C238: Octavo | D238: 33,318 | E238: 3,354 | F238: 1,217 | G238: 32,710 | H238: 4,593 | I238: 1,380 | J238: 32,213 | K238: 3,475 | L238: 1,252 | M238: 33,484 | N238: 3,107 | O238: 1,325 | P238: 32,929 | Q238: 2,994 | R238: 1,469 | S238: 34,325 | T238: 2,669 | U238: 1,412 | V238: 35,566 | W238: 2,697 | X238: 1,449 | Y238: 36,186 | Z238: 2,780 | AA238: 1,652 | AB238: 34,847 | AC238: 2,823 | AD238: 1,670 | AE238: 32,576 | AF238: 2,417 | AG238: 1,652 | AH238: 31,013 | AI238: 2,395 | AJ238: 1,474 | AK238: 30,657 | AL238: 2,248 | AM238: 1,545
A239: GUAINIA | B239: ANTIOQUIA | C239: Noveno | D239: 28,012 | E239: 3,421 | F239: 1,177 | G239: 27,665 | H239: 2,966 | I239: 1,324 | J239: 28,108 | K239: 3,056 | L239: 1,202 | M239: 27,485 | N239: 2,673 | O239: 1,245 | P239: 28,360 | Q239: 2,463 | R239: 1,313 | S239: 28,674 | T239: 2,419 | U239: 1,401 | V239: 30,093 | W239: 2,362 | X239: 1,328 | Y239: 32,328 | Z239: 2,533 | AA239: 1,481 | AB239: 31,069 | AC239: 2,415 | AD239: 1,570 | AE239: 29,739 | AF239: 2,429 | AG239: 1,567 | AH239: 28,405 | AI239: 2,141 | AJ239: 1,494 | AK239: 27,277 | AL239: 2,156 | AM239: 1,413
A240: GUAVIARE | B240: ANTIOQUIA | C240: Decimo | D240: 23,426 | E240: 2,742 | F240: 1,040 | G240: 23,431 | H240: 2,720 | I240: 1,081 | J240: 23,624 | K240: 2,087 | L240: 1,121 | M240: 23,800 | N240: 2,318 | O240: 1,130 | P240: 23,437 | Q240: 2,030 | R240: 1,141 | S240: 24,350 | T240: 1,876 | U240: 1,139 | V240: 25,141 | W240: 1,905 | X240: 1,316 | Y240: 26,342 | Z240: 2,114 | AA240: 1,314 | AB240: 26,850 | AC240: 2,043 | AD240: 1,373 | AE240: 25,830 | AF240: 1,963 | AG240: 1,465 | AH240: 24,854 | AI240: 1,984 | AJ240: 1,384 | AK240: 24,357 | AL240: 1,757 | AM240: 1,400
A241: HUILA | B241: ANTIOQUIA | C241: Once | D241: 19,472 | E241: 2,422 | F241: 1,016 | G241: 18,844 | H241: 2,373 | I241: 1,032 | J241: 19,808 | K241: 1,819 | L241: 986 | M241: 19,585 | N241: 1,555 | O241: 1,042 | P241: 19,652 | Q241: 1,886 | R241: 1,023 | S241: 20,058 | T241: 1,576 | U241: 1,028 | V241: 21,035 | W241: 1,537 | X241: 1,036 | Y241: 21,614 | Z241: 1,705 | AA241: 1,262 | AB241: 21,385 | AC241: 1,661 | AD241: 1,205 | AE241: 22,361 | AF241: 1,629 | AG241: 1,214 | AH241: 21,632 | AI241: 1,653 | AJ241: 1,310 | AK241: 21,205 | AL241: 1,622 | AM241: 1,341
A242: IBAGUE | B242: ANTIOQUIA | C242: 12º Normal | D242: 587 | E242: 0 | F242: 6 | G242: 594 | H242: 0 | I242: 0 | J242: 416 | K242: 0 | L242: 0 | M242: 383 | N242: 0 | O242: 1 | P242: 411 | Q242: 0 | R242: 0 | S242: 441 | T242: 0 | U242: 0 | V242: 461 | W242: 0 | X242: 0 | Y242: 448 | Z242: 0 | AA242: 0 | AB242: 498 | AC242: 0 | AD242: 1 | AE242: 0 | AF242: 0 | AG242: 0 | AH242: 0 | AI242: 0 | AJ242: 0 | AK242: 0 | AL242: 0 | AM242: 0
A243: IPIALES | B243: ANTIOQUIA | C243: 13º Normal | D243: 658 | E243: 0 | F243: 0 | G243: 519 | H243: 1 | I243: 0 | J243: 419 | K243: 0 | L243: 0 | M243: 335 | N243: 0 | O243: 0 | P243: 275 | Q243: 0 | R243: 0 | S243: 279 | T243: 0 | U243: 0 | V243: 307 | W243: 0 | X243: 0 | Y243: 350 | Z243: 0 | AA243: 0 | AB243: 341 | AC243: 0 | AD243: 0 | AE243: 0 | AF243: 0 | AG243: 1 | AH243: 0 | AI243: 0 | AJ243: 0 | AK243: 0 | AL243: 0 | AM243: 0
A244: ITAGUI | B244: ANTIOQUIA | C244: Ciclo 1 Adultos | D244: 460 | E244: 1,982 | F244: 8 | G244: 10,207 | H244: 27 | I244: 4 | J244: 9,738 | K244: 34 | L244: 0 | M244: 3,228 | N244: 0 | O244: 26 | P244: 10,274 | Q244: 0 | R244: 0 | S244: 3,606 | T244: 0 | U244: 0 | V244: 107 | W244: 0 | X244: 0 | Y244: 1,099 | Z244: 0 | AA244: 0 | AB244: 196 | AC244: 0 | AD244: 0 | AE244: 107 | AF244: 0 | AG244: 1 | AH244: 90 | AI244: 0 | AJ244: 2 | AK244: 42 | AL244: 0 | AM244: 1
A245: JAMUNDI | B245: ANTIOQUIA | C245: Ciclo 2 Adultos | D245: 1,316 | E245: 2,039 | F245: 32 | G245: 1,896 | H245: 1,327 | I245: 25 | J245: 2,536 | K245: 2,018 | L245: 18 | M245: 2,438 | N245: 0 | O245: 19 | P245: 2,158 | Q245: 0 | R245: 485 | S245: 2,013 | T245: 0 | U245: 104 | V245: 2,031 | W245: 0 | X245: 24 | Y245: 1,399 | Z245: 0 | AA245: 26 | AB245: 1,720 | AC245: 0 | AD245: 30 | AE245: 1,131 | AF245: 0 | AG245: 36 | AH245: 1,007 | AI245: 0 | AJ245: 23 | AK245: 900 | AL245: 0 | AM245: 55
A246: LA ESTRELLA | B246: ANTIOQUIA | C246: Ciclo 3 Adultos | D246: 6,300 | E246: 3,239 | F246: 481 | G246: 7,608 | H246: 3,210 | I246: 502 | J246: 8,520 | K246: 1,593 | L246: 507 | M246: 10,083 | N246: 0 | O246: 382 | P246: 11,542 | Q246: 0 | R246: 893 | S246: 11,304 | T246: 0 | U246: 804 | V246: 9,924 | W246: 0 | X246: 447 | Y246: 8,131 | Z246: 0 | AA246: 442 | AB246: 8,912 | AC246: 0 | AD246: 556 | AE246: 6,974 | AF246: 0 | AG246: 524 | AH246: 6,030 | AI246: 0 | AJ246: 355 | AK246: 5,125 | AL246: 0 | AM246: 476
A247: LA GUAJIRA | B247: ANTIOQUIA | C247: Ciclo 4 Adultos | D247: 7,229 | E247: 2,958 | F247: 899 | G247: 8,672 | H247: 3,076 | I247: 821 | J247: 9,827 | K247: 2,398 | L247: 883 | M247: 11,018 | N247: 0 | O247: 874 | P247: 12,085 | Q247: 0 | R247: 1,205 | S247: 12,387 | T247: 0 | U247: 1,192 | V247: 11,861 | W247: 0 | X247: 1,146 | Y247: 10,021 | Z247: 0 | AA247: 742 | AB247: 10,305 | AC247: 0 | AD247: 1,041 | AE247: 9,336 | AF247: 0 | AG247: 1,072 | AH247: 8,006 | AI247: 0 | AJ247: 963 | AK247: 6,761 | AL247: 0 | AM247: 882
A248: LORICA | B248: ANTIOQUIA | C248: Ciclo 5 Adultos | D248: 2,414 | E248: 1,246 | F248: 533 | G248: 3,517 | H248: 1,019 | I248: 621 | J248: 3,568 | K248: 929 | L248: 681 | M248: 3,218 | N248: 0 | O248: 529 | P248: 4,014 | Q248: 0 | R248: 960 | S248: 3,206 | T248: 0 | U248: 439 | V248: 2,276 | W248: 0 | X248: 591 | Y248: 4,539 | Z248: 0 | AA248: 725 | AB248: 2,832 | AC248: 0 | AD248: 789 | AE248: 2,932 | AF248: 0 | AG248: 863 | AH248: 2,003 | AI248: 0 | AJ248: 746 | AK248: 2,110 | AL248: 0 | AM248: 697
A249: MAGANGUE | B249: ANTIOQUIA | C249: Ciclo 6 Adultos | D249: 6,226 | E249: 1,325 | F249: 1,470 | G249: 6,254 | H249: 1,524 | I249: 1,259 | J249: 7,103 | K249: 1,445 | L249: 1,179 | M249: 8,667 | N249: 0 | O249: 1,293 | P249: 9,040 | Q249: 0 | R249: 1,295 | S249: 10,299 | T249: 0 | U249: 2,116 | V249: 11,214 | W249: 0 | X249: 1,417 | Y249: 7,856 | Z249: 0 | AA249: 1,279 | AB249: 8,302 | AC249: 0 | AD249: 1,931 | AE249: 7,325 | AF249: 0 | AG249: 1,970 | AH249: 7,624 | AI249: 0 | AJ249: 1,826 | AK249: 5,852 | AL249: 0 | AM249: 1,734
A250: MAGDALENA | B250: ANTIOQUIA | C250: Semestre introductorio NS | D250: 0 | E250: 0 | F250: 0 | G250: 0 | H250: 0 | I250: 0 | J250: 0 | K250: 0 | L250: 0 | M250: 0 | N250: 0 | O250: 0 | P250: 0 | Q250: 0 | R250: 0 | S250: 0 | T250: 0 | U250: 0 | V250: 0 | W250: 0 | X250: 0 | Y250: 0 | Z250: 0 | AA250: 0 | AB250: 0 | AC250: 0 | AD250: 0 | AE250: 128 | AF250: 0 | AG250: 0 | AH250: 130 | AI250: 0 | AJ250: 3 | AK250: 113 | AL250: 0 | AM250: 2
A251: MAICAO | B251: ANTIOQUIA | C251: Programa formación compl 1 NS | D251: 0 | E251: 0 | F251: 0 | G251: 0 | H251: 0 | I251: 0 | J251: 0 | K251: 0 | L251: 0 | M251: 0 | N251: 0 | O251: 0 | P251: 0 | Q251: 0 | R251: 0 | S251: 0 | T251: 0 | U251: 0 | V251: 0 | W251: 0 | X251: 0 | Y251: 0 | Z251: 0 | AA251: 0 | AB251: 0 | AC251: 0 | AD251: 0 | AE251: 196 | AF251: 0 | AG251: 1 | AH251: 85 | AI251: 0 | AJ251: 0 | AK251: 132 | AL251: 0 | AM251: 4
A252: MALAMBO | B252: ANTIOQUIA | C252: Programa formación compl 2 NS | D252: 0 | E252: 0 | F252: 0 | G252: 0 | H252: 0 | I252: 0 | J252: 0 | K252: 0 | L252: 0 | M252: 0 | N252: 0 | O252: 0 | P252: 0 | Q252: 0 | R252: 0 | S252: 0 | T252: 0 | U252: 0 | V252: 0 | W252: 0 | X252: 0 | Y252: 0 | Z252: 0 | AA252: 0 | AB252: 0 | AC252: 0 | AD252: 0 | AE252: 187 | AF252: 0 | AG252: 0 | AH252: 194 | AI252: 0 | AJ252: 0 | AK252: 168 | AL252: 0 | AM252: 3
A253: MANIZALES | B253: ANTIOQUIA | C253: Programa formación compl 3 NS | D253: 0 | E253: 0 | F253: 0 | G253: 0 | H253: 0 | I253: 0 | J253: 0 | K253: 0 | L253: 0 | M253: 0 | N253: 0 | O253: 0 | P253: 0 | Q253: 0 | R253: 0 | S253: 0 | T253: 0 | U253: 0 | V253: 0 | W253: 0 | X253: 0 | Y253: 0 | Z253: 0 | AA253: 0 | AB253: 0 | AC253: 0 | AD253: 0 | AE253: 111 | AF253: 0 | AG253: 0 | AH253: 72 | AI253: 0 | AJ253: 0 | AK253: 88 | AL253: 0 | AM253: 8
A254: MEDELLIN | B254: ANTIOQUIA | C254: Programa formación compl 4 NS | D254: 0 | E254: 0 | F254: 0 | G254: 0 | H254: 0 | I254: 0 | J254: 0 | K254: 0 | L254: 0 | M254: 0 | N254: 0 | O254: 0 | P254: 0 | Q254: 0 | R254: 0 | S254: 0 | T254: 0 | U254: 0 | V254: 0 | W254: 0 | X254: 0 | Y254: 0 | Z254: 0 | AA254: 0 | AB254: 0 | AC254: 0 | AD254: 0 | AE254: 233 | AF254: 0 | AG254: 0 | AH254: 256 | AI254: 0 | AJ254: 0 | AK254: 204 | AL254: 0 | AM254: 11
A255: META | B255: ANTIOQUIA | C255: Aceleración del Aprendizaje | D255: 1,141 | E255: 700 | F255: 0 | G255: 1,238 | H255: 747 | I255: 0 | J255: 1,317 | K255: 4 | L255: 0 | M255: 1,334 | N255: 0 | O255: 0 | P255: 1,619 | Q255: 0 | R255: 0 | S255: 1,495 | T255: 0 | U255: 0 | V255: 1,427 | W255: 0 | X255: 0 | Y255: 1,212 | Z255: 0 | AA255: 0 | AB255: 1,219 | AC255: 0 | AD255: 0 | AE255: 1,165 | AF255: 0 | AG255: 0 | AH255: 1,157 | AI255: 0 | AJ255: 0 | AK255: 1,123 | AL255: 0 | AM255: 0
A256: MONTERIA | B256: APARTADO | C256: Prejardín | D256: 0 | E256: 0 | F256: 39 | G256: 0 | H256: 0 | I256: 27 | J256: 0 | K256: 0 | L256: 38 | M256: 0 | N256: 0 | O256: 20 | P256: 0 | Q256: 0 | R256: 46 | S256: 0 | T256: 0 | U256: 83 | V256: 0 | W256: 0 | X256: 84 | Y256: 0 | Z256: 0 | AA256: 162 | AB256: 0 | AC256: 0 | AD256: 53 | AE256: 0 | AF256: 0 | AG256: 163 | AH256: 94 | AI256: 0 | AJ256: 172 | AK256: 223 | AL256: 0 | AM256: 135
A257: MOSQUERA | B257: APARTADO | C257: Jardín | D257: 0 | E257: 0 | F257: 85 | G257: 0 | H257: 0 | I257: 73 | J257: 0 | K257: 0 | L257: 63 | M257: 0 | N257: 0 | O257: 63 | P257: 0 | Q257: 0 | R257: 111 | S257: 0 | T257: 0 | U257: 113 | V257: 0 | W257: 0 | X257: 119 | Y257: 0 | Z257: 0 | AA257: 214 | AB257: 0 | AC257: 0 | AD257: 214 | AE257: 0 | AF257: 0 | AG257: 191 | AH257: 91 | AI257: 0 | AJ257: 183 | AK257: 340 | AL257: 0 | AM257: 132
A258: NARIÑO | B258: APARTADO | C258: Transición | D258: 1,915 | E258: 469 | F258: 161 | G258: 2,064 | H258: 99 | I258: 133 | J258: 1,868 | K258: 70 | L258: 150 | M258: 2,084 | N258: 7 | O258: 172 | P258: 1,957 | Q258: 0 | R258: 188 | S258: 1,979 | T258: 0 | U258: 167 | V258: 2,079 | W258: 0 | X258: 194 | Y258: 1,893 | Z258: 0 | AA258: 178 | AB258: 2,057 | AC258: 0 | AD258: 238 | AE258: 1,892 | AF258: 0 | AG258: 261 | AH258: 1,852 | AI258: 0 | AJ258: 220 | AK258: 1,524 | AL258: 0 | AM258: 217
A259: NEIVA | B259: APARTADO | C259: Primero | D259: 2,499 | E259: 711 | F259: 201 | G259: 2,807 | H259: 103 | I259: 184 | J259: 2,586 | K259: 0 | L259: 218 | M259: 2,394 | N259: 54 | O259: 184 | P259: 2,477 | Q259: 2 | R259: 190 | S259: 2,529 | T259: 0 | U259: 168 | V259: 2,342 | W259: 0 | X259: 149 | Y259: 2,370 | Z259: 0 | AA259: 150 | AB259: 2,279 | AC259: 0 | AD259: 181 | AE259: 2,280 | AF259: 0 | AG259: 167 | AH259: 2,166 | AI259: 0 | AJ259: 183 | AK259: 2,136 | AL259: 0 | AM259: 156
A260: NORTE_DE_SANTANDER | B260: APARTADO | C260: Segundo | D260: 2,349 | E260: 782 | F260: 187 | G260: 2,867 | H260: 99 | I260: 216 | J260: 2,809 | K260: 0 | L260: 210 | M260: 2,467 | N260: 5 | O260: 205 | P260: 2,278 | Q260: 0 | R260: 189 | S260: 2,354 | T260: 0 | U260: 184 | V260: 2,293 | W260: 0 | X260: 165 | Y260: 2,225 | Z260: 0 | AA260: 135 | AB260: 2,226 | AC260: 0 | AD260: 161 | AE260: 2,109 | AF260: 0 | AG260: 176 | AH260: 2,149 | AI260: 0 | AJ260: 171 | AK260: 2,063 | AL260: 0 | AM260: 168
A261: PALMIRA | B261: APARTADO | C261: Tercero | D261: 2,293 | E261: 648 | F261: 199 | G261: 2,755 | H261: 107 | I261: 221 | J261: 2,716 | K261: 0 | L261: 204 | M261: 2,657 | N261: 3 | O261: 198 | P261: 2,335 | Q261: 0 | R261: 215 | S261: 2,242 | T261: 0 | U261: 172 | V261: 2,250 | W261: 0 | X261: 191 | Y261: 2,246 | Z261: 0 | AA261: 144 | AB261: 2,107 | AC261: 0 | AD261: 150 | AE261: 2,108 | AF261: 0 | AG261: 171 | AH261: 2,027 | AI261: 0 | AJ261: 178 | AK261: 2,133 | AL261: 0 | AM261: 156
A262: PASTO | B262: APARTADO | C262: Cuarto | D262: 2,262 | E262: 602 | F262: 178 | G262: 2,543 | H262: 102 | I262: 212 | J262: 2,634 | K262: 0 | L262: 200 | M262: 2,722 | N262: 3 | O262: 195 | P262: 2,605 | Q262: 0 | R262: 193 | S262: 2,366 | T262: 0 | U262: 217 | V262: 2,167 | W262: 0 | X262: 171 | Y262: 2,255 | Z262: 0 | AA262: 186 | AB262: 2,147 | AC262: 0 | AD262: 150 | AE262: 1,955 | AF262: 0 | AG262: 149 | AH262: 2,013 | AI262: 0 | AJ262: 164 | AK262: 1,969 | AL262: 0 | AM262: 182
A263: PEREIRA | B263: APARTADO | C263: Quinto | D263: 2,168 | E263: 537 | F263: 167 | G263: 2,524 | H263: 124 | I263: 198 | J263: 2,583 | K263: 0 | L263: 196 | M263: 2,649 | N263: 4 | O263: 201 | P263: 2,633 | Q263: 0 | R263: 205 | S263: 2,534 | T263: 0 | U263: 195 | V263: 2,339 | W263: 0 | X263: 198 | Y263: 2,162 | Z263: 0 | AA263: 163 | AB263: 2,187 | AC263: 0 | AD263: 180 | AE263: 2,069 | AF263: 0 | AG263: 157 | AH263: 1,915 | AI263: 0 | AJ263: 131 | AK263: 1,999 | AL263: 0 | AM263: 164
A264: PIEDECUESTA | B264: APARTADO | C264: Sexto | D264: 2,543 | E264: 527 | F264: 160 | G264: 3,043 | H264: 104 | I264: 186 | J264: 3,150 | K264: 0 | L264: 190 | M264: 3,231 | N264: 0 | O264: 203 | P264: 3,063 | Q264: 0 | R264: 205 | S264: 3,209 | T264: 0 | U264: 218 | V264: 2,941 | W264: 0 | X264: 190 | Y264: 2,567 | Z264: 0 | AA264: 158 | AB264: 2,328 | AC264: 0 | AD264: 157 | AE264: 2,338 | AF264: 0 | AG264: 178 | AH264: 2,259 | AI264: 0 | AJ264: 168 | AK264: 2,148 | AL264: 0 | AM264: 132
A265: PITALITO | B265: APARTADO | C265: Septimo | D265: 2,220 | E265: 364 | F265: 141 | G265: 2,499 | H265: 80 | I265: 192 | J265: 2,585 | K265: 0 | L265: 160 | M265: 2,606 | N265: 0 | O265: 185 | P265: 2,990 | Q265: 0 | R265: 209 | S265: 2,804 | T265: 0 | U265: 196 | V265: 2,912 | W265: 0 | X265: 221 | Y265: 2,878 | Z265: 0 | AA265: 166 | AB265: 2,553 | AC265: 0 | AD265: 159 | AE265: 2,346 | AF265: 0 | AG265: 158 | AH265: 2,493 | AI265: 0 | AJ265: 167 | AK265: 2,364 | AL265: 0 | AM265: 159
A266: POPAYAN | B266: APARTADO | C266: Octavo | D266: 1,941 | E266: 231 | F266: 159 | G266: 2,015 | H266: 47 | I266: 158 | J266: 2,085 | K266: 0 | L266: 161 | M266: 2,183 | N266: 0 | O266: 148 | P266: 2,208 | Q266: 0 | R266: 185 | S266: 2,320 | T266: 0 | U266: 199 | V266: 2,370 | W266: 0 | X266: 194 | Y266: 2,406 | Z266: 0 | AA266: 196 | AB266: 2,246 | AC266: 0 | AD266: 181 | AE266: 1,985 | AF266: 0 | AG266: 159 | AH266: 1,883 | AI266: 0 | AJ266: 138 | AK266: 1,879 | AL266: 0 | AM266: 159
A267: PUTUMAYO | B267: APARTADO | C267: Noveno | D267: 1,563 | E267: 155 | F267: 118 | G267: 1,770 | H267: 15 | I267: 162 | J267: 1,720 | K267: 0 | L267: 138 | M267: 1,750 | N267: 0 | O267: 157 | P267: 1,910 | Q267: 0 | R267: 152 | S267: 2,052 | T267: 0 | U267: 172 | V267: 2,226 | W267: 0 | X267: 194 | Y267: 2,475 | Z267: 0 | AA267: 166 | AB267: 2,306 | AC267: 0 | AD267: 193 | AE267: 2,144 | AF267: 0 | AG267: 187 | AH267: 2,147 | AI267: 0 | AJ267: 162 | AK267: 1,973 | AL267: 0 | AM267: 128
A268: QUIBDO | B268: APARTADO | C268: Decimo | D268: 1,269 | E268: 66 | F268: 146 | G268: 1,438 | H268: 0 | I268: 117 | J268: 1,511 | K268: 0 | L268: 153 | M268: 1,457 | N268: 0 | O268: 116 | P268: 1,495 | Q268: 0 | R268: 147 | S268: 1,622 | T268: 0 | U268: 134 | V268: 1,784 | W268: 0 | X268: 153 | Y268: 1,919 | Z268: 0 | AA268: 177 | AB268: 1,957 | AC268: 0 | AD268: 173 | AE268: 1,877 | AF268: 0 | AG268: 175 | AH268: 1,837 | AI268: 0 | AJ268: 181 | AK268: 1,818 | AL268: 0 | AM268: 140
A269: QUINDIO | B269: APARTADO | C269: Once | D269: 1,035 | E269: 56 | F269: 89 | G269: 1,055 | H269: 0 | I269: 162 | J269: 1,171 | K269: 0 | L269: 107 | M269: 1,278 | N269: 0 | O269: 136 | P269: 1,174 | Q269: 0 | R269: 107 | S269: 1,223 | T269: 0 | U269: 145 | V269: 1,387 | W269: 0 | X269: 130 | Y269: 1,417 | Z269: 0 | AA269: 136 | AB269: 1,452 | AC269: 0 | AD269: 165 | AE269: 1,506 | AF269: 1 | AG269: 160 | AH269: 1,520 | AI269: 0 | AJ269: 165 | AK269: 1,532 | AL269: 0 | AM269: 171
A270: RIOHACHA | B270: APARTADO | C270: 12º Normal | D270: 0 | E270: 0 | F270: 0 | G270: 0 | H270: 0 | I270: 0 | J270: 0 | K270: 0 | L270: 0 | M270: 0 | N270: 0 | O270: 0 | P270: 0 | Q270: 0 | R270: 0 | S270: 0 | T270: 0 | U270: 0 | V270: 0 | W270: 0 | X270: 0 | Y270: 0 | Z270: 0 | AA270: 0 | AB270: 0 | AC270: 0 | AD270: 0 | AE270: 0 | AF270: 0 | AG270: 0 | AH270: 0 | AI270: 0 | AJ270: 0 | AK270: 0 | AL270: 0 | AM270: 0
A271: RIONEGRO | B271: APARTADO | C271: 13º Normal | D271: 0 | E271: 0 | F271: 0 | G271: 0 | H271: 0 | I271: 0 | J271: 0 | K271: 0 | L271: 0 | M271: 0 | N271: 0 | O271: 0 | P271: 0 | Q271: 0 | R271: 0 | S271: 0 | T271: 0 | U271: 0 | V271: 0 | W271: 0 | X271: 0 | Y271: 0 | Z271: 0 | AA271: 0 | AB271: 0 | AC271: 0 | AD271: 0 | AE271: 0 | AF271: 0 | AG271: 0 | AH271: 0 | AI271: 0 | AJ271: 0 | AK271: 0 | AL271: 0 | AM271: 0
A272: RISARALDA | B272: APARTADO | C272: Ciclo 1 Adultos | D272: 124 | E272: 0 | F272: 0 | G272: 1,649 | H272: 0 | I272: 0 | J272: 941 | K272: 0 | L272: 0 | M272: 33 | N272: 0 | O272: 0 | P272: 926 | Q272: 0 | R272: 0 | S272: 8 | T272: 0 | U272: 0 | V272: 0 | W272: 0 | X272: 0 | Y272: 382 | Z272: 2 | AA272: 0 | AB272: 0 | AC272: 0 | AD272: 0 | AE272: 2 | AF272: 0 | AG272: 0 | AH272: 0 | AI272: 0 | AJ272: 30 | AK272: 1 | AL272: 0 | AM272: 50
A273: SABANETA | B273: APARTADO | C273: Ciclo 2 Adultos | D273: 325 | E273: 0 | F273: 0 | G273: 456 | H273: 0 | I273: 0 | J273: 1,431 | K273: 2,122 | L273: 0 | M273: 913 | N273: 0 | O273: 1 | P273: 41 | Q273: 432 | R273: 0 | S273: 110 | T273: 217 | U273: 0 | V273: 10 | W273: 216 | X273: 0 | Y273: 17 | Z273: 186 | AA273: 5 | AB273: 8 | AC273: 79 | AD273: 11 | AE273: 12 | AF273: 96 | AG273: 5 | AH273: 97 | AI273: 0 | AJ273: 80 | AK273: 14 | AL273: 154 | AM273: 67
A274: SAHAGUN | B274: APARTADO | C274: Ciclo 3 Adultos | D274: 1,026 | E274: 22 | F274: 10 | G274: 1,199 | H274: 3 | I274: 10 | J274: 1,330 | K274: 597 | L274: 1 | M274: 1,336 | N274: 0 | O274: 30 | P274: 54 | Q274: 1,504 | R274: 7 | S274: 133 | T274: 857 | U274: 4 | V274: 24 | W274: 600 | X274: 6 | Y274: 47 | Z274: 562 | AA274: 16 | AB274: 30 | AC274: 498 | AD274: 70 | AE274: 32 | AF274: 425 | AG274: 37 | AH274: 169 | AI274: 128 | AJ274: 209 | AK274: 4 | AL274: 247 | AM274: 248
A275: SAN_ANDRES | B275: APARTADO | C275: Ciclo 4 Adultos | D275: 1,141 | E275: 46 | F275: 10 | G275: 1,229 | H275: 0 | I275: 18 | J275: 1,470 | K275: 356 | L275: 8 | M275: 1,347 | N275: 0 | O275: 29 | P275: 37 | Q275: 1,211 | R275: 19 | S275: 203 | T275: 1,495 | U275: 10 | V275: 25 | W275: 815 | X275: 6 | Y275: 74 | Z275: 783 | AA275: 18 | AB275: 45 | AC275: 627 | AD275: 52 | AE275: 30 | AF275: 613 | AG275: 65 | AH275: 296 | AI275: 172 | AJ275: 230 | AK275: 18 | AL275: 415 | AM275: 331
A276: SANTA_MARTA | B276: APARTADO | C276: Ciclo 5 Adultos | D276: 159 | E276: 28 | F276: 13 | G276: 215 | H276: 0 | I276: 16 | J276: 318 | K276: 161 | L276: 17 | M276: 344 | N276: 0 | O276: 39 | P276: 95 | Q276: 78 | R276: 31 | S276: 49 | T276: 263 | U276: 18 | V276: 8 | W276: 166 | X276: 33 | Y276: 184 | Z276: 190 | AA276: 25 | AB276: 89 | AC276: 154 | AD276: 68 | AE276: 41 | AF276: 181 | AG276: 75 | AH276: 57 | AI276: 74 | AJ276: 125 | AK276: 13 | AL276: 146 | AM276: 156
A277: SANTANDER | B277: APARTADO | C277: Ciclo 6 Adultos | D277: 1,117 | E277: 4 | F277: 34 | G277: 1,073 | H277: 24 | I277: 30 | J277: 1,047 | K277: 80 | L277: 0 | M277: 1,120 | N277: 0 | O277: 9 | P277: 132 | Q277: 1,092 | R277: 91 | S277: 61 | T277: 997 | U277: 90 | V277: 17 | W277: 968 | X277: 20 | Y277: 168 | Z277: 497 | AA277: 124 | AB277: 25 | AC277: 710 | AD277: 76 | AE277: 62 | AF277: 724 | AG277: 180 | AH277: 94 | AI277: 430 | AJ277: 295 | AK277: 6 | AL277: 399 | AM277: 330
A278: SINCELEJO | B278: APARTADO | C278: Semestre introductorio NS | D278: 0 | E278: 0 | F278: 0 | G278: 0 | H278: 0 | I278: 0 | J278: 0 | K278: 0 | L278: 0 | M278: 0 | N278: 0 | O278: 0 | P278: 0 | Q278: 0 | R278: 0 | S278: 0 | T278: 0 | U278: 0 | V278: 0 | W278: 0 | X278: 0 | Y278: 0 | Z278: 0 | AA278: 0 | AB278: 0 | AC278: 0 | AD278: 0 | AE278: 0 | AF278: 0 | AG278: 0 | AH278: 0 | AI278: 0 | AJ278: 0 | AK278: 0 | AL278: 0 | AM278: 0
A279: SOACHA | B279: APARTADO | C279: Programa formación compl 1 NS | D279: 0 | E279: 0 | F279: 0 | G279: 0 | H279: 0 | I279: 0 | J279: 0 | K279: 0 | L279: 0 | M279: 0 | N279: 0 | O279: 0 | P279: 0 | Q279: 0 | R279: 0 | S279: 0 | T279: 0 | U279: 0 | V279: 0 | W279: 0 | X279: 0 | Y279: 0 | Z279: 0 | AA279: 0 | AB279: 0 | AC279: 0 | AD279: 0 | AE279: 0 | AF279: 0 | AG279: 0 | AH279: 0 | AI279: 0 | AJ279: 0 | AK279: 0 | AL279: 0 | AM279: 0
A280: SOGAMOSO | B280: APARTADO | C280: Programa formación compl 2 NS | D280: 0 | E280: 0 | F280: 0 | G280: 0 | H280: 0 | I280: 0 | J280: 0 | K280: 0 | L280: 0 | M280: 0 | N280: 0 | O280: 0 | P280: 0 | Q280: 0 | R280: 0 | S280: 0 | T280: 0 | U280: 0 | V280: 0 | W280: 0 | X280: 0 | Y280: 0 | Z280: 0 | AA280: 0 | AB280: 0 | AC280: 0 | AD280: 0 | AE280: 0 | AF280: 0 | AG280: 0 | AH280: 0 | AI280: 0 | AJ280: 0 | AK280: 0 | AL280: 0 | AM280: 0
A281: SOLEDAD | B281: APARTADO | C281: Programa formación compl 3 NS | D281: 0 | E281: 0 | F281: 0 | G281: 0 | H281: 0 | I281: 0 | J281: 0 | K281: 0 | L281: 0 | M281: 0 | N281: 0 | O281: 0 | P281: 0 | Q281: 0 | R281: 0 | S281: 0 | T281: 0 | U281: 0 | V281: 0 | W281: 0 | X281: 0 | Y281: 0 | Z281: 0 | AA281: 0 | AB281: 0 | AC281: 0 | AD281: 0 | AE281: 0 | AF281: 0 | AG281: 0 | AH281: 0 | AI281: 0 | AJ281: 0 | AK281: 0 | AL281: 0 | AM281: 0
A282: SUCRE | B282: APARTADO | C282: Programa formación compl 4 NS | D282: 0 | E282: 0 | F282: 0 | G282: 0 | H282: 0 | I282: 0 | J282: 0 | K282: 0 | L282: 0 | M282: 0 | N282: 0 | O282: 0 | P282: 0 | Q282: 0 | R282: 0 | S282: 0 | T282: 0 | U282: 0 | V282: 0 | W282: 0 | X282: 0 | Y282: 0 | Z282: 0 | AA282: 0 | AB282: 0 | AC282: 0 | AD282: 0 | AE282: 0 | AF282: 0 | AG282: 0 | AH282: 0 | AI282: 0 | AJ282: 0 | AK282: 0 | AL282: 0 | AM282: 0
A283: TOLIMA | B283: APARTADO | C283: Aceleración del Aprendizaje | D283: 228 | E283: 0 | F283: 0 | G283: 267 | H283: 0 | I283: 0 | J283: 340 | K283: 0 | L283: 0 | M283: 285 | N283: 0 | O283: 0 | P283: 436 | Q283: 0 | R283: 0 | S283: 427 | T283: 0 | U283: 0 | V283: 411 | W283: 0 | X283: 0 | Y283: 347 | Z283: 0 | AA283: 0 | AB283: 358 | AC283: 0 | AD283: 0 | AE283: 388 | AF283: 0 | AG283: 0 | AH283: 353 | AI283: 0 | AJ283: 0 | AK283: 301 | AL283: 0 | AM283: 0
A284: TULUA | B284: ARAUCA | C284: Prejardín | D284: 0 | E284: 0 | F284: 125 | G284: 0 | H284: 0 | I284: 217 | J284: 0 | K284: 0 | L284: 60 | M284: 0 | N284: 0 | O284: 227 | P284: 0 | Q284: 0 | R284: 130 | S284: 0 | T284: 0 | U284: 144 | V284: 0 | W284: 0 | X284: 150 | Y284: 0 | Z284: 0 | AA284: 68 | AB284: 0 | AC284: 0 | AD284: 195 | AE284: 0 | AF284: 0 | AG284: 209 | AH284: 74 | AI284: 0 | AJ284: 130 | AK284: 267 | AL284: 0 | AM284: 147
A285: TUMACO | B285: ARAUCA | C285: Jardín | D285: 0 | E285: 0 | F285: 292 | G285: 0 | H285: 0 | I285: 270 | J285: 0 | K285: 0 | L285: 240 | M285: 0 | N285: 0 | O285: 251 | P285: 0 | Q285: 0 | R285: 325 | S285: 0 | T285: 0 | U285: 269 | V285: 0 | W285: 0 | X285: 307 | Y285: 0 | Z285: 0 | AA285: 194 | AB285: 0 | AC285: 0 | AD285: 327 | AE285: 139 | AF285: 0 | AG285: 306 | AH285: 593 | AI285: 0 | AJ285: 250 | AK285: 894 | AL285: 0 | AM285: 218
A286: TUNJA | B286: ARAUCA | C286: Transición | D286: 4,715 | E286: 0 | F286: 290 | G286: 4,983 | H286: 0 | I286: 361 | J286: 4,971 | K286: 0 | L286: 298 | M286: 5,024 | N286: 0 | O286: 335 | P286: 5,089 | Q286: 0 | R286: 260 | S286: 5,158 | T286: 0 | U286: 336 | V286: 5,247 | W286: 0 | X286: 347 | Y286: 5,546 | Z286: 0 | AA286: 310 | AB286: 5,806 | AC286: 0 | AD286: 389 | AE286: 5,402 | AF286: 0 | AG286: 416 | AH286: 5,103 | AI286: 0 | AJ286: 386 | AK286: 4,532 | AL286: 0 | AM286: 324
A287: TURBO | B287: ARAUCA | C287: Primero | D287: 6,441 | E287: 0 | F287: 287 | G287: 6,155 | H287: 0 | I287: 320 | J287: 6,189 | K287: 0 | L287: 297 | M287: 6,234 | N287: 0 | O287: 317 | P287: 6,506 | Q287: 0 | R287: 296 | S287: 6,752 | T287: 0 | U287: 244 | V287: 6,874 | W287: 0 | X287: 361 | Y287: 6,967 | Z287: 0 | AA287: 330 | AB287: 7,316 | AC287: 0 | AD287: 371 | AE287: 7,338 | AF287: 0 | AG287: 395 | AH287: 6,918 | AI287: 0 | AJ287: 377 | AK287: 6,262 | AL287: 0 | AM287: 437
A288: URIBIA | B288: ARAUCA | C288: Segundo | D288: 5,922 | E288: 0 | F288: 271 | G288: 5,713 | H288: 0 | I288: 291 | J288: 5,444 | K288: 0 | L288: 313 | M288: 5,585 | N288: 0 | O288: 322 | P288: 5,731 | Q288: 0 | R288: 305 | S288: 5,952 | T288: 0 | U288: 297 | V288: 6,072 | W288: 0 | X288: 299 | Y288: 6,388 | Z288: 0 | AA288: 295 | AB288: 5,740 | AC288: 0 | AD288: 341 | AE288: 6,255 | AF288: 0 | AG288: 396 | AH288: 6,328 | AI288: 0 | AJ288: 380 | AK288: 6,077 | AL288: 0 | AM288: 347
A289: VALLE | B289: ARAUCA | C289: Tercero | D289: 5,457 | E289: 0 | F289: 265 | G289: 5,756 | H289: 0 | I289: 287 | J289: 5,643 | K289: 0 | L289: 250 | M289: 5,415 | N289: 0 | O289: 296 | P289: 5,505 | Q289: 0 | R289: 292 | S289: 5,742 | T289: 0 | U289: 291 | V289: 5,975 | W289: 0 | X289: 309 | Y289: 6,291 | Z289: 0 | AA289: 278 | AB289: 5,709 | AC289: 0 | AD289: 300 | AE289: 5,375 | AF289: 0 | AG289: 357 | AH289: 5,975 | AI289: 0 | AJ289: 367 | AK289: 5,874 | AL289: 0 | AM289: 380
A290: VALLEDUPAR | B290: ARAUCA | C290: Cuarto | D290: 5,135 | E290: 0 | F290: 230 | G290: 5,400 | H290: 0 | I290: 252 | J290: 5,711 | K290: 0 | L290: 248 | M290: 5,474 | N290: 0 | O290: 247 | P290: 5,416 | Q290: 0 | R290: 258 | S290: 5,490 | T290: 0 | U290: 292 | V290: 5,733 | W290: 0 | X290: 298 | Y290: 5,908 | Z290: 0 | AA290: 263 | AB290: 5,579 | AC290: 0 | AD290: 275 | AE290: 5,223 | AF290: 0 | AG290: 309 | AH290: 5,096 | AI290: 0 | AJ290: 326 | AK290: 5,474 | AL290: 0 | AM290: 361
A291: VAUPES | B291: ARAUCA | C291: Quinto | D291: 4,877 | E291: 0 | F291: 198 | G291: 4,870 | H291: 0 | I291: 221 | J291: 5,238 | K291: 0 | L291: 235 | M291: 5,582 | N291: 0 | O291: 244 | P291: 5,512 | Q291: 0 | R291: 204 | S291: 5,552 | T291: 0 | U291: 241 | V291: 5,513 | W291: 0 | X291: 293 | Y291: 5,847 | Z291: 0 | AA291: 269 | AB291: 5,620 | AC291: 0 | AD291: 262 | AE291: 5,267 | AF291: 0 | AG291: 301 | AH291: 5,046 | AI291: 0 | AJ291: 276 | AK291: 4,915 | AL291: 0 | AM291: 318
A292: VICHADA | B292: ARAUCA | C292: Sexto | D292: 5,327 | E292: 0 | F292: 159 | G292: 5,414 | H292: 0 | I292: 184 | J292: 5,507 | K292: 0 | L292: 174 | M292: 5,808 | N292: 0 | O292: 187 | P292: 6,171 | Q292: 0 | R292: 189 | S292: 5,982 | T292: 0 | U292: 193 | V292: 6,127 | W292: 0 | X292: 239 | Y292: 6,041 | Z292: 0 | AA292: 264 | AB292: 5,763 | AC292: 0 | AD292: 253 | AE292: 5,607 | AF292: 0 | AG292: 273 | AH292: 5,422 | AI292: 0 | AJ292: 284 | AK292: 5,075 | AL292: 0 | AM292: 315
A293: VILLAVICENCIO | B293: ARAUCA | C293: Septimo | D293: 4,459 | E293: 0 | F293: 181 | G293: 4,645 | H293: 0 | I293: 159 | J293: 4,618 | K293: 0 | L293: 160 | M293: 4,708 | N293: 0 | O293: 168 | P293: 4,982 | Q293: 0 | R293: 162 | S293: 5,446 | T293: 0 | U293: 202 | V293: 5,431 | W293: 0 | X293: 196 | Y293: 5,673 | Z293: 0 | AA293: 228 | AB293: 5,206 | AC293: 0 | AD293: 261 | AE293: 5,141 | AF293: 0 | AG293: 303 | AH293: 5,017 | AI293: 0 | AJ293: 294 | AK293: 4,905 | AL293: 0 | AM293: 310
A294: YOPAL | B294: ARAUCA | C294: Octavo | D294: 3,665 | E294: 0 | F294: 171 | G294: 3,684 | H294: 0 | I294: 164 | J294: 3,882 | K294: 0 | L294: 146 | M294: 3,922 | N294: 0 | O294: 149 | P294: 3,956 | Q294: 0 | R294: 146 | S294: 4,252 | T294: 0 | U294: 171 | V294: 4,657 | W294: 0 | X294: 197 | Y294: 4,622 | Z294: 0 | AA294: 191 | AB294: 4,296 | AC294: 0 | AD294: 239 | AE294: 4,122 | AF294: 0 | AG294: 291 | AH294: 4,090 | AI294: 0 | AJ294: 319 | AK294: 4,014 | AL294: 0 | AM294: 305
A295: YUMBO | B295: ARAUCA | C295: Noveno | D295: 3,003 | E295: 0 | F295: 147 | G295: 3,157 | H295: 0 | I295: 140 | J295: 3,225 | K295: 0 | L295: 144 | M295: 3,359 | N295: 0 | O295: 134 | P295: 3,343 | Q295: 0 | R295: 142 | S295: 3,432 | T295: 0 | U295: 116 | V295: 3,825 | W295: 0 | X295: 171 | Y295: 4,377 | Z295: 0 | AA295: 191 | AB295: 4,020 | AC295: 0 | AD295: 210 | AE295: 3,912 | AF295: 0 | AG295: 291 | AH295: 3,795 | AI295: 0 | AJ295: 290 | AK295: 3,683 | AL295: 0 | AM295: 307
A296: ZIPAQUIRA | B296: ARAUCA | C296: Decimo | D296: 2,629 | E296: 0 | F296: 110 | G296: 2,666 | H296: 0 | I296: 126 | J296: 2,785 | K296: 0 | L296: 104 | M296: 2,890 | N296: 0 | O296: 129 | P296: 2,900 | Q296: 0 | R296: 85 | S296: 2,924 | T296: 0 | U296: 99 | V296: 3,025 | W296: 0 | X296: 123 | Y296: 3,259 | Z296: 0 | AA296: 161 | AB296: 3,391 | AC296: 0 | AD296: 208 | AE296: 3,333 | AF296: 0 | AG296: 222 | AH296: 3,249 | AI296: 0 | AJ296: 277 | AK296: 3,168 | AL296: 0 | AM296: 281
A297: COLOMBIA | B297: ARAUCA | C297: Once | D297: 2,000 | E297: 0 | F297: 120 | G297: 2,154 | H297: 0 | I297: 108 | J297: 2,177 | K297: 0 | L297: 117 | M297: 2,195 | N297: 0 | O297: 123 | P297: 2,345 | Q297: 0 | R297: 118 | S297: 2,356 | T297: 0 | U297: 108 | V297: 2,466 | W297: 0 | X297: 126 | Y297: 2,499 | Z297: 0 | AA297: 129 | AB297: 2,486 | AC297: 0 | AD297: 150 | AE297: 2,803 | AF297: 0 | AG297: 256 | AH297: 2,661 | AI297: 0 | AJ297: 265 | AK297: 2,695 | AL297: 0 | AM297: 291
B298: ARAUCA | C298: 12º Normal | D298: 96 | E298: 0 | F298: 0 | G298: 89 | H298: 0 | I298: 0 | J298: 118 | K298: 0 | L298: 0 | M298: 100 | N298: 0 | O298: 0 | P298: 78 | Q298: 0 | R298: 0 | S298: 98 | T298: 0 | U298: 0 | V298: 111 | W298: 0 | X298: 0 | Y298: 96 | Z298: 0 | AA298: 0 | AB298: 113 | AC298: 0 | AD298: 0 | AE298: 0 | AF298: 0 | AG298: 0 | AH298: 0 | AI298: 0 | AJ298: 0 | AK298: 0 | AL298: 0 | AM298: 0
B299: ARAUCA | C299: 13º Normal | D299: 27 | E299: 0 | F299: 0 | G299: 48 | H299: 1 | I299: 0 | J299: 49 | K299: 0 | L299: 0 | M299: 28 | N299: 0 | O299: 0 | P299: 53 | Q299: 0 | R299: 0 | S299: 51 | T299: 0 | U299: 0 | V299: 43 | W299: 0 | X299: 0 | Y299: 48 | Z299: 0 | AA299: 0 | AB299: 38 | AC299: 0 | AD299: 0 | AE299: 0 | AF299: 0 | AG299: 0 | AH299: 0 | AI299: 0 | AJ299: 0 | AK299: 0 | AL299: 0 | AM299: 0
B300: ARAUCA | C300: Ciclo 1 Adultos | D300: 0 | E300: 580 | F300: 0 | G300: 0 | H300: 0 | I300: 0 | J300: 1,027 | K300: 0 | L300: 0 | M300: 1,076 | N300: 0 | O300: 0 | P300: 1,844 | Q300: 0 | R300: 0 | S300: 7 | T300: 0 | U300: 0 | V300: 703 | W300: 0 | X300: 0 | Y300: 1,131 | Z300: 0 | AA300: 0 | AB300: 39 | AC300: 0 | AD300: 0 | AE300: 0 | AF300: 0 | AG300: 1 | AH300: 0 | AI300: 0 | AJ300: 0 | AK300: 0 | AL300: 0 | AM300: 0
B301: ARAUCA | C301: Ciclo 2 Adultos | D301: 0 | E301: 330 | F301: 0 | G301: 30 | H301: 0 | I301: 0 | J301: 17 | K301: 0 | L301: 0 | M301: 97 | N301: 0 | O301: 0 | P301: 824 | Q301: 0 | R301: 0 | S301: 170 | T301: 0 | U301: 0 | V301: 90 | W301: 0 | X301: 0 | Y301: 96 | Z301: 0 | AA301: 0 | AB301: 91 | AC301: 0 | AD301: 0 | AE301: 70 | AF301: 0 | AG301: 0 | AH301: 86 | AI301: 0 | AJ301: 0 | AK301: 172 | AL301: 0 | AM301: 0
B302: ARAUCA | C302: Ciclo 3 Adultos | D302: 1,080 | E302: 61 | F302: 46 | G302: 1,359 | H302: 1 | I302: 82 | J302: 1,267 | K302: 0 | L302: 80 | M302: 1,409 | N302: 0 | O302: 79 | P302: 1,469 | Q302: 0 | R302: 101 | S302: 1,330 | T302: 0 | U302: 89 | V302: 1,132 | W302: 0 | X302: 55 | Y302: 1,008 | Z302: 0 | AA302: 52 | AB302: 1,103 | AC302: 0 | AD302: 83 | AE302: 983 | AF302: 0 | AG302: 84 | AH302: 718 | AI302: 0 | AJ302: 69 | AK302: 774 | AL302: 0 | AM302: 76
B303: ARAUCA | C303: Ciclo 4 Adultos | D303: 1,108 | E303: 63 | F303: 115 | G303: 1,493 | H303: 8 | I303: 187 | J303: 1,443 | K303: 0 | L303: 181 | M303: 1,371 | N303: 0 | O303: 133 | P303: 1,569 | Q303: 0 | R303: 194 | S303: 1,534 | T303: 0 | U303: 242 | V303: 1,363 | W303: 0 | X303: 181 | Y303: 1,210 | Z303: 0 | AA303: 172 | AB303: 1,195 | AC303: 0 | AD303: 220 | AE303: 1,184 | AF303: 0 | AG303: 217 | AH303: 943 | AI303: 0 | AJ303: 244 | AK303: 848 | AL303: 0 | AM303: 209
B304: ARAUCA | C304: Ciclo 5 Adultos | D304: 526 | E304: 85 | F304: 83 | G304: 506 | H304: 0 | I304: 137 | J304: 661 | K304: 0 | L304: 150 | M304: 313 | N304: 0 | O304: 107 | P304: 302 | Q304: 0 | R304: 97 | S304: 402 | T304: 0 | U304: 123 | V304: 291 | W304: 0 | X304: 205 | Y304: 276 | Z304: 0 | AA304: 264 | AB304: 206 | AC304: 0 | AD304: 216 | AE304: 332 | AF304: 0 | AG304: 327 | AH304: 226 | AI304: 0 | AJ304: 368 | AK304: 172 | AL304: 0 | AM304: 368
B305: ARAUCA | C305: Ciclo 6 Adultos | D305: 576 | E305: 47 | F305: 73 | G305: 894 | H305: 0 | I305: 126 | J305: 963 | K305: 0 | L305: 223 | M305: 1,194 | N305: 0 | O305: 271 | P305: 1,381 | Q305: 0 | R305: 418 | S305: 1,317 | T305: 0 | U305: 1,079 | V305: 1,410 | W305: 0 | X305: 729 | Y305: 1,178 | Z305: 0 | AA305: 856 | AB305: 1,154 | AC305: 0 | AD305: 1,012 | AE305: 978 | AF305: 0 | AG305: 903 | AH305: 1,014 | AI305: 0 | AJ305: 998 | AK305: 874 | AL305: 0 | AM305: 739
B306: ARAUCA | C306: Semestre introductorio NS | D306: 0 | E306: 0 | F306: 0 | G306: 0 | H306: 0 | I306: 0 | J306: 0 | K306: 0 | L306: 0 | M306: 0 | N306: 0 | O306: 0 | P306: 0 | Q306: 0 | R306: 0 | S306: 0 | T306: 0 | U306: 0 | V306: 0 | W306: 0 | X306: 0 | Y306: 0 | Z306: 0 | AA306: 0 | AB306: 0 | AC306: 0 | AD306: 0 | AE306: 9 | AF306: 0 | AG306: 0 | AH306: 30 | AI306: 0 | AJ306: 0 | AK306: 32 | AL306: 0 | AM306: 0
B307: ARAUCA | C307: Programa formación compl 1 NS | D307: 0 | E307: 0 | F307: 0 | G307: 0 | H307: 0 | I307: 0 | J307: 0 | K307: 0 | L307: 0 | M307: 0 | N307: 0 | O307: 0 | P307: 0 | Q307: 0 | R307: 0 | S307: 0 | T307: 0 | U307: 0 | V307: 0 | W307: 0 | X307: 0 | Y307: 0 | Z307: 0 | AA307: 0 | AB307: 0 | AC307: 0 | AD307: 0 | AE307: 25 | AF307: 0 | AG307: 0 | AH307: 24 | AI307: 0 | AJ307: 0 | AK307: 21 | AL307: 0 | AM307: 0
B308: ARAUCA | C308: Programa formación compl 2 NS | D308: 0 | E308: 0 | F308: 0 | G308: 0 | H308: 0 | I308: 0 | J308: 0 | K308: 0 | L308: 0 | M308: 0 | N308: 0 | O308: 0 | P308: 0 | Q308: 0 | R308: 0 | S308: 0 | T308: 0 | U308: 0 | V308: 0 | W308: 0 | X308: 0 | Y308: 0 | Z308: 0 | AA308: 0 | AB308: 0 | AC308: 0 | AD308: 0 | AE308: 36 | AF308: 0 | AG308: 0 | AH308: 20 | AI308: 0 | AJ308: 0 | AK308: 18 | AL308: 0 | AM308: 0
B309: ARAUCA | C309: Programa formación compl 3 NS | D309: 0 | E309: 0 | F309: 0 | G309: 0 | H309: 0 | I309: 0 | J309: 0 | K309: 0 | L309: 0 | M309: 0 | N309: 0 | O309: 0 | P309: 0 | Q309: 0 | R309: 0 | S309: 0 | T309: 0 | U309: 0 | V309: 0 | W309: 0 | X309: 0 | Y309: 0 | Z309: 0 | AA309: 0 | AB309: 0 | AC309: 0 | AD309: 0 | AE309: 26 | AF309: 0 | AG309: 0 | AH309: 25 | AI309: 0 | AJ309: 0 | AK309: 19 | AL309: 0 | AM309: 0
B310: ARAUCA | C310: Programa formación compl 4 NS | D310: 0 | E310: 0 | F310: 0 | G310: 0 | H310: 0 | I310: 0 | J310: 0 | K310: 0 | L310: 0 | M310: 0 | N310: 0 | O310: 0 | P310: 0 | Q310: 0 | R310: 0 | S310: 0 | T310: 0 | U310: 0 | V310: 0 | W310: 0 | X310: 0 | Y310: 0 | Z310: 0 | AA310: 0 | AB310: 0 | AC310: 0 | AD310: 0 | AE310: 37 | AF310: 0 | AG310: 0 | AH310: 45 | AI310: 0 | AJ310: 0 | AK310: 29 | AL310: 0 | AM310: 0
B311: ARAUCA | C311: Aceleración del Aprendizaje | D311: 113 | E311: 0 | F311: 0 | G311: 129 | H311: 0 | I311: 0 | J311: 134 | K311: 0 | L311: 0 | M311: 95 | N311: 0 | O311: 0 | P311: 162 | Q311: 0 | R311: 0 | S311: 184 | T311: 0 | U311: 0 | V311: 330 | W311: 0 | X311: 0 | Y311: 333 | Z311: 0 | AA311: 0 | AB311: 446 | AC311: 0 | AD311: 0 | AE311: 412 | AF311: 0 | AG311: 0 | AH311: 285 | AI311: 0 | AJ311: 0 | AK311: 289 | AL311: 0 | AM311: 0
B312: ARMENIA | C312: Prejardín | D312: 0 | E312: 0 | F312: 446 | G312: 0 | H312: 0 | I312: 548 | J312: 0 | K312: 0 | L312: 644 | M312: 0 | N312: 0 | O312: 605 | P312: 0 | Q312: 0 | R312: 638 | S312: 0 | T312: 0 | U312: 623 | V312: 0 | W312: 0 | X312: 476 | Y312: 0 | Z312: 0 | AA312: 323 | AB312: 0 | AC312: 0 | AD312: 409 | AE312: 57 | AF312: 0 | AG312: 376 | AH312: 109 | AI312: 0 | AJ312: 347 | AK312: 165 | AL312: 0 | AM312: 334
B313: ARMENIA | C313: Jardín | D313: 0 | E313: 0 | F313: 620 | G313: 0 | H313: 0 | I313: 669 | J313: 0 | K313: 0 | L313: 729 | M313: 0 | N313: 0 | O313: 785 | P313: 0 | Q313: 0 | R313: 793 | S313: 0 | T313: 0 | U313: 801 | V313: 0 | W313: 0 | X313: 765 | Y313: 0 | Z313: 0 | AA313: 510 | AB313: 295 | AC313: 0 | AD313: 586 | AE313: 557 | AF313: 0 | AG313: 489 | AH313: 614 | AI313: 0 | AJ313: 471 | AK313: 712 | AL313: 0 | AM313: 401
B314: ARMENIA | C314: Transición | D314: 2,628 | E314: 0 | F314: 628 | G314: 2,557 | H314: 0 | I314: 725 | J314: 2,389 | K314: 0 | L314: 827 | M314: 2,407 | N314: 0 | O314: 805 | P314: 2,472 | Q314: 0 | R314: 843 | S314: 2,513 | T314: 0 | U314: 870 | V314: 2,576 | W314: 0 | X314: 866 | Y314: 2,432 | Z314: 0 | AA314: 787 | AB314: 2,717 | AC314: 0 | AD314: 800 | AE314: 2,563 | AF314: 0 | AG314: 740 | AH314: 2,360 | AI314: 0 | AJ314: 620 | AK314: 2,152 | AL314: 0 | AM314: 602
B315: ARMENIA | C315: Primero | D315: 3,250 | E315: 0 | F315: 683 | G315: 2,897 | H315: 0 | I315: 696 | J315: 2,849 | K315: 0 | L315: 764 | M315: 2,799 | N315: 0 | O315: 724 | P315: 2,817 | Q315: 0 | R315: 711 | S315: 2,859 | T315: 0 | U315: 724 | V315: 2,948 | W315: 0 | X315: 734 | Y315: 2,929 | Z315: 0 | AA315: 684 | AB315: 3,033 | AC315: 0 | AD315: 763 | AE315: 3,192 | AF315: 0 | AG315: 748 | AH315: 3,037 | AI315: 0 | AJ315: 665 | AK315: 2,681 | AL315: 0 | AM315: 604
B316: ARMENIA | C316: Segundo | D316: 3,576 | E316: 0 | F316: 620 | G316: 3,119 | H316: 0 | I316: 721 | J316: 2,868 | K316: 0 | L316: 739 | M316: 2,839 | N316: 0 | O316: 711 | P316: 2,695 | Q316: 0 | R316: 702 | S316: 2,740 | T316: 0 | U316: 725 | V316: 2,834 | W316: 0 | X316: 695 | Y316: 2,902 | Z316: 0 | AA316: 670 | AB316: 2,984 | AC316: 0 | AD316: 722 | AE316: 2,828 | AF316: 0 | AG316: 800 | AH316: 2,979 | AI316: 0 | AJ316: 713 | AK316: 2,951 | AL316: 0 | AM316: 641
B317: ARMENIA | C317: Tercero | D317: 3,438 | E317: 0 | F317: 652 | G317: 3,490 | H317: 0 | I317: 639 | J317: 3,090 | K317: 0 | L317: 719 | M317: 2,903 | N317: 0 | O317: 699 | P317: 2,851 | Q317: 0 | R317: 687 | S317: 2,778 | T317: 0 | U317: 645 | V317: 2,745 | W317: 0 | X317: 679 | Y317: 2,792 | Z317: 0 | AA317: 648 | AB317: 2,858 | AC317: 0 | AD317: 656 | AE317: 2,907 | AF317: 0 | AG317: 748 | AH317: 2,798 | AI317: 0 | AJ317: 757 | AK317: 2,901 | AL317: 0 | AM317: 651
B318: ARMENIA | C318: Cuarto | D318: 3,418 | E318: 0 | F318: 632 | G318: 3,427 | H318: 0 | I318: 644 | J318: 3,508 | K318: 0 | L318: 672 | M318: 3,121 | N318: 0 | O318: 663 | P318: 2,935 | Q318: 0 | R318: 688 | S318: 2,810 | T318: 0 | U318: 675 | V318: 2,809 | W318: 0 | X318: 614 | Y318: 2,740 | Z318: 0 | AA318: 605 | AB318: 2,708 | AC318: 0 | AD318: 649 | AE318: 2,657 | AF318: 0 | AG318: 708 | AH318: 2,818 | AI318: 0 | AJ318: 739 | AK318: 2,731 | AL318: 0 | AM318: 718
B319: ARMENIA | C319: Quinto | D319: 3,696 | E319: 0 | F319: 591 | G319: 3,348 | H319: 0 | I319: 637 | J319: 3,348 | K319: 0 | L319: 667 | M319: 3,456 | N319: 0 | O319: 613 | P319: 3,154 | Q319: 0 | R319: 659 | S319: 2,926 | T319: 0 | U319: 668 | V319: 2,845 | W319: 0 | X319: 630 | Y319: 2,800 | Z319: 0 | AA319: 566 | AB319: 2,800 | AC319: 0 | AD319: 602 | AE319: 2,599 | AF319: 0 | AG319: 669 | AH319: 2,622 | AI319: 0 | AJ319: 669 | AK319: 2,759 | AL319: 0 | AM319: 707
B320: ARMENIA | C320: Sexto | D320: 4,320 | E320: 1 | F320: 585 | G320: 4,010 | H320: 0 | I320: 640 | J320: 3,789 | K320: 0 | L320: 722 | M320: 3,765 | N320: 0 | O320: 637 | P320: 3,811 | Q320: 0 | R320: 607 | S320: 3,445 | T320: 0 | U320: 639 | V320: 3,321 | W320: 0 | X320: 629 | Y320: 3,138 | Z320: 0 | AA320: 564 | AB320: 3,123 | AC320: 0 | AD320: 554 | AE320: 3,074 | AF320: 0 | AG320: 649 | AH320: 3,004 | AI320: 0 | AJ320: 597 | AK320: 2,917 | AL320: 0 | AM320: 639
B321: ARMENIA | C321: Septimo | D321: 4,444 | E321: 0 | F321: 609 | G321: 4,142 | H321: 0 | I321: 620 | J321: 3,989 | K321: 0 | L321: 648 | M321: 3,890 | N321: 0 | O321: 637 | P321: 3,812 | Q321: 0 | R321: 627 | S321: 3,928 | T321: 0 | U321: 601 | V321: 3,746 | W321: 0 | X321: 600 | Y321: 3,493 | Z321: 0 | AA321: 567 | AB321: 3,261 | AC321: 0 | AD321: 570 | AE321: 3,087 | AF321: 0 | AG321: 592 | AH321: 3,042 | AI321: 0 | AJ321: 616 | AK321: 3,019 | AL321: 0 | AM321: 606
B322: ARMENIA | C322: Octavo | D322: 3,897 | E322: 0 | F322: 642 | G322: 3,735 | H322: 0 | I322: 601 | J322: 3,445 | K322: 0 | L322: 657 | M322: 3,523 | N322: 0 | O322: 571 | P322: 3,382 | Q322: 0 | R322: 631 | S322: 3,264 | T322: 0 | U322: 607 | V322: 3,383 | W322: 0 | X322: 561 | Y322: 3,178 | Z322: 0 | AA322: 582 | AB322: 2,965 | AC322: 0 | AD322: 590 | AE322: 2,792 | AF322: 0 | AG322: 629 | AH322: 2,569 | AI322: 0 | AJ322: 577 | AK322: 2,657 | AL322: 0 | AM322: 611
B323: ARMENIA | C323: Noveno | D323: 3,958 | E323: 1 | F323: 590 | G323: 3,679 | H323: 0 | I323: 629 | J323: 3,643 | K323: 0 | L323: 594 | M323: 3,385 | N323: 0 | O323: 564 | P323: 3,422 | Q323: 0 | R323: 525 | S323: 3,372 | T323: 0 | U323: 583 | V323: 3,424 | W323: 0 | X323: 544 | Y323: 3,609 | Z323: 0 | AA323: 534 | AB323: 3,313 | AC323: 0 | AD323: 552 | AE323: 2,864 | AF323: 0 | AG323: 570 | AH323: 2,657 | AI323: 0 | AJ323: 581 | AK323: 2,549 | AL323: 0 | AM323: 535
B324: ARMENIA | C324: Decimo | D324: 3,059 | E324: 0 | F324: 518 | G324: 3,357 | H324: 0 | I324: 567 | J324: 3,208 | K324: 0 | L324: 579 | M324: 3,006 | N324: 0 | O324: 450 | P324: 2,829 | Q324: 0 | R324: 489 | S324: 2,847 | T324: 0 | U324: 466 | V324: 2,877 | W324: 0 | X324: 508 | Y324: 2,791 | Z324: 0 | AA324: 478 | AB324: 2,842 | AC324: 0 | AD324: 489 | AE324: 2,665 | AF324: 0 | AG324: 556 | AH324: 2,397 | AI324: 0 | AJ324: 524 | AK324: 2,373 | AL324: 0 | AM324: 517
B325: ARMENIA | C325: Once | D325: 2,796 | E325: 0 | F325: 481 | G325: 2,579 | H325: 0 | I325: 508 | J325: 3,037 | K325: 0 | L325: 545 | M325: 2,972 | N325: 0 | O325: 483 | P325: 2,765 | Q325: 0 | R325: 466 | S325: 2,597 | T325: 0 | U325: 440 | V325: 2,637 | W325: 0 | X325: 410 | Y325: 2,774 | Z325: 0 | AA325: 477 | AB325: 2,606 | AC325: 0 | AD325: 404 | AE325: 2,434 | AF325: 0 | AG325: 431 | AH325: 2,189 | AI325: 0 | AJ325: 498 | AK325: 2,067 | AL325: 0 | AM325: 494
B326: ARMENIA | C326: 12º Normal | D326: 202 | E326: 0 | F326: 0 | G326: 275 | H326: 0 | I326: 0 | J326: 131 | K326: 0 | L326: 0 | M326: 130 | N326: 0 | O326: 0 | P326: 133 | Q326: 0 | R326: 0 | S326: 141 | T326: 0 | U326: 0 | V326: 116 | W326: 0 | X326: 0 | Y326: 68 | Z326: 0 | AA326: 0 | AB326: 89 | AC326: 0 | AD326: 0 | AE326: 0 | AF326: 0 | AG326: 0 | AH326: 0 | AI326: 0 | AJ326: 0 | AK326: 0 | AL326: 0 | AM326: 0
B327: ARMENIA | C327: 13º Normal | D327: 68 | E327: 0 | F327: 0 | G327: 99 | H327: 0 | I327: 0 | J327: 155 | K327: 0 | L327: 0 | M327: 94 | N327: 0 | O327: 0 | P327: 66 | Q327: 0 | R327: 0 | S327: 68 | T327: 0 | U327: 0 | V327: 81 | W327: 0 | X327: 0 | Y327: 95 | Z327: 0 | AA327: 0 | AB327: 73 | AC327: 0 | AD327: 0 | AE327: 0 | AF327: 0 | AG327: 0 | AH327: 0 | AI327: 0 | AJ327: 0 | AK327: 0 | AL327: 0 | AM327: 0
B328: ARMENIA | C328: Ciclo 1 Adultos | D328: 137 | E328: 2 | F328: 25 | G328: 80 | H328: 0 | I328: 25 | J328: 86 | K328: 0 | L328: 0 | M328: 67 | N328: 0 | O328: 0 | P328: 33 | Q328: 0 | R328: 0 | S328: 70 | T328: 0 | U328: 0 | V328: 52 | W328: 0 | X328: 0 | Y328: 39 | Z328: 0 | AA328: 0 | AB328: 31 | AC328: 0 | AD328: 0 | AE328: 27 | AF328: 0 | AG328: 0 | AH328: 11 | AI328: 0 | AJ328: 3 | AK328: 37 | AL328: 0 | AM328: 0
B329: ARMENIA | C329: Ciclo 2 Adultos | D329: 305 | E329: 1 | F329: 29 | G329: 143 | H329: 0 | I329: 38 | J329: 178 | K329: 0 | L329: 0 | M329: 187 | N329: 0 | O329: 0 | P329: 135 | Q329: 0 | R329: 0 | S329: 151 | T329: 0 | U329: 0 | V329: 170 | W329: 0 | X329: 2 | Y329: 91 | Z329: 0 | AA329: 0 | AB329: 99 | AC329: 0 | AD329: 4 | AE329: 108 | AF329: 0 | AG329: 10 | AH329: 95 | AI329: 0 | AJ329: 0 | AK329: 77 | AL329: 0 | AM329: 4
B330: ARMENIA | C330: Ciclo 3 Adultos | D330: 935 | E330: 0 | F330: 40 | G330: 715 | H330: 0 | I330: 42 | J330: 579 | K330: 0 | L330: 32 | M330: 555 | N330: 0 | O330: 33 | P330: 477 | Q330: 0 | R330: 17 | S330: 397 | T330: 0 | U330: 18 | V330: 374 | W330: 0 | X330: 14 | Y330: 228 | Z330: 0 | AA330: 13 | AB330: 216 | AC330: 0 | AD330: 19 | AE330: 200 | AF330: 0 | AG330: 18 | AH330: 175 | AI330: 0 | AJ330: 10 | AK330: 127 | AL330: 0 | AM330: 22
B331: ARMENIA | C331: Ciclo 4 Adultos | D331: 1,172 | E331: 0 | F331: 76 | G331: 993 | H331: 0 | I331: 104 | J331: 971 | K331: 0 | L331: 84 | M331: 824 | N331: 0 | O331: 76 | P331: 745 | Q331: 0 | R331: 74 | S331: 591 | T331: 0 | U331: 81 | V331: 482 | W331: 0 | X331: 75 | Y331: 314 | Z331: 0 | AA331: 88 | AB331: 249 | AC331: 0 | AD331: 71 | AE331: 262 | AF331: 0 | AG331: 53 | AH331: 244 | AI331: 0 | AJ331: 52 | AK331: 205 | AL331: 0 | AM331: 32
... 1727 more rows

Sheet 5 MAT SECTOR ZONA
B1: MATRICULA POR GRADOS SEGÚN SECTOR ZONA | AD1: Indice | BW1: Indice
B2: =+'1 ESTAB'!B2 -> Corte SEPTIEMBRE 2025 información preliminar
D5: 2014 | J5: 2015 | P5: 2016 | V5: 2017 | AB5: 2018 | AH5: 2019 | AN5: 2020 | AT5: 2021 | AZ5: 2022 | BF5: =+'1 ESTAB'!M4 -> 2023 | BL5: =+'1 ESTAB'!N4 -> 2024 | BR5: =+'1 ESTAB'!O4 -> Sep. 2025
B6: ENTIDAD | D6: Oficial | F6: Contratada | H6: No Oficial | J6: Oficial | L6: Contratada | N6: No Oficial | P6: Oficial | R6: Contratada | T6: No Oficial | V6: Oficial | X6: Contratada | Z6: No Oficial | AB6: Oficial | AD6: Contratada | AF6: No Oficial | AH6: Oficial | AJ6: Contratada | AL6: No Oficial | AN6: Oficial | AP6: Contratada | AR6: No Oficial | AT6: Oficial | AV6: Contratada | AX6: No Oficial | AZ6: Oficial | BB6: Contratada | BD6: No Oficial | BF6: Oficial | BH6: Contratada | BJ6: No Oficial | BL6: Oficial | BN6: Contratada | BP6: No Oficial | BR6: Oficial | BT6: Contratada | BV6: No Oficial
B7: BOGOTA | C7: Grado | D7: Urbano | E7: Rural | F7: Urbano | G7: Rural | H7: Urbano | I7: Rural | J7: Urbano | K7: Rural | L7: Urbano | M7: Rural | N7: Urbano | O7: Rural | P7: Urbano | Q7: Rural | R7: Urbano | S7: Rural | T7: Urbano | U7: Rural | V7: Urbano | W7: Rural | X7: Urbano | Y7: Rural | Z7: Urbano | AA7: Rural | AB7: Urbano | AC7: Rural | AD7: Urbano | AE7: Rural | AF7: Urbano | AG7: Rural | AH7: Urbano | AI7: Rural | AJ7: Urbano | AK7: Rural | AL7: Urbano | AM7: Rural | AN7: Urbano | AO7: Rural | AP7: Urbano | AQ7: Rural | AR7: Urbano | AS7: Rural | AT7: Urbano | AU7: Rural | AV7: Urbano | AW7: Rural | AX7: Urbano | AY7: Rural | AZ7: Urbano | BA7: Rural | BB7: Urbano | BC7: Rural | BD7: Urbano | BE7: Rural | BF7: Urbano | BG7: Rural | BH7: Urbano | BI7: Rural | BJ7: Urbano | BK7: Rural | BL7: Urbano | BM7: Rural | BN7: Urbano | BO7: Rural | BP7: Urbano | BQ7: Rural | BR7: Urbano | BS7: Rural | BT7: Urbano | BU7: Rural | BV7: Urbano | BW7: Rural
C8: Prejardín | D8: =+SUMIFS($D$200:$D$3135,$B$200:$B$3135,$B$7,$C$200:$C$3135,C8) -> 10,943 | E8: =+SUMIFS($E$200:$E$3135,$B$200:$B$3135,$B$7,$C$200:$C$3135,C8) -> 74 | F8: =+SUMIFS($F$200:$F$3135,$B$200:$B$3135,$B$7,$C$200:$C$3135,C8) -> 3 | G8: =+SUMIFS($G$200:$G$3135,$B$200:$B$3135,$B$7,$C$200:$C$3135,C8) -> 0 | H8: =+SUMIFS($H$200:$H$3135,$B$200:$B$3135,$B$7,$C$200:$C$3135,C8) -> 14,549 | I8: =+SUMIFS($I$200:$I$3135,$B$200:$B$3135,$B$7,$C$200:$C$3135,C8) -> 80 | J8: =+SUMIFS($J$200:$J$3135,$B$200:$B$3135,$B$7,$C$200:$C$3135,C8) -> 15,471 | K8: =+SUMIFS($K$200:$K$3135,$B$200:$B$3135,$B$7,$C$200:$C$3135,C8) -> 103 | L8: =+SUMIFS($L$200:$L$3135,$B$200:$B$3135,$B$7,$C$200:$C$3135,C8) -> 0 | M8: =+SUMIFS($M$200:$M$3135,$B$200:$B$3135,$B$7,$C$200:$C$3135,C8) -> 0 | N8: =+SUMIFS($N$200:$N$3135,$B$200:$B$3135,$B$7,$C$200:$C$3135,C8) -> 14,769 | O8: =+SUMIFS($O$200:$O$3135,$B$200:$B$3135,$B$7,$C$200:$C$3135,C8) -> 92 | P8: =+SUMIFS($P$200:$P$3135,$B$200:$B$3135,$B$7,$C$200:$C$3135,C8) -> 15,858 | Q8: =+SUMIFS($Q$200:$Q$3135,$B$200:$B$3135,$B$7,$C$200:$C$3135,C8) -> 103 | R8: =+SUMIFS($R$200:$R$3135,$B$200:$B$3135,$B$7,$C$200:$C$3135,C8) -> 138 | S8: =+SUMIFS($S$200:$S$3135,$B$200:$B$3135,$B$7,$C$200:$C$3135,C8) -> 0 | T8: =+SUMIFS($T$200:$T$3135,$B$200:$B$3135,$B$7,$C$200:$C$3135,C8) -> 14,523 | U8: =+SUMIFS($U$200:$U$3135,$B$200:$B$3135,$B$7,$C$200:$C$3135,C8) -> 57 | V8: =+SUMIFS($V$200:$V$3135,$B$200:$B$3135,$B$7,$C$200:$C$3135,C8) -> 11,285 | W8: =+SUMIFS($W$200:$W$3135,$B$200:$B$3135,$B$7,$C$200:$C$3135,C8) -> 5 | X8: =+SUMIFS($X$200:$X$3135,$B$200:$B$3135,$B$7,$C$200:$C$3135,C8) -> 0 | Y8: =+SUMIFS($Y$200:$Y$3135,$B$200:$B$3135,$B$7,$C$200:$C$3135,C8) -> 0 | Z8: =+SUMIFS($Z$200:$Z$3135,$B$200:$B$3135,$B$7,$C$200:$C$3135,C8) -> 14,640 | AA8: =+SUMIFS($AA$200:$AA$3135,$B$200:$B$3135,$B$7,$C$200:$C$3135,C8) -> 87 | AB8: =+SUMIFS($AB$200:$AB$3135,$B$200:$B$3135,$B$7,$C$200:$C$3135,C8) -> 11,134 | AC8: =+SUMIFS($AC$200:$AC$3135,$B$200:$B$3135,$B$7,$C$200:$C$3135,C8) -> 59 | AD8: =+SUMIFS($AD$200:$AD$3135,$B$200:$B$3135,$B$7,$C$200:$C$3135,C8) -> 2 | AE8: =+SUMIFS($AE$200:$AE$3135,$B$200:$B$3135,$B$7,$C$200:$C$3135,C8) -> 0 | AF8: =+SUMIFS($AF$200:$AF$3135,$B$200:$B$3135,$B$7,$C$200:$C$3135,C8) -> 13,690 | AG8: =+SUMIFS($AG$200:$AG$3135,$B$200:$B$3135,$B$7,$C$200:$C$3135,C8) -> 92 | AH8: =+SUMIFS($AH$200:$AH$3135,$B$200:$B$3135,$B$7,$C$200:$C$3135,C8) -> 10,637 | AI8: =+SUMIFS($AI$200:$AI$3135,$B$200:$B$3135,$B$7,$C$200:$C$3135,C8) -> 85 | AJ8: =+SUMIFS($AJ$200:$AJ$3135,$B$200:$B$3135,$B$7,$C$200:$C$3135,C8) -> 0 | AK8: =+SUMIFS($AK$200:$AK$3135,$B$200:$B$3135,$B$7,$C$200:$C$3135,C8) -> 0 | AL8: =+SUMIFS($AL$200:$AL$3135,$B$200:$B$3135,$B$7,$C$200:$C$3135,C8) -> 12,914 | AM8: =+SUMIFS($AM$200:$AM$3135,$B$200:$B$3135,$B$7,$C$200:$C$3135,C8) -> 86 | AN8: =+SUMIFS($AN$200:$AN$3135,$B$200:$B$3135,$B$7,$C$200:$C$3135,C8) -> 10,500 | AO8: =+SUMIFS($AO$200:$AO$3135,$B$200:$B$3135,$B$7,$C$200:$C$3135,C8) -> 67 | AP8: =+SUMIFS($AP$200:$AP$3135,$B$200:$B$3135,$B$7,$C$200:$C$3135,C8) -> 7 | AQ8: =+SUMIFS($AQ$200:$AQ$3135,$B$200:$B$3135,$B$7,$C$200:$C$3135,C8) -> 0 | AR8: =+SUMIFS($AR$200:$AR$3135,$B$200:$B$3135,$B$7,$C$200:$C$3135,C8) -> 10,666 | AS8: =+SUMIFS($AS$200:$AS$3135,$B$200:$B$3135,$B$7,$C$200:$C$3135,C8) -> 106 | AT8: =+SUMIFS($AT$200:$AT$3135,$B$200:$B$3135,$B$7,$C$200:$C$3135,C8) -> 13,040 | AU8: =+SUMIFS($AU$200:$AU$3135,$B$200:$B$3135,$B$7,$C$200:$C$3135,C8) -> 92 | AV8: =+SUMIFS($AV$200:$AV$3135,$B$200:$B$3135,$B$7,$C$200:$C$3135,C8) -> 0 | AW8: =+SUMIFS($AW$200:$AW$3135,$B$200:$B$3135,$B$7,$C$200:$C$3135,C8) -> 0 | AX8: =+SUMIFS($AX$200:$AX$3135,$B$200:$B$3135,$B$7,$C$200:$C$3135,C8) -> 6,334 | AY8: =+SUMIFS($AY$200:$AY$3135,$B$200:$B$3135,$B$7,$C$200:$C$3135,C8) -> 55 | AZ8: =+SUMIFS($AZ$200:$AZ$3135,$B$200:$B$3135,$B$7,$C$200:$C$3135,C8) -> 13,331 | BA8: =+SUMIFS($BA$200:$BA$3135,$B$200:$B$3135,$B$7,$C$200:$C$3135,C8) -> 88 | BB8: =+SUMIFS($BB$200:$BB$3135,$B$200:$B$3135,$B$7,$C$200:$C$3135,C8) -> 0 | BC8: =+SUMIFS($BC$200:$BC$3135,$B$200:$B$3135,$B$7,$C$200:$C$3135,C8) -> 0 | BD8: =+SUMIFS($BD$200:$BD$3135,$B$200:$B$3135,$B$7,$C$200:$C$3135,C8) -> 9,396 | BE8: =+SUMIFS($BE$200:$BE$3135,$B$200:$B$3135,$B$7,$C$200:$C$3135,C8) -> 96 | BF8: =+SUMIFS($BF$200:$BF$3135,$B$200:$B$3135,$B$7,$C$200:$C$3135,C8) -> 12,527 | BG8: =+SUMIFS($BG$200:$BG$3135,$B$200:$B$3135,$B$7,$C$200:$C$3135,C8) -> 210 | BH8: =+SUMIFS($BH$200:$BH$3135,$B$200:$B$3135,$B$7,$C$200:$C$3135,C8) -> 0 | BI8: =+SUMIFS($BI$200:$BI$3135,$B$200:$B$3135,$B$7,$C$200:$C$3135,C8) -> 0 | BJ8: =+SUMIFS($BJ$200:$BJ$3135,$B$200:$B$3135,$B$7,$C$200:$C$3135,C8) -> 8,329 | BK8: =+SUMIFS($BK$200:$BK$3135,$B$200:$B$3135,$B$7,$C$200:$C$3135,C8) -> 62 | BL8: =+SUMIFS($BL$200:$BL$3135,$B$200:$B$3135,$B$7,$C$200:$C$3135,C8) -> 12,087 | BM8: =+SUMIFS($BM$200:$BM$3135,$B$200:$B$3135,$B$7,$C$200:$C$3135,C8) -> 215 | BN8: =+SUMIFS($BN$200:$BN$3135,$B$200:$B$3135,$B$7,$C$200:$C$3135,C8) -> 0 | BO8: =+SUMIFS($BO$200:$BO$3135,$B$200:$B$3135,$B$7,$C$200:$C$3135,C8) -> 0 | BP8: =+SUMIFS($BP$200:$BP$3135,$B$200:$B$3135,$B$7,$C$200:$C$3135,C8) -> 7,122 | BQ8: =+SUMIFS($BQ$200:$BQ$3135,$B$200:$B$3135,$B$7,$C$200:$C$3135,C8) -> 52 | BR8: =+SUMIFS($BR$200:$BR$3135,$B$200:$B$3135,$B$7,$C$200:$C$3135,C8) -> 17,043 | BS8: =+SUMIFS($BS$200:$BS$3135,$B$200:$B$3135,$B$7,$C$200:$C$3135,C8) -> 369 | BT8: =+SUMIFS($BT$200:$BT$3135,$B$200:$B$3135,$B$7,$C$200:$C$3135,C8) -> 0 | BU8: =+SUMIFS($BU$200:$BU$3135,$B$200:$B$3135,$B$7,$C$200:$C$3135,C8) -> 0 | BV8: =+SUMIFS($BV$200:$BV$3135,$B$200:$B$3135,$B$7,$C$200:$C$3135,C8) -> 6,721 | BW8: =+SUMIFS($BW$200:$BW$3135,$B$200:$B$3135,$B$7,$C$200:$C$3135,C8) -> 64
C9: Jardín | D9: 15,765 | E9: 134 | F9: 33 | G9: 0 | H9: 25,770 | I9: 119 | J9: 21,732 | K9: 182 | L9: 1 | M9: 0 | N9: 24,589 | O9: 115 | P9: 21,920 | Q9: 167 | R9: 1 | S9: 0 | T9: 22,932 | U9: 160 | V9: 24,587 | W9: 311 | X9: 3 | Y9: 0 | Z9: 24,580 | AA9: 130 | AB9: 23,319 | AC9: 536 | AD9: 0 | AE9: 0 | AF9: 23,125 | AG9: 157 | AH9: 25,457 | AI9: 566 | AJ9: 1 | AK9: =+SUMIFS($AK$200:$AK$3135,$B$200:$B$3135,$B$7,$C$200:$C$3135,C9) -> 0 | AL9: 22,559 | AM9: 130 | AN9: 25,315 | AO9: =+SUMIFS($AO$200:$AO$3135,$B$200:$B$3135,$B$7,$C$200:$C$3135,C9) -> 548 | AP9: =+SUMIFS($AP$200:$AP$3135,$B$200:$B$3135,$B$7,$C$200:$C$3135,C9) -> 963 | AQ9: =+SUMIFS($AQ$200:$AQ$3135,$B$200:$B$3135,$B$7,$C$200:$C$3135,C9) -> 0 | AR9: 20,775 | AS9: 150 | AT9: 24,097 | AU9: 549 | AV9: 922 | AW9: 0 | AX9: 14,097 | AY9: 143 | AZ9: 24,114 | BA9: 552 | BB9: 857 | BC9: 0 | BD9: 16,779 | BE9: 126 | BF9: =+SUMIFS($BF$200:$BF$3135,$B$200:$B$3135,$B$7,$C$200:$C$3135,C9) -> 23,895 | BG9: =+SUMIFS($BG$200:$BG$3135,$B$200:$B$3135,$B$7,$C$200:$C$3135,C9) -> 510 | BH9: =+SUMIFS($BH$200:$BH$3135,$B$200:$B$3135,$B$7,$C$200:$C$3135,C9) -> 906 | BI9: =+SUMIFS($BI$200:$BI$3135,$B$200:$B$3135,$B$7,$C$200:$C$3135,C9) -> 0 | BJ9: =+SUMIFS($BJ$200:$BJ$3135,$B$200:$B$3135,$B$7,$C$200:$C$3135,C9) -> 16,547 | BK9: =+SUMIFS($BK$200:$BK$3135,$B$200:$B$3135,$B$7,$C$200:$C$3135,C9) -> 140 | BL9: =+SUMIFS($BL$200:$BL$3135,$B$200:$B$3135,$B$7,$C$200:$C$3135,C9) -> 22,435 | BM9: =+SUMIFS($BM$200:$BM$3135,$B$200:$B$3135,$B$7,$C$200:$C$3135,C9) -> 479 | BN9: =+SUMIFS($BN$200:$BN$3135,$B$200:$B$3135,$B$7,$C$200:$C$3135,C9) -> 874 | BO9: =+SUMIFS($BO$200:$BO$3135,$B$200:$B$3135,$B$7,$C$200:$C$3135,C9) -> 0 | BP9: =+SUMIFS($BP$200:$BP$3135,$B$200:$B$3135,$B$7,$C$200:$C$3135,C9) -> 14,248 | BQ9: =+SUMIFS($BQ$200:$BQ$3135,$B$200:$B$3135,$B$7,$C$200:$C$3135,C9) -> 122 | BR9: =+SUMIFS($BR$200:$BR$3135,$B$200:$B$3135,$B$7,$C$200:$C$3135,C9) -> 22,524 | BS9: =+SUMIFS($BS$200:$BS$3135,$B$200:$B$3135,$B$7,$C$200:$C$3135,C9) -> 532 | BT9: =+SUMIFS($BT$200:$BT$3135,$B$200:$B$3135,$B$7,$C$200:$C$3135,C9) -> 888 | BU9: =+SUMIFS($BU$200:$BU$3135,$B$200:$B$3135,$B$7,$C$200:$C$3135,C9) -> 0 | BV9: =+SUMIFS($BV$200:$BV$3135,$B$200:$B$3135,$B$7,$C$200:$C$3135,C9) -> 12,902 | BW9: =+SUMIFS($BW$200:$BW$3135,$B$200:$B$3135,$B$7,$C$200:$C$3135,C9) -> 97
C10: Transición | D10: 48,444 | E10: 523 | F10: 3,012 | G10: 0 | H10: 36,257 | I10: 198 | J10: 47,942 | K10: 548 | L10: 2,480 | M10: 0 | N10: 37,278 | O10: 221 | P10: 46,244 | Q10: 550 | R10: 2,941 | S10: 0 | T10: 35,958 | U10: 197 | V10: 46,376 | W10: 558 | X10: 2,038 | Y10: 0 | Z10: 36,042 | AA10: 267 | AB10: 47,054 | AC10: 982 | AD10: 1,837 | AE10: 0 | AF10: 35,278 | AG10: 220 | AH10: 47,494 | AI10: 908 | AJ10: 1,808 | AK10: 0 | AL10: 33,966 | AM10: 241 | AN10: 47,321 | AO10: 966 | AP10: 2,385 | AQ10: 0 | AR10: 32,531 | AS10: 237 | AT10: 47,771 | AU10: 978 | AV10: 2,439 | AW10: 0 | AX10: 25,753 | AY10: 218 | AZ10: 45,758 | BA10: 948 | BB10: 2,466 | BC10: 0 | BD10: 28,653 | BE10: 249 | BF10: 43,944 | BG10: 915 | BH10: 2,635 | BI10: 0 | BJ10: 26,263 | BK10: 184 | BL10: 41,279 | BM10: 894 | BN10: 2,758 | BO10: 0 | BP10: 23,882 | BQ10: 211 | BR10: 37,903 | BS10: 858 | BT10: 2,681 | BU10: 0 | BV10: 21,762 | BW10: 162
C11: Primero | D11: 57,769 | E11: 688 | F11: 3,770 | G11: 0 | H11: 39,687 | I11: 310 | J11: 58,580 | K11: 662 | L11: 3,041 | M11: 0 | N11: 41,273 | O11: 261 | P11: 56,494 | Q11: 652 | R11: 3,078 | S11: 0 | T11: 40,206 | U11: 255 | V11: 55,551 | W11: 636 | X11: 3,405 | Y11: 0 | Z11: 40,634 | AA11: 326 | AB11: 55,371 | AC11: 1,094 | AD11: 2,693 | AE11: 0 | AF11: 39,270 | AG11: 320 | AH11: 58,383 | AI11: 1,148 | AJ11: 2,449 | AK11: 0 | AL11: 38,314 | AM11: 297 | AN11: 57,714 | AO11: 1,070 | AP11: 3,119 | AQ11: 0 | AR11: 36,363 | AS11: 295 | AT11: 57,401 | AU11: 1,100 | AV11: 2,956 | AW11: 0 | AX11: 31,698 | AY11: 271 | AZ11: 57,304 | BA11: 1,124 | BB11: 2,913 | BC11: 0 | BD11: 32,814 | BE11: 276 | BF11: 56,292 | BG11: 1,096 | BH11: 2,983 | BI11: 0 | BJ11: 33,169 | BK11: 278 | BL11: 53,450 | BM11: 1,064 | BN11: 3,217 | BO11: 0 | BP11: 29,945 | BQ11: 240 | BR11: 48,759 | BS11: 1,043 | BT11: 3,293 | BU11: 0 | BV11: 27,646 | BW11: 253
C12: Segundo | D12: 57,775 | E12: 709 | F12: 5,899 | G12: 0 | H12: 38,570 | I12: 294 | J12: 60,373 | K12: 760 | L12: 3,262 | M12: 0 | N12: 41,257 | O12: 310 | P12: 57,652 | Q12: 659 | R12: 3,206 | S12: 0 | T12: 42,265 | U12: 287 | V12: 55,993 | W12: 621 | X12: 3,148 | Y12: 0 | Z12: 41,758 | AA12: 306 | AB12: 54,598 | AC12: 1,098 | AD12: 3,177 | AE12: 0 | AF12: 40,280 | AG12: 327 | AH12: 56,276 | AI12: 1,160 | AJ12: 2,528 | AK12: 0 | AL12: 38,625 | AM12: 330 | AN12: 56,852 | AO12: 1,181 | AP12: 3,507 | AQ12: 0 | AR12: 37,066 | AS12: 281 | AT12: 57,139 | AU12: 1,163 | AV12: 3,009 | AW12: 0 | AX12: 32,550 | AY12: 283 | AZ12: 53,762 | BA12: 1,089 | BB12: 2,908 | BC12: 0 | BD12: 32,765 | BE12: 277 | BF12: 54,922 | BG12: 1,111 | BH12: 2,877 | BI12: 0 | BJ12: 33,182 | BK12: 279 | BL12: 53,770 | BM12: 1,137 | BN12: 3,012 | BO12: 0 | BP12: 32,319 | BQ12: 302 | BR12: 50,925 | BS12: 1,046 | BT12: 3,254 | BU12: 0 | BV12: 29,650 | BW12: 211
C13: Tercero | D13: 55,841 | E13: 641 | F13: 7,832 | G13: 0 | H13: 36,871 | I13: 242 | J13: 59,689 | K13: 723 | L13: 4,921 | M13: 0 | N13: 40,504 | O13: 289 | P13: 59,866 | Q13: 771 | R13: 3,172 | S13: 0 | T13: 42,727 | U13: 335 | V13: 57,745 | W13: 646 | X13: 2,974 | Y13: 0 | Z13: 43,388 | AA13: 325 | AB13: 56,561 | AC13: 894 | AD13: 3,060 | AE13: 0 | AF13: 41,387 | AG13: 328 | AH13: 56,916 | AI13: 936 | AJ13: 2,943 | AK13: 0 | AL13: 39,649 | AM13: 322 | AN13: 56,639 | AO13: 981 | AP13: 3,657 | AQ13: 0 | AR13: 37,174 | AS13: 313 | AT13: 57,826 | AU13: 1,031 | AV13: 3,327 | AW13: 0 | AX13: 33,729 | AY13: 302 | AZ13: 53,533 | BA13: 934 | BB13: 3,027 | BC13: 0 | BD13: 32,680 | BE13: 267 | BF13: 52,843 | BG13: 874 | BH13: 2,891 | BI13: 0 | BJ13: 32,851 | BK13: 268 | BL13: 54,148 | BM13: 923 | BN13: 2,957 | BO13: 0 | BP13: 32,588 | BQ13: 308 | BR13: 53,441 | BS13: 945 | BT13: 3,092 | BU13: 0 | BV13: 31,826 | BW13: 286
C14: Cuarto | D14: 56,232 | E14: 648 | F14: 8,410 | G14: 0 | H14: 35,542 | I14: 221 | J14: 58,560 | K14: 694 | L14: 7,089 | M14: 0 | N14: 37,528 | O14: 239 | P14: 60,420 | Q14: 721 | R14: 4,511 | S14: 0 | T14: 40,214 | U14: 320 | V14: 60,593 | W14: 781 | X14: 3,230 | Y14: 0 | Z14: 41,649 | AA14: 374 | AB14: 59,132 | AC14: 947 | AD14: 2,917 | AE14: 0 | AF14: 42,157 | AG14: 331 | AH14: 59,070 | AI14: 904 | AJ14: 2,896 | AK14: 0 | AL14: 40,100 | AM14: 355 | AN14: 57,526 | AO14: 1,007 | AP14: 3,894 | AQ14: 0 | AR14: 38,089 | AS14: 305 | AT14: 57,519 | AU14: 1,019 | AV14: 3,659 | AW14: 0 | AX14: 33,660 | AY14: 311 | AZ14: 55,441 | BA14: 984 | BB14: 3,321 | BC14: 0 | BD14: 33,051 | BE14: 304 | BF14: 52,672 | BG14: 952 | BH14: 2,999 | BI14: 0 | BJ14: 32,277 | BK14: 261 | BL14: 52,676 | BM14: 883 | BN14: 2,992 | BO14: 0 | BP14: 32,242 | BQ14: 297 | BR14: 53,921 | BS14: 945 | BT14: 3,046 | BU14: 0 | BV14: 32,078 | BW14: 287
C15: Quinto | D15: 57,972 | E15: 699 | F15: 8,909 | G15: 0 | H15: 34,056 | I15: 247 | J15: 58,132 | K15: 692 | L15: 7,014 | M15: 0 | N15: 37,327 | O15: 219 | P15: 58,904 | Q15: 689 | R15: 5,417 | S15: 0 | T15: 38,323 | U15: 258 | V15: 60,368 | W15: 735 | X15: 4,081 | Y15: 0 | Z15: 40,279 | AA15: 341 | AB15: 60,397 | AC15: 1,054 | AD15: 3,054 | AE15: 0 | AF15: 40,747 | AG15: 393 | AH15: 60,777 | AI15: 948 | AJ15: 2,516 | AK15: 0 | AL15: 40,991 | AM15: 339 | AN15: 58,957 | AO15: 915 | AP15: 3,674 | AQ15: 0 | AR15: 38,794 | AS15: 328 | AT15: 58,020 | AU15: 1,027 | AV15: 3,866 | AW15: 0 | AX15: 35,163 | AY15: 319 | AZ15: 55,405 | BA15: 991 | BB15: 3,653 | BC15: 0 | BD15: 33,208 | BE15: 311 | BF15: 54,223 | BG15: 969 | BH15: 3,309 | BI15: 0 | BJ15: 32,649 | BK15: 312 | BL15: 52,028 | BM15: 941 | BN15: 3,022 | BO15: 0 | BP15: 31,616 | BQ15: 285 | BR15: 52,334 | BS15: 919 | BT15: 3,054 | BU15: 0 | BV15: 31,890 | BW15: 288
C16: Sexto | D16: 70,160 | E16: 705 | F16: 10,046 | G16: 0 | H16: 34,937 | I16: 281 | J16: 70,782 | K16: 706 | L16: 7,266 | M16: 0 | N16: 37,278 | O16: 262 | P16: 69,491 | Q16: 744 | R16: 5,854 | S16: 0 | T16: 37,628 | U16: 262 | V16: 69,541 | W16: 772 | X16: 5,148 | Y16: 0 | Z16: 39,080 | AA16: 295 | AB16: 69,378 | AC16: 1,112 | AD16: 3,865 | AE16: 0 | AF16: 39,769 | AG16: 360 | AH16: 71,700 | AI16: 1,099 | AJ16: 2,800 | AK16: 0 | AL16: 39,869 | AM16: 403 | AN16: 71,664 | AO16: 1,042 | AP16: 3,702 | AQ16: 0 | AR16: 38,962 | AS16: 316 | AT16: 67,599 | AU16: 1,003 | AV16: 3,881 | AW16: 0 | AX16: 34,572 | AY16: 406 | AZ16: 64,298 | BA16: 1,037 | BB16: 3,896 | BC16: 0 | BD16: 34,034 | BE16: 374 | BF16: 61,860 | BG16: 987 | BH16: 3,707 | BI16: 0 | BJ16: 32,843 | BK16: 349 | BL16: 61,964 | BM16: 1,100 | BN16: 3,400 | BO16: 0 | BP16: 31,914 | BQ16: 365 | BR16: 59,213 | BS16: 1,045 | BT16: 3,058 | BU16: 0 | BV16: 31,030 | BW16: 314
C17: Septimo | D17: 66,513 | E17: 690 | F17: 10,432 | G17: 0 | H17: 35,835 | I17: 325 | J17: 65,531 | K17: 664 | L17: 7,858 | M17: 0 | N17: 36,824 | O17: 267 | P17: 62,737 | Q17: 666 | R17: 5,955 | S17: 0 | T17: 37,412 | U17: 284 | V17: 61,572 | W17: 721 | X17: 4,943 | Y17: 0 | Z17: 37,801 | AA17: 299 | AB17: 61,328 | AC17: 968 | AD17: 4,531 | AE17: 0 | AF17: 37,901 | AG17: 290 | AH17: 63,989 | AI17: 1,014 | AJ17: 3,402 | AK17: 0 | AL17: 38,330 | AM17: 366 | AN17: 65,419 | AO17: 1,004 | AP17: 3,644 | AQ17: 0 | AR17: 37,971 | AS17: 343 | AT17: 67,824 | AU17: 1,013 | AV17: 3,640 | AW17: 0 | AX17: 36,546 | AY17: 324 | AZ17: 60,344 | BA17: 934 | BB17: 3,812 | BC17: 0 | BD17: 34,489 | BE17: 385 | BF17: 59,292 | BG17: 997 | BH17: 3,735 | BI17: 0 | BJ17: 33,527 | BK17: 352 | BL17: 56,825 | BM17: 968 | BN17: 3,647 | BO17: 0 | BP17: 31,599 | BQ17: 398 | BR17: 55,959 | BS17: 988 | BT17: 3,403 | BU17: 0 | BV17: 31,179 | BW17: 355
C18: Octavo | D18: 61,100 | E18: 668 | F18: 10,212 | G18: 0 | H18: 35,621 | I18: 306 | J18: 62,911 | K18: 589 | L18: 8,251 | M18: 0 | N18: 36,662 | O18: 318 | P18: 59,736 | Q18: 628 | R18: 6,083 | S18: 0 | T18: 35,741 | U18: 282 | V18: 57,684 | W18: 580 | X18: 5,170 | Y18: 0 | Z18: 36,623 | AA18: 350 | AB18: 56,410 | AC18: 1,117 | AD18: 4,213 | AE18: 0 | AF18: 36,444 | AG18: 332 | AH18: 58,163 | AI18: 1,116 | AJ18: 3,762 | AK18: 0 | AL18: 36,203 | AM18: 296 | AN18: 59,064 | AO18: 1,173 | AP18: 4,167 | AQ18: 0 | AR18: 36,232 | AS18: 312 | AT18: 62,699 | AU18: 1,188 | AV18: 3,635 | AW18: 0 | AX18: 35,595 | AY18: 346 | AZ18: 60,199 | BA18: 1,084 | BB18: 3,497 | BC18: 0 | BD18: 34,990 | BE18: 324 | BF18: 55,234 | BG18: 1,102 | BH18: 3,632 | BI18: 0 | BJ18: 33,773 | BK18: 377 | BL18: 53,663 | BM18: 1,124 | BN18: 3,622 | BO18: 0 | BP18: 31,824 | BQ18: 380 | BR18: 51,615 | BS18: 1,159 | BT18: 3,624 | BU18: 0 | BV18: 30,420 | BW18: 366
C19: Noveno | D19: 54,727 | E19: 602 | F19: 10,712 | G19: 0 | H19: 34,245 | I19: 331 | J19: 56,398 | K19: 570 | L19: 7,823 | M19: 0 | N19: 36,084 | O19: 313 | P19: 55,474 | Q19: 541 | R19: 6,330 | S19: 0 | T19: 35,982 | U19: 301 | V19: 52,393 | W19: 552 | X19: 4,998 | Y19: 0 | Z19: 34,955 | AA19: 345 | AB19: 50,680 | AC19: 968 | AD19: 4,382 | AE19: 0 | AF19: 34,780 | AG19: 374 | AH19: 51,539 | AI19: 1,049 | AJ19: 3,465 | AK19: 0 | AL19: 34,491 | AM19: 326 | AN19: 52,394 | AO19: 1,082 | AP19: 4,158 | AQ19: 0 | AR19: 33,889 | AS19: 270 | AT19: 54,990 | AU19: 1,202 | AV19: 4,026 | AW19: 0 | AX19: 33,972 | AY19: 323 | AZ19: 54,186 | BA19: 1,132 | BB19: 3,491 | BC19: 0 | BD19: 33,514 | BE19: 345 | BF19: 52,387 | BG19: 1,059 | BH19: 3,285 | BI19: 0 | BJ19: 33,117 | BK19: 322 | BL19: 49,077 | BM19: 991 | BN19: 3,400 | BO19: 0 | BP19: 31,381 | BQ19: 371 | BR19: 48,248 | BS19: 1,012 | BT19: 3,502 | BU19: 0 | BV19: 30,335 | BW19: 326
C20: Decimo | D20: 51,419 | E20: 498 | F20: 9,343 | G20: 0 | H20: 30,181 | I20: 296 | J20: 52,622 | K20: 467 | L20: 8,265 | M20: 0 | N20: 32,075 | O20: 298 | P20: 52,252 | Q20: 535 | R20: 5,916 | S20: 0 | T20: 31,774 | U20: 298 | V20: 51,443 | W20: 460 | X20: 5,314 | Y20: 0 | Z20: 31,879 | AA20: 399 | AB20: 48,149 | AC20: 908 | AD20: 4,352 | AE20: 0 | AF20: 31,342 | AG20: 332 | AH20: 48,137 | AI20: 921 | AJ20: 3,713 | AK20: 0 | AL20: 31,427 | AM20: 347 | AN20: 49,452 | AO20: 986 | AP20: 3,750 | AQ20: 0 | AR20: 32,054 | AS20: 263 | AT20: 50,406 | AU20: 1,073 | AV20: 4,030 | AW20: 0 | AX20: 31,677 | AY20: 293 | AZ20: 49,299 | BA20: 1,050 | BB20: 3,572 | BC20: 0 | BD20: 31,765 | BE20: 323 | BF20: 49,498 | BG20: 1,023 | BH20: 3,049 | BI20: 0 | BJ20: 31,569 | BK20: 355 | BL20: 48,626 | BM20: 1,009 | BN20: 2,972 | BO20: 0 | BP20: 30,777 | BQ20: 336 | BR20: 46,340 | BS20: 913 | BT20: 3,200 | BU20: 0 | BV20: 29,734 | BW20: 337
C21: Once | D21: 44,277 | E21: 362 | F21: 8,428 | G21: 0 | H21: 31,661 | I21: 285 | J21: 44,085 | K21: 353 | L21: 7,237 | M21: 0 | N21: 31,674 | O21: 272 | P21: 44,042 | Q21: 383 | R21: 6,163 | S21: 0 | T21: 32,789 | U21: 291 | V21: 43,618 | W21: 404 | X21: 4,722 | Y21: 0 | Z21: 32,094 | AA21: 385 | AB21: 43,207 | AC21: 757 | AD21: 4,402 | AE21: 0 | AF21: 32,030 | AG21: 383 | AH21: 40,947 | AI21: 755 | AJ21: 3,421 | AK21: 0 | AL21: 31,105 | AM21: 321 | AN21: 40,885 | AO21: 802 | AP21: 3,475 | AQ21: 0 | AR21: 31,411 | AS21: 283 | AT21: 42,702 | AU21: 845 | AV21: 3,503 | AW21: 0 | AX21: 31,332 | AY21: 271 | AZ21: 40,542 | BA21: 839 | BB21: 3,428 | BC21: 0 | BD21: 30,123 | BE21: 274 | BF21: 41,867 | BG21: 846 | BH21: 3,186 | BI21: 0 | BJ21: 29,886 | BK21: 341 | BL21: 41,975 | BM21: 854 | BN21: 2,753 | BO21: 0 | BP21: 29,731 | BQ21: 470 | BR21: 42,083 | BS21: 817 | BT21: 2,749 | BU21: 0 | BV21: 29,239 | BW21: 983
C22: 12º Normal | D22: 89 | E22: 0 | F22: 0 | G22: 0 | H22: 11 | I22: 0 | J22: 75 | K22: 0 | L22: 0 | M22: 0 | N22: 1 | O22: 0 | P22: 42 | Q22: 0 | R22: 0 | S22: 0 | T22: 0 | U22: 0 | V22: 74 | W22: 0 | X22: 0 | Y22: 0 | Z22: 0 | AA22: 0 | AB22: 60 | AC22: 0 | AD22: 0 | AE22: 0 | AF22: 9 | AG22: 0 | AH22: 61 | AI22: 0 | AJ22: 0 | AK22: 0 | AL22: 5 | AM22: 0 | AN22: 65 | AO22: 0 | AP22: 0 | AQ22: 0 | AR22: 0 | AS22: 0 | AT22: 48 | AU22: 0 | AV22: 0 | AW22: 0 | AX22: 0 | AY22: 0 | AZ22: 46 | BA22: 0 | BB22: 0 | BC22: 0 | BD22: 0 | BE22: 0 | BF22: 0 | BG22: 0 | BH22: 0 | BI22: 0 | BJ22: 1 | BK22: 0 | BL22: 0 | BM22: 0 | BN22: 0 | BO22: 0 | BP22: 0 | BQ22: 0 | BR22: 0 | BS22: 0 | BT22: 0 | BU22: 0 | BV22: 0 | BW22: 0
C23: 13º Normal | D23: 48 | E23: 0 | F23: 0 | G23: 0 | H23: 6 | I23: 0 | J23: 20 | K23: 0 | L23: 0 | M23: 0 | N23: 0 | O23: 0 | P23: 60 | Q23: 0 | R23: 0 | S23: 0 | T23: 0 | U23: 0 | V23: 44 | W23: 0 | X23: 0 | Y23: 0 | Z23: 0 | AA23: 0 | AB23: 59 | AC23: 0 | AD23: 0 | AE23: 0 | AF23: 0 | AG23: 0 | AH23: 65 | AI23: 0 | AJ23: 0 | AK23: 0 | AL23: 9 | AM23: 0 | AN23: 63 | AO23: 0 | AP23: 0 | AQ23: 0 | AR23: 5 | AS23: 0 | AT23: 55 | AU23: 0 | AV23: 0 | AW23: 0 | AX23: 0 | AY23: 0 | AZ23: 76 | BA23: 0 | BB23: 0 | BC23: 0 | BD23: 0 | BE23: 0 | BF23: 5 | BG23: 0 | BH23: 0 | BI23: 0 | BJ23: 0 | BK23: 0 | BL23: 0 | BM23: 0 | BN23: 0 | BO23: 0 | BP23: 1 | BQ23: 0 | BR23: 0 | BS23: 0 | BT23: 0 | BU23: 0 | BV23: 0 | BW23: 0
C24: Ciclo 1 Adultos | D24: 652 | E24: 4 | F24: 59 | G24: 0 | H24: 61 | I24: 4 | J24: 592 | K24: 1 | L24: 0 | M24: 0 | N24: 47 | O24: 0 | P24: 1,443 | Q24: 1 | R24: 0 | S24: 0 | T24: 166 | U24: 0 | V24: 570 | W24: 3 | X24: 0 | Y24: 0 | Z24: 83 | AA24: 0 | AB24: 1,639 | AC24: 1 | AD24: 0 | AE24: 0 | AF24: 80 | AG24: 0 | AH24: 898 | AI24: 2 | AJ24: 0 | AK24: 0 | AL24: 162 | AM24: 0 | AN24: 782 | AO24: 1 | AP24: 0 | AQ24: 0 | AR24: 57 | AS24: 0 | AT24: 679 | AU24: 3 | AV24: 0 | AW24: 0 | AX24: 34 | AY24: 0 | AZ24: 775 | BA24: 0 | BB24: 0 | BC24: 0 | BD24: 30 | BE24: 0 | BF24: 1,081 | BG24: 0 | BH24: 0 | BI24: 0 | BJ24: 25 | BK24: 0 | BL24: 1,080 | BM24: 6 | BN24: 0 | BO24: 0 | BP24: 17 | BQ24: 0 | BR24: 1,103 | BS24: 3 | BT24: 2 | BU24: 0 | BV24: 28 | BW24: 0
C25: Ciclo 2 Adultos | D25: 1,226 | E25: 11 | F25: 2 | G25: 0 | H25: 257 | I25: 8 | J25: 1,393 | K25: 9 | L25: 0 | M25: 0 | N25: 216 | O25: 0 | P25: 1,309 | Q25: 5 | R25: 0 | S25: 0 | T25: 524 | U25: 0 | V25: 1,329 | W25: 6 | X25: 0 | Y25: 0 | Z25: 331 | AA25: 0 | AB25: 1,503 | AC25: 15 | AD25: 0 | AE25: 0 | AF25: 198 | AG25: 0 | AH25: 1,992 | AI25: 15 | AJ25: 0 | AK25: 0 | AL25: 383 | AM25: 0 | AN25: 1,404 | AO25: 10 | AP25: 0 | AQ25: 0 | AR25: 330 | AS25: 0 | AT25: 1,562 | AU25: 29 | AV25: 0 | AW25: 0 | AX25: 148 | AY25: 0 | AZ25: 1,470 | BA25: 13 | BB25: 0 | BC25: 0 | BD25: 161 | BE25: 0 | BF25: 1,752 | BG25: 26 | BH25: 0 | BI25: 0 | BJ25: 155 | BK25: 0 | BL25: 1,836 | BM25: 19 | BN25: 0 | BO25: 0 | BP25: 173 | BQ25: 0 | BR25: 1,792 | BS25: 14 | BT25: 11 | BU25: 0 | BV25: 189 | BW25: 0
C26: Ciclo 3 Adultos | D26: 4,896 | E26: 28 | F26: 12 | G26: 0 | H26: 2,931 | I26: 51 | J26: 5,310 | K26: 34 | L26: 64 | M26: 0 | N26: 3,236 | O26: 1 | P26: 5,068 | Q26: 17 | R26: 0 | S26: 0 | T26: 3,811 | U26: 1 | V26: 5,996 | W26: 19 | X26: 0 | Y26: 0 | Z26: 3,886 | AA26: 1 | AB26: 6,079 | AC26: 46 | AD26: 0 | AE26: 0 | AF26: 3,847 | AG26: 1 | AH26: 7,028 | AI26: 41 | AJ26: 0 | AK26: 0 | AL26: 3,735 | AM26: 6 | AN26: 6,039 | AO26: 63 | AP26: 0 | AQ26: 0 | AR26: 3,077 | AS26: 2 | AT26: 4,963 | AU26: 52 | AV26: 0 | AW26: 0 | AX26: 2,504 | AY26: 0 | AZ26: 5,533 | BA26: 36 | BB26: 0 | BC26: 0 | BD26: 2,967 | BE26: 7 | BF26: 5,673 | BG26: 52 | BH26: 0 | BI26: 0 | BJ26: 2,538 | BK26: 17 | BL26: 5,850 | BM26: 60 | BN26: 0 | BO26: 0 | BP26: 2,787 | BQ26: 7 | BR26: 5,574 | BS26: 36 | BT26: 57 | BU26: 0 | BV26: 2,885 | BW26: 4
C27: Ciclo 4 Adultos | D27: 5,688 | E27: 26 | F27: 5 | G27: 0 | H27: 6,724 | I27: 78 | J27: 6,207 | K27: 31 | L27: 67 | M27: 0 | N27: 6,878 | O27: 16 | P27: 6,610 | Q27: 33 | R27: 0 | S27: 0 | T27: 7,756 | U27: 8 | V27: 6,738 | W27: 31 | X27: 0 | Y27: 0 | Z27: 7,783 | AA27: 21 | AB27: 7,138 | AC27: 52 | AD27: 0 | AE27: 0 | AF27: 7,492 | AG27: 9 | AH27: 7,795 | AI27: 60 | AJ27: 0 | AK27: 0 | AL27: 7,677 | AM27: 16 | AN27: 7,839 | AO27: 58 | AP27: 0 | AQ27: 0 | AR27: 6,839 | AS27: 16 | AT27: 6,593 | AU27: 78 | AV27: 0 | AW27: 0 | AX27: 5,791 | AY27: 8 | AZ27: 7,028 | BA27: 33 | BB27: 0 | BC27: 0 | BD27: 6,546 | BE27: 4 | BF27: 7,706 | BG27: 61 | BH27: 0 | BI27: 0 | BJ27: 6,489 | BK27: 32 | BL27: 7,352 | BM27: 69 | BN27: 0 | BO27: 0 | BP27: 6,786 | BQ27: 15 | BR27: 6,611 | BS27: 70 | BT27: 100 | BU27: 0 | BV27: 6,026 | BW27: 12
C28: Ciclo 5 Adultos | D28: 4,454 | E28: 18 | F28: 18 | G28: 0 | H28: 6,158 | I28: 54 | J28: 3,342 | K28: 23 | L28: 61 | M28: 0 | N28: 7,670 | O28: 7 | P28: 3,469 | Q28: 9 | R28: 0 | S28: 0 | T28: 8,542 | U28: 43 | V28: 2,969 | W28: 16 | X28: 0 | Y28: 0 | Z28: 7,459 | AA28: 22 | AB28: 3,166 | AC28: 32 | AD28: 0 | AE28: 0 | AF28: 7,180 | AG28: 16 | AH28: 2,910 | AI28: 49 | AJ28: 0 | AK28: 0 | AL28: 6,762 | AM28: 14 | AN28: 4,145 | AO28: 36 | AP28: 0 | AQ28: 0 | AR28: 6,649 | AS28: 12 | AT28: 3,756 | AU28: 48 | AV28: 0 | AW28: 0 | AX28: 5,965 | AY28: 32 | AZ28: 4,033 | BA28: 39 | BB28: 0 | BC28: 0 | BD28: 5,916 | BE28: 146 | BF28: 4,352 | BG28: 42 | BH28: 0 | BI28: 0 | BJ28: 5,889 | BK28: 19 | BL28: 4,176 | BM28: 48 | BN28: 0 | BO28: 0 | BP28: 5,608 | BQ28: 23 | BR28: 4,100 | BS28: 43 | BT28: 82 | BU28: 0 | BV28: 6,449 | BW28: 11
C29: Ciclo 6 Adultos | D29: 2,558 | E29: 10 | F29: 13 | G29: 0 | H29: 9,934 | I29: 189 | J29: 5,453 | K29: 29 | L29: 0 | M29: 0 | N29: 12,491 | O29: 24 | P29: 5,873 | Q29: 30 | R29: 0 | S29: 0 | T29: 12,520 | U29: 28 | V29: 6,794 | W29: 26 | X29: 328 | Y29: 0 | Z29: 16,487 | AA29: 41 | AB29: 6,593 | AC29: 82 | AD29: 0 | AE29: 0 | AF29: 15,858 | AG29: 36 | AH29: 7,903 | AI29: 85 | AJ29: 0 | AK29: 0 | AL29: 15,354 | AM29: 63 | AN29: 6,919 | AO29: 58 | AP29: 0 | AQ29: 0 | AR29: 20,595 | AS29: 50 | AT29: 7,039 | AU29: 78 | AV29: 0 | AW29: 0 | AX29: 20,011 | AY29: 28 | AZ29: 7,897 | BA29: 60 | BB29: 0 | BC29: 0 | BD29: 21,631 | BE29: 25 | BF29: 8,195 | BG29: 71 | BH29: 0 | BI29: 0 | BJ29: 23,350 | BK29: 215 | BL29: 7,835 | BM29: 69 | BN29: 0 | BO29: 0 | BP29: 20,379 | BQ29: 17 | BR29: 7,320 | BS29: 87 | BT29: 76 | BU29: 0 | BV29: 16,492 | BW29: 152
C30: Semestre introductorio NS | D30: 0 | E30: 0 | F30: 0 | G30: 0 | H30: 0 | I30: 0 | J30: 0 | K30: 0 | L30: 0 | M30: 0 | N30: 0 | O30: 0 | P30: 0 | Q30: 0 | R30: 0 | S30: 0 | T30: 0 | U30: 0 | V30: 0 | W30: 0 | X30: 0 | Y30: 0 | Z30: 0 | AA30: 0 | AB30: 0 | AC30: 0 | AD30: 0 | AE30: 0 | AF30: 0 | AG30: 0 | AH30: 0 | AI30: 0 | AJ30: 0 | AK30: 0 | AL30: 0 | AM30: 0 | AN30: 0 | AO30: 0 | AP30: 0 | AQ30: 0 | AR30: 0 | AS30: 0 | AT30: 0 | AU30: 0 | AV30: 0 | AW30: 0 | AX30: 0 | AY30: 0 | AZ30: 0 | BA30: 0 | BB30: 0 | BC30: 0 | BD30: 0 | BE30: 0 | BF30: 2 | BG30: 0 | BH30: 0 | BI30: 0 | BJ30: 0 | BK30: 0 | BL30: 26 | BM30: 0 | BN30: 0 | BO30: 0 | BP30: 0 | BQ30: 0 | BR30: 13 | BS30: 0 | BT30: 0 | BU30: 0 | BV30: 0 | BW30: 0
C31: Programa formación compl 1 NS | D31: 0 | E31: 0 | F31: 0 | G31: 0 | H31: 0 | I31: 0 | J31: 0 | K31: 0 | L31: 0 | M31: 0 | N31: 0 | O31: 0 | P31: 0 | Q31: 0 | R31: 0 | S31: 0 | T31: 0 | U31: 0 | V31: 0 | W31: 0 | X31: 0 | Y31: 0 | Z31: 0 | AA31: 0 | AB31: 0 | AC31: 0 | AD31: 0 | AE31: 0 | AF31: 0 | AG31: 0 | AH31: 0 | AI31: 0 | AJ31: 0 | AK31: 0 | AL31: 0 | AM31: 0 | AN31: 0 | AO31: 0 | AP31: 0 | AQ31: 0 | AR31: 0 | AS31: 0 | AT31: 0 | AU31: 0 | AV31: 0 | AW31: 0 | AX31: 0 | AY31: 0 | AZ31: 0 | BA31: 0 | BB31: 0 | BC31: 0 | BD31: 0 | BE31: 0 | BF31: 16 | BG31: 0 | BH31: 0 | BI31: 0 | BJ31: 0 | BK31: 0 | BL31: 25 | BM31: 0 | BN31: 0 | BO31: 0 | BP31: 0 | BQ31: 0 | BR31: 19 | BS31: 0 | BT31: 0 | BU31: 0 | BV31: 0 | BW31: 0
C32: Programa formación compl 2 NS | D32: 0 | E32: 0 | F32: 0 | G32: 0 | H32: 0 | I32: 0 | J32: 0 | K32: 0 | L32: 0 | M32: 0 | N32: 0 | O32: 0 | P32: 0 | Q32: 0 | R32: 0 | S32: 0 | T32: 0 | U32: 0 | V32: 0 | W32: 0 | X32: 0 | Y32: 0 | Z32: 0 | AA32: 0 | AB32: 0 | AC32: 0 | AD32: 0 | AE32: 0 | AF32: 0 | AG32: 0 | AH32: 0 | AI32: 0 | AJ32: 0 | AK32: 0 | AL32: 0 | AM32: 0 | AN32: 0 | AO32: 0 | AP32: 0 | AQ32: 0 | AR32: 0 | AS32: 0 | AT32: 0 | AU32: 0 | AV32: 0 | AW32: 0 | AX32: 0 | AY32: 0 | AZ32: 0 | BA32: 0 | BB32: 0 | BC32: 0 | BD32: 0 | BE32: 0 | BF32: 28 | BG32: 0 | BH32: 0 | BI32: 0 | BJ32: 0 | BK32: 0 | BL32: 8 | BM32: 0 | BN32: 0 | BO32: 0 | BP32: 0 | BQ32: 0 | BR32: 34 | BS32: 0 | BT32: 0 | BU32: 0 | BV32: 0 | BW32: 0
C33: Programa formación compl 3 NS | D33: 0 | E33: 0 | F33: 0 | G33: 0 | H33: 0 | I33: 0 | J33: 0 | K33: 0 | L33: 0 | M33: 0 | N33: 0 | O33: 0 | P33: 0 | Q33: 0 | R33: 0 | S33: 0 | T33: 0 | U33: 0 | V33: 0 | W33: 0 | X33: 0 | Y33: 0 | Z33: 0 | AA33: 0 | AB33: 0 | AC33: 0 | AD33: 0 | AE33: 0 | AF33: 0 | AG33: 0 | AH33: 0 | AI33: 0 | AJ33: 0 | AK33: 0 | AL33: 0 | AM33: 0 | AN33: 0 | AO33: 0 | AP33: 0 | AQ33: 0 | AR33: 0 | AS33: 0 | AT33: 0 | AU33: 0 | AV33: 0 | AW33: 0 | AX33: 0 | AY33: 0 | AZ33: 0 | BA33: 0 | BB33: 0 | BC33: 0 | BD33: 0 | BE33: 0 | BF33: 13 | BG33: 0 | BH33: 0 | BI33: 0 | BJ33: 0 | BK33: 0 | BL33: 27 | BM33: 0 | BN33: 0 | BO33: 0 | BP33: 0 | BQ33: 0 | BR33: 23 | BS33: 0 | BT33: 0 | BU33: 0 | BV33: 0 | BW33: 0
C34: Programa formación compl 4 NS | D34: 0 | E34: 0 | F34: 0 | G34: 0 | H34: 0 | I34: 0 | J34: 0 | K34: 0 | L34: 0 | M34: 0 | N34: 0 | O34: 0 | P34: 0 | Q34: 0 | R34: 0 | S34: 0 | T34: 0 | U34: 0 | V34: 0 | W34: 0 | X34: 0 | Y34: 0 | Z34: 0 | AA34: 0 | AB34: 0 | AC34: 0 | AD34: 0 | AE34: 0 | AF34: 0 | AG34: 0 | AH34: 0 | AI34: 0 | AJ34: 0 | AK34: 0 | AL34: 0 | AM34: 0 | AN34: 0 | AO34: 0 | AP34: 0 | AQ34: 0 | AR34: 0 | AS34: 0 | AT34: 0 | AU34: 0 | AV34: 0 | AW34: 0 | AX34: 0 | AY34: 0 | AZ34: 0 | BA34: 0 | BB34: 0 | BC34: 0 | BD34: 0 | BE34: 0 | BF34: 54 | BG34: 0 | BH34: 0 | BI34: 0 | BJ34: 0 | BK34: 0 | BL34: 20 | BM34: 0 | BN34: 0 | BO34: 0 | BP34: 0 | BQ34: 0 | BR34: 33 | BS34: 0 | BT34: 0 | BU34: 0 | BV34: 0 | BW34: 0
C35: Aceleración del Aprendizaje | D35: 5,616 | E35: 41 | F35: 29 | G35: 0 | H35: 97 | I35: 1 | J35: 7,160 | K35: 30 | L35: 30 | M35: 0 | N35: 127 | O35: 0 | P35: 7,261 | Q35: 37 | R35: 1 | S35: 0 | T35: 3 | U35: 0 | V35: 7,279 | W35: 41 | X35: 0 | Y35: 0 | Z35: 364 | AA35: 0 | AB35: 7,205 | AC35: 100 | AD35: 0 | AE35: 0 | AF35: 111 | AG35: 0 | AH35: 8,404 | AI35: 112 | AJ35: 0 | AK35: 0 | AL35: 110 | AM35: 0 | AN35: 9,012 | AO35: 90 | AP35: 0 | AQ35: 0 | AR35: 101 | AS35: 0 | AT35: 8,384 | AU35: 116 | AV35: 0 | AW35: 0 | AX35: 84 | AY35: 0 | AZ35: 9,288 | BA35: 131 | BB35: 0 | BC35: 0 | BD35: 73 | BE35: 0 | BF35: 9,580 | BG35: 126 | BH35: 0 | BI35: 0 | BJ35: 0 | BK35: 0 | BL35: 10,086 | BM35: 127 | BN35: 0 | BO35: 0 | BP35: 0 | BQ35: 0 | BR35: 11,279 | BS35: 125 | BT35: 0 | BU35: 0 | BV35: 0 | BW35: 0
C36: Total | D36: =SUM(D8:D35) -> 734,164 | E36: 7,779 | F36: 97,179 | G36: 0 | H36: 489,961 | I36: 3,920 | J36: 762,360 | K36: 7,870 | L36: 74,730 | M36: 0 | N36: 515,788 | O36: 3,524 | P36: 752,225 | Q36: 7,941 | R36: 58,766 | S36: 0 | T36: 521,796 | U36: 3,667 | V36: 740,542 | W36: 7,924 | X36: 49,502 | Y36: 0 | Z36: 531,795 | AA36: 4,314 | AB36: 730,160 | AC36: 12,822 | AD36: 42,485 | AE36: 0 | AF36: 522,975 | AG36: 4,301 | AH36: 746,541 | AI36: 12,973 | AJ36: 35,704 | AK36: 0 | AL36: 512,740 | AM36: 4,258 | AN36: 745,970 | AO36: 13,140 | AP36: 44,102 | AQ36: 0 | AR36: 499,630 | AS36: 3,882 | AT36: 752,112 | AU36: 13,687 | AV36: 42,893 | AW36: 0 | AX36: 451,215 | AY36: 3,933 | AZ36: 723,662 | BA36: 13,098 | BB36: 40,841 | BC36: 0 | BD36: 455,585 | BE36: 4,113 | BF36: 709,913 | BG36: 13,029 | BH36: 39,194 | BI36: 0 | BJ36: 448,429 | BK36: 4,163 | BL36: 692,324 | BM36: 12,980 | BN36: 38,626 | BO36: 0 | BP36: =SUM(BP8:BP35) -> 426,939 | BQ36: =SUM(BQ8:BQ35) -> 4,199 | BR36: =SUM(BR8:BR35) -> 678,209 | BS36: 12,969 | BT36: 39,172 | BU36: 0 | BV36: 408,481 | BW36: 4,508
D37: =SUM(D36:E36) -> 741,943 | F37: =SUM(F36:G36) -> 97,179 | H37: =SUM(H36:I36) -> 493,881 | J37: =SUM(J36:K36) -> 770,230 | L37: =SUM(L36:M36) -> 74,730 | N37: =SUM(N36:O36) -> 519,312 | P37: =SUM(P36:Q36) -> 760,166 | R37: =SUM(R36:S36) -> 58,766 | T37: =SUM(T36:U36) -> 525,463 | V37: =SUM(V36:W36) -> 748,466 | X37: =SUM(X36:Y36) -> 49,502 | Z37: =SUM(Z36:AA36) -> 536,109 | AB37: =SUM(AB36:AC36) -> 742,982 | AD37: =SUM(AD36:AE36) -> 42,485 | AF37: =SUM(AF36:AG36) -> 527,276 | AH37: =SUM(AH36:AI36) -> 759,514 | AJ37: =SUM(AJ36:AK36) -> 35,704 | AL37: =SUM(AL36:AM36) -> 516,998 | AN37: =SUM(AN36:AO36) -> 759,110 | AP37: =SUM(AP36:AQ36) -> 44,102 | AR37: =SUM(AR36:AS36) -> 503,512 | AT37: =SUM(AT36:AU36) -> 765,799 | AV37: =SUM(AV36:AW36) -> 42,893 | AX37: =SUM(AX36:AY36) -> 455,148 | AZ37: =SUM(AZ36:BA36) -> 736,760 | BB37: =SUM(BB36:BC36) -> 40,841 | BD37: =SUM(BD36:BE36) -> 459,698 | BF37: =SUM(BF36:BG36) -> 722,942 | BH37: =SUM(BH36:BI36) -> 39,194 | BJ37: =SUM(BJ36:BK36) -> 452,592 | BL37: 705,304 | BN37: 38,626 | BP37: 431,138 | BR37: 691,178 | BT37: 39,172 | BV37: 412,989
C38: FUENTE: SIMAT OAPF
C40: =+B7 -> BOGOTA | D40: 2014 | J40: 2015 | P40: 2016 | V40: 2017 | AB40: 2018 | AH40: 2019 | AN40: 2020 | AT40: 2021 | AZ40: 2022 | BF40: =+BF5 -> 2023 | BL40: =+BL5 -> 2024 | BR40: =+BR5 -> Sep. 2025
D41: Oficial | F41: Contratada | H41: No Oficial | J41: Oficial | L41: Contratada | N41: No Oficial | P41: Oficial | R41: Contratada | T41: No Oficial | V41: Oficial | X41: Contratada | Z41: No Oficial | AB41: Oficial | AD41: Contratada | AF41: No Oficial | AH41: Oficial | AJ41: Contratada | AL41: No Oficial | AN41: Oficial | AP41: Contratada | AR41: No Oficial | AT41: Oficial | AV41: Contratada | AX41: No Oficial | AZ41: Oficial | BB41: Contratada | BD41: No Oficial | BF41: Oficial | BH41: Contratada | BJ41: No Oficial | BL41: Oficial | BN41: Contratada | BP41: No Oficial | BR41: Oficial | BT41: Contratada | BV41: No Oficial
C42: NIVEL | D42: Urbano | E42: Rural | F42: Urbano | G42: Rural | H42: Urbano | I42: Rural | J42: Urbano | K42: Rural | L42: Urbano | M42: Rural | N42: Urbano | O42: Rural | P42: Urbano | Q42: Rural | R42: Urbano | S42: Rural | T42: Urbano | U42: Rural | V42: Urbano | W42: Rural | X42: Urbano | Y42: Rural | Z42: Urbano | AA42: Rural | AB42: Urbano | AC42: Rural | AD42: Urbano | AE42: Rural | AF42: Urbano | AG42: Rural | AH42: Urbano | AI42: Rural | AJ42: Urbano | AK42: Rural | AL42: Urbano | AM42: Rural | AN42: Urbano | AO42: Rural | AP42: Urbano | AQ42: Rural | AR42: Urbano | AS42: Rural | AT42: Urbano | AU42: Rural | AV42: Urbano | AW42: Rural | AX42: Urbano | AY42: Rural | AZ42: Urbano | BA42: Rural | BB42: Urbano | BC42: Rural | BD42: Urbano | BE42: Rural | BF42: Urbano | BG42: Rural | BH42: Urbano | BI42: Rural | BJ42: Urbano | BK42: Rural | BL42: Urbano | BM42: Rural | BN42: Urbano | BO42: Rural | BP42: Urbano | BQ42: Rural | BR42: Urbano | BS42: Rural | BT42: Urbano | BU42: Rural | BV42: Urbano | BW42: Rural
C43: Pre-Jardin y jardín | D43: =SUM(D8:D9) -> 26,708 | E43: 208 | F43: 36 | G43: 0 | H43: 40,319 | I43: 199 | J43: 37,203 | K43: 285 | L43: 1 | M43: 0 | N43: 39,358 | O43: 207 | P43: 37,778 | Q43: 270 | R43: 139 | S43: 0 | T43: 37,455 | U43: 217 | V43: 35,872 | W43: 316 | X43: =SUM(X8:X9) -> 3 | Y43: 0 | Z43: 39,220 | AA43: 217 | AB43: 34,453 | AC43: 595 | AD43: 2 | AE43: 0 | AF43: 36,815 | AG43: 249 | AH43: 36,094 | AI43: 651 | AJ43: 1 | AK43: 0 | AL43: 35,473 | AM43: 216 | AN43: 35,815 | AO43: 615 | AP43: 970 | AQ43: 0 | AR43: 31,441 | AS43: 256 | AT43: 37,137 | AU43: 641 | AV43: 922 | AW43: 0 | AX43: 20,431 | AY43: 198 | AZ43: 37,445 | BA43: 640 | BB43: 857 | BC43: 0 | BD43: 26,175 | BE43: 222 | BF43: 36,422 | BG43: 720 | BH43: 906 | BI43: 0 | BJ43: 24,876 | BK43: 202 | BL43: =SUM(BL8:BL9) -> 34,522 | BM43: 694 | BN43: 874 | BO43: 0 | BP43: 21,370 | BQ43: 174 | BR43: =SUM(BR8:BR9) -> 39,567 | BS43: 901 | BT43: 888 | BU43: 0 | BV43: 19,623 | BW43: 161
C44: Transición | D44: =+D10 -> 48,444 | E44: 523 | F44: 3,012 | G44: 0 | H44: 36,257 | I44: 198 | J44: 47,942 | K44: 548 | L44: 2,480 | M44: 0 | N44: =+N10 -> 37,278 | O44: =+O10 -> 221 | P44: =+P10 -> 46,244 | Q44: 550 | R44: 2,941 | S44: 0 | T44: 35,958 | U44: 197 | V44: 46,376 | W44: 558 | X44: =+X10 -> 2,038 | Y44: 0 | Z44: 36,042 | AA44: 267 | AB44: 47,054 | AC44: 982 | AD44: 1,837 | AE44: 0 | AF44: 35,278 | AG44: 220 | AH44: 47,494 | AI44: 908 | AJ44: 1,808 | AK44: 0 | AL44: 33,966 | AM44: 241 | AN44: 47,321 | AO44: 966 | AP44: 2,385 | AQ44: 0 | AR44: 32,531 | AS44: 237 | AT44: 47,771 | AU44: 978 | AV44: 2,439 | AW44: 0 | AX44: 25,753 | AY44: 218 | AZ44: 45,758 | BA44: 948 | BB44: 2,466 | BC44: 0 | BD44: 28,653 | BE44: 249 | BF44: 43,944 | BG44: 915 | BH44: 2,635 | BI44: 0 | BJ44: 26,263 | BK44: 184 | BL44: =+BL10 -> 41,279 | BM44: 894 | BN44: 2,758 | BO44: 0 | BP44: 23,882 | BQ44: 211 | BR44: =+BR10 -> 37,903 | BS44: 858 | BT44: 2,681 | BU44: 0 | BV44: 21,762 | BW44: 162
C45: Primaria | D45: =SUM(D11:D15)+D24+D25+D35 -> 293,083 | E45: 3,441 | F45: 34,910 | G45: 0 | H45: 185,141 | I45: 1,327 | J45: 304,479 | K45: 3,571 | L45: 25,357 | M45: 0 | N45: =SUM(N11:N15)+N24+N25+N35 -> 198,279 | O45: 1,318 | P45: 303,349 | Q45: 3,535 | R45: 19,385 | S45: 0 | T45: 204,428 | U45: 1,455 | V45: 299,428 | W45: 3,469 | X45: =SUM(X11:X15)+X24+X25+X35 -> 16,838 | Y45: 0 | Z45: 208,486 | AA45: 1,672 | AB45: 296,406 | AC45: 5,203 | AD45: 14,901 | AE45: 0 | AF45: 204,230 | AG45: 1,699 | AH45: 302,716 | AI45: 5,225 | AJ45: 13,332 | AK45: 0 | AL45: 198,334 | AM45: 1,643 | AN45: 298,886 | AO45: 5,255 | AP45: 17,851 | AQ45: 0 | AR45: 187,974 | AS45: 1,522 | AT45: 298,530 | AU45: 5,488 | AV45: 16,817 | AW45: 0 | AX45: 167,066 | AY45: 1,486 | AZ45: 286,978 | BA45: 5,266 | BB45: 15,822 | BC45: 0 | BD45: 164,782 | BE45: 1,435 | BF45: 283,365 | BG45: 5,154 | BH45: 15,059 | BI45: 0 | BJ45: 164,308 | BK45: 1,398 | BL45: =SUM(BL11:BL15)+BL24+BL25+BL35 -> 279,074 | BM45: 5,100 | BN45: 15,200 | BO45: 0 | BP45: 158,900 | BQ45: 1,432 | BR45: =SUM(BR11:BR15)+BR24+BR25+BR35 -> 273,554 | BS45: 5,040 | BT45: 15,752 | BU45: 0 | BV45: 153,307 | BW45: 1,325
C46: Secundaria | D46: =SUM(D16:D19)+D26+D27 -> 263,084 | E46: 2,719 | F46: 41,419 | G46: 0 | H46: 150,293 | I46: 1,372 | J46: 267,139 | K46: 2,594 | L46: 31,329 | M46: 0 | N46: =SUM(N16:N19)+N26+N27 -> 156,962 | O46: 1,177 | P46: 259,116 | Q46: 2,629 | R46: 24,222 | S46: 0 | T46: 158,330 | U46: 1,138 | V46: 253,924 | W46: 2,675 | X46: =SUM(X16:X19)+X26+X27 -> 20,259 | Y46: 0 | Z46: 160,128 | AA46: 1,311 | AB46: 251,013 | AC46: 4,263 | AD46: 16,991 | AE46: 0 | AF46: 160,233 | AG46: 1,366 | AH46: 260,214 | AI46: 4,379 | AJ46: 13,429 | AK46: 0 | AL46: 160,305 | AM46: 1,413 | AN46: 262,419 | AO46: 4,422 | AP46: 15,671 | AQ46: 0 | AR46: 156,970 | AS46: 1,259 | AT46: 264,668 | AU46: 4,536 | AV46: 15,182 | AW46: 0 | AX46: 148,980 | AY46: 1,407 | AZ46: 251,588 | BA46: 4,256 | BB46: 14,696 | BC46: 0 | BD46: 146,540 | BE46: 1,439 | BF46: 242,152 | BG46: 4,258 | BH46: 14,359 | BI46: 0 | BJ46: 142,287 | BK46: 1,449 | BL46: =SUM(BL16:BL19)+BL26+BL27 -> 234,731 | BM46: 4,312 | BN46: 14,069 | BO46: 0 | BP46: 136,291 | BQ46: 1,536 | BR46: =SUM(BR16:BR19)+BR26+BR27 -> 227,220 | BS46: 4,310 | BT46: 13,744 | BU46: 0 | BV46: 131,875 | BW46: 1,377
C47: Media | D47: =SUM(D20:D23)+D28+D29 -> 102,845 | E47: 888 | F47: 17,802 | G47: 0 | H47: 77,951 | I47: 824 | J47: 105,597 | K47: 872 | L47: 15,563 | M47: 0 | N47: =SUM(N20:N23)+N28+N29 -> 83,911 | O47: 601 | P47: 105,738 | Q47: 957 | R47: 12,079 | S47: 0 | T47: 85,625 | U47: 660 | V47: 104,942 | W47: 906 | X47: =SUM(X20:X23)+X28+X29 -> 10,364 | Y47: 0 | Z47: 87,919 | AA47: 847 | AB47: 101,234 | AC47: 1,779 | AD47: 8,754 | AE47: 0 | AF47: 86,419 | AG47: 767 | AH47: 100,023 | AI47: 1,810 | AJ47: 7,134 | AK47: 0 | AL47: 84,662 | AM47: 745 | AN47: 101,529 | AO47: 1,882 | AP47: 7,225 | AQ47: 0 | AR47: 90,714 | AS47: 608 | AT47: 104,006 | AU47: 2,044 | AV47: 7,533 | AW47: 0 | AX47: 88,985 | AY47: 624 | AZ47: 101,893 | BA47: 1,988 | BB47: 7,000 | BC47: 0 | BD47: 89,435 | BE47: 768 | BF47: =SUM(BF20:BF23)+BF28+BF29+BF30+BF31+BF32+BF33+BF34 -> 104,030 | BG47: 1,982 | BH47: 6,235 | BI47: 0 | BJ47: 90,695 | BK47: 930 | BL47: =SUM(BL20:BL23)+BL28+BL29+BL30+BL31+BL32+BL33+BL34 -> 102,718 | BM47: 1,980 | BN47: 5,725 | BO47: 0 | BP47: 86,496 | BQ47: 846 | BR47: =SUM(BR20:BR23)+BR28+BR29+BR30+BR31+BR32+BR33+BR34 -> 99,965 | BS47: 1,860 | BT47: 6,107 | BU47: 0 | BV47: 81,914 | BW47: 1,483
C48: Total | D48: =SUM(D43:D47) -> 734,164 | E48: 7,779 | F48: 97,179 | G48: 0 | H48: 489,961 | I48: 3,920 | J48: 762,360 | K48: 7,870 | L48: 74,730 | M48: 0 | N48: 515,788 | O48: 3,524 | P48: 752,225 | Q48: 7,941 | R48: 58,766 | S48: 0 | T48: 521,796 | U48: 3,667 | V48: 740,542 | W48: 7,924 | X48: =SUM(X43:X47) -> 49,502 | Y48: 0 | Z48: 531,795 | AA48: 4,314 | AB48: 730,160 | AC48: 12,822 | AD48: 42,485 | AE48: 0 | AF48: 522,975 | AG48: 4,301 | AH48: 746,541 | AI48: 12,973 | AJ48: 35,704 | AK48: 0 | AL48: 512,740 | AM48: 4,258 | AN48: 745,970 | AO48: 13,140 | AP48: 44,102 | AQ48: 0 | AR48: 499,630 | AS48: 3,882 | AT48: 752,112 | AU48: 13,687 | AV48: 42,893 | AW48: 0 | AX48: 451,215 | AY48: 3,933 | AZ48: 723,662 | BA48: 13,098 | BB48: 40,841 | BC48: 0 | BD48: 455,585 | BE48: 4,113 | BF48: 709,913 | BG48: 13,029 | BH48: 39,194 | BI48: 0 | BJ48: 448,429 | BK48: 4,163 | BL48: =SUM(BL43:BL47) -> 692,324 | BM48: 12,980 | BN48: 38,626 | BO48: 0 | BP48: 426,939 | BQ48: 4,199 | BR48: =SUM(BR43:BR47) -> 678,209 | BS48: 12,969 | BT48: 39,172 | BU48: 0 | BV48: 408,481 | BW48: 4,508
C49: FUENTE: SIMAT OAPF
C51: =+B7 -> BOGOTA | D51: 2014 | J51: 2015 | P51: 2016 | V51: 2017 | AB51: 2018 | AH51: 2019 | AN51: 2020 | AT51: 2021 | AZ51: 2022 | BF51: =+BF5 -> 2023 | BL51: =+BL5 -> 2024 | BR51: =+BR5 -> Sep. 2025
D52: Oficial | F52: Contratada | H52: No Oficial | J52: Oficial | L52: Contratada | N52: No Oficial | P52: Oficial | R52: Contratada | T52: No Oficial | V52: Oficial | X52: Contratada | Z52: No Oficial | AB52: Oficial | AD52: Contratada | AF52: No Oficial | AH52: Oficial | AJ52: Contratada | AL52: No Oficial | AN52: Oficial | AP52: Contratada | AR52: No Oficial | AT52: Oficial | AV52: Contratada | AX52: No Oficial | AZ52: Oficial | BB52: Contratada | BD52: No Oficial | BF52: Oficial | BH52: Contratada | BJ52: No Oficial | BL52: Oficial | BN52: Contratada | BP52: No Oficial | BR52: Oficial | BT52: Contratada | BV52: No Oficial
C53: NIVEL ADULTOS | D53: Urbano | E53: Rural | F53: Urbano | G53: Rural | H53: Urbano | I53: Rural | J53: Urbano | K53: Rural | L53: Urbano | M53: Rural | N53: Urbano | O53: Rural | P53: Urbano | Q53: Rural | R53: Urbano | S53: Rural | T53: Urbano | U53: Rural | V53: Urbano | W53: Rural | X53: Urbano | Y53: Rural | Z53: Urbano | AA53: Rural | AB53: Urbano | AC53: Rural | AD53: Urbano | AE53: Rural | AF53: Urbano | AG53: Rural | AH53: Urbano | AI53: Rural | AJ53: Urbano | AK53: Rural | AL53: Urbano | AM53: Rural | AN53: Urbano | AO53: Rural | AP53: Urbano | AQ53: Rural | AR53: Urbano | AS53: Rural | AT53: Urbano | AU53: Rural | AV53: Urbano | AW53: Rural | AX53: Urbano | AY53: Rural | AZ53: Urbano | BA53: Rural | BB53: Urbano | BC53: Rural | BD53: Urbano | BE53: Rural | BF53: Urbano | BG53: Rural | BH53: Urbano | BI53: Rural | BJ53: Urbano | BK53: Rural | BL53: Urbano | BM53: Rural | BN53: Urbano | BO53: Rural | BP53: Urbano | BQ53: Rural | BR53: Urbano | BS53: Rural | BT53: Urbano | BU53: Rural | BV53: Urbano | BW53: Rural
C54: Pre-Jardin y jardín | D54: =SUM(D8:D9) -> 26,708 | E54: 208 | F54: 36 | G54: 0 | H54: 40,319 | I54: 199 | J54: 37,203 | K54: 285 | L54: 1 | M54: 0 | N54: =SUM(N8:N9) -> 39,358 | O54: =SUM(O8:O9) -> 207 | P54: =SUM(P8:P9) -> 37,778 | Q54: 270 | R54: 139 | S54: 0 | T54: 37,455 | U54: 217 | V54: 35,872 | W54: 316 | X54: =SUM(X8:X9) -> 3 | Y54: 0 | Z54: 39,220 | AA54: 217 | AB54: 34,453 | AC54: 595 | AD54: 2 | AE54: 0 | AF54: 36,815 | AG54: 249 | AH54: 36,094 | AI54: 651 | AJ54: 1 | AK54: 0 | AL54: 35,473 | AM54: 216 | AN54: 35,815 | AO54: 615 | AP54: 970 | AQ54: 0 | AR54: 31,441 | AS54: 256 | AT54: 37,137 | AU54: 641 | AV54: 922 | AW54: 0 | AX54: 20,431 | AY54: 198 | AZ54: 37,445 | BA54: 640 | BB54: 857 | BC54: 0 | BD54: 26,175 | BE54: 222 | BF54: 36,422 | BG54: 720 | BH54: 906 | BI54: 0 | BJ54: 24,876 | BK54: 202 | BL54: =SUM(BL8:BL9) -> 34,522 | BM54: 694 | BN54: 874 | BO54: 0 | BP54: 21,370 | BQ54: 174 | BR54: =SUM(BR8:BR9) -> 39,567 | BS54: 901 | BT54: 888 | BU54: 0 | BV54: 19,623 | BW54: 161
C55: Transición | D55: =+D10 -> 48,444 | E55: 523 | F55: 3,012 | G55: 0 | H55: 36,257 | I55: 198 | J55: 47,942 | K55: 548 | L55: 2,480 | M55: 0 | N55: =+N10 -> 37,278 | O55: =+O10 -> 221 | P55: =+P10 -> 46,244 | Q55: 550 | R55: 2,941 | S55: 0 | T55: 35,958 | U55: 197 | V55: 46,376 | W55: 558 | X55: =+X10 -> 2,038 | Y55: 0 | Z55: 36,042 | AA55: 267 | AB55: 47,054 | AC55: 982 | AD55: 1,837 | AE55: 0 | AF55: 35,278 | AG55: 220 | AH55: 47,494 | AI55: 908 | AJ55: 1,808 | AK55: 0 | AL55: 33,966 | AM55: 241 | AN55: 47,321 | AO55: 966 | AP55: 2,385 | AQ55: 0 | AR55: 32,531 | AS55: 237 | AT55: 47,771 | AU55: 978 | AV55: 2,439 | AW55: 0 | AX55: 25,753 | AY55: 218 | AZ55: 45,758 | BA55: 948 | BB55: 2,466 | BC55: 0 | BD55: 28,653 | BE55: 249 | BF55: 43,944 | BG55: 915 | BH55: 2,635 | BI55: 0 | BJ55: 26,263 | BK55: 184 | BL55: =+BL10 -> 41,279 | BM55: 894 | BN55: 2,758 | BO55: 0 | BP55: 23,882 | BQ55: 211 | BR55: =+BR10 -> 37,903 | BS55: 858 | BT55: 2,681 | BU55: 0 | BV55: 21,762 | BW55: 162
C56: Primaria | D56: =SUM(D11:D15)+D35 -> 291,205 | E56: 3,426 | F56: 34,849 | G56: 0 | H56: 184,823 | I56: 1,315 | J56: 302,494 | K56: 3,561 | L56: 25,357 | M56: 0 | N56: =SUM(N11:N15)+N35 -> 198,016 | O56: 1,318 | P56: 300,597 | Q56: 3,529 | R56: 19,385 | S56: 0 | T56: 203,738 | U56: 1,455 | V56: 297,529 | W56: 3,460 | X56: =SUM(X11:X15)+X35 -> 16,838 | Y56: 0 | Z56: 208,072 | AA56: 1,672 | AB56: 293,264 | AC56: 5,187 | AD56: 14,901 | AE56: 0 | AF56: 203,952 | AG56: 1,699 | AH56: 299,826 | AI56: 5,208 | AJ56: 13,332 | AK56: 0 | AL56: 197,789 | AM56: 1,643 | AN56: 296,700 | AO56: 5,244 | AP56: 17,851 | AQ56: 0 | AR56: 187,587 | AS56: 1,522 | AT56: 296,289 | AU56: 5,456 | AV56: 16,817 | AW56: 0 | AX56: 166,884 | AY56: 1,486 | AZ56: 284,733 | BA56: 5,253 | BB56: 15,822 | BC56: 0 | BD56: 164,591 | BE56: 1,435 | BF56: 280,532 | BG56: 5,128 | BH56: 15,059 | BI56: 0 | BJ56: 164,128 | BK56: 1,398 | BL56: =SUM(BL11:BL15)+BL35 -> 276,158 | BM56: 5,075 | BN56: 15,200 | BO56: 0 | BP56: 158,710 | BQ56: 1,432 | BR56: =SUM(BR11:BR15)+BR35 -> 270,659 | BS56: 5,023 | BT56: 15,739 | BU56: 0 | BV56: 153,090 | BW56: 1,325
C57: Secundaria | D57: =SUM(D16:D19) -> 252,500 | E57: 2,665 | F57: 41,402 | G57: 0 | H57: 140,638 | I57: 1,243 | J57: 255,622 | K57: 2,529 | L57: 31,198 | M57: 0 | N57: =SUM(N16:N19) -> 146,848 | O57: =SUM(O16:O19) -> 1,160 | P57: =SUM(P16:P19) -> 247,438 | Q57: 2,579 | R57: 24,222 | S57: 0 | T57: 146,763 | U57: 1,129 | V57: 241,190 | W57: 2,625 | X57: =SUM(X16:X19) -> 20,259 | Y57: 0 | Z57: 148,459 | AA57: 1,289 | AB57: 237,796 | AC57: 4,165 | AD57: 16,991 | AE57: 0 | AF57: 148,894 | AG57: 1,356 | AH57: 245,391 | AI57: 4,278 | AJ57: 13,429 | AK57: 0 | AL57: 148,893 | AM57: 1,391 | AN57: 248,541 | AO57: 4,301 | AP57: 15,671 | AQ57: 0 | AR57: 147,054 | AS57: 1,241 | AT57: 253,112 | AU57: 4,406 | AV57: 15,182 | AW57: 0 | AX57: 140,685 | AY57: 1,399 | AZ57: 239,027 | BA57: 4,187 | BB57: 14,696 | BC57: 0 | BD57: 137,027 | BE57: 1,428 | BF57: 228,773 | BG57: 4,145 | BH57: 14,359 | BI57: 0 | BJ57: 133,260 | BK57: 1,400 | BL57: =SUM(BL16:BL19) -> 221,529 | BM57: 4,183 | BN57: 14,069 | BO57: 0 | BP57: 126,718 | BQ57: 1,514 | BR57: =SUM(BR16:BR19) -> 215,035 | BS57: 4,204 | BT57: 13,587 | BU57: 0 | BV57: 122,964 | BW57: 1,361
C58: Media | D58: =SUM(D20:D23) -> 95,833 | E58: 860 | F58: 17,771 | G58: 0 | H58: 61,859 | I58: 581 | J58: 96,802 | K58: 820 | L58: 15,502 | M58: 0 | N58: =SUM(N20:N23) -> 63,750 | O58: =SUM(O20:O23) -> 570 | P58: =SUM(P20:P23) -> 96,396 | Q58: 918 | R58: 12,079 | S58: 0 | T58: 64,563 | U58: 589 | V58: =SUM(V20:V23)+SUM(V30:V34) -> 95,179 | W58: =SUM(W20:W23)+SUM(W30:W34) -> 864 | X58: =SUM(X20:X23)+SUM(X30:X34) -> 10,036 | Y58: 0 | Z58: 63,973 | AA58: 784 | AB58: 91,475 | AC58: 1,665 | AD58: 8,754 | AE58: 0 | AF58: 63,381 | AG58: 715 | AH58: 89,210 | AI58: 1,676 | AJ58: 7,134 | AK58: 0 | AL58: 62,546 | AM58: 668 | AN58: 90,465 | AO58: 1,788 | AP58: 7,225 | AQ58: 0 | AR58: 63,470 | AS58: 546 | AT58: 93,211 | AU58: 1,918 | AV58: 7,533 | AW58: 0 | AX58: 63,009 | AY58: 564 | AZ58: 89,963 | BA58: 1,889 | BB58: 7,000 | BC58: 0 | BD58: 61,888 | BE58: 597 | BF58: 91,483 | BG58: 1,869 | BH58: 6,235 | BI58: 0 | BJ58: 61,456 | BK58: 696 | BL58: =SUM(BL20:BL23)+SUM(BL30:BL34) -> 90,707 | BM58: 1,863 | BN58: 5,725 | BO58: 0 | BP58: 60,509 | BQ58: 806 | BR58: =SUM(BR20:BR23)+SUM(BR30:BR34) -> 88,545 | BS58: 1,730 | BT58: 5,949 | BU58: 0 | BV58: 58,973 | BW58: 1,320
C59: Adultos | D59: =SUM(D24:D29) -> 19,474 | E59: 97 | F59: 109 | G59: 0 | H59: 26,065 | I59: 384 | J59: 22,297 | K59: 127 | L59: 192 | M59: 0 | N59: =SUM(N24:N29) -> 30,538 | O59: =SUM(O24:O29) -> 48 | P59: =SUM(P24:P29) -> 23,772 | Q59: 95 | R59: 0 | S59: 0 | T59: 33,319 | U59: 80 | V59: 24,396 | W59: 101 | X59: =SUM(X24:X29) -> 328 | Y59: 0 | Z59: 36,029 | AA59: 85 | AB59: 26,118 | AC59: 228 | AD59: 0 | AE59: 0 | AF59: 34,655 | AG59: 62 | AH59: 28,526 | AI59: 252 | AJ59: 0 | AK59: 0 | AL59: 34,073 | AM59: 99 | AN59: 27,128 | AO59: 226 | AP59: 0 | AQ59: 0 | AR59: 37,547 | AS59: 80 | AT59: 24,592 | AU59: 288 | AV59: 0 | AW59: 0 | AX59: 34,453 | AY59: 68 | AZ59: 26,736 | BA59: 181 | BB59: 0 | BC59: 0 | BD59: 37,251 | BE59: 182 | BF59: 28,759 | BG59: 252 | BH59: 0 | BI59: 0 | BJ59: 38,446 | BK59: 283 | BL59: =SUM(BL24:BL29) -> 28,129 | BM59: 271 | BN59: 0 | BO59: 0 | BP59: 35,750 | BQ59: 62 | BR59: =SUM(BR24:BR29) -> 26,500 | BS59: 253 | BT59: 328 | BU59: 0 | BV59: 32,069 | BW59: 179
C60: Total | D60: =SUM(D54:D59) -> 734,164 | E60: 7,779 | F60: 97,179 | G60: 0 | H60: 489,961 | I60: 3,920 | J60: 762,360 | K60: 7,870 | L60: 74,730 | M60: 0 | N60: 515,788 | O60: 3,524 | P60: 752,225 | Q60: 7,941 | R60: 58,766 | S60: 0 | T60: 521,796 | U60: 3,667 | V60: 740,542 | W60: 7,924 | X60: =SUM(X54:X59) -> 49,502 | Y60: 0 | Z60: 531,795 | AA60: 4,314 | AB60: 730,160 | AC60: 12,822 | AD60: 42,485 | AE60: 0 | AF60: 522,975 | AG60: 4,301 | AH60: 746,541 | AI60: 12,973 | AJ60: 35,704 | AK60: 0 | AL60: 512,740 | AM60: 4,258 | AN60: 745,970 | AO60: 13,140 | AP60: 44,102 | AQ60: 0 | AR60: 499,630 | AS60: 3,882 | AT60: 752,112 | AU60: 13,687 | AV60: 42,893 | AW60: 0 | AX60: 451,215 | AY60: 3,933 | AZ60: 723,662 | BA60: 13,098 | BB60: 40,841 | BC60: 0 | BD60: 455,585 | BE60: 4,113 | BF60: 709,913 | BG60: 13,029 | BH60: 39,194 | BI60: 0 | BJ60: 448,429 | BK60: 4,163 | BL60: =SUM(BL54:BL59) -> 692,324 | BM60: 12,980 | BN60: 38,626 | BO60: 0 | BP60: 426,939 | BQ60: 4,199 | BR60: =SUM(BR54:BR59) -> 678,209 | BS60: 12,969 | BT60: 39,172 | BU60: 0 | BV60: 408,481 | BW60: 4,508
C61: FUENTE: SIMAT OAPF
C63: =+B7 -> BOGOTA
C64: Sector-Zona | D64: 2014 | E64: 2015 | F64: 2016 | G64: 2017 | H64: 2018 | I64: 2019 | J64: 2020 | K64: 2021 | L64: 2022 | M64: 2023 | N64: =+BL5 -> 2024 | O64: =+BR51 -> Sep. 2025
C65: Oficial Urbana | D65: =+D60 -> 734,164 | E65: =+J60 -> 762,360 | F65: =+P60 -> 752,225 | G65: =+V60 -> 740,542 | H65: =+AB60 -> 730,160 | I65: =+AH60 -> 746,541 | J65: =+AN60 -> 745,970 | K65: =+AT60 -> 752,112 | L65: =+AZ60 -> 723,662 | M65: =+BF60 -> 709,913 | N65: =+BL60 -> 692,324 | O65: =+BR60 -> 678,209
C66: Oficial Rural | D66: =+E60 -> 7,779 | E66: =+K60 -> 7,870 | F66: =+Q60 -> 7,941 | G66: =+W60 -> 7,924 | H66: =+AC60 -> 12,822 | I66: =+AI60 -> 12,973 | J66: =+AO60 -> 13,140 | K66: =+AU60 -> 13,687 | L66: =+BA60 -> 13,098 | M66: =+BG60 -> 13,029 | N66: =+BM60 -> 12,980 | O66: =+BS60 -> 12,969
C67: Contratada Ubana | D67: =+F60 -> 97,179 | E67: =+L60 -> 74,730 | F67: =+R60 -> 58,766 | G67: =+X60 -> 49,502 | H67: =+AD60 -> 42,485 | I67: =+AJ60 -> 35,704 | J67: =+AP60 -> 44,102 | K67: =+AV60 -> 42,893 | L67: =+BB60 -> 40,841 | M67: =+BH60 -> 39,194 | N67: =+BN60 -> 38,626 | O67: =+BT60 -> 39,172
C68: Contratada Rural | D68: =+G60 -> 0 | E68: =+M60 -> 0 | F68: =+S60 -> 0 | G68: =+Y60 -> 0 | H68: =+AE60 -> 0 | I68: =+AK60 -> 0 | J68: =+AQ60 -> 0 | K68: =+AW60 -> 0 | L68: =+BC60 -> 0 | M68: =+BI60 -> 0 | N68: =+BO60 -> 0 | O68: =+BU60 -> 0
C69: No Ofcial Urbana | D69: =+H60 -> 489,961 | E69: =+N60 -> 515,788 | F69: =+T60 -> 521,796 | G69: =+Z60 -> 531,795 | H69: =+AF60 -> 522,975 | I69: =+AL60 -> 512,740 | J69: =+AR60 -> 499,630 | K69: =+AX60 -> 451,215 | L69: =+BD60 -> 455,585 | M69: =+BJ60 -> 448,429 | N69: =+BP60 -> 426,939 | O69: =+BV60 -> 408,481
C70: No Oficial Rural | D70: =+I60 -> 3,920 | E70: =+O60 -> 3,524 | F70: =+U60 -> 3,667 | G70: =+AA60 -> 4,314 | H70: =+AG60 -> 4,301 | I70: =+AM60 -> 4,258 | J70: =+AS60 -> 3,882 | K70: =+AY60 -> 3,933 | L70: =+BE60 -> 4,113 | M70: =+BK60 -> 4,163 | N70: =+BQ60 -> 4,199 | O70: =+BW60 -> 4,508
C71: Total | D71: =SUM(D65:D70) -> 1,333,003 | E71: 1,364,272 | F71: 1,344,395 | G71: 1,334,077 | H71: 1,312,743 | I71: 1,312,216 | J71: 1,306,724 | K71: 1,263,840 | L71: 1,237,299 | M71: =SUM(M65:M70) -> 1,214,728 | N71: =SUM(N65:N70) -> 1,175,068 | O71: =SUM(O65:O70) -> 1,143,339
C72: FUENTE: SIMAT OAPF 2023 información preliminar
C74: =+B7 -> BOGOTA
C75: Zona | D75: 2014 | E75: 2015 | F75: 2016 | G75: 2017 | H75: 2018 | I75: 2019 | J75: 2020 | K75: 2021 | L75: 2022 | M75: 2023 | N75: =+N64 -> 2024 | O75: =+O64 -> Sep. 2025
C76: Urbano | D76: =+D65+D67+D69 -> 1,321,304 | E76: =+E65+E67+E69 -> 1,352,878 | F76: 1,332,787 | G76: 1,321,839 | H76: 1,295,620 | I76: 1,294,985 | J76: 1,289,702 | K76: 1,246,220 | L76: 1,220,088 | M76: 1,197,536 | N76: =+BL60+BN60+BP60 -> 1,157,889 | O76: =+BR60+BT60+BV60 -> 1,125,862
C77: Rural | D77: =+D66+D68+D70 -> 11,699 | E77: =+E66+E68+E70 -> 11,394 | F77: 11,608 | G77: 12,238 | H77: 17,123 | I77: 17,231 | J77: 17,022 | K77: 17,620 | L77: 17,211 | M77: 17,192 | N77: =+BM60+BO60+BQ60 -> 17,179 | O77: =+BS60+BU60+BW60 -> 17,477
C78: Total | D78: =SUM(D76:D77) -> 1,333,003 | E78: =SUM(E76:E77) -> 1,364,272 | F78: 1,344,395 | G78: 1,334,077 | H78: 1,312,743 | I78: 1,312,216 | J78: 1,306,724 | K78: 1,263,840 | L78: 1,237,299 | M78: 1,214,728 | N78: =SUM(N76:N77) -> 1,175,068 | O78: =SUM(O76:O77) -> 1,143,339
C79: FUENTE: SIMAT OAPF 2024 información preliminar
C81: =+B7 -> BOGOTA | N81: =+B7 -> BOGOTA
D197: 2014 | J197: 2015 | P197: 2016 | V197: 2017 | AB197: 2018 | AH197: 2019 | AN197: 2020 | AT197: 2021 | AZ197: 2022 | BF197: =+BF5 -> 2023 | BL197: =+BL5 -> 2024 | BR197: =+BR5 -> Sep. 2025
D198: Oficial | F198: Contratada | H198: No Oficial | J198: Oficial | L198: Contratada | N198: No Oficial | P198: Oficial | R198: Contratada | T198: No Oficial | V198: Oficial | X198: Contratada | Z198: No Oficial | AB198: Oficial | AD198: Contratada | AF198: No Oficial | AH198: Oficial | AJ198: Contratada | AL198: No Oficial | AN198: Oficial | AP198: Contratada | AR198: No Oficial | AT198: Oficial | AV198: Contratada | AX198: No Oficial | AZ198: Oficial | BB198: Contratada | BD198: No Oficial | BF198: Oficial | BH198: Contratada | BJ198: No Oficial | BL198: Oficial | BN198: Contratada | BP198: No Oficial | BR198: Oficial | BT198: Contratada | BV198: No Oficial
A199: lista | B199: ENTIDAD | C199: GRADO | D199: Urbana | E199: Rural | F199: Urbana | G199: Rural | H199: Urbana | I199: Rural | J199: Urbano | K199: Rural | L199: Urbano | M199: Rural | N199: Urbano | O199: Rural | P199: Urbano | Q199: Rural | R199: Urbano | S199: Rural | T199: Urbano | U199: Rural | V199: Urbano | W199: Rural | X199: Urbano | Y199: Rural | Z199: Urbano | AA199: Rural | AB199: Urbano | AC199: Rural | AD199: Urbano | AE199: Rural | AF199: Urbano | AG199: Rural | AH199: Urbano | AI199: Rural | AJ199: Urbano | AK199: Rural | AL199: Urbano | AM199: Rural | AN199: Urbano | AO199: Rural | AP199: Urbano | AQ199: Rural | AR199: Urbano | AS199: Rural | AT199: Urbano | AU199: Rural | AV199: Urbano | AW199: Rural | AX199: Urbano | AY199: Rural | AZ199: Urbano | BA199: Rural | BB199: Urbano | BC199: Rural | BD199: Urbano | BE199: Rural | BF199: Urbano | BG199: Rural | BH199: Urbano | BI199: Rural | BJ199: Urbano | BK199: Rural | BL199: Urbano | BM199: Rural | BN199: Urbano | BO199: Rural | BP199: Urbano | BQ199: Rural | BR199: Urbano | BS199: Rural | BT199: Urbano | BU199: Rural | BV199: Urbano | BW199: Rural
A200: AMAZONAS | B200: AMAZONAS | C200: Prejardín | D200: 0 | E200: 0 | F200: 0 | G200: 0 | H200: 85 | I200: 2 | J200: 0 | K200: 0 | L200: 0 | M200: 0 | N200: 42 | O200: 0 | P200: 0 | Q200: 0 | R200: 0 | S200: 0 | T200: 86 | U200: 0 | V200: 0 | W200: 0 | X200: 0 | Y200: 0 | Z200: 101 | AA200: 0 | AB200: 0 | AC200: 0 | AD200: 0 | AE200: 0 | AF200: 66 | AG200: 0 | AH200: 0 | AI200: 0 | AJ200: 0 | AK200: 0 | AL200: 35 | AM200: 0 | AN200: 0 | AO200: 0 | AP200: 0 | AQ200: 0 | AR200: 1 | AS200: 0 | AT200: 0 | AU200: 0 | AV200: 0 | AW200: 0 | AX200: 24 | AY200: 0 | AZ200: 0 | BA200: 0 | BB200: 0 | BC200: 0 | BD200: 42 | BE200: 0 | BF200: 0 | BG200: 0 | BH200: 0 | BI200: 0 | BJ200: 37 | BK200: 0 | BL200: 0 | BM200: 0 | BN200: 0 | BO200: 0 | BP200: 37 | BQ200: 0 | BR200: 0 | BS200: 0 | BT200: 0 | BU200: 0 | BV200: 13 | BW200: 0
A201: ANTIOQUIA | B201: AMAZONAS | C201: Jardín | D201: 0 | E201: 0 | F201: 0 | G201: 0 | H201: 85 | I201: 6 | J201: 0 | K201: 0 | L201: 0 | M201: 0 | N201: 122 | O201: 0 | P201: 0 | Q201: 0 | R201: 0 | S201: 0 | T201: 111 | U201: 0 | V201: 0 | W201: 0 | X201: 0 | Y201: 0 | Z201: 122 | AA201: 0 | AB201: 1 | AC201: 0 | AD201: 0 | AE201: 0 | AF201: 128 | AG201: 0 | AH201: 6 | AI201: 0 | AJ201: 0 | AK201: 0 | AL201: 66 | AM201: 0 | AN201: 6 | AO201: 0 | AP201: 0 | AQ201: 0 | AR201: 65 | AS201: 0 | AT201: 2 | AU201: 0 | AV201: 0 | AW201: 0 | AX201: 65 | AY201: 0 | AZ201: 4 | BA201: 0 | BB201: 0 | BC201: 0 | BD201: 68 | BE201: 0 | BF201: 8 | BG201: 0 | BH201: 0 | BI201: 0 | BJ201: 68 | BK201: 0 | BL201: 4 | BM201: 0 | BN201: 0 | BO201: 0 | BP201: 65 | BQ201: 0 | BR201: 303 | BS201: 432 | BT201: 0 | BU201: 0 | BV201: 50 | BW201: 0
A202: APARTADO | B202: AMAZONAS | C202: Transición | D202: 746 | E202: 735 | F202: 0 | G202: 171 | H202: 99 | I202: 4 | J202: 701 | K202: 604 | L202: 0 | M202: 171 | N202: 99 | O202: 0 | P202: 738 | Q202: 665 | R202: 0 | S202: 164 | T202: 118 | U202: 0 | V202: 793 | W202: 775 | X202: 0 | Y202: 188 | Z202: 102 | AA202: 0 | AB202: 702 | AC202: 666 | AD202: 0 | AE202: 139 | AF202: 131 | AG202: 0 | AH202: 810 | AI202: 801 | AJ202: 0 | AK202: 201 | AL202: 116 | AM202: 0 | AN202: 809 | AO202: 732 | AP202: 0 | AQ202: 161 | AR202: 43 | AS202: 0 | AT202: 654 | AU202: 756 | AV202: 0 | AW202: 192 | AX202: 84 | AY202: 0 | AZ202: 763 | BA202: 739 | BB202: 0 | BC202: 143 | BD202: 81 | BE202: 0 | BF202: 685 | BG202: 682 | BH202: 0 | BI202: 178 | BJ202: 74 | BK202: 0 | BL202: 573 | BM202: 710 | BN202: 0 | BO202: 170 | BP202: 76 | BQ202: 0 | BR202: 450 | BS202: 531 | BT202: 0 | BU202: 166 | BV202: 69 | BW202: 0
A203: ARAUCA | B203: AMAZONAS | C203: Primero | D203: 1,078 | E203: 981 | F203: 0 | G203: 282 | H203: 70 | I203: 3 | J203: 991 | K203: 943 | L203: 0 | M203: 251 | N203: 91 | O203: 0 | P203: 1,029 | Q203: 832 | R203: 0 | S203: 217 | T203: 77 | U203: 0 | V203: 1,054 | W203: 892 | X203: 0 | Y203: 247 | Z203: 77 | AA203: 0 | AB203: 1,045 | AC203: 980 | AD203: 0 | AE203: 239 | AF203: 72 | AG203: 0 | AH203: 936 | AI203: 973 | AJ203: 0 | AK203: 201 | AL203: 71 | AM203: 0 | AN203: 1,006 | AO203: 969 | AP203: 0 | AQ203: 242 | AR203: 78 | AS203: 0 | AT203: 921 | AU203: 859 | AV203: 0 | AW203: 236 | AX203: 66 | AY203: 0 | AZ203: 857 | BA203: 916 | BB203: 0 | BC203: 241 | BD203: 67 | BE203: 0 | BF203: 923 | BG203: 888 | BH203: 0 | BI203: 223 | BJ203: 80 | BK203: 0 | BL203: 830 | BM203: 815 | BN203: 0 | BO203: 227 | BP203: 90 | BQ203: 0 | BR203: 752 | BS203: 793 | BT203: 0 | BU203: 241 | BV203: 76 | BW203: 0
A204: ARMENIA | B204: AMAZONAS | C204: Segundo | D204: 1,117 | E204: 917 | F204: 0 | G204: 272 | H204: 65 | I204: 2 | J204: 924 | K204: 892 | L204: 0 | M204: 274 | N204: 52 | O204: 0 | P204: 925 | Q204: 896 | R204: 0 | S204: 228 | T204: 86 | U204: 0 | V204: 880 | W204: 808 | X204: 0 | Y204: 233 | Z204: 61 | AA204: 0 | AB204: 898 | AC204: 837 | AD204: 0 | AE204: 223 | AF204: 80 | AG204: 0 | AH204: 883 | AI204: 944 | AJ204: 0 | AK204: 230 | AL204: 68 | AM204: 0 | AN204: 862 | AO204: 919 | AP204: 0 | AQ204: 203 | AR204: 65 | AS204: 0 | AT204: 868 | AU204: 956 | AV204: 0 | AW204: 244 | AX204: 73 | AY204: 0 | AZ204: 848 | BA204: 829 | BB204: 0 | BC204: 233 | BD204: 60 | BE204: 0 | BF204: 838 | BG204: 849 | BH204: 0 | BI204: 242 | BJ204: 61 | BK204: 0 | BL204: 813 | BM204: 862 | BN204: 0 | BO204: 222 | BP204: 81 | BQ204: 0 | BR204: 786 | BS204: 778 | BT204: 0 | BU204: 238 | BV204: 80 | BW204: 0
A205: ATLANTICO | B205: AMAZONAS | C205: Tercero | D205: 889 | E205: 815 | F205: 0 | G205: 204 | H205: 45 | I205: 1 | J205: 1,029 | K205: 843 | L205: 0 | M205: 234 | N205: 65 | O205: 0 | P205: 881 | Q205: 810 | R205: 0 | S205: 225 | T205: 59 | U205: 0 | V205: 934 | W205: 827 | X205: 0 | Y205: 221 | Z205: 67 | AA205: 0 | AB205: 879 | AC205: 730 | AD205: 0 | AE205: 189 | AF205: 60 | AG205: 0 | AH205: 837 | AI205: 835 | AJ205: 0 | AK205: 193 | AL205: 70 | AM205: 0 | AN205: 862 | AO205: 887 | AP205: 0 | AQ205: 210 | AR205: 65 | AS205: 0 | AT205: 847 | AU205: 948 | AV205: 0 | AW205: 204 | AX205: 50 | AY205: 0 | AZ205: 832 | BA205: 921 | BB205: 0 | BC205: 212 | BD205: 64 | BE205: 0 | BF205: 840 | BG205: 815 | BH205: 0 | BI205: 231 | BJ205: 61 | BK205: 0 | BL205: 801 | BM205: 851 | BN205: 0 | BO205: 221 | BP205: 66 | BQ205: 0 | BR205: 788 | BS205: 842 | BT205: 0 | BU205: 221 | BV205: 68 | BW205: 0
A206: BARRANCABERMEJA | B206: AMAZONAS | C206: Cuarto | D206: 942 | E206: 749 | F206: 0 | G206: 215 | H206: 30 | I206: 4 | J206: 915 | K206: 735 | L206: 0 | M206: 189 | N206: 49 | O206: 0 | P206: 1,019 | Q206: 758 | R206: 0 | S206: 198 | T206: 73 | U206: 0 | V206: 868 | W206: 771 | X206: 0 | Y206: 200 | Z206: 39 | AA206: 0 | AB206: 882 | AC206: 739 | AD206: 0 | AE206: 200 | AF206: 78 | AG206: 0 | AH206: 827 | AI206: 698 | AJ206: 0 | AK206: 171 | AL206: 55 | AM206: 0 | AN206: 807 | AO206: 738 | AP206: 0 | AQ206: 172 | AR206: 65 | AS206: 0 | AT206: 836 | AU206: 826 | AV206: 0 | AW206: 211 | AX206: 44 | AY206: 0 | AZ206: 764 | BA206: 848 | BB206: 0 | BC206: 163 | BD206: 62 | BE206: 0 | BF206: 779 | BG206: 802 | BH206: 0 | BI206: 173 | BJ206: 62 | BK206: 0 | BL206: 787 | BM206: 783 | BN206: 0 | BO206: 192 | BP206: 58 | BQ206: 0 | BR206: 783 | BS206: 741 | BT206: 0 | BU206: 196 | BV206: 54 | BW206: 0
A207: BARRANQUILLA | B207: AMAZONAS | C207: Quinto | D207: 887 | E207: 789 | F207: 0 | G207: 192 | H207: 46 | I207: 2 | J207: 892 | K207: 699 | L207: 0 | M207: 202 | N207: 28 | O207: 0 | P207: 875 | Q207: 713 | R207: 0 | S207: 175 | T207: 51 | U207: 0 | V207: 969 | W207: 699 | X207: 0 | Y207: 187 | Z207: 54 | AA207: 0 | AB207: 842 | AC207: 701 | AD207: 0 | AE207: 162 | AF207: 42 | AG207: 0 | AH207: 810 | AI207: 755 | AJ207: 0 | AK207: 170 | AL207: 68 | AM207: 0 | AN207: 817 | AO207: 625 | AP207: 0 | AQ207: 159 | AR207: 50 | AS207: 0 | AT207: 766 | AU207: 756 | AV207: 0 | AW207: 161 | AX207: 53 | AY207: 0 | AZ207: 809 | BA207: 762 | BB207: 0 | BC207: 180 | BD207: 49 | BE207: 0 | BF207: 714 | BG207: 755 | BH207: 0 | BI207: 141 | BJ207: 56 | BK207: 0 | BL207: 749 | BM207: 754 | BN207: 0 | BO207: 155 | BP207: 61 | BQ207: 0 | BR207: 746 | BS207: 765 | BT207: 0 | BU207: 183 | BV207: 52 | BW207: 0
A208: BELLO | B208: AMAZONAS | C208: Sexto | D208: 976 | E208: 813 | F208: 0 | G208: 0 | H208: 37 | I208: 0 | J208: 1,047 | K208: 886 | L208: 0 | M208: 0 | N208: 47 | O208: 0 | P208: 1,049 | Q208: 829 | R208: 0 | S208: 0 | T208: 48 | U208: 0 | V208: 1,054 | W208: 805 | X208: 0 | Y208: 40 | Z208: 44 | AA208: 0 | AB208: 1,123 | AC208: 880 | AD208: 0 | AE208: 16 | AF208: 69 | AG208: 0 | AH208: 1,026 | AI208: 806 | AJ208: 0 | AK208: 20 | AL208: 67 | AM208: 0 | AN208: 1,063 | AO208: 882 | AP208: 0 | AQ208: 26 | AR208: 69 | AS208: 0 | AT208: 1,223 | AU208: 839 | AV208: 0 | AW208: 15 | AX208: 43 | AY208: 0 | AZ208: 998 | BA208: 707 | BB208: 0 | BC208: 24 | BD208: 68 | BE208: 0 | BF208: 1,006 | BG208: 766 | BH208: 0 | BI208: 21 | BJ208: 57 | BK208: 0 | BL208: 872 | BM208: 815 | BN208: 0 | BO208: 18 | BP208: 72 | BQ208: 0 | BR208: 932 | BS208: 815 | BT208: 0 | BU208: 32 | BV208: 59 | BW208: 0
A209: BOGOTA | B209: AMAZONAS | C209: Septimo | D209: 932 | E209: 714 | F209: 0 | G209: 0 | H209: 45 | I209: 2 | J209: 836 | K209: 688 | L209: 0 | M209: 0 | N209: 40 | O209: 0 | P209: 917 | Q209: 680 | R209: 0 | S209: 0 | T209: 47 | U209: 0 | V209: 958 | W209: 657 | X209: 0 | Y209: 0 | Z209: 37 | AA209: 0 | AB209: 925 | AC209: 641 | AD209: 0 | AE209: 33 | AF209: 58 | AG209: 0 | AH209: 985 | AI209: 739 | AJ209: 0 | AK209: 18 | AL209: 64 | AM209: 0 | AN209: 894 | AO209: 658 | AP209: 0 | AQ209: 17 | AR209: 65 | AS209: 0 | AT209: 875 | AU209: 773 | AV209: 0 | AW209: 24 | AX209: 57 | AY209: 0 | AZ209: 906 | BA209: 734 | BB209: 0 | BC209: 8 | BD209: 57 | BE209: 0 | BF209: 833 | BG209: 639 | BH209: 0 | BI209: 22 | BJ209: 69 | BK209: 0 | BL209: 872 | BM209: 633 | BN209: 0 | BO209: 18 | BP209: 44 | BQ209: 0 | BR209: 806 | BS209: 638 | BT209: 0 | BU209: 20 | BV209: 57 | BW209: 0
A210: BOLIVAR | B210: AMAZONAS | C210: Octavo | D210: 724 | E210: 498 | F210: 0 | G210: 0 | H210: 46 | I210: 3 | J210: 813 | K210: 598 | L210: 0 | M210: 0 | N210: 39 | O210: 0 | P210: 757 | Q210: 577 | R210: 0 | S210: 0 | T210: 41 | U210: 0 | V210: 825 | W210: 575 | X210: 0 | Y210: 0 | Z210: 33 | AA210: 0 | AB210: 847 | AC210: 518 | AD210: 0 | AE210: 0 | AF210: 27 | AG210: 0 | AH210: 811 | AI210: 475 | AJ210: 0 | AK210: 27 | AL210: 59 | AM210: 0 | AN210: 857 | AO210: 603 | AP210: 0 | AQ210: 17 | AR210: 62 | AS210: 0 | AT210: 776 | AU210: 619 | AV210: 0 | AW210: 18 | AX210: 52 | AY210: 0 | AZ210: 736 | BA210: 639 | BB210: 0 | BC210: 19 | BD210: 65 | BE210: 0 | BF210: 877 | BG210: 564 | BH210: 0 | BI210: 7 | BJ210: 57 | BK210: 0 | BL210: 721 | BM210: 555 | BN210: 0 | BO210: 19 | BP210: 64 | BQ210: 0 | BR210: 740 | BS210: 518 | BT210: 0 | BU210: 12 | BV210: 45 | BW210: 0
A211: BOYACA | B211: AMAZONAS | C211: Noveno | D211: 680 | E211: 363 | F211: 0 | G211: 0 | H211: 42 | I211: 3 | J211: 648 | K211: 433 | L211: 0 | M211: 0 | N211: 39 | O211: 0 | P211: 757 | Q211: 475 | R211: 0 | S211: 0 | T211: 35 | U211: 0 | V211: 682 | W211: 489 | X211: 0 | Y211: 0 | Z211: 30 | AA211: 0 | AB211: 718 | AC211: 455 | AD211: 0 | AE211: 0 | AF211: 29 | AG211: 0 | AH211: 742 | AI211: 421 | AJ211: 0 | AK211: 0 | AL211: 28 | AM211: 0 | AN211: 708 | AO211: 441 | AP211: 0 | AQ211: 22 | AR211: 50 | AS211: 0 | AT211: 710 | AU211: 544 | AV211: 0 | AW211: 16 | AX211: 53 | AY211: 0 | AZ211: 679 | BA211: 493 | BB211: 0 | BC211: 16 | BD211: 48 | BE211: 0 | BF211: 645 | BG211: 484 | BH211: 0 | BI211: 17 | BJ211: 67 | BK211: 0 | BL211: 771 | BM211: 426 | BN211: 0 | BO211: 6 | BP211: 50 | BQ211: 0 | BR211: 708 | BS211: 444 | BT211: 0 | BU211: 14 | BV211: 58 | BW211: 0
A212: BUCARAMANGA | B212: AMAZONAS | C212: Decimo | D212: 640 | E212: 312 | F212: 0 | G212: 0 | H212: 29 | I212: 0 | J212: 671 | K212: 331 | L212: 0 | M212: 0 | N212: 38 | O212: 0 | P212: 638 | Q212: 340 | R212: 0 | S212: 0 | T212: 29 | U212: 0 | V212: 716 | W212: 361 | X212: 0 | Y212: 0 | Z212: 25 | AA212: 0 | AB212: 651 | AC212: 371 | AD212: 0 | AE212: 0 | AF212: 28 | AG212: 0 | AH212: 655 | AI212: 359 | AJ212: 0 | AK212: 0 | AL212: 27 | AM212: 0 | AN212: 695 | AO212: 347 | AP212: 0 | AQ212: 0 | AR212: 29 | AS212: 0 | AT212: 677 | AU212: 411 | AV212: 0 | AW212: 0 | AX212: 32 | AY212: 0 | AZ212: 606 | BA212: 443 | BB212: 0 | BC212: 0 | BD212: 49 | BE212: 0 | BF212: 631 | BG212: 385 | BH212: 0 | BI212: 11 | BJ212: 46 | BK212: 0 | BL212: 556 | BM212: 389 | BN212: 0 | BO212: 13 | BP212: 59 | BQ212: 0 | BR212: 631 | BS212: 373 | BT212: 0 | BU212: 7 | BV212: 48 | BW212: 0
A213: BUENAVENTURA | B213: AMAZONAS | C213: Once | D213: 484 | E213: 175 | F213: 0 | G213: 0 | H213: 28 | I213: 2 | J213: 487 | K213: 245 | L213: 0 | M213: 0 | N213: 27 | O213: 0 | P213: 547 | Q213: 237 | R213: 0 | S213: 0 | T213: 40 | U213: 0 | V213: 533 | W213: 253 | X213: 0 | Y213: 0 | Z213: 23 | AA213: 0 | AB213: 565 | AC213: 289 | AD213: 0 | AE213: 0 | AF213: 21 | AG213: 0 | AH213: 462 | AI213: 283 | AJ213: 0 | AK213: 0 | AL213: 27 | AM213: 0 | AN213: 519 | AO213: 277 | AP213: 0 | AQ213: 0 | AR213: 25 | AS213: 0 | AT213: 443 | AU213: 287 | AV213: 0 | AW213: 0 | AX213: 24 | AY213: 0 | AZ213: 478 | BA213: 299 | BB213: 0 | BC213: 0 | BD213: 42 | BE213: 0 | BF213: 535 | BG213: 326 | BH213: 0 | BI213: 12 | BJ213: 43 | BK213: 0 | BL213: 498 | BM213: 279 | BN213: 0 | BO213: 10 | BP213: 42 | BQ213: 0 | BR213: 429 | BS213: 261 | BT213: 0 | BU213: 9 | BV213: 58 | BW213: 0
A214: BUGA | B214: AMAZONAS | C214: 12º Normal | D214: 60 | E214: 0 | F214: 0 | G214: 0 | H214: 0 | I214: 0 | J214: 26 | K214: 0 | L214: 0 | M214: 0 | N214: 0 | O214: 0 | P214: 71 | Q214: 0 | R214: 0 | S214: 0 | T214: 0 | U214: 0 | V214: 43 | W214: 0 | X214: 0 | Y214: 0 | Z214: 0 | AA214: 0 | AB214: 20 | AC214: 0 | AD214: 0 | AE214: 0 | AF214: 0 | AG214: 0 | AH214: 48 | AI214: 0 | AJ214: 0 | AK214: 0 | AL214: 0 | AM214: 0 | AN214: 26 | AO214: 0 | AP214: 0 | AQ214: 0 | AR214: 0 | AS214: 0 | AT214: 53 | AU214: 0 | AV214: 0 | AW214: 0 | AX214: 0 | AY214: 0 | AZ214: 42 | BA214: 0 | BB214: 0 | BC214: 0 | BD214: 0 | BE214: 0 | BF214: 19 | BG214: 0 | BH214: 0 | BI214: 0 | BJ214: 0 | BK214: 0 | BL214: 21 | BM214: 0 | BN214: 0 | BO214: 0 | BP214: 0 | BQ214: 0 | BR214: 0 | BS214: 0 | BT214: 0 | BU214: 0 | BV214: 0 | BW214: 0
A215: CALDAS | B215: AMAZONAS | C215: 13º Normal | D215: 34 | E215: 0 | F215: 0 | G215: 0 | H215: 0 | I215: 0 | J215: 52 | K215: 0 | L215: 0 | M215: 0 | N215: 0 | O215: 0 | P215: 11 | Q215: 0 | R215: 0 | S215: 0 | T215: 0 | U215: 0 | V215: 27 | W215: 0 | X215: 0 | Y215: 0 | Z215: 0 | AA215: 0 | AB215: 16 | AC215: 0 | AD215: 0 | AE215: 0 | AF215: 0 | AG215: 0 | AH215: 38 | AI215: 0 | AJ215: 0 | AK215: 0 | AL215: 0 | AM215: 0 | AN215: 22 | AO215: 0 | AP215: 0 | AQ215: 0 | AR215: 0 | AS215: 0 | AT215: 23 | AU215: 0 | AV215: 0 | AW215: 0 | AX215: 0 | AY215: 0 | AZ215: 31 | BA215: 0 | BB215: 0 | BC215: 0 | BD215: 0 | BE215: 0 | BF215: 18 | BG215: 0 | BH215: 0 | BI215: 0 | BJ215: 0 | BK215: 0 | BL215: 32 | BM215: 0 | BN215: 0 | BO215: 0 | BP215: 0 | BQ215: 0 | BR215: 1 | BS215: 0 | BT215: 0 | BU215: 0 | BV215: 0 | BW215: 0
A216: CALI | B216: AMAZONAS | C216: Ciclo 1 Adultos | D216: 37 | E216: 3 | F216: 0 | G216: 0 | H216: 0 | I216: 0 | J216: 55 | K216: 42 | L216: 0 | M216: 0 | N216: 0 | O216: 0 | P216: 55 | Q216: 11 | R216: 0 | S216: 0 | T216: 0 | U216: 0 | V216: 39 | W216: 42 | X216: 0 | Y216: 0 | Z216: 0 | AA216: 0 | AB216: 28 | AC216: 34 | AD216: 0 | AE216: 0 | AF216: 0 | AG216: 0 | AH216: 42 | AI216: 25 | AJ216: 0 | AK216: 0 | AL216: 0 | AM216: 0 | AN216: 20 | AO216: 10 | AP216: 0 | AQ216: 0 | AR216: 0 | AS216: 0 | AT216: 19 | AU216: 6 | AV216: 0 | AW216: 0 | AX216: 0 | AY216: 0 | AZ216: 34 | BA216: 5 | BB216: 0 | BC216: 0 | BD216: 0 | BE216: 0 | BF216: 21 | BG216: 0 | BH216: 0 | BI216: 0 | BJ216: 0 | BK216: 0 | BL216: 198 | BM216: 337 | BN216: 0 | BO216: 0 | BP216: 0 | BQ216: 0 | BR216: 32 | BS216: 0 | BT216: 0 | BU216: 0 | BV216: 0 | BW216: 0
A217: CAQUETA | B217: AMAZONAS | C217: Ciclo 2 Adultos | D217: 93 | E217: 13 | F217: 0 | G217: 0 | H217: 0 | I217: 0 | J217: 89 | K217: 35 | L217: 0 | M217: 0 | N217: 0 | O217: 0 | P217: 107 | Q217: 54 | R217: 0 | S217: 0 | T217: 0 | U217: 0 | V217: 70 | W217: 45 | X217: 0 | Y217: 0 | Z217: 0 | AA217: 0 | AB217: 66 | AC217: 39 | AD217: 0 | AE217: 0 | AF217: 0 | AG217: 0 | AH217: 75 | AI217: 53 | AJ217: 0 | AK217: 0 | AL217: 0 | AM217: 0 | AN217: 64 | AO217: 13 | AP217: 0 | AQ217: 0 | AR217: 0 | AS217: 0 | AT217: 52 | AU217: 6 | AV217: 0 | AW217: 0 | AX217: 0 | AY217: 0 | AZ217: 46 | BA217: 16 | BB217: 0 | BC217: 0 | BD217: 0 | BE217: 0 | BF217: 32 | BG217: 0 | BH217: 0 | BI217: 0 | BJ217: 0 | BK217: 0 | BL217: 36 | BM217: 0 | BN217: 0 | BO217: 0 | BP217: 0 | BQ217: 0 | BR217: 49 | BS217: 3 | BT217: 0 | BU217: 0 | BV217: 0 | BW217: 0
A218: CARTAGENA | B218: AMAZONAS | C218: Ciclo 3 Adultos | D218: 255 | E218: 42 | F218: 0 | G218: 0 | H218: 0 | I218: 0 | J218: 256 | K218: 131 | L218: 0 | M218: 0 | N218: 0 | O218: 0 | P218: 250 | Q218: 71 | R218: 0 | S218: 0 | T218: 0 | U218: 0 | V218: 192 | W218: 73 | X218: 0 | Y218: 0 | Z218: 0 | AA218: 0 | AB218: 247 | AC218: 108 | AD218: 0 | AE218: 0 | AF218: 0 | AG218: 0 | AH218: 219 | AI218: 159 | AJ218: 0 | AK218: 0 | AL218: 0 | AM218: 0 | AN218: 279 | AO218: 135 | AP218: 0 | AQ218: 0 | AR218: 0 | AS218: 0 | AT218: 269 | AU218: 146 | AV218: 0 | AW218: 0 | AX218: 0 | AY218: 0 | AZ218: 206 | BA218: 131 | BB218: 0 | BC218: 0 | BD218: 0 | BE218: 0 | BF218: 172 | BG218: 50 | BH218: 0 | BI218: 0 | BJ218: 0 | BK218: 0 | BL218: 139 | BM218: 52 | BN218: 0 | BO218: 0 | BP218: 0 | BQ218: 0 | BR218: 164 | BS218: 31 | BT218: 0 | BU218: 0 | BV218: 0 | BW218: 0
A219: CARTAGO | B219: AMAZONAS | C219: Ciclo 4 Adultos | D219: 236 | E219: 42 | F219: 0 | G219: 0 | H219: 0 | I219: 0 | J219: 224 | K219: 69 | L219: 0 | M219: 0 | N219: 0 | O219: 0 | P219: 264 | Q219: 119 | R219: 0 | S219: 0 | T219: 0 | U219: 0 | V219: 194 | W219: 84 | X219: 0 | Y219: 0 | Z219: 0 | AA219: 0 | AB219: 213 | AC219: 89 | AD219: 0 | AE219: 0 | AF219: 0 | AG219: 0 | AH219: 234 | AI219: 164 | AJ219: 0 | AK219: 0 | AL219: 0 | AM219: 0 | AN219: 240 | AO219: 127 | AP219: 0 | AQ219: 0 | AR219: 0 | AS219: 0 | AT219: 246 | AU219: 161 | AV219: 0 | AW219: 0 | AX219: 0 | AY219: 0 | AZ219: 216 | BA219: 191 | BB219: 0 | BC219: 0 | BD219: 0 | BE219: 0 | BF219: 170 | BG219: 91 | BH219: 0 | BI219: 0 | BJ219: 0 | BK219: 0 | BL219: 177 | BM219: 61 | BN219: 0 | BO219: 0 | BP219: 0 | BQ219: 0 | BR219: 116 | BS219: 52 | BT219: 0 | BU219: 0 | BV219: 0 | BW219: 0
A220: CASANARE | B220: AMAZONAS | C220: Ciclo 5 Adultos | D220: 236 | E220: 37 | F220: 0 | G220: 0 | H220: 0 | I220: 0 | J220: 219 | K220: 49 | L220: 0 | M220: 0 | N220: 0 | O220: 0 | P220: 219 | Q220: 70 | R220: 0 | S220: 0 | T220: 0 | U220: 0 | V220: 231 | W220: 91 | X220: 0 | Y220: 0 | Z220: 0 | AA220: 0 | AB220: 201 | AC220: 71 | AD220: 0 | AE220: 0 | AF220: 0 | AG220: 0 | AH220: 177 | AI220: 99 | AJ220: 0 | AK220: 0 | AL220: 0 | AM220: 0 | AN220: 198 | AO220: 129 | AP220: 0 | AQ220: 0 | AR220: 0 | AS220: 0 | AT220: 214 | AU220: 155 | AV220: 0 | AW220: 0 | AX220: 0 | AY220: 0 | AZ220: 173 | BA220: 155 | BB220: 0 | BC220: 0 | BD220: 0 | BE220: 0 | BF220: 131 | BG220: 55 | BH220: 0 | BI220: 0 | BJ220: 0 | BK220: 0 | BL220: 138 | BM220: 80 | BN220: 0 | BO220: 0 | BP220: 0 | BQ220: 0 | BR220: 99 | BS220: 40 | BT220: 0 | BU220: 0 | BV220: 2 | BW220: 0
A221: CAUCA | B221: AMAZONAS | C221: Ciclo 6 Adultos | D221: 172 | E221: 24 | F221: 0 | G221: 0 | H221: 0 | I221: 0 | J221: 185 | K221: 32 | L221: 0 | M221: 0 | N221: 0 | O221: 0 | P221: 159 | Q221: 44 | R221: 0 | S221: 0 | T221: 0 | U221: 0 | V221: 166 | W221: 64 | X221: 0 | Y221: 0 | Z221: 0 | AA221: 0 | AB221: 140 | AC221: 75 | AD221: 0 | AE221: 0 | AF221: 0 | AG221: 0 | AH221: 163 | AI221: 73 | AJ221: 0 | AK221: 0 | AL221: 0 | AM221: 0 | AN221: 161 | AO221: 104 | AP221: 0 | AQ221: 0 | AR221: 0 | AS221: 0 | AT221: 136 | AU221: 122 | AV221: 0 | AW221: 0 | AX221: 0 | AY221: 0 | AZ221: 123 | BA221: 125 | BB221: 0 | BC221: 0 | BD221: 0 | BE221: 0 | BF221: 118 | BG221: 74 | BH221: 0 | BI221: 0 | BJ221: 12 | BK221: 0 | BL221: 103 | BM221: 38 | BN221: 0 | BO221: 0 | BP221: 1 | BQ221: 0 | BR221: 83 | BS221: 53 | BT221: 0 | BU221: 0 | BV221: 15 | BW221: 0
A222: CESAR | B222: AMAZONAS | C222: Semestre introductorio NS | D222: 0 | E222: 0 | F222: 0 | G222: 0 | H222: 0 | I222: 0 | J222: 0 | K222: 0 | L222: 0 | M222: 0 | N222: 0 | O222: 0 | P222: 0 | Q222: 0 | R222: 0 | S222: 0 | T222: 0 | U222: 0 | V222: 0 | W222: 0 | X222: 0 | Y222: 0 | Z222: 0 | AA222: 0 | AB222: 0 | AC222: 0 | AD222: 0 | AE222: 0 | AF222: 0 | AG222: 0 | AH222: 0 | AI222: 0 | AJ222: 0 | AK222: 0 | AL222: 0 | AM222: 0 | AN222: 0 | AO222: 0 | AP222: 0 | AQ222: 0 | AR222: 0 | AS222: 0 | AT222: 0 | AU222: 0 | AV222: 0 | AW222: 0 | AX222: 0 | AY222: 0 | AZ222: 0 | BA222: 0 | BB222: 0 | BC222: 0 | BD222: 0 | BE222: 0 | BF222: 0 | BG222: 0 | BH222: 0 | BI222: 0 | BJ222: 0 | BK222: 0 | BL222: 0 | BM222: 0 | BN222: 0 | BO222: 0 | BP222: 0 | BQ222: 0 | BR222: 9 | BS222: 0 | BT222: 0 | BU222: 0 | BV222: 0 | BW222: 0
A223: CHIA | B223: AMAZONAS | C223: Programa formación compl 1 NS | D223: 0 | E223: 0 | F223: 0 | G223: 0 | H223: 0 | I223: 0 | J223: 0 | K223: 0 | L223: 0 | M223: 0 | N223: 0 | O223: 0 | P223: 0 | Q223: 0 | R223: 0 | S223: 0 | T223: 0 | U223: 0 | V223: 0 | W223: 0 | X223: 0 | Y223: 0 | Z223: 0 | AA223: 0 | AB223: 0 | AC223: 0 | AD223: 0 | AE223: 0 | AF223: 0 | AG223: 0 | AH223: 0 | AI223: 0 | AJ223: 0 | AK223: 0 | AL223: 0 | AM223: 0 | AN223: 0 | AO223: 0 | AP223: 0 | AQ223: 0 | AR223: 0 | AS223: 0 | AT223: 0 | AU223: 0 | AV223: 0 | AW223: 0 | AX223: 0 | AY223: 0 | AZ223: 0 | BA223: 0 | BB223: 0 | BC223: 0 | BD223: 0 | BE223: 0 | BF223: 0 | BG223: 0 | BH223: 0 | BI223: 0 | BJ223: 0 | BK223: 0 | BL223: 0 | BM223: 0 | BN223: 0 | BO223: 0 | BP223: 0 | BQ223: 0 | BR223: 8 | BS223: 0 | BT223: 0 | BU223: 0 | BV223: 0 | BW223: 0
A224: CHOCO | B224: AMAZONAS | C224: Programa formación compl 2 NS | D224: 0 | E224: 0 | F224: 0 | G224: 0 | H224: 0 | I224: 0 | J224: 0 | K224: 0 | L224: 0 | M224: 0 | N224: 0 | O224: 0 | P224: 0 | Q224: 0 | R224: 0 | S224: 0 | T224: 0 | U224: 0 | V224: 0 | W224: 0 | X224: 0 | Y224: 0 | Z224: 0 | AA224: 0 | AB224: 0 | AC224: 0 | AD224: 0 | AE224: 0 | AF224: 0 | AG224: 0 | AH224: 0 | AI224: 0 | AJ224: 0 | AK224: 0 | AL224: 0 | AM224: 0 | AN224: 0 | AO224: 0 | AP224: 0 | AQ224: 0 | AR224: 0 | AS224: 0 | AT224: 0 | AU224: 0 | AV224: 0 | AW224: 0 | AX224: 0 | AY224: 0 | AZ224: 0 | BA224: 0 | BB224: 0 | BC224: 0 | BD224: 0 | BE224: 0 | BF224: 0 | BG224: 0 | BH224: 0 | BI224: 0 | BJ224: 0 | BK224: 0 | BL224: 0 | BM224: 0 | BN224: 0 | BO224: 0 | BP224: 0 | BQ224: 0 | BR224: 5 | BS224: 0 | BT224: 0 | BU224: 0 | BV224: 0 | BW224: 0
A225: CIENAGA | B225: AMAZONAS | C225: Programa formación compl 3 NS | D225: 0 | E225: 0 | F225: 0 | G225: 0 | H225: 0 | I225: 0 | J225: 0 | K225: 0 | L225: 0 | M225: 0 | N225: 0 | O225: 0 | P225: 0 | Q225: 0 | R225: 0 | S225: 0 | T225: 0 | U225: 0 | V225: 0 | W225: 0 | X225: 0 | Y225: 0 | Z225: 0 | AA225: 0 | AB225: 0 | AC225: 0 | AD225: 0 | AE225: 0 | AF225: 0 | AG225: 0 | AH225: 0 | AI225: 0 | AJ225: 0 | AK225: 0 | AL225: 0 | AM225: 0 | AN225: 0 | AO225: 0 | AP225: 0 | AQ225: 0 | AR225: 0 | AS225: 0 | AT225: 0 | AU225: 0 | AV225: 0 | AW225: 0 | AX225: 0 | AY225: 0 | AZ225: 0 | BA225: 0 | BB225: 0 | BC225: 0 | BD225: 0 | BE225: 0 | BF225: 0 | BG225: 0 | BH225: 0 | BI225: 0 | BJ225: 0 | BK225: 0 | BL225: 0 | BM225: 0 | BN225: 0 | BO225: 0 | BP225: 0 | BQ225: 0 | BR225: 9 | BS225: 0 | BT225: 0 | BU225: 0 | BV225: 0 | BW225: 0
A226: CORDOBA | B226: AMAZONAS | C226: Programa formación compl 4 NS | D226: 0 | E226: 0 | F226: 0 | G226: 0 | H226: 0 | I226: 0 | J226: 0 | K226: 0 | L226: 0 | M226: 0 | N226: 0 | O226: 0 | P226: 0 | Q226: 0 | R226: 0 | S226: 0 | T226: 0 | U226: 0 | V226: 0 | W226: 0 | X226: 0 | Y226: 0 | Z226: 0 | AA226: 0 | AB226: 0 | AC226: 0 | AD226: 0 | AE226: 0 | AF226: 0 | AG226: 0 | AH226: 0 | AI226: 0 | AJ226: 0 | AK226: 0 | AL226: 0 | AM226: 0 | AN226: 0 | AO226: 0 | AP226: 0 | AQ226: 0 | AR226: 0 | AS226: 0 | AT226: 0 | AU226: 0 | AV226: 0 | AW226: 0 | AX226: 0 | AY226: 0 | AZ226: 0 | BA226: 0 | BB226: 0 | BC226: 0 | BD226: 0 | BE226: 0 | BF226: 0 | BG226: 0 | BH226: 0 | BI226: 0 | BJ226: 0 | BK226: 0 | BL226: 0 | BM226: 0 | BN226: 0 | BO226: 0 | BP226: 0 | BQ226: 0 | BR226: 6 | BS226: 0 | BT226: 0 | BU226: 0 | BV226: 0 | BW226: 0
A227: CUCUTA | B227: AMAZONAS | C227: Aceleración del Aprendizaje | D227: 18 | E227: 0 | F227: 0 | G227: 0 | H227: 0 | I227: 0 | J227: 0 | K227: 21 | L227: 0 | M227: 0 | N227: 0 | O227: 0 | P227: 0 | Q227: 21 | R227: 0 | S227: 0 | T227: 0 | U227: 0 | V227: 33 | W227: 23 | X227: 0 | Y227: 0 | Z227: 0 | AA227: 0 | AB227: 0 | AC227: 26 | AD227: 0 | AE227: 0 | AF227: 0 | AG227: 0 | AH227: 0 | AI227: 46 | AJ227: 0 | AK227: 0 | AL227: 0 | AM227: 0 | AN227: 0 | AO227: 33 | AP227: 0 | AQ227: 0 | AR227: 0 | AS227: 0 | AT227: 0 | AU227: 17 | AV227: 0 | AW227: 0 | AX227: 0 | AY227: 0 | AZ227: 0 | BA227: 0 | BB227: 0 | BC227: 0 | BD227: 0 | BE227: 0 | BF227: 0 | BG227: 0 | BH227: 0 | BI227: 0 | BJ227: 0 | BK227: 0 | BL227: 0 | BM227: 0 | BN227: 0 | BO227: 0 | BP227: 0 | BQ227: 0 | BR227: 0 | BS227: 0 | BT227: 0 | BU227: 0 | BV227: 0 | BW227: 0
A228: CUNDINAMARCA | B228: ANTIOQUIA | C228: Prejardín | D228: 0 | E228: 0 | F228: 0 | G228: 0 | H228: 957 | I228: 135 | J228: 0 | K228: 0 | L228: 0 | M228: 0 | N228: 891 | O228: 90 | P228: 0 | Q228: 0 | R228: 0 | S228: 0 | T228: 1,305 | U228: 92 | V228: 0 | W228: 0 | X228: 0 | Y228: 0 | Z228: 1,151 | AA228: 184 | AB228: 0 | AC228: 0 | AD228: 0 | AE228: 0 | AF228: 1,290 | AG228: 101 | AH228: 0 | AI228: 0 | AJ228: 0 | AK228: 0 | AL228: 1,348 | AM228: 156 | AN228: 0 | AO228: 0 | AP228: 0 | AQ228: 0 | AR228: 1,185 | AS228: 172 | AT228: 0 | AU228: 0 | AV228: 0 | AW228: 0 | AX228: 1,016 | AY228: 186 | AZ228: 0 | BA228: 0 | BB228: 0 | BC228: 0 | BD228: 1,069 | BE228: 194 | BF228: 0 | BG228: 0 | BH228: 0 | BI228: 0 | BJ228: 1,076 | BK228: 212 | BL228: 40 | BM228: 34 | BN228: 0 | BO228: 0 | BP228: 1,107 | BQ228: 255 | BR228: 121 | BS228: 84 | BT228: 0 | BU228: 0 | BV228: 1,049 | BW228: 195
A229: DOSQUEBRADAS | B229: ANTIOQUIA | C229: Jardín | D229: 0 | E229: 0 | F229: 0 | G229: 0 | H229: 1,220 | I229: 172 | J229: 0 | K229: 0 | L229: 0 | M229: 0 | N229: 1,283 | O229: 193 | P229: 0 | Q229: 0 | R229: 0 | S229: 0 | T229: 1,494 | U229: 148 | V229: 0 | W229: 0 | X229: 0 | Y229: 0 | Z229: 1,493 | AA229: 224 | AB229: 0 | AC229: 26 | AD229: 0 | AE229: 0 | AF229: 1,555 | AG229: 144 | AH229: 0 | AI229: 0 | AJ229: 0 | AK229: 0 | AL229: 1,575 | AM229: 167 | AN229: 0 | AO229: 0 | AP229: 0 | AQ229: 0 | AR229: 1,590 | AS229: 264 | AT229: 0 | AU229: 0 | AV229: 0 | AW229: 0 | AX229: 1,398 | AY229: 262 | AZ229: 0 | BA229: 0 | BB229: 0 | BC229: 0 | BD229: 1,637 | BE229: 264 | BF229: 0 | BG229: 0 | BH229: 0 | BI229: 0 | BJ229: 1,513 | BK229: 310 | BL229: 115 | BM229: 9 | BN229: 0 | BO229: 0 | BP229: 1,428 | BQ229: 311 | BR229: 466 | BS229: 64 | BT229: 0 | BU229: 0 | BV229: 1,355 | BW229: 310
A230: DUITAMA | B230: ANTIOQUIA | C230: Transición | D230: 19,584 | E230: 15,801 | F230: 241 | G230: 1,883 | H230: 1,488 | I230: 276 | J230: 18,494 | K230: 14,594 | L230: 159 | M230: 1,820 | N230: 1,416 | O230: 264 | P230: 17,180 | Q230: 14,784 | R230: 95 | S230: 1,872 | T230: 1,543 | U230: 317 | V230: 17,165 | W230: 14,857 | X230: 75 | Y230: 1,368 | Z230: 1,621 | AA230: 332 | AB230: 16,913 | AC230: 14,243 | AD230: 55 | AE230: 1,115 | AF230: 1,741 | AG230: 213 | AH230: 16,774 | AI230: 13,968 | AJ230: 47 | AK230: 1,254 | AL230: 1,680 | AM230: 282 | AN230: 16,724 | AO230: 13,333 | AP230: 32 | AQ230: 1,056 | AR230: 1,748 | AS230: 356 | AT230: 16,240 | AU230: 13,681 | AV230: 19 | AW230: 952 | AX230: 1,632 | AY230: 435 | AZ230: 17,758 | BA230: 14,475 | BB230: 32 | BC230: 987 | BD230: 1,859 | BE230: 446 | BF230: 17,527 | BG230: 13,974 | BH230: 49 | BI230: 1,248 | BJ230: 1,932 | BK230: 484 | BL230: 16,976 | BM230: 13,277 | BN230: 31 | BO230: 1,101 | BP230: 1,716 | BQ230: 514 | BR230: 15,769 | BS230: 12,643 | BT230: 33 | BU230: 1,044 | BV230: 1,582 | BW230: 463
A231: ENVIGADO | B231: ANTIOQUIA | C231: Primero | D231: 26,567 | E231: 27,003 | F231: 407 | G231: 3,841 | H231: 1,100 | I231: 324 | J231: 25,555 | K231: 24,569 | L231: 428 | M231: 3,460 | N231: 1,196 | O231: 359 | P231: 23,682 | Q231: 23,579 | R231: 187 | S231: 3,345 | T231: 1,194 | U231: 362 | V231: 22,143 | W231: 22,347 | X231: 161 | Y231: 2,638 | Z231: 1,251 | AA231: 365 | AB231: 22,048 | AC231: 21,865 | AD231: 84 | AE231: 2,232 | AF231: 1,324 | AG231: 276 | AH231: 21,705 | AI231: 20,926 | AJ231: 90 | AK231: 2,007 | AL231: 1,363 | AM231: 361 | AN231: 21,233 | AO231: 19,898 | AP231: 55 | AQ231: 1,792 | AR231: 1,330 | AS231: 376 | AT231: 20,400 | AU231: 18,676 | AV231: 35 | AW231: 1,504 | AX231: 1,297 | AY231: 419 | AZ231: 21,805 | BA231: 19,044 | BB231: 30 | BC231: 1,597 | BD231: 1,450 | BE231: 518 | BF231: 22,196 | BG231: 19,025 | BH231: 37 | BI231: 1,591 | BJ231: 1,506 | BK231: 507 | BL231: 21,315 | BM231: 17,938 | BN231: 60 | BO231: 1,748 | BP231: 1,507 | BQ231: 532 | BR231: 20,441 | BS231: 16,584 | BT231: 39 | BU231: 1,596 | BV231: 1,371 | BW231: 543
A232: FACATATIVA | B232: ANTIOQUIA | C232: Segundo | D232: 25,781 | E232: 26,102 | F232: 325 | G232: 3,254 | H232: 1,186 | I232: 323 | J232: 24,212 | K232: 23,404 | L232: 353 | M232: 2,915 | N232: 1,168 | O232: 338 | P232: 23,334 | Q232: 22,245 | R232: 271 | S232: 2,676 | T232: 1,178 | U232: 360 | V232: 21,985 | W232: 21,245 | X232: 225 | Y232: 2,373 | Z232: 1,213 | AA232: 379 | AB232: 20,506 | AC232: 19,992 | AD232: 152 | AE232: 2,137 | AF232: 1,245 | AG232: 310 | AH232: 20,366 | AI232: 19,564 | AJ232: 59 | AK232: 1,946 | AL232: 1,252 | AM232: 318 | AN232: 19,952 | AO232: 18,782 | AP232: 84 | AQ232: 1,743 | AR232: 1,312 | AS232: 382 | AT232: 19,799 | AU232: 19,280 | AV232: 62 | AW232: 1,686 | AX232: 1,206 | AY232: 398 | AZ232: 19,513 | BA232: 17,635 | BB232: 37 | BC232: 1,553 | BD232: 1,369 | BE232: 450 | BF232: 20,138 | BG232: 17,267 | BH232: 31 | BI232: 1,532 | BJ232: 1,384 | BK232: 540 | BL232: 20,635 | BM232: 17,092 | BN232: 37 | BO232: 1,634 | BP232: 1,451 | BQ232: 521 | BR232: 20,000 | BS232: 16,487 | BT232: 62 | BU232: 1,669 | BV232: 1,450 | BW232: 517
A233: FLORENCIA | B233: ANTIOQUIA | C233: Tercero | D233: 24,701 | E233: 23,858 | F233: 308 | G233: 2,871 | H233: 1,100 | I233: 332 | J233: 25,307 | K233: 23,875 | L233: 286 | M233: 2,675 | N233: 1,162 | O233: 350 | P233: 23,961 | Q233: 22,706 | R233: 230 | S233: 2,480 | T233: 1,232 | U233: 345 | V233: 22,858 | W233: 21,311 | X233: 273 | Y233: 2,079 | Z233: 1,216 | AA233: 360 | AB233: 21,830 | AC233: 19,761 | AD233: 215 | AE233: 2,148 | AF233: 1,235 | AG233: 307 | AH233: 20,780 | AI233: 18,975 | AJ233: 135 | AK233: 1,986 | AL233: 1,225 | AM233: 340 | AN233: 20,495 | AO233: 18,754 | AP233: 66 | AQ233: 1,826 | AR233: 1,234 | AS233: 343 | AT233: 19,850 | AU233: 18,995 | AV233: 89 | AW233: 1,696 | AX233: 1,212 | AY233: 385 | AZ233: 19,225 | BA233: 17,306 | BB233: 55 | BC233: 1,648 | BD233: 1,249 | BE233: 424 | BF233: 19,352 | BG233: 16,966 | BH233: 35 | BI233: 1,489 | BJ233: 1,384 | BK233: 479 | BL233: 19,832 | BM233: 16,567 | BN233: 25 | BO233: 1,478 | BP233: 1,334 | BQ233: 552 | BR233: 20,028 | BS233: 16,585 | BT233: 36 | BU233: 1,507 | BV233: 1,472 | BW233: 512
A234: FLORIDABLANCA | B234: ANTIOQUIA | C234: Cuarto | D234: 24,395 | E234: 22,320 | F234: 310 | G234: 2,352 | H234: 1,086 | I234: 333 | J234: 23,892 | K234: 21,868 | L234: 240 | M234: 2,402 | N234: 1,082 | O234: 353 | P234: 24,493 | Q234: 22,387 | R234: 196 | S234: 2,197 | T234: 1,138 | U234: 366 | V234: 23,183 | W234: 21,166 | X234: 267 | Y234: 1,938 | Z234: 1,227 | AA234: 366 | AB234: 22,085 | AC234: 19,772 | AD234: 243 | AE234: 1,771 | AF234: 1,236 | AG234: 310 | AH234: 21,480 | AI234: 18,678 | AJ234: 122 | AK234: 1,792 | AL234: 1,166 | AM234: 324 | AN234: 20,302 | AO234: 18,237 | AP234: 118 | AQ234: 1,606 | AR234: 1,189 | AS234: 364 | AT234: 20,193 | AU234: 18,909 | AV234: 66 | AW234: 1,629 | AX234: 1,163 | AY234: 363 | AZ234: 19,669 | BA234: 17,567 | BB234: 80 | BC234: 1,535 | BD234: 1,266 | BE234: 402 | BF234: 18,746 | BG234: 16,030 | BH234: 46 | BI234: 1,418 | BJ234: 1,222 | BK234: 455 | BL234: 19,023 | BM234: 16,054 | BN234: 33 | BO234: 1,332 | BP234: 1,333 | BQ234: 480 | BR234: 19,561 | BS234: 15,818 | BT234: 38 | BU234: 1,363 | BV234: 1,326 | BW234: 543
A235: FUNZA | B235: ANTIOQUIA | C235: Quinto | D235: 24,096 | E235: 20,865 | F235: 305 | G235: 2,066 | H235: 980 | I235: 328 | J235: 23,610 | K235: 20,388 | L235: 274 | M235: 2,015 | N235: 1,094 | O235: 361 | P235: 23,128 | Q235: 20,689 | R235: 152 | S235: 1,806 | T235: 1,098 | U235: 398 | V235: 23,414 | W235: 20,931 | X235: 180 | Y235: 1,834 | Z235: 1,174 | AA235: 373 | AB235: 22,435 | AC235: 19,679 | AD235: 182 | AE235: 1,654 | AF235: 1,285 | AG235: 324 | AH235: 21,812 | AI235: 18,803 | AJ235: 160 | AK235: 1,618 | AL235: 1,209 | AM235: 320 | AN235: 21,089 | AO235: 17,781 | AP235: 105 | AQ235: 1,531 | AR235: 1,161 | AS235: 343 | AT235: 20,130 | AU235: 18,356 | AV235: 105 | AW235: 1,599 | AX235: 1,110 | AY235: 373 | AZ235: 20,024 | BA235: 17,773 | BB235: 68 | BC235: 1,570 | BD235: 1,210 | BE235: 393 | BF235: 19,469 | BG235: 16,436 | BH235: 87 | BI235: 1,457 | BJ235: 1,262 | BK235: 435 | BL235: 18,415 | BM235: 15,129 | BN235: 50 | BO235: 1,265 | BP235: 1,208 | BQ235: 473 | BR235: 18,833 | BS235: 15,273 | BT235: 35 | BU235: 1,230 | BV235: 1,344 | BW235: 482
A236: FUSAGASUGA | B236: ANTIOQUIA | C236: Sexto | D236: 31,429 | E236: 14,640 | F236: 2,388 | G236: 3,085 | H236: 898 | I236: 345 | J236: 31,571 | K236: 14,743 | L236: 2,537 | M236: 2,906 | N236: 1,149 | O236: 358 | P236: 30,744 | Q236: 15,688 | R236: 297 | S236: 4,748 | T236: 1,112 | U236: 390 | V236: 30,385 | W236: 16,856 | X236: 291 | Y236: 3,559 | Z236: 1,113 | AA236: 400 | AB236: 30,608 | AC236: 17,445 | AD236: 266 | AE236: 3,428 | AF236: 1,191 | AG236: 392 | AH236: 28,880 | AI236: 16,973 | AJ236: 243 | AK236: 3,260 | AL236: 1,276 | AM236: 355 | AN236: 28,439 | AO236: 17,089 | AP236: 215 | AQ236: 3,176 | AR236: 1,214 | AS236: 366 | AT236: 26,148 | AU236: 15,898 | AV236: 105 | AW236: 2,804 | AX236: 1,265 | AY236: 385 | AZ236: 25,091 | BA236: 15,362 | BB236: 137 | BC236: 2,923 | BD236: 1,212 | BE236: 412 | BF236: 24,185 | BG236: 15,244 | BH236: 103 | BI236: 2,781 | BJ236: 1,244 | BK236: 460 | BL236: 23,645 | BM236: 14,562 | BN236: 130 | BO236: 2,591 | BP236: 1,251 | BQ236: 489 | BR236: 22,465 | BS236: 13,509 | BT236: 107 | BU236: 2,500 | BV236: 1,168 | BW236: 507
A237: GIRARDOT | B237: ANTIOQUIA | C237: Septimo | D237: 26,724 | E237: 12,359 | F237: 2,648 | G237: 2,837 | H237: 912 | I237: 370 | J237: 25,787 | K237: 11,841 | L237: 2,209 | M237: 2,516 | N237: 1,018 | O237: 333 | P237: 26,237 | Q237: 13,003 | R237: 254 | S237: 3,777 | T237: 965 | U237: 345 | V237: 25,450 | W237: 13,622 | X237: 226 | Y237: 3,451 | Z237: 1,126 | AA237: 391 | AB237: 25,377 | AC237: 14,059 | AD237: 287 | AE237: 3,031 | AF237: 1,145 | AG237: 361 | AH237: 25,658 | AI237: 14,647 | AJ237: 203 | AK237: 2,948 | AL237: 1,152 | AM237: 355 | AN237: 25,122 | AO237: 14,498 | AP237: 213 | AQ237: 2,852 | AR237: 1,249 | AS237: 374 | AT237: 25,387 | AU237: 15,433 | AV237: 207 | AW237: 3,003 | AX237: 1,318 | AY237: 382 | AZ237: 23,779 | BA237: 13,615 | BB237: 131 | BC237: 2,653 | BD237: 1,266 | BE237: 385 | BF237: 22,882 | BG237: 13,262 | BH237: 139 | BI237: 2,638 | BJ237: 1,176 | BK237: 441 | BL237: 22,315 | BM237: 13,007 | BN237: 115 | BO237: 2,506 | BP237: 1,187 | BQ237: 447 | BR237: 21,303 | BS237: 12,817 | BT237: 153 | BU237: 2,293 | BV237: 1,261 | BW237: 473
A238: GIRON | B238: ANTIOQUIA | C238: Octavo | D238: 23,067 | E238: 10,251 | F238: 1,429 | G238: 1,925 | H238: 896 | I238: 321 | J238: 22,648 | K238: 10,062 | L238: 2,272 | M238: 2,321 | N238: 1,021 | O238: 359 | P238: 21,611 | Q238: 10,602 | R238: 166 | S238: 3,309 | T238: 911 | U238: 341 | V238: 22,102 | W238: 11,382 | X238: 178 | Y238: 2,929 | Z238: 995 | AA238: 330 | AB238: 21,609 | AC238: 11,320 | AD238: 187 | AE238: 2,807 | AF238: 1,116 | AG238: 353 | AH238: 22,131 | AI238: 12,194 | AJ238: 206 | AK238: 2,463 | AL238: 1,061 | AM238: 351 | AN238: 22,595 | AO238: 12,971 | AP238: 194 | AQ238: 2,503 | AR238: 1,078 | AS238: 371 | AT238: 22,801 | AU238: 13,385 | AV238: 205 | AW238: 2,575 | AX238: 1,273 | AY238: 379 | AZ238: 22,031 | BA238: 12,816 | BB238: 196 | BC238: 2,627 | BD238: 1,281 | BE238: 389 | BF238: 20,876 | BG238: 11,700 | BH238: 120 | BI238: 2,297 | BJ238: 1,275 | BK238: 377 | BL238: 19,726 | BM238: 11,287 | BN238: 120 | BO238: 2,275 | BP238: 1,057 | BQ238: 417 | BR238: 19,345 | BS238: 11,312 | BT238: 99 | BU238: 2,149 | BV238: 1,119 | BW238: 426
A239: GUAINIA | B239: ANTIOQUIA | C239: Noveno | D239: 20,156 | E239: 7,856 | F239: 1,554 | G239: 1,867 | H239: 855 | I239: 322 | J239: 19,667 | K239: 7,998 | L239: 1,296 | M239: 1,670 | N239: 943 | O239: 381 | P239: 19,364 | Q239: 8,744 | R239: 152 | S239: 2,904 | T239: 865 | U239: 337 | V239: 18,884 | W239: 8,601 | X239: 138 | Y239: 2,535 | Z239: 909 | AA239: 336 | AB239: 19,350 | AC239: 9,010 | AD239: 150 | AE239: 2,313 | AF239: 989 | AG239: 324 | AH239: 19,415 | AI239: 9,259 | AJ239: 130 | AK239: 2,289 | AL239: 1,059 | AM239: 342 | AN239: 20,125 | AO239: 9,968 | AP239: 172 | AQ239: 2,190 | AR239: 963 | AS239: 365 | AT239: 21,133 | AU239: 11,195 | AV239: 193 | AW239: 2,340 | AX239: 1,110 | AY239: 371 | AZ239: 20,807 | BA239: 10,262 | BB239: 183 | BC239: 2,232 | BD239: 1,197 | BE239: 373 | BF239: 19,783 | BG239: 9,956 | BH239: 148 | BI239: 2,281 | BJ239: 1,195 | BK239: 372 | BL239: 19,087 | BM239: 9,318 | BN239: 118 | BO239: 2,023 | BP239: 1,145 | BQ239: 349 | BR239: 18,033 | BS239: 9,244 | BT239: 106 | BU239: 2,050 | BV239: 994 | BW239: 419
A240: GUAVIARE | B240: ANTIOQUIA | C240: Decimo | D240: 17,772 | E240: 5,654 | F240: 1,360 | G240: 1,382 | H240: 748 | I240: 292 | J240: 17,806 | K240: 5,625 | L240: 1,354 | M240: 1,366 | N240: 816 | O240: 265 | P240: 17,250 | Q240: 6,374 | R240: 61 | S240: 2,026 | T240: 825 | U240: 296 | V240: 16,998 | W240: 6,802 | X240: 100 | Y240: 2,218 | Z240: 805 | AA240: 325 | AB240: 16,889 | AC240: 6,548 | AD240: 91 | AE240: 1,939 | AF240: 843 | AG240: 298 | AH240: 17,323 | AI240: 7,027 | AJ240: 86 | AK240: 1,790 | AL240: 847 | AM240: 292 | AN240: 17,613 | AO240: 7,528 | AP240: 102 | AQ240: 1,803 | AR240: 952 | AS240: 364 | AT240: 18,103 | AU240: 8,239 | AV240: 154 | AW240: 1,960 | AX240: 950 | AY240: 364 | AZ240: 18,428 | BA240: 8,422 | BB240: 147 | BC240: 1,896 | BD240: 1,021 | BE240: 352 | BF240: 17,733 | BG240: 8,097 | BH240: 130 | BI240: 1,833 | BJ240: 1,114 | BK240: 351 | BL240: 17,017 | BM240: 7,837 | BN240: 118 | BO240: 1,866 | BP240: 1,047 | BQ240: 337 | BR240: 16,750 | BS240: 7,607 | BT240: 106 | BU240: 1,651 | BV240: 1,057 | BW240: 343
A241: HUILA | B241: ANTIOQUIA | C241: Once | D241: 14,833 | E241: 4,639 | F241: 1,214 | G241: 1,208 | H241: 726 | I241: 290 | J241: 14,292 | K241: 4,552 | L241: 1,165 | M241: 1,208 | N241: 743 | O241: 289 | P241: 14,532 | Q241: 5,276 | R241: 33 | S241: 1,786 | T241: 741 | U241: 245 | V241: 14,100 | W241: 5,485 | X241: 67 | Y241: 1,488 | Z241: 753 | AA241: 289 | AB241: 14,035 | AC241: 5,617 | AD241: 74 | AE241: 1,812 | AF241: 734 | AG241: 289 | AH241: 14,434 | AI241: 5,624 | AJ241: 54 | AK241: 1,522 | AL241: 742 | AM241: 286 | AN241: 14,802 | AO241: 6,233 | AP241: 74 | AQ241: 1,463 | AR241: 746 | AS241: 290 | AT241: 15,082 | AU241: 6,532 | AV241: 91 | AW241: 1,614 | AX241: 911 | AY241: 351 | AZ241: 14,803 | BA241: 6,582 | BB241: 113 | BC241: 1,548 | BD241: 861 | BE241: 344 | BF241: 15,338 | BG241: 7,023 | BH241: 118 | BI241: 1,511 | BJ241: 880 | BK241: 334 | BL241: 14,978 | BM241: 6,654 | BN241: 114 | BO241: 1,539 | BP241: 979 | BQ241: 331 | BR241: 14,486 | BS241: 6,719 | BT241: 96 | BU241: 1,526 | BV241: 1,013 | BW241: 328
A242: IBAGUE | B242: ANTIOQUIA | C242: 12º Normal | D242: 587 | E242: 0 | F242: 0 | G242: 0 | H242: 6 | I242: 0 | J242: 594 | K242: 0 | L242: 0 | M242: 0 | N242: 0 | O242: 0 | P242: 416 | Q242: 0 | R242: 0 | S242: 0 | T242: 0 | U242: 0 | V242: 357 | W242: 26 | X242: 0 | Y242: 0 | Z242: 1 | AA242: 0 | AB242: 368 | AC242: 43 | AD242: 0 | AE242: 0 | AF242: 0 | AG242: 0 | AH242: 389 | AI242: 52 | AJ242: 0 | AK242: 0 | AL242: 0 | AM242: 0 | AN242: 422 | AO242: 39 | AP242: 0 | AQ242: 0 | AR242: 0 | AS242: 0 | AT242: 380 | AU242: 68 | AV242: 0 | AW242: 0 | AX242: 0 | AY242: 0 | AZ242: 444 | BA242: 54 | BB242: 0 | BC242: 0 | BD242: 1 | BE242: 0 | BF242: 0 | BG242: 0 | BH242: 0 | BI242: 0 | BJ242: 0 | BK242: 0 | BL242: 0 | BM242: 0 | BN242: 0 | BO242: 0 | BP242: 0 | BQ242: 0 | BR242: 0 | BS242: 0 | BT242: 0 | BU242: 0 | BV242: 0 | BW242: 0
A243: IPIALES | B243: ANTIOQUIA | C243: 13º Normal | D243: 658 | E243: 0 | F243: 0 | G243: 0 | H243: 0 | I243: 0 | J243: 519 | K243: 0 | L243: 1 | M243: 0 | N243: 0 | O243: 0 | P243: 419 | Q243: 0 | R243: 0 | S243: 0 | T243: 0 | U243: 0 | V243: 319 | W243: 16 | X243: 0 | Y243: 0 | Z243: 0 | AA243: 0 | AB243: 262 | AC243: 13 | AD243: 0 | AE243: 0 | AF243: 0 | AG243: 0 | AH243: 254 | AI243: 25 | AJ243: 0 | AK243: 0 | AL243: 0 | AM243: 0 | AN243: 286 | AO243: 21 | AP243: 0 | AQ243: 0 | AR243: 0 | AS243: 0 | AT243: 324 | AU243: 26 | AV243: 0 | AW243: 0 | AX243: 0 | AY243: 0 | AZ243: 306 | BA243: 35 | BB243: 0 | BC243: 0 | BD243: 0 | BE243: 0 | BF243: 0 | BG243: 0 | BH243: 0 | BI243: 0 | BJ243: 1 | BK243: 0 | BL243: 0 | BM243: 0 | BN243: 0 | BO243: 0 | BP243: 0 | BQ243: 0 | BR243: 0 | BS243: 0 | BT243: 0 | BU243: 0 | BV243: 0 | BW243: 0
A244: ITAGUI | B244: ANTIOQUIA | C244: Ciclo 1 Adultos | D244: 304 | E244: 156 | F244: 1,477 | G244: 505 | H244: 6 | I244: 2 | J244: 4,279 | K244: 5,928 | L244: 24 | M244: 3 | N244: 4 | O244: 0 | P244: 5,310 | Q244: 4,428 | R244: 25 | S244: 9 | T244: 0 | U244: 0 | V244: 2,379 | W244: 849 | X244: 0 | Y244: 0 | Z244: 26 | AA244: 0 | AB244: 6,735 | AC244: 3,539 | AD244: 0 | AE244: 0 | AF244: 0 | AG244: 0 | AH244: 2,301 | AI244: 1,305 | AJ244: 0 | AK244: 0 | AL244: 0 | AM244: 0 | AN244: 52 | AO244: 55 | AP244: 0 | AQ244: 0 | AR244: 0 | AS244: 0 | AT244: 772 | AU244: 327 | AV244: 0 | AW244: 0 | AX244: 0 | AY244: 0 | AZ244: 175 | BA244: 21 | BB244: 0 | BC244: 0 | BD244: 0 | BE244: 0 | BF244: 94 | BG244: 13 | BH244: 0 | BI244: 0 | BJ244: 1 | BK244: 0 | BL244: 64 | BM244: 26 | BN244: 0 | BO244: 0 | BP244: 2 | BQ244: 0 | BR244: 13 | BS244: 29 | BT244: 0 | BU244: 0 | BV244: 1 | BW244: 0
A245: JAMUNDI | B245: ANTIOQUIA | C245: Ciclo 2 Adultos | D245: 1,107 | E245: 209 | F245: 1,349 | G245: 690 | H245: 24 | I245: 8 | J245: 1,365 | K245: 531 | L245: 850 | M245: 477 | N245: 25 | O245: 0 | P245: 1,552 | Q245: 984 | R245: 952 | S245: 1,066 | T245: 18 | U245: 0 | V245: 1,651 | W245: 787 | X245: 0 | Y245: 0 | Z245: 19 | AA245: 0 | AB245: 1,267 | AC245: 891 | AD245: 0 | AE245: 0 | AF245: 485 | AG245: 0 | AH245: 1,395 | AI245: 618 | AJ245: 0 | AK245: 0 | AL245: 70 | AM245: 34 | AN245: 1,546 | AO245: 485 | AP245: 0 | AQ245: 0 | AR245: 24 | AS245: 0 | AT245: 783 | AU245: 616 | AV245: 0 | AW245: 0 | AX245: 20 | AY245: 6 | AZ245: 1,096 | BA245: 624 | BB245: 0 | BC245: 0 | BD245: 26 | BE245: 4 | BF245: 730 | BG245: 401 | BH245: 0 | BI245: 0 | BJ245: 33 | BK245: 3 | BL245: 688 | BM245: 319 | BN245: 0 | BO245: 0 | BP245: 15 | BQ245: 8 | BR245: 529 | BS245: 371 | BT245: 0 | BU245: 0 | BV245: 45 | BW245: 10
A246: LA ESTRELLA | B246: ANTIOQUIA | C246: Ciclo 3 Adultos | D246: 5,367 | E246: 933 | F246: 2,097 | G246: 1,142 | H246: 407 | I246: 74 | J246: 5,848 | K246: 1,760 | L246: 2,342 | M246: 868 | N246: 502 | O246: 0 | P246: 6,277 | Q246: 2,243 | R246: 1,132 | S246: 461 | T246: 507 | U246: 0 | V246: 7,534 | W246: 2,549 | X246: 0 | Y246: 0 | Z246: 382 | AA246: 0 | AB246: 8,412 | AC246: 3,130 | AD246: 0 | AE246: 0 | AF246: 885 | AG246: 8 | AH246: 7,868 | AI246: 3,436 | AJ246: 0 | AK246: 0 | AL246: 647 | AM246: 157 | AN246: 7,270 | AO246: 2,654 | AP246: 0 | AQ246: 0 | AR246: 419 | AS246: 28 | AT246: 5,757 | AU246: 2,374 | AV246: 0 | AW246: 0 | AX246: 416 | AY246: 26 | AZ246: 6,336 | BA246: 2,576 | BB246: 0 | BC246: 0 | BD246: 517 | BE246: 39 | BF246: 4,673 | BG246: 2,301 | BH246: 0 | BI246: 0 | BJ246: 477 | BK246: 47 | BL246: 4,153 | BM246: 1,877 | BN246: 0 | BO246: 0 | BP246: 323 | BQ246: 32 | BR246: 3,638 | BS246: 1,487 | BT246: 0 | BU246: 0 | BV246: 449 | BW246: 27
A247: LA GUAJIRA | B247: ANTIOQUIA | C247: Ciclo 4 Adultos | D247: 6,122 | E247: 1,107 | F247: 2,095 | G247: 863 | H247: 828 | I247: 71 | J247: 6,936 | K247: 1,736 | L247: 2,290 | M247: 786 | N247: 821 | O247: 0 | P247: 7,407 | Q247: 2,420 | R247: 1,825 | S247: 573 | T247: 883 | U247: 0 | V247: 8,299 | W247: 2,719 | X247: 0 | Y247: 0 | Z247: 874 | AA247: 0 | AB247: 8,930 | AC247: 3,155 | AD247: 0 | AE247: 0 | AF247: 1,175 | AG247: 30 | AH247: 9,050 | AI247: 3,337 | AJ247: 0 | AK247: 0 | AL247: 1,003 | AM247: 189 | AN247: 8,826 | AO247: 3,035 | AP247: 0 | AQ247: 0 | AR247: 982 | AS247: 164 | AT247: 7,249 | AU247: 2,772 | AV247: 0 | AW247: 0 | AX247: 707 | AY247: 35 | AZ247: 7,338 | BA247: 2,967 | BB247: 0 | BC247: 0 | BD247: 999 | BE247: 42 | BF247: 6,467 | BG247: 2,869 | BH247: 0 | BI247: 0 | BJ247: 986 | BK247: 86 | BL247: 5,696 | BM247: 2,310 | BN247: 0 | BO247: 0 | BP247: 907 | BQ247: 56 | BR247: 4,680 | BS247: 2,081 | BT247: 0 | BU247: 0 | BV247: 848 | BW247: 34
A248: LORICA | B248: ANTIOQUIA | C248: Ciclo 5 Adultos | D248: 2,047 | E248: 367 | F248: 963 | G248: 283 | H248: 480 | I248: 53 | J248: 2,830 | K248: 687 | L248: 626 | M248: 393 | N248: 621 | O248: 0 | P248: 2,537 | Q248: 1,031 | R248: 645 | S248: 284 | T248: 681 | U248: 0 | V248: 2,402 | W248: 816 | X248: 0 | Y248: 0 | Z248: 529 | AA248: 0 | AB248: 2,726 | AC248: 1,288 | AD248: 0 | AE248: 0 | AF248: 932 | AG248: 28 | AH248: 2,149 | AI248: 1,057 | AJ248: 0 | AK248: 0 | AL248: 424 | AM248: 15 | AN248: 1,677 | AO248: 599 | AP248: 0 | AQ248: 0 | AR248: 551 | AS248: 40 | AT248: 3,312 | AU248: 1,227 | AV248: 0 | AW248: 0 | AX248: 627 | AY248: 98 | AZ248: 1,746 | BA248: 1,086 | BB248: 0 | BC248: 0 | BD248: 745 | BE248: 44 | BF248: 2,071 | BG248: 861 | BH248: 0 | BI248: 0 | BJ248: 798 | BK248: 65 | BL248: 1,416 | BM248: 587 | BN248: 0 | BO248: 0 | BP248: 698 | BQ248: 48 | BR248: 1,453 | BS248: 657 | BT248: 0 | BU248: 0 | BV248: 669 | BW248: 28
A249: MAGANGUE | B249: ANTIOQUIA | C249: Ciclo 6 Adultos | D249: 5,330 | E249: 896 | F249: 889 | G249: 436 | H249: 1,417 | I249: 53 | J249: 5,183 | K249: 1,071 | L249: 1,257 | M249: 267 | N249: 1,259 | O249: 0 | P249: 5,805 | Q249: 1,298 | R249: 1,216 | S249: 229 | T249: 1,179 | U249: 0 | V249: 6,464 | W249: 2,203 | X249: 0 | Y249: 0 | Z249: 1,293 | AA249: 0 | AB249: 6,951 | AC249: 2,089 | AD249: 0 | AE249: 0 | AF249: 1,229 | AG249: 66 | AH249: 7,848 | AI249: 2,451 | AJ249: 0 | AK249: 0 | AL249: 1,920 | AM249: 196 | AN249: 8,083 | AO249: 3,131 | AP249: 0 | AQ249: 0 | AR249: 1,275 | AS249: 142 | AT249: 5,736 | AU249: 2,120 | AV249: 0 | AW249: 0 | AX249: 1,228 | AY249: 51 | AZ249: 6,498 | BA249: 1,804 | BB249: 0 | BC249: 0 | BD249: 1,821 | BE249: 110 | BF249: 5,213 | BG249: 2,112 | BH249: 0 | BI249: 0 | BJ249: 1,881 | BK249: 89 | BL249: 5,522 | BM249: 2,102 | BN249: 0 | BO249: 0 | BP249: 1,743 | BQ249: 83 | BR249: 4,311 | BS249: 1,541 | BT249: 0 | BU249: 0 | BV249: 1,678 | BW249: 56
A250: MAGDALENA | B250: ANTIOQUIA | C250: Semestre introductorio NS | D250: 0 | E250: 0 | F250: 0 | G250: 0 | H250: 0 | I250: 0 | J250: 0 | K250: 0 | L250: 0 | M250: 0 | N250: 0 | O250: 0 | P250: 0 | Q250: 0 | R250: 0 | S250: 0 | T250: 0 | U250: 0 | V250: 0 | W250: 0 | X250: 0 | Y250: 0 | Z250: 0 | AA250: 0 | AB250: 0 | AC250: 0 | AD250: 0 | AE250: 0 | AF250: 0 | AG250: 0 | AH250: 0 | AI250: 0 | AJ250: 0 | AK250: 0 | AL250: 0 | AM250: 0 | AN250: 0 | AO250: 0 | AP250: 0 | AQ250: 0 | AR250: 0 | AS250: 0 | AT250: 0 | AU250: 0 | AV250: 0 | AW250: 0 | AX250: 0 | AY250: 0 | AZ250: 0 | BA250: 0 | BB250: 0 | BC250: 0 | BD250: 0 | BE250: 0 | BF250: 116 | BG250: 12 | BH250: 0 | BI250: 0 | BJ250: 0 | BK250: 0 | BL250: 123 | BM250: 7 | BN250: 0 | BO250: 0 | BP250: 3 | BQ250: 0 | BR250: 112 | BS250: 1 | BT250: 0 | BU250: 0 | BV250: 2 | BW250: 0
A251: MAICAO | B251: ANTIOQUIA | C251: Programa formación compl 1 NS | D251: 0 | E251: 0 | F251: 0 | G251: 0 | H251: 0 | I251: 0 | J251: 0 | K251: 0 | L251: 0 | M251: 0 | N251: 0 | O251: 0 | P251: 0 | Q251: 0 | R251: 0 | S251: 0 | T251: 0 | U251: 0 | V251: 0 | W251: 0 | X251: 0 | Y251: 0 | Z251: 0 | AA251: 0 | AB251: 0 | AC251: 0 | AD251: 0 | AE251: 0 | AF251: 0 | AG251: 0 | AH251: 0 | AI251: 0 | AJ251: 0 | AK251: 0 | AL251: 0 | AM251: 0 | AN251: 0 | AO251: 0 | AP251: 0 | AQ251: 0 | AR251: 0 | AS251: 0 | AT251: 0 | AU251: 0 | AV251: 0 | AW251: 0 | AX251: 0 | AY251: 0 | AZ251: 0 | BA251: 0 | BB251: 0 | BC251: 0 | BD251: 0 | BE251: 0 | BF251: 179 | BG251: 17 | BH251: 0 | BI251: 0 | BJ251: 1 | BK251: 0 | BL251: 76 | BM251: 9 | BN251: 0 | BO251: 0 | BP251: 0 | BQ251: 0 | BR251: 126 | BS251: 6 | BT251: 0 | BU251: 0 | BV251: 4 | BW251: 0
